Workbook

Sheet QLS (hidden)

Sheet Menu
B1: WPRO.VN - #1 PHẦN MỀM QUẢN TRỊ DOANH NGHIỆP SME
K4: PHẦN MỀM NHÂN SỰ 12 THÁNG
K5: Phiên bản: WPRO.VN_018_20210103
K8: Thiết kế bởi:
K9: CÔNG TY TNHH WEBKYNANG VIỆT NAM
K10: Tầng 6, Tòa nhà Sannam, 78 Duy Tân, Cầu Giấy, Hà Nội
K11: Email: Webkynang.vn@gmail.com
K12: Hotline: 038-997-8430; Phone: 024-2239-7373

Sheet Danh muc nhan vien
C6: =Setup!F10 -> Công ty TNHH Webkynang Việt Nam
C7: =Setup!F11 -> Tầng 6, Tòa nhà Sannam, Duy Tân, Cầu Giấy, Hà Nội | M7: Home | Z7: Home | AM7: Home | AZ7: Home | BM7: Home
C9: DANH SÁCH NHÂN VIÊN | G9: Lương cơ bản | H9: Lương tính bảo hiểm | I9: Phụ cấp trách nhiệm | J9: Phụ cấp ăn trưa | K9: Tạm ứng | M9: 1. LƯƠNG CƠ BẢN | Z9: 2. LƯƠNG TÍNH BẢO HIỂM | AM9: 3. PHỤ CẤP TRÁCH NHIỆM | AZ9: 4. PHỤ CẤP CƠM TRƯA | BM9: 5. TẠM ỨNG
C11: STT | D11: MÃ NV | E11: TÊN NV | F11: CHỨC VỤ | G11: PHÒNG BAN | H11: BẮT ĐẦU | I11: KẾT THÚC | J11: MST TNCN | K11: Số người phụ thuộc | L11: GHI CHÚ | M11: 1 | N11: 2 | O11: 3 | P11: 4 | Q11: 5 | R11: 6 | S11: 7 | T11: 8 | U11: 9 | V11: 10 | W11: 11 | X11: 12 | Z11: 1 | AA11: 2 | AB11: 3 | AC11: 4 | AD11: 5 | AE11: 6 | AF11: 7 | AG11: 8 | AH11: 9 | AI11: 10 | AJ11: 11 | AK11: 12 | AM11: 1 | AN11: 2 | AO11: 3 | AP11: 4 | AQ11: 5 | AR11: 6 | AS11: 7 | AT11: 8 | AU11: 9 | AV11: 10 | AW11: 11 | AX11: 12 | AZ11: 1 | BA11: 2 | BB11: 3 | BC11: 4 | BD11: 5 | BE11: 6 | BF11: 7 | BG11: 8 | BH11: 9 | BI11: 10 | BJ11: 11 | BK11: 12 | BM11: 1 | BN11: 2 | BO11: 3 | BP11: 4 | BQ11: 5 | BR11: 6 | BS11: 7 | BT11: 8 | BU11: 9 | BV11: 10 | BW11: 11 | BX11: 12
C12: 1 | D12: QL001 | E12: Trần Văn Tám | F12: Giám Đốc | G12: BGĐ | H12: 2014-03-14 | K12: 2 | M12: 100000000 | N12: 11000000 | O12: =N12 -> 11000000 | P12: 11000000 | Q12: 11000000 | R12: 11000000 | S12: 11000000 | T12: 11000000 | U12: 11000000 | V12: 11000000 | W12: 11000000 | X12: 11000000 | Z12: 23000000 | AA12: 25000000 | AB12: =AA12 -> 25000000 | AC12: 25000000 | AD12: 25000000 | AE12: 25000000 | AF12: 25000000 | AG12: 25000000 | AH12: 25000000 | AI12: 25000000 | AJ12: 25000000 | AK12: 25000000 | AM12: 1000000 | AN12: 1300000 | AO12: =AN12 -> 1300000 | AP12: 1300000 | AQ12: 1300000 | AR12: 1300000 | AS12: 1300000 | AT12: 1400000 | AU12: 1400000 | AV12: 1400000 | AW12: 1400000 | AX12: 1400000 | AZ12: 500000 | BA12: 600000 | BB12: =BA12 -> 600000 | BC12: 600000 | BD12: 600000 | BE12: 600000 | BF12: 600000 | BG12: 600000 | BH12: 600000 | BI12: 600000 | BJ12: 600000 | BK12: 600000 | BM12: 1000000 | BP12: 2000000 | BR12: 4800000
C13: 2 | D13: QL002 | E13: Đặng Văn Thành | F13: Phó GĐ | G13: BGĐ | H13: 2014-03-15 | K13: 2 | M13: 70000000 | N13: =M13 -> 70000000 | O13: 70000000 | P13: 70000000 | Q13: 70000000 | R13: 70000000 | S13: 70000000 | T13: 70000000 | U13: 70000000 | V13: 70000000 | W13: 70000000 | X13: 70000000 | Z13: 23000000 | AA13: 25000000 | AB13: =AA13 -> 25000000 | AC13: 25000000 | AD13: 25000000 | AE13: 25000000 | AF13: 25000000 | AG13: 25000000 | AH13: 25000000 | AI13: 25000000 | AJ13: 25000000 | AK13: 25000000 | AM13: 700000 | AN13: =AM13 -> 700000 | AO13: 700000 | AP13: 700000 | AQ13: 700000 | AR13: 700000 | AS13: 700000 | AT13: 1000000 | AU13: 1000000 | AV13: 1000000 | AW13: 1000000 | AX13: 1000000 | AZ13: 500000 | BA13: =AZ13 -> 500000 | BB13: 500000 | BC13: 500000 | BD13: 500000 | BE13: 500000 | BF13: 500000 | BG13: 500000 | BH13: 500000 | BI13: 500000 | BJ13: 500000 | BK13: 500000
C14: 3 | D14: QL003 | E14: Đặng Thành Tâm | F14: KTT | G14: Kế Toán | H14: 2014-03-15 | K14: 1 | M14: 46000000 | N14: =M14 -> 46000000 | O14: 46000000 | P14: 46000000 | Q14: 46000000 | R14: 46000000 | S14: 46000000 | T14: 46000000 | U14: 46000000 | V14: 46000000 | W14: 46000000 | X14: 46000000 | Z14: 23000000 | AA14: 25000000 | AB14: =AA14 -> 25000000 | AC14: 25000000 | AD14: 25000000 | AE14: 25000000 | AF14: 25000000 | AG14: 25000000 | AH14: 25000000 | AI14: 25000000 | AJ14: 25000000 | AK14: 25000000 | AZ14: 500000 | BA14: =AZ14 -> 500000 | BB14: 500000 | BC14: 500000 | BD14: 500000 | BE14: 500000 | BF14: 500000 | BG14: 500000 | BH14: 500000 | BI14: 500000 | BJ14: 500000 | BK14: 500000 | BO14: 500000 | BQ14: 700000
C15: 4 | D15: QL004 | E15: Đoàn Văn Cường | F15: TP Kinh Doanh | G15: Kinh Doanh | H15: 2014-03-15 | K15: 2 | M15: 35000000 | N15: =M15 -> 35000000 | O15: 35000000 | P15: 35000000 | Q15: 35000000 | R15: 35000000 | S15: 35000000 | T15: 35000000 | U15: 35000000 | V15: 35000000 | W15: 35000000 | X15: 35000000 | Z15: 23000000 | AA15: 25000000 | AB15: =AA15 -> 25000000 | AC15: 25000000 | AD15: 25000000 | AE15: 25000000 | AF15: 25000000 | AG15: 25000000 | AH15: 25000000 | AI15: 25000000 | AJ15: 25000000 | AK15: 25000000 | AZ15: 500000 | BA15: =AZ15 -> 500000 | BB15: 500000 | BC15: 500000 | BD15: 500000 | BE15: 500000 | BF15: 500000 | BG15: 500000 | BH15: 500000 | BI15: 500000 | BJ15: 500000 | BK15: 500000
C16: 5 | D16: VP001 | E16: Hồ Phương Lanh | F16: KT Tổng hợp | G16: Kế Toán | H16: 2014-05-10 | K16: 3 | M16: 25000000 | N16: =M16 -> 25000000 | O16: 25000000 | P16: 25000000 | Q16: 25000000 | R16: 25000000 | S16: 25000000 | T16: 25000000 | U16: 25000000 | V16: 25000000 | W16: 25000000 | X16: 25000000 | Z16: 23000000 | AA16: 25000000 | AB16: =AA16 -> 25000000 | AC16: 25000000 | AD16: 25000000 | AE16: 25000000 | AF16: 25000000 | AG16: 25000000 | AH16: 25000000 | AI16: 25000000 | AJ16: 25000000 | AK16: 25000000 | AZ16: 500000 | BA16: =AZ16 -> 500000 | BB16: 500000 | BC16: 500000 | BD16: 500000 | BE16: 500000 | BF16: 500000 | BG16: 500000 | BH16: 500000 | BI16: 500000 | BJ16: 500000 | BK16: 500000
C17: 6 | D17: VP002 | E17: Huỳnh Tùng Lâm | F17: KT Viên | G17: Kế Toán | H17: 2014-05-10 | I17: 2015-01-15 | K17: 1 | M17: 15000000 | N17: =M17 -> 15000000 | O17: 15000000 | P17: 15000000 | Q17: 15000000 | R17: 15000000 | S17: 15000000 | T17: 15000000 | U17: 15000000 | V17: 15000000 | W17: 15000000 | X17: 15000000 | Z17: 13000000 | AA17: 25000000 | AB17: =AA17 -> 25000000 | AC17: 25000000 | AD17: 25000000 | AE17: 25000000 | AF17: 25000000 | AG17: 25000000 | AH17: 25000000 | AI17: 25000000 | AJ17: 25000000 | AK17: 25000000 | AZ17: 500000 | BA17: =AZ17 -> 500000 | BB17: 500000 | BC17: 500000 | BD17: 500000 | BE17: 500000 | BF17: 500000 | BG17: 500000 | BH17: 500000 | BI17: 500000 | BJ17: 500000 | BK17: 500000 | BP17: 200000 | BQ17: 200000
C18: 7 | D18: VP003 | E18: Lê Đại Tài | F18: KT Viên | G18: Kế Toán | H18: 2014-05-10 | K18: 1 | M18: 11000000 | N18: =M18 -> 11000000 | O18: 11000000 | P18: 11000000 | Q18: 11000000 | R18: 11000000 | S18: 11000000 | T18: 11000000 | U18: 11000000 | V18: 11000000 | W18: 11000000 | X18: 11000000 | Z18: 2500000 | AA18: =Z18 -> 2500000 | AB18: 2500000 | AC18: 2500000 | AD18: 2500000 | AE18: 2500000 | AF18: 2500000 | AG18: 2500000 | AH18: 2500000 | AI18: 2500000 | AJ18: 2500000 | AK18: 2500000 | AZ18: 500000 | BA18: =AZ18 -> 500000 | BB18: 500000 | BC18: 500000 | BD18: 500000 | BE18: 500000 | BF18: 500000 | BG18: 500000 | BH18: 500000 | BI18: 500000 | BJ18: 500000 | BK18: 500000
C19: 8 | D19: VP004 | E19: Lâm Thị Cành | F19: Nhân sự | G19: HC - NS | H19: 2014-09-22 | K19: 2 | M19: 9900000 | N19: =M19 -> 9900000 | O19: 9900000 | P19: 9900000 | Q19: 9900000 | R19: 9900000 | S19: 9900000 | T19: 9900000 | U19: 9900000 | V19: 9900000 | W19: 9900000 | X19: 9900000 | Z19: 2450000 | AA19: =Z19 -> 2450000 | AB19: 2450000 | AC19: 2450000 | AD19: 2450000 | AE19: 2450000 | AF19: 2450000 | AG19: 2450000 | AH19: 2450000 | AI19: 2450000 | AJ19: 2450000 | AK19: 2450000 | AZ19: 500000 | BA19: =AZ19 -> 500000 | BB19: 500000 | BC19: 500000 | BD19: 500000 | BE19: 500000 | BF19: 500000 | BG19: 500000 | BH19: 500000 | BI19: 500000 | BJ19: 500000 | BK19: 500000 | BS19: 300000
C20: 9 | D20: VP005 | E20: Lê Đức Chinh | F20: Hành chính | G20: HC - NS | H20: =H19+1 -> 2014-09-23 | I20: 2015-11-15 | K20: 2 | M20: 5900000 | N20: =M20 -> 5900000 | O20: 5900000 | P20: 5900000 | Q20: 5900000 | R20: 5900000 | S20: 5900000 | T20: 5900000 | U20: 5900000 | V20: 5900000 | W20: 5900000 | X20: 5900000 | Z20: 2950000 | AA20: =Z20 -> 2950000 | AB20: 2950000 | AC20: 2950000 | AD20: 2950000 | AE20: 2950000 | AF20: 2950000 | AG20: 2950000 | AH20: 2950000 | AI20: 2950000 | AJ20: 2950000 | AK20: 2950000 | AZ20: 500000 | BA20: =AZ20 -> 500000 | BB20: 500000 | BC20: 500000 | BD20: 500000 | BE20: 500000 | BF20: 500000 | BG20: 500000 | BH20: 500000 | BI20: 500000 | BJ20: 500000 | BK20: 500000
C21: 10 | D21: VP006 | E21: Lê Văn Liêm | F21: Marketing | G21: MKT | H21: =H20+1 -> 2014-09-24 | K21: 0 | M21: 5300000 | N21: =M21 -> 5300000 | O21: 5300000 | P21: 5300000 | Q21: 5300000 | R21: 5300000 | S21: 5300000 | T21: 5300000 | U21: 5300000 | V21: 5300000 | W21: 5300000 | X21: 5300000 | Z21: 2650000 | AA21: =Z21 -> 2650000 | AB21: 2650000 | AC21: 2650000 | AD21: 2650000 | AE21: 2650000 | AF21: 2650000 | AG21: 2650000 | AH21: 2650000 | AI21: 2650000 | AJ21: 2650000 | AK21: 2650000 | AZ21: 500000 | BA21: =AZ21 -> 500000 | BB21: 500000 | BC21: 500000 | BD21: 500000 | BE21: 500000 | BF21: 500000 | BG21: 500000 | BH21: 500000 | BI21: 500000 | BJ21: 500000 | BK21: 500000
C22: 11 | D22: KD001 | E22: Nguyễn Chí Thanh | F22: NV Kinh Doanh | G22: Kinh Doanh | H22: 2014-09-25 | K22: 0 | M22: 5000000 | N22: =M22 -> 5000000 | O22: 5000000 | P22: 5000000 | Q22: 5000000 | R22: 5000000 | S22: 5000000 | T22: 5000000 | U22: 5000000 | V22: 5000000 | W22: 5000000 | X22: 5000000 | Z22: 2500000 | AA22: =Z22 -> 2500000 | AB22: 2500000 | AC22: 2500000 | AD22: 2500000 | AE22: 2500000 | AF22: 2500000 | AG22: 2500000 | AH22: 2500000 | AI22: 2500000 | AJ22: 2500000 | AK22: 2500000 | AZ22: 500000 | BA22: =AZ22 -> 500000 | BB22: 500000 | BC22: 500000 | BD22: 500000 | BE22: 500000 | BF22: 500000 | BG22: 500000 | BH22: 500000 | BI22: 500000 | BJ22: 500000 | BK22: 500000 | BP22: 1000000
C23: 12 | D23: KD002 | E23: Nguyễn Hoàng Tính | F23: NV Kinh Doanh | G23: Kinh Doanh | H23: 2014-09-26 | I23: 2015-08-10 | K23: 0 | M23: 3000000 | N23: =M23 -> 3000000 | O23: 3000000 | P23: 3000000 | Q23: 3000000 | R23: 3000000 | S23: 3000000 | T23: 3000000 | U23: 3000000 | V23: 3000000 | W23: 3000000 | X23: 3000000 | Z23: 1500000 | AA23: =Z23 -> 1500000 | AB23: 1500000 | AC23: 1500000 | AD23: 1500000 | AE23: 1500000 | AF23: 1500000 | AG23: 1500000 | AH23: 1500000 | AI23: 1500000 | AJ23: 1500000 | AK23: 1500000 | AZ23: 500000 | BA23: =AZ23 -> 500000 | BB23: 500000 | BC23: 500000 | BD23: 500000 | BE23: 500000 | BF23: 500000 | BG23: 500000 | BH23: 500000 | BI23: 500000 | BJ23: 500000 | BK23: 500000
C24: 13 | D24: KD003 | E24: Nguyễn Văn Hân | F24: NV Kinh Doanh | G24: Kinh Doanh | H24: 2014-09-27 | K24: 0 | M24: 4500000 | N24: =M24 -> 4500000 | O24: 4500000 | P24: 4500000 | Q24: 4500000 | R24: 4500000 | S24: 4500000 | T24: 4500000 | U24: 4500000 | V24: 4500000 | W24: 4500000 | X24: 4500000 | Z24: 2250000 | AA24: =Z24 -> 2250000 | AB24: 2250000 | AC24: 2250000 | AD24: 2250000 | AE24: 2250000 | AF24: 2250000 | AG24: 2250000 | AH24: 2250000 | AI24: 2250000 | AJ24: 2250000 | AK24: 2250000 | AZ24: 500000 | BA24: =AZ24 -> 500000 | BB24: 500000 | BC24: 500000 | BD24: 500000 | BE24: 500000 | BF24: 500000 | BG24: 500000 | BH24: 500000 | BI24: 500000 | BJ24: 500000 | BK24: 500000
C25: 14 | D25: KD004 | E25: Phạm Hoài An | F25: NV Kinh Doanh | G25: Kinh Doanh | H25: 2014-09-28 | K25: 0 | M25: 2400000 | N25: =M25 -> 2400000 | O25: 2400000 | P25: 2400000 | Q25: 2400000 | R25: 2400000 | S25: 2400000 | T25: 2400000 | U25: 2400000 | V25: 2400000 | W25: 2400000 | X25: 2400000 | Z25: 1200000 | AA25: =Z25 -> 1200000 | AB25: 1200000 | AC25: 1200000 | AD25: 1200000 | AE25: 1200000 | AF25: 1200000 | AG25: 1200000 | AH25: 1200000 | AI25: 1200000 | AJ25: 1200000 | AK25: 1200000 | AZ25: 500000 | BA25: =AZ25 -> 500000 | BB25: 500000 | BC25: 500000 | BD25: 500000 | BE25: 500000 | BF25: 500000 | BG25: 500000 | BH25: 500000 | BI25: 500000 | BJ25: 500000 | BK25: 500000
C26: 15 | N26: =M26 -> 0 | O26: 0 | P26: 0 | Q26: 0 | R26: 0 | S26: 0 | T26: 0 | U26: 0 | V26: 0 | W26: 0 | X26: 0 | AA26: =Z26 -> 0 | AB26: 0 | AC26: 0 | AD26: 0 | AE26: 0 | AF26: 0 | AG26: 0 | AH26: 0 | AI26: 0 | AJ26: 0 | AK26: 0 | BA26: =AZ26 -> 0 | BB26: 0 | BC26: 0 | BD26: 0 | BE26: 0 | BF26: 0 | BG26: 0 | BH26: 0 | BI26: 0 | BJ26: 0 | BK26: 0 | BN26: =BM26 -> 0 | BO26: 0 | BP26: 0 | BQ26: 0 | BR26: 0 | BS26: 0 | BT26: 0 | BU26: 0 | BV26: 0 | BW26: 0 | BX26: 0
C27: 16 | N27: =M27 -> 0 | O27: 0 | P27: 0 | Q27: 0 | R27: 0 | S27: 0 | T27: 0 | U27: 0 | V27: 0 | W27: 0 | X27: 0 | AA27: =Z27 -> 0 | AB27: 0 | AC27: 0 | AD27: 0 | AE27: 0 | AF27: 0 | AG27: 0 | AH27: 0 | AI27: 0 | AJ27: 0 | AK27: 0 | BA27: =AZ27 -> 0 | BB27: 0 | BC27: 0 | BD27: 0 | BE27: 0 | BF27: 0 | BG27: 0 | BH27: 0 | BI27: 0 | BJ27: 0 | BK27: 0 | BN27: =BM27 -> 0 | BO27: 0 | BP27: 0 | BQ27: 0 | BR27: 0 | BS27: 0 | BT27: 0 | BU27: 0 | BV27: 0 | BW27: 0 | BX27: 0
C28: 17 | N28: =M28 -> 0 | O28: 0 | P28: 0 | Q28: 0 | R28: 0 | S28: 0 | T28: 0 | U28: 0 | V28: 0 | W28: 0 | X28: 0 | AA28: =Z28 -> 0 | AB28: 0 | AC28: 0 | AD28: 0 | AE28: 0 | AF28: 0 | AG28: 0 | AH28: 0 | AI28: 0 | AJ28: 0 | AK28: 0 | BA28: =AZ28 -> 0 | BB28: 0 | BC28: 0 | BD28: 0 | BE28: 0 | BF28: 0 | BG28: 0 | BH28: 0 | BI28: 0 | BJ28: 0 | BK28: 0 | BN28: =BM28 -> 0 | BO28: 0 | BP28: 0 | BQ28: 0 | BR28: 0 | BS28: 0 | BT28: 0 | BU28: 0 | BV28: 0 | BW28: 0 | BX28: 0
C29: 18 | N29: =M29 -> 0 | O29: 0 | P29: 0 | Q29: 0 | R29: 0 | S29: 0 | T29: 0 | U29: 0 | V29: 0 | W29: 0 | X29: 0 | AA29: =Z29 -> 0 | AB29: 0 | AC29: 0 | AD29: 0 | AE29: 0 | AF29: 0 | AG29: 0 | AH29: 0 | AI29: 0 | AJ29: 0 | AK29: 0 | BA29: =AZ29 -> 0 | BB29: 0 | BC29: 0 | BD29: 0 | BE29: 0 | BF29: 0 | BG29: 0 | BH29: 0 | BI29: 0 | BJ29: 0 | BK29: 0 | BN29: =BM29 -> 0 | BO29: 0 | BP29: 0 | BQ29: 0 | BR29: 0 | BS29: 0 | BT29: 0 | BU29: 0 | BV29: 0 | BW29: 0 | BX29: 0
C30: 19 | N30: =M30 -> 0 | O30: 0 | P30: 0 | Q30: 0 | R30: 0 | S30: 0 | T30: 0 | U30: 0 | V30: 0 | W30: 0 | X30: 0 | AA30: =Z30 -> 0 | AB30: 0 | AC30: 0 | AD30: 0 | AE30: 0 | AF30: 0 | AG30: 0 | AH30: 0 | AI30: 0 | AJ30: 0 | AK30: 0 | BA30: =AZ30 -> 0 | BB30: 0 | BC30: 0 | BD30: 0 | BE30: 0 | BF30: 0 | BG30: 0 | BH30: 0 | BI30: 0 | BJ30: 0 | BK30: 0 | BN30: =BM30 -> 0 | BO30: 0 | BP30: 0 | BQ30: 0 | BR30: 0 | BS30: 0 | BT30: 0 | BU30: 0 | BV30: 0 | BW30: 0 | BX30: 0
C31: 20 | N31: =M31 -> 0 | O31: 0 | P31: 0 | Q31: 0 | R31: 0 | S31: 0 | T31: 0 | U31: 0 | V31: 0 | W31: 0 | X31: 0 | AA31: =Z31 -> 0 | AB31: 0 | AC31: 0 | AD31: 0 | AE31: 0 | AF31: 0 | AG31: 0 | AH31: 0 | AI31: 0 | AJ31: 0 | AK31: 0 | BA31: =AZ31 -> 0 | BB31: 0 | BC31: 0 | BD31: 0 | BE31: 0 | BF31: 0 | BG31: 0 | BH31: 0 | BI31: 0 | BJ31: 0 | BK31: 0 | BN31: =BM31 -> 0 | BO31: 0 | BP31: 0 | BQ31: 0 | BR31: 0 | BS31: 0 | BT31: 0 | BU31: 0 | BV31: 0 | BW31: 0 | BX31: 0
C32: 21 | N32: =M32 -> 0 | O32: 0 | P32: 0 | Q32: 0 | R32: 0 | S32: 0 | T32: 0 | U32: 0 | V32: 0 | W32: 0 | X32: 0 | AA32: =Z32 -> 0 | AB32: 0 | AC32: 0 | AD32: 0 | AE32: 0 | AF32: 0 | AG32: 0 | AH32: 0 | AI32: 0 | AJ32: 0 | AK32: 0 | BA32: =AZ32 -> 0 | BB32: 0 | BC32: 0 | BD32: 0 | BE32: 0 | BF32: 0 | BG32: 0 | BH32: 0 | BI32: 0 | BJ32: 0 | BK32: 0 | BN32: =BM32 -> 0 | BO32: 0 | BP32: 0 | BQ32: 0 | BR32: 0 | BS32: 0 | BT32: 0 | BU32: 0 | BV32: 0 | BW32: 0 | BX32: 0
C33: 22 | N33: =M33 -> 0 | O33: 0 | P33: 0 | Q33: 0 | R33: 0 | S33: 0 | T33: 0 | U33: 0 | V33: 0 | W33: 0 | X33: 0 | AA33: =Z33 -> 0 | AB33: 0 | AC33: 0 | AD33: 0 | AE33: 0 | AF33: 0 | AG33: 0 | AH33: 0 | AI33: 0 | AJ33: 0 | AK33: 0 | BA33: =AZ33 -> 0 | BB33: 0 | BC33: 0 | BD33: 0 | BE33: 0 | BF33: 0 | BG33: 0 | BH33: 0 | BI33: 0 | BJ33: 0 | BK33: 0 | BN33: =BM33 -> 0 | BO33: 0 | BP33: 0 | BQ33: 0 | BR33: 0 | BS33: 0 | BT33: 0 | BU33: 0 | BV33: 0 | BW33: 0 | BX33: 0
C34: 23 | N34: =M34 -> 0 | O34: 0 | P34: 0 | Q34: 0 | R34: 0 | S34: 0 | T34: 0 | U34: 0 | V34: 0 | W34: 0 | X34: 0 | AA34: =Z34 -> 0 | AB34: 0 | AC34: 0 | AD34: 0 | AE34: 0 | AF34: 0 | AG34: 0 | AH34: 0 | AI34: 0 | AJ34: 0 | AK34: 0 | BA34: =AZ34 -> 0 | BB34: 0 | BC34: 0 | BD34: 0 | BE34: 0 | BF34: 0 | BG34: 0 | BH34: 0 | BI34: 0 | BJ34: 0 | BK34: 0 | BN34: =BM34 -> 0 | BO34: 0 | BP34: 0 | BQ34: 0 | BR34: 0 | BS34: 0 | BT34: 0 | BU34: 0 | BV34: 0 | BW34: 0 | BX34: 0
C35: 24 | N35: =M35 -> 0 | O35: 0 | P35: 0 | Q35: 0 | R35: 0 | S35: 0 | T35: 0 | U35: 0 | V35: 0 | W35: 0 | X35: 0 | AA35: =Z35 -> 0 | AB35: 0 | AC35: 0 | AD35: 0 | AE35: 0 | AF35: 0 | AG35: 0 | AH35: 0 | AI35: 0 | AJ35: 0 | AK35: 0 | BA35: =AZ35 -> 0 | BB35: 0 | BC35: 0 | BD35: 0 | BE35: 0 | BF35: 0 | BG35: 0 | BH35: 0 | BI35: 0 | BJ35: 0 | BK35: 0 | BN35: =BM35 -> 0 | BO35: 0 | BP35: 0 | BQ35: 0 | BR35: 0 | BS35: 0 | BT35: 0 | BU35: 0 | BV35: 0 | BW35: 0 | BX35: 0
C36: 25 | N36: =M36 -> 0 | O36: 0 | P36: 0 | Q36: 0 | R36: 0 | S36: 0 | T36: 0 | U36: 0 | V36: 0 | W36: 0 | X36: 0 | AA36: =Z36 -> 0 | AB36: 0 | AC36: 0 | AD36: 0 | AE36: 0 | AF36: 0 | AG36: 0 | AH36: 0 | AI36: 0 | AJ36: 0 | AK36: 0 | BA36: =AZ36 -> 0 | BB36: 0 | BC36: 0 | BD36: 0 | BE36: 0 | BF36: 0 | BG36: 0 | BH36: 0 | BI36: 0 | BJ36: 0 | BK36: 0 | BN36: =BM36 -> 0 | BO36: 0 | BP36: 0 | BQ36: 0 | BR36: 0 | BS36: 0 | BT36: 0 | BU36: 0 | BV36: 0 | BW36: 0 | BX36: 0
C37: 26 | N37: =M37 -> 0 | O37: 0 | P37: 0 | Q37: 0 | R37: 0 | S37: 0 | T37: 0 | U37: 0 | V37: 0 | W37: 0 | X37: 0 | AA37: =Z37 -> 0 | AB37: 0 | AC37: 0 | AD37: 0 | AE37: 0 | AF37: 0 | AG37: 0 | AH37: 0 | AI37: 0 | AJ37: 0 | AK37: 0 | BA37: =AZ37 -> 0 | BB37: 0 | BC37: 0 | BD37: 0 | BE37: 0 | BF37: 0 | BG37: 0 | BH37: 0 | BI37: 0 | BJ37: 0 | BK37: 0 | BN37: =BM37 -> 0 | BO37: 0 | BP37: 0 | BQ37: 0 | BR37: 0 | BS37: 0 | BT37: 0 | BU37: 0 | BV37: 0 | BW37: 0 | BX37: 0
C38: 27 | N38: =M38 -> 0 | O38: 0 | P38: 0 | Q38: 0 | R38: 0 | S38: 0 | T38: 0 | U38: 0 | V38: 0 | W38: 0 | X38: 0 | AA38: =Z38 -> 0 | AB38: 0 | AC38: 0 | AD38: 0 | AE38: 0 | AF38: 0 | AG38: 0 | AH38: 0 | AI38: 0 | AJ38: 0 | AK38: 0 | BA38: =AZ38 -> 0 | BB38: 0 | BC38: 0 | BD38: 0 | BE38: 0 | BF38: 0 | BG38: 0 | BH38: 0 | BI38: 0 | BJ38: 0 | BK38: 0 | BN38: =BM38 -> 0 | BO38: 0 | BP38: 0 | BQ38: 0 | BR38: 0 | BS38: 0 | BT38: 0 | BU38: 0 | BV38: 0 | BW38: 0 | BX38: 0
C39: 28 | N39: =M39 -> 0 | O39: 0 | P39: 0 | Q39: 0 | R39: 0 | S39: 0 | T39: 0 | U39: 0 | V39: 0 | W39: 0 | X39: 0 | AA39: =Z39 -> 0 | AB39: 0 | AC39: 0 | AD39: 0 | AE39: 0 | AF39: 0 | AG39: 0 | AH39: 0 | AI39: 0 | AJ39: 0 | AK39: 0 | BA39: =AZ39 -> 0 | BB39: 0 | BC39: 0 | BD39: 0 | BE39: 0 | BF39: 0 | BG39: 0 | BH39: 0 | BI39: 0 | BJ39: 0 | BK39: 0 | BN39: =BM39 -> 0 | BO39: 0 | BP39: 0 | BQ39: 0 | BR39: 0 | BS39: 0 | BT39: 0 | BU39: 0 | BV39: 0 | BW39: 0 | BX39: 0
C40: 29 | N40: =M40 -> 0 | O40: 0 | P40: 0 | Q40: 0 | R40: 0 | S40: 0 | T40: 0 | U40: 0 | V40: 0 | W40: 0 | X40: 0 | AA40: =Z40 -> 0 | AB40: 0 | AC40: 0 | AD40: 0 | AE40: 0 | AF40: 0 | AG40: 0 | AH40: 0 | AI40: 0 | AJ40: 0 | AK40: 0 | BA40: =AZ40 -> 0 | BB40: 0 | BC40: 0 | BD40: 0 | BE40: 0 | BF40: 0 | BG40: 0 | BH40: 0 | BI40: 0 | BJ40: 0 | BK40: 0 | BN40: =BM40 -> 0 | BO40: 0 | BP40: 0 | BQ40: 0 | BR40: 0 | BS40: 0 | BT40: 0 | BU40: 0 | BV40: 0 | BW40: 0 | BX40: 0
C41: 30 | N41: =M41 -> 0 | O41: 0 | P41: 0 | Q41: 0 | R41: 0 | S41: 0 | T41: 0 | U41: 0 | V41: 0 | W41: 0 | X41: 0 | AA41: =Z41 -> 0 | AB41: 0 | AC41: 0 | AD41: 0 | AE41: 0 | AF41: 0 | AG41: 0 | AH41: 0 | AI41: 0 | AJ41: 0 | AK41: 0 | BA41: =AZ41 -> 0 | BB41: 0 | BC41: 0 | BD41: 0 | BE41: 0 | BF41: 0 | BG41: 0 | BH41: 0 | BI41: 0 | BJ41: 0 | BK41: 0 | BN41: =BM41 -> 0 | BO41: 0 | BP41: 0 | BQ41: 0 | BR41: 0 | BS41: 0 | BT41: 0 | BU41: 0 | BV41: 0 | BW41: 0 | BX41: 0
C43: . | D43: . | E43: . | F43: . | G43: . | H43: . | I43: . | J43: . | BY43: .

Sheet T1
C6: Số ngày làm việc: | E6: =VLOOKUP(m.jan,ngaycong,2,0) -> 27 | H6: << | K6: >> | AK6: TRUE | AM6: =DATEVALUE("1/1/"&year) -> 2021-01-01
C8: =Setup!F10 -> Công ty TNHH Webkynang Việt Nam | CJ8: =VALUE(MID(F10,8,1)) -> 1
C9: =Setup!D11&" "&Setup!F11 -> Địa chỉ: Tầng 6, Tòa nhà Sannam, Duy Tân, Cầu Giấy, Hà Nội | F9: BẢNG CHẤM CÔNG
F10: ="Tháng 1 năm "&year -> Tháng 1 năm 2021
G11: =F13+1 -> 2021-01-02 | H11: =G11+1 -> 2021-01-03 | I11: =H11+1 -> 2021-01-04 | J11: 2021-01-05 | K11: 2021-01-06 | L11: 2021-01-07 | M11: 2021-01-08 | N11: 2021-01-09 | O11: 2021-01-10 | P11: 2021-01-11 | Q11: 2021-01-12 | R11: 2021-01-13 | S11: 2021-01-14 | T11: 2021-01-15 | U11: 2021-01-16 | V11: 2021-01-17 | W11: 2021-01-18 | X11: 2021-01-19 | Y11: 2021-01-20 | Z11: 2021-01-21 | AA11: 2021-01-22 | AB11: 2021-01-23 | AC11: 2021-01-24 | AD11: 2021-01-25 | AE11: 2021-01-26 | AF11: 2021-01-27 | AG11: 2021-01-28 | AH11: 2021-01-29 | AI11: 2021-01-30 | AJ11: 2021-01-31
C12: SỐ TT | D12: HỌ VÀ TÊN | E12: CHỨC VỤ | F12: NGÀY TRONG THÁNG/ THỨ TRONG TUẦN | AK12: TỔNG | AQ12: GHI CHÚ
F13: =DATE(year,m.jan,1) -> 2021-01-01 | G13: =IF(MONTH(G11)>m.jan,"",G11) -> 2021-01-02 | H13: 2021-01-03 | I13: 2021-01-04 | J13: 2021-01-05 | K13: 2021-01-06 | L13: 2021-01-07 | M13: 2021-01-08 | N13: 2021-01-09 | O13: 2021-01-10 | P13: 2021-01-11 | Q13: 2021-01-12 | R13: 2021-01-13 | S13: 2021-01-14 | T13: 2021-01-15 | U13: 2021-01-16 | V13: 2021-01-17 | W13: 2021-01-18 | X13: 2021-01-19 | Y13: 2021-01-20 | Z13: 2021-01-21 | AA13: 2021-01-22 | AB13: 2021-01-23 | AC13: 2021-01-24 | AD13: 2021-01-25 | AE13: 2021-01-26 | AF13: 2021-01-27 | AG13: 2021-01-28 | AH13: 2021-01-29 | AI13: 2021-01-30 | AJ13: 2021-01-31 | AK13: =macong1 -> x | AL13: =macong2 -> x2 | AM13: =macong3 -> NC | AN13: =macong4 -> NO | AO13: =macong5 -> 00:00:00 | AP13: Tổng
F14: =IF(F13="","",CHOOSE(WEEKDAY(F13),"C.Nhật","T.Hai","T.Ba","T.Tư","T.Năm","T.Sáu","T.Bảy")) -> T.Sáu | G14: =IF(G13="","",CHOOSE(WEEKDAY(G13),"C.Nhật","T.Hai","T.Ba","T.Tư","T.Năm","T.Sáu","T.Bảy")) -> T.Bảy | H14: C.Nhật | I14: T.Hai | J14: T.Ba | K14: T.Tư | L14: T.Năm | M14: T.Sáu | N14: T.Bảy | O14: C.Nhật | P14: T.Hai | Q14: T.Ba | R14: T.Tư | S14: T.Năm | T14: T.Sáu | U14: T.Bảy | V14: C.Nhật | W14: T.Hai | X14: T.Ba | Y14: T.Tư | Z14: T.Năm | AA14: T.Sáu | AB14: T.Bảy | AC14: C.Nhật | AD14: T.Hai | AE14: T.Ba | AF14: T.Tư | AG14: T.Năm | AH14: =IF(AH13="","",CHOOSE(WEEKDAY(AH13),"C.Nhật","T.Hai","T.Ba","T.Tư","T.Năm","T.Sáu","T.Bảy")) -> T.Sáu | AI14: =IF(AI13="","",CHOOSE(WEEKDAY(AI13),"C.Nhật","T.Hai","T.Ba","T.Tư","T.Năm","T.Sáu","T.Bảy")) -> T.Bảy | AJ14: C.Nhật
C15: =SUBTOTAL(3,$D$15:D15) -> 1 | D15: ='Danh muc nhan vien'!E12 -> Trần Văn Tám | E15: =IFERROR(VLOOKUP(D15,'Danh muc nhan vien'!$E$12:$BY$42,2,0),"") -> Giám Đốc | L15: x | M15: x | AK15: =COUNTIF($F15:$AJ15,AK$13) -> 2 | AL15: =COUNTIF($F15:$AJ15,AL$13) -> 0 | AM15: 0 | AN15: 0 | AO15: 0 | AP15: =AK15*1+AL15*0.5+AM15*1 -> 2 | AQ15: =IF(E15="","",IF(OR(VLOOKUP(D15,DSNV,5,0)<1,VLOOKUP(D15,DSNV,5,0)>eomonth),"","Đã nghỉ")) ->  | BB15: =IF(AND(VLOOKUP(D15,DSNV,5,0)>1,$F$13>VLOOKUP(D15,DSNV,5,0)),"",IF(SUM(AK15:AP15)<$E$6,"x","")) -> x
C16: =SUBTOTAL(3,$D$15:D16) -> 2 | D16: ='Danh muc nhan vien'!E13 -> Đặng Văn Thành | E16: =IFERROR(VLOOKUP(D16,'Danh muc nhan vien'!$E$12:$BY$42,2,0),"") -> Phó GĐ | AK16: =COUNTIF($F16:$AJ16,AK$13) -> 0 | AL16: 0 | AM16: 0 | AN16: 0 | AO16: 0 | AP16: =AK16*1+AL16*0.5+AM16*1 -> 0 | BB16: x
C17: =SUBTOTAL(3,$D$15:D17) -> 3 | D17: ='Danh muc nhan vien'!E14 -> Đặng Thành Tâm | E17: =IFERROR(VLOOKUP(D17,'Danh muc nhan vien'!$E$12:$BY$42,2,0),"") -> KTT | AK17: 0 | AL17: 0 | AM17: 0 | AN17: 0 | AO17: 0 | AP17: 0 | BB17: x
C18: =SUBTOTAL(3,$D$15:D18) -> 4 | D18: ='Danh muc nhan vien'!E15 -> Đoàn Văn Cường | E18: =IFERROR(VLOOKUP(D18,'Danh muc nhan vien'!$E$12:$BY$42,2,0),"") -> TP Kinh Doanh | AK18: 0 | AL18: 0 | AM18: 0 | AN18: 0 | AO18: 0 | AP18: 0 | BB18: x
C19: =SUBTOTAL(3,$D$15:D19) -> 5 | D19: ='Danh muc nhan vien'!E16 -> Hồ Phương Lanh | E19: =IFERROR(VLOOKUP(D19,'Danh muc nhan vien'!$E$12:$BY$42,2,0),"") -> KT Tổng hợp | AK19: 0 | AL19: 0 | AM19: 0 | AN19: 0 | AO19: 0 | AP19: 0 | BB19: x
C20: =SUBTOTAL(3,$D$15:D20) -> 6 | D20: ='Danh muc nhan vien'!E17 -> Huỳnh Tùng Lâm | E20: =IFERROR(VLOOKUP(D20,'Danh muc nhan vien'!$E$12:$BY$42,2,0),"") -> KT Viên | AK20: 0 | AL20: 0 | AM20: 0 | AN20: 0 | AO20: 0 | AP20: 0 | AQ20: Đã nghỉ
C21: =SUBTOTAL(3,$D$15:D21) -> 7 | D21: ='Danh muc nhan vien'!E18 -> Lê Đại Tài | E21: =IFERROR(VLOOKUP(D21,'Danh muc nhan vien'!$E$12:$BY$42,2,0),"") -> KT Viên | AK21: 0 | AL21: 0 | AM21: 0 | AN21: 0 | AO21: 0 | AP21: 0 | BB21: x
C22: =SUBTOTAL(3,$D$15:D22) -> 8 | D22: ='Danh muc nhan vien'!E19 -> Lâm Thị Cành | E22: =IFERROR(VLOOKUP(D22,'Danh muc nhan vien'!$E$12:$BY$42,2,0),"") -> Nhân sự | AK22: 0 | AL22: 0 | AM22: 0 | AN22: 0 | AO22: 0 | AP22: 0 | BB22: x
C23: =SUBTOTAL(3,$D$15:D23) -> 9 | D23: ='Danh muc nhan vien'!E20 -> Lê Đức Chinh | E23: =IFERROR(VLOOKUP(D23,'Danh muc nhan vien'!$E$12:$BY$42,2,0),"") -> Hành chính | AK23: 0 | AL23: 0 | AM23: 0 | AN23: 0 | AO23: 0 | AP23: 0 | AQ23: Đã nghỉ
C24: =SUBTOTAL(3,$D$15:D24) -> 10 | D24: ='Danh muc nhan vien'!E21 -> Lê Văn Liêm | E24: =IFERROR(VLOOKUP(D24,'Danh muc nhan vien'!$E$12:$BY$42,2,0),"") -> Marketing | AK24: 0 | AL24: 0 | AM24: 0 | AN24: 0 | AO24: 0 | AP24: 0 | BB24: x
C25: =SUBTOTAL(3,$D$15:D25) -> 11 | D25: ='Danh muc nhan vien'!E22 -> Nguyễn Chí Thanh | E25: =IFERROR(VLOOKUP(D25,'Danh muc nhan vien'!$E$12:$BY$42,2,0),"") -> NV Kinh Doanh | AK25: 0 | AL25: 0 | AM25: 0 | AN25: 0 | AO25: 0 | AP25: 0 | BB25: x
C26: =SUBTOTAL(3,$D$15:D26) -> 12 | D26: ='Danh muc nhan vien'!E23 -> Nguyễn Hoàng Tính | E26: =IFERROR(VLOOKUP(D26,'Danh muc nhan vien'!$E$12:$BY$42,2,0),"") -> NV Kinh Doanh | AK26: 0 | AL26: 0 | AM26: 0 | AN26: 0 | AO26: 0 | AP26: 0 | AQ26: Đã nghỉ
C27: =SUBTOTAL(3,$D$15:D27) -> 13 | D27: ='Danh muc nhan vien'!E24 -> Nguyễn Văn Hân | E27: =IFERROR(VLOOKUP(D27,'Danh muc nhan vien'!$E$12:$BY$42,2,0),"") -> NV Kinh Doanh | AK27: 0 | AL27: 0 | AM27: 0 | AN27: 0 | AO27: 0 | AP27: 0 | BB27: x
C28: =SUBTOTAL(3,$D$15:D28) -> 14 | D28: ='Danh muc nhan vien'!E25 -> Phạm Hoài An | E28: =IFERROR(VLOOKUP(D28,'Danh muc nhan vien'!$E$12:$BY$42,2,0),"") -> NV Kinh Doanh | AK28: 0 | AL28: 0 | AM28: 0 | AN28: 0 | AO28: 0 | AP28: 0 | BB28: x
C29: =SUBTOTAL(3,$D$15:D29) -> 15 | D29: ='Danh muc nhan vien'!E26 -> 0 | E29: =IFERROR(VLOOKUP(D29,'Danh muc nhan vien'!$E$12:$BY$42,2,0),"") ->  | AK29: 0 | AL29: 0 | AM29: 0 | AN29: 0 | AO29: 0 | AP29: 0
C30: =SUBTOTAL(3,$D$15:D30) -> 16 | D30: ='Danh muc nhan vien'!E27 -> 0 | E30: =IFERROR(VLOOKUP(D30,'Danh muc nhan vien'!$E$12:$BY$42,2,0),"") ->  | AK30: 0 | AL30: 0 | AM30: 0 | AN30: 0 | AO30: 0 | AP30: 0
C31: =SUBTOTAL(3,$D$15:D31) -> 17 | D31: ='Danh muc nhan vien'!E28 -> 0 | E31: =IFERROR(VLOOKUP(D31,'Danh muc nhan vien'!$E$12:$BY$42,2,0),"") ->  | AK31: 0 | AL31: 0 | AM31: 0 | AN31: 0 | AO31: 0 | AP31: 0
C32: =SUBTOTAL(3,$D$15:D32) -> 18 | D32: ='Danh muc nhan vien'!E29 -> 0 | E32: =IFERROR(VLOOKUP(D32,'Danh muc nhan vien'!$E$12:$BY$42,2,0),"") ->  | AK32: =COUNTIF($F32:$AJ32,AK$13) -> 0 | AL32: 0 | AM32: 0 | AN32: 0 | AO32: 0 | AP32: 0
C33: =SUBTOTAL(3,$D$15:D33) -> 19 | D33: ='Danh muc nhan vien'!E30 -> 0 | E33: =IFERROR(VLOOKUP(D33,'Danh muc nhan vien'!$E$12:$BY$42,2,0),"") ->  | AK33: 0 | AL33: 0 | AM33: 0 | AN33: 0 | AO33: 0 | AP33: 0
C34: =SUBTOTAL(3,$D$15:D34) -> 20 | D34: ='Danh muc nhan vien'!E31 -> 0 | E34: =IFERROR(VLOOKUP(D34,'Danh muc nhan vien'!$E$12:$BY$42,2,0),"") ->  | AK34: 0 | AL34: 0 | AM34: 0 | AN34: 0 | AO34: 0 | AP34: 0
C35: =SUBTOTAL(3,$D$15:D35) -> 21 | D35: ='Danh muc nhan vien'!E32 -> 0 | E35: =IFERROR(VLOOKUP(D35,'Danh muc nhan vien'!$E$12:$BY$42,2,0),"") ->  | AK35: 0 | AL35: 0 | AM35: 0 | AN35: 0 | AO35: 0 | AP35: 0
C36: =SUBTOTAL(3,$D$15:D36) -> 22 | D36: ='Danh muc nhan vien'!E33 -> 0 | E36: =IFERROR(VLOOKUP(D36,'Danh muc nhan vien'!$E$12:$BY$42,2,0),"") ->  | AK36: 0 | AL36: 0 | AM36: 0 | AN36: 0 | AO36: 0 | AP36: 0
C37: =SUBTOTAL(3,$D$15:D37) -> 23 | D37: ='Danh muc nhan vien'!E34 -> 0 | E37: =IFERROR(VLOOKUP(D37,'Danh muc nhan vien'!$E$12:$BY$42,2,0),"") ->  | AK37: 0 | AL37: 0 | AM37: 0 | AN37: 0 | AO37: 0 | AP37: 0
C38: =SUBTOTAL(3,$D$15:D38) -> 24 | D38: ='Danh muc nhan vien'!E35 -> 0 | E38: =IFERROR(VLOOKUP(D38,'Danh muc nhan vien'!$E$12:$BY$42,2,0),"") ->  | AK38: 0 | AL38: 0 | AM38: 0 | AN38: 0 | AO38: 0 | AP38: 0
C39: =SUBTOTAL(3,$D$15:D39) -> 25 | D39: ='Danh muc nhan vien'!E36 -> 0 | E39: =IFERROR(VLOOKUP(D39,'Danh muc nhan vien'!$E$12:$BY$42,2,0),"") ->  | AK39: 0 | AL39: 0 | AM39: 0 | AN39: 0 | AO39: 0 | AP39: 0
C40: =SUBTOTAL(3,$D$15:D40) -> 26 | D40: ='Danh muc nhan vien'!E37 -> 0 | E40: =IFERROR(VLOOKUP(D40,'Danh muc nhan vien'!$E$12:$BY$42,2,0),"") ->  | AK40: 0 | AL40: 0 | AM40: 0 | AN40: 0 | AO40: 0 | AP40: 0
C41: =SUBTOTAL(3,$D$15:D41) -> 27 | D41: ='Danh muc nhan vien'!E38 -> 0 | E41: =IFERROR(VLOOKUP(D41,'Danh muc nhan vien'!$E$12:$BY$42,2,0),"") ->  | AK41: 0 | AL41: 0 | AM41: 0 | AN41: 0 | AO41: 0 | AP41: 0
C42: =SUBTOTAL(3,$D$15:D42) -> 28 | D42: ='Danh muc nhan vien'!E39 -> 0 | E42: =IFERROR(VLOOKUP(D42,'Danh muc nhan vien'!$E$12:$BY$42,2,0),"") ->  | AK42: 0 | AL42: 0 | AM42: 0 | AN42: 0 | AO42: 0 | AP42: 0
C43: =SUBTOTAL(3,$D$15:D43) -> 29 | D43: ='Danh muc nhan vien'!E40 -> 0 | E43: =IFERROR(VLOOKUP(D43,'Danh muc nhan vien'!$E$12:$BY$42,2,0),"") ->  | AK43: 0 | AL43: 0 | AM43: 0 | AN43: 0 | AO43: 0 | AP43: 0
C44: =SUBTOTAL(3,$D$15:D44) -> 30 | D44: ='Danh muc nhan vien'!E41 -> 0 | E44: =IFERROR(VLOOKUP(D44,'Danh muc nhan vien'!$E$12:$BY$42,2,0),"") ->  | AK44: 0 | AL44: 0 | AM44: 0 | AN44: 0 | AO44: 0 | AP44: 0
C46: . | D46: . | E46: . | F46: . | G46: . | H46: . | I46: . | J46: . | K46: . | L46: . | M46: . | N46: . | O46: . | P46: . | Q46: . | R46: . | S46: . | T46: . | U46: . | V46: . | W46: . | X46: . | Y46: . | Z46: . | AA46: . | AB46: . | AC46: . | AD46: . | AE46: . | AF46: . | AG46: . | AH46: . | AI46: . | AJ46: . | AK46: . | AL46: . | AM46: . | AN46: . | AO46: . | AP46: . | AQ46: .
AH48: ="Ngày …….. Tháng …….. Năm "&year -> Ngày …….. Tháng …….. Năm 2021
D49: NGƯỜI CHẤM CÔNG | T49: PHỤ TRÁCH BỘ PHẬN | AH49: THỦ TRƯỞNG ĐƠN VỊ
D50: (Ký tên) | T50: (Ký tên) | AH50: (Ký tên)
D55: =Chamcong -> Vũ Trình B | T55: =phutrach -> Nguyễn Linh A | AH55: =Giamdoc -> Mr. Trường

Sheet T2
C6: Số ngày làm việc: | E6: =VLOOKUP(m.feb,ngaycong,2,0) -> 24 | H6: << | K6: >> | AK6: TRUE | AM6: =DATEVALUE("1/2/"&year) -> 2021-01-02
C8: =Setup!F10 -> Công ty TNHH Webkynang Việt Nam | CJ8: =VALUE(MID(F10,8,1)) -> 2
C9: =Setup!D11&" "&Setup!F11 -> Địa chỉ: Tầng 6, Tòa nhà Sannam, Duy Tân, Cầu Giấy, Hà Nội | F9: BẢNG CHẤM CÔNG
F10: ="Tháng 2 năm "&year -> Tháng 2 năm 2021
G11: =F13+1 -> 2021-02-02 | H11: =G11+1 -> 2021-02-03 | I11: =H11+1 -> 2021-02-04 | J11: 2021-02-05 | K11: 2021-02-06 | L11: 2021-02-07 | M11: 2021-02-08 | N11: 2021-02-09 | O11: 2021-02-10 | P11: 2021-02-11 | Q11: 2021-02-12 | R11: 2021-02-13 | S11: 2021-02-14 | T11: 2021-02-15 | U11: 2021-02-16 | V11: 2021-02-17 | W11: 2021-02-18 | X11: 2021-02-19 | Y11: 2021-02-20 | Z11: 2021-02-21 | AA11: 2021-02-22 | AB11: 2021-02-23 | AC11: 2021-02-24 | AD11: 2021-02-25 | AE11: 2021-02-26 | AF11: 2021-02-27 | AG11: 2021-02-28 | AH11: 2021-03-01 | AI11: 2021-03-02 | AJ11: 2021-03-03
C12: SỐ TT | D12: HỌ VÀ TÊN | E12: CHỨC VỤ | F12: NGÀY TRONG THÁNG/ THỨ TRONG TUẦN | AK12: TỔNG | AQ12: GHI CHÚ
F13: =DATE(year,m.feb,1) -> 2021-02-01 | G13: =IF(MONTH(G11)>m.feb,"",G11) -> 2021-02-02 | H13: 2021-02-03 | I13: 2021-02-04 | J13: 2021-02-05 | K13: 2021-02-06 | L13: 2021-02-07 | M13: 2021-02-08 | N13: 2021-02-09 | O13: 2021-02-10 | P13: 2021-02-11 | Q13: 2021-02-12 | R13: 2021-02-13 | S13: 2021-02-14 | T13: 2021-02-15 | U13: 2021-02-16 | V13: 2021-02-17 | W13: 2021-02-18 | X13: 2021-02-19 | Y13: 2021-02-20 | Z13: 2021-02-21 | AA13: 2021-02-22 | AB13: 2021-02-23 | AC13: 2021-02-24 | AD13: 2021-02-25 | AE13: 2021-02-26 | AF13: 2021-02-27 | AG13: 2021-02-28 | AK13: =macong1 -> x | AL13: =macong2 -> x2 | AM13: =macong3 -> NC | AN13: =macong4 -> NO | AO13: =macong5 -> 00:00:00 | AP13: Tổng
F14: =IF(F13="","",CHOOSE(WEEKDAY(F13),"C.Nhật","T.Hai","T.Ba","T.Tư","T.Năm","T.Sáu","T.Bảy")) -> T.Hai | G14: =IF(G13="","",CHOOSE(WEEKDAY(G13),"C.Nhật","T.Hai","T.Ba","T.Tư","T.Năm","T.Sáu","T.Bảy")) -> T.Ba | H14: T.Tư | I14: T.Năm | J14: T.Sáu | K14: T.Bảy | L14: C.Nhật | M14: T.Hai | N14: T.Ba | O14: T.Tư | P14: T.Năm | Q14: T.Sáu | R14: T.Bảy | S14: C.Nhật | T14: T.Hai | U14: T.Ba | V14: T.Tư | W14: T.Năm | X14: T.Sáu | Y14: T.Bảy | Z14: C.Nhật | AA14: T.Hai | AB14: T.Ba | AC14: T.Tư | AD14: T.Năm | AE14: T.Sáu | AF14: T.Bảy | AG14: C.Nhật | AH14: =IF(AH13="","",CHOOSE(WEEKDAY(AH13),"C.Nhật","T.Hai","T.Ba","T.Tư","T.Năm","T.Sáu","T.Bảy")) ->  | AI14: =IF(AI13="","",CHOOSE(WEEKDAY(AI13),"C.Nhật","T.Hai","T.Ba","T.Tư","T.Năm","T.Sáu","T.Bảy")) -> 
C15: =SUBTOTAL(3,$D$15:D15) -> 1 | D15: ='Danh muc nhan vien'!E12 -> Trần Văn Tám | E15: =IFERROR(VLOOKUP(D15,'Danh muc nhan vien'!$E$12:$BY$42,2,0),"") -> Giám Đốc | AK15: =COUNTIF($F15:$AJ15,AK$13) -> 0 | AL15: =COUNTIF($F15:$AJ15,AL$13) -> 0 | AM15: 0 | AN15: 0 | AO15: 0 | AP15: =AK15*1+AL15*0.5+AM15*1 -> 0 | AQ15: =IF(E15="","",IF(OR(VLOOKUP(D15,DSNV,5,0)<1,VLOOKUP(D15,DSNV,5,0)>eomonth2),"","Đã nghỉ")) ->  | BB15: =IF(AND(VLOOKUP(D15,DSNV,5,0)>1,$F$13>VLOOKUP(D15,DSNV,5,0)),"",IF(SUM(AK15:AP15)<$E$6,"x","")) -> x
C16: =SUBTOTAL(3,$D$15:D16) -> 2 | D16: ='Danh muc nhan vien'!E13 -> Đặng Văn Thành | E16: =IFERROR(VLOOKUP(D16,'Danh muc nhan vien'!$E$12:$BY$42,2,0),"") -> Phó GĐ | AK16: =COUNTIF($F16:$AJ16,AK$13) -> 0 | AL16: 0 | AM16: 0 | AN16: 0 | AO16: 0 | AP16: =AK16*1+AL16*0.5+AM16*1 -> 0 | BB16: x
C17: =SUBTOTAL(3,$D$15:D17) -> 3 | D17: ='Danh muc nhan vien'!E14 -> Đặng Thành Tâm | E17: =IFERROR(VLOOKUP(D17,'Danh muc nhan vien'!$E$12:$BY$42,2,0),"") -> KTT | AK17: 0 | AL17: 0 | AM17: 0 | AN17: 0 | AO17: 0 | AP17: 0 | BB17: x
C18: =SUBTOTAL(3,$D$15:D18) -> 4 | D18: ='Danh muc nhan vien'!E15 -> Đoàn Văn Cường | E18: =IFERROR(VLOOKUP(D18,'Danh muc nhan vien'!$E$12:$BY$42,2,0),"") -> TP Kinh Doanh | AK18: 0 | AL18: 0 | AM18: 0 | AN18: 0 | AO18: 0 | AP18: 0 | BB18: x
C19: =SUBTOTAL(3,$D$15:D19) -> 5 | D19: ='Danh muc nhan vien'!E16 -> Hồ Phương Lanh | E19: =IFERROR(VLOOKUP(D19,'Danh muc nhan vien'!$E$12:$BY$42,2,0),"") -> KT Tổng hợp | AK19: 0 | AL19: 0 | AM19: 0 | AN19: 0 | AO19: 0 | AP19: 0 | BB19: x
C20: =SUBTOTAL(3,$D$15:D20) -> 6 | D20: ='Danh muc nhan vien'!E17 -> Huỳnh Tùng Lâm | E20: =IFERROR(VLOOKUP(D20,'Danh muc nhan vien'!$E$12:$BY$42,2,0),"") -> KT Viên | AK20: 0 | AL20: 0 | AM20: 0 | AN20: 0 | AO20: 0 | AP20: 0 | AQ20: Đã nghỉ
C21: =SUBTOTAL(3,$D$15:D21) -> 7 | D21: ='Danh muc nhan vien'!E18 -> Lê Đại Tài | E21: =IFERROR(VLOOKUP(D21,'Danh muc nhan vien'!$E$12:$BY$42,2,0),"") -> KT Viên | AK21: 0 | AL21: 0 | AM21: 0 | AN21: 0 | AO21: 0 | AP21: 0 | BB21: x
C22: =SUBTOTAL(3,$D$15:D22) -> 8 | D22: ='Danh muc nhan vien'!E19 -> Lâm Thị Cành | E22: =IFERROR(VLOOKUP(D22,'Danh muc nhan vien'!$E$12:$BY$42,2,0),"") -> Nhân sự | AK22: 0 | AL22: 0 | AM22: 0 | AN22: 0 | AO22: 0 | AP22: 0 | BB22: x
C23: =SUBTOTAL(3,$D$15:D23) -> 9 | D23: ='Danh muc nhan vien'!E20 -> Lê Đức Chinh | E23: =IFERROR(VLOOKUP(D23,'Danh muc nhan vien'!$E$12:$BY$42,2,0),"") -> Hành chính | AK23: 0 | AL23: 0 | AM23: 0 | AN23: 0 | AO23: 0 | AP23: 0 | AQ23: Đã nghỉ
C24: =SUBTOTAL(3,$D$15:D24) -> 10 | D24: ='Danh muc nhan vien'!E21 -> Lê Văn Liêm | E24: =IFERROR(VLOOKUP(D24,'Danh muc nhan vien'!$E$12:$BY$42,2,0),"") -> Marketing | AK24: 0 | AL24: 0 | AM24: 0 | AN24: 0 | AO24: 0 | AP24: 0 | BB24: x
C25: =SUBTOTAL(3,$D$15:D25) -> 11 | D25: ='Danh muc nhan vien'!E22 -> Nguyễn Chí Thanh | E25: =IFERROR(VLOOKUP(D25,'Danh muc nhan vien'!$E$12:$BY$42,2,0),"") -> NV Kinh Doanh | AK25: 0 | AL25: 0 | AM25: 0 | AN25: 0 | AO25: 0 | AP25: 0 | BB25: x
C26: =SUBTOTAL(3,$D$15:D26) -> 12 | D26: ='Danh muc nhan vien'!E23 -> Nguyễn Hoàng Tính | E26: =IFERROR(VLOOKUP(D26,'Danh muc nhan vien'!$E$12:$BY$42,2,0),"") -> NV Kinh Doanh | AK26: 0 | AL26: 0 | AM26: 0 | AN26: 0 | AO26: 0 | AP26: 0 | AQ26: Đã nghỉ
C27: =SUBTOTAL(3,$D$15:D27) -> 13 | D27: ='Danh muc nhan vien'!E24 -> Nguyễn Văn Hân | E27: =IFERROR(VLOOKUP(D27,'Danh muc nhan vien'!$E$12:$BY$42,2,0),"") -> NV Kinh Doanh | AK27: 0 | AL27: 0 | AM27: 0 | AN27: 0 | AO27: 0 | AP27: 0 | BB27: x
C28: =SUBTOTAL(3,$D$15:D28) -> 14 | D28: ='Danh muc nhan vien'!E25 -> Phạm Hoài An | E28: =IFERROR(VLOOKUP(D28,'Danh muc nhan vien'!$E$12:$BY$42,2,0),"") -> NV Kinh Doanh | AK28: 0 | AL28: 0 | AM28: 0 | AN28: 0 | AO28: 0 | AP28: 0 | BB28: x
C29: =SUBTOTAL(3,$D$15:D29) -> 15 | D29: ='Danh muc nhan vien'!E26 -> 0 | E29: =IFERROR(VLOOKUP(D29,'Danh muc nhan vien'!$E$12:$BY$42,2,0),"") ->  | AK29: 0 | AL29: 0 | AM29: 0 | AN29: 0 | AO29: 0 | AP29: 0
C30: =SUBTOTAL(3,$D$15:D30) -> 16 | D30: ='Danh muc nhan vien'!E27 -> 0 | E30: =IFERROR(VLOOKUP(D30,'Danh muc nhan vien'!$E$12:$BY$42,2,0),"") ->  | AK30: 0 | AL30: 0 | AM30: 0 | AN30: 0 | AO30: 0 | AP30: 0
C31: =SUBTOTAL(3,$D$15:D31) -> 17 | D31: ='Danh muc nhan vien'!E28 -> 0 | E31: =IFERROR(VLOOKUP(D31,'Danh muc nhan vien'!$E$12:$BY$42,2,0),"") ->  | AK31: 0 | AL31: 0 | AM31: 0 | AN31: 0 | AO31: 0 | AP31: 0
C32: =SUBTOTAL(3,$D$15:D32) -> 18 | D32: ='Danh muc nhan vien'!E29 -> 0 | E32: =IFERROR(VLOOKUP(D32,'Danh muc nhan vien'!$E$12:$BY$42,2,0),"") ->  | AK32: =COUNTIF($F32:$AJ32,AK$13) -> 0 | AL32: 0 | AM32: 0 | AN32: 0 | AO32: 0 | AP32: 0
C33: =SUBTOTAL(3,$D$15:D33) -> 19 | D33: ='Danh muc nhan vien'!E30 -> 0 | E33: =IFERROR(VLOOKUP(D33,'Danh muc nhan vien'!$E$12:$BY$42,2,0),"") ->  | AK33: 0 | AL33: 0 | AM33: 0 | AN33: 0 | AO33: 0 | AP33: 0
C34: =SUBTOTAL(3,$D$15:D34) -> 20 | D34: ='Danh muc nhan vien'!E31 -> 0 | E34: =IFERROR(VLOOKUP(D34,'Danh muc nhan vien'!$E$12:$BY$42,2,0),"") ->  | AK34: 0 | AL34: 0 | AM34: 0 | AN34: 0 | AO34: 0 | AP34: 0
C35: =SUBTOTAL(3,$D$15:D35) -> 21 | D35: ='Danh muc nhan vien'!E32 -> 0 | E35: =IFERROR(VLOOKUP(D35,'Danh muc nhan vien'!$E$12:$BY$42,2,0),"") ->  | AK35: 0 | AL35: 0 | AM35: 0 | AN35: 0 | AO35: 0 | AP35: 0
C36: =SUBTOTAL(3,$D$15:D36) -> 22 | D36: ='Danh muc nhan vien'!E33 -> 0 | E36: =IFERROR(VLOOKUP(D36,'Danh muc nhan vien'!$E$12:$BY$42,2,0),"") ->  | AK36: 0 | AL36: 0 | AM36: 0 | AN36: 0 | AO36: 0 | AP36: 0
C37: =SUBTOTAL(3,$D$15:D37) -> 23 | D37: ='Danh muc nhan vien'!E34 -> 0 | E37: =IFERROR(VLOOKUP(D37,'Danh muc nhan vien'!$E$12:$BY$42,2,0),"") ->  | AK37: 0 | AL37: 0 | AM37: 0 | AN37: 0 | AO37: 0 | AP37: 0
C38: =SUBTOTAL(3,$D$15:D38) -> 24 | D38: ='Danh muc nhan vien'!E35 -> 0 | E38: =IFERROR(VLOOKUP(D38,'Danh muc nhan vien'!$E$12:$BY$42,2,0),"") ->  | AK38: 0 | AL38: 0 | AM38: 0 | AN38: 0 | AO38: 0 | AP38: 0
C39: =SUBTOTAL(3,$D$15:D39) -> 25 | D39: ='Danh muc nhan vien'!E36 -> 0 | E39: =IFERROR(VLOOKUP(D39,'Danh muc nhan vien'!$E$12:$BY$42,2,0),"") ->  | AK39: 0 | AL39: 0 | AM39: 0 | AN39: 0 | AO39: 0 | AP39: 0
C40: =SUBTOTAL(3,$D$15:D40) -> 26 | D40: ='Danh muc nhan vien'!E37 -> 0 | E40: =IFERROR(VLOOKUP(D40,'Danh muc nhan vien'!$E$12:$BY$42,2,0),"") ->  | AK40: 0 | AL40: 0 | AM40: 0 | AN40: 0 | AO40: 0 | AP40: 0
C41: =SUBTOTAL(3,$D$15:D41) -> 27 | D41: ='Danh muc nhan vien'!E38 -> 0 | E41: =IFERROR(VLOOKUP(D41,'Danh muc nhan vien'!$E$12:$BY$42,2,0),"") ->  | AK41: 0 | AL41: 0 | AM41: 0 | AN41: 0 | AO41: 0 | AP41: 0
C42: =SUBTOTAL(3,$D$15:D42) -> 28 | D42: ='Danh muc nhan vien'!E39 -> 0 | E42: =IFERROR(VLOOKUP(D42,'Danh muc nhan vien'!$E$12:$BY$42,2,0),"") ->  | AK42: 0 | AL42: 0 | AM42: 0 | AN42: 0 | AO42: 0 | AP42: 0
C43: =SUBTOTAL(3,$D$15:D43) -> 29 | D43: ='Danh muc nhan vien'!E40 -> 0 | E43: =IFERROR(VLOOKUP(D43,'Danh muc nhan vien'!$E$12:$BY$42,2,0),"") ->  | AK43: 0 | AL43: 0 | AM43: 0 | AN43: 0 | AO43: 0 | AP43: 0
C44: =SUBTOTAL(3,$D$15:D44) -> 30 | D44: ='Danh muc nhan vien'!E41 -> 0 | E44: =IFERROR(VLOOKUP(D44,'Danh muc nhan vien'!$E$12:$BY$42,2,0),"") ->  | AK44: 0 | AL44: 0 | AM44: 0 | AN44: 0 | AO44: 0 | AP44: 0
C46: . | D46: . | E46: . | AK46: . | AL46: . | AM46: . | AN46: . | AO46: . | AP46: . | AQ46: .
AH48: ="Ngày …….. Tháng …….. Năm "&year -> Ngày …….. Tháng …….. Năm 2021
D49: NGƯỜI CHẤM CÔNG | T49: PHỤ TRÁCH BỘ PHẬN | AH49: THỦ TRƯỞNG ĐƠN VỊ
D50: (Ký tên) | T50: (Ký tên) | AH50: (Ký tên)
D55: =Chamcong -> Vũ Trình B | T55: =phutrach -> Nguyễn Linh A | AH55: =Giamdoc -> Mr. Trường

Sheet T3
C6: Số ngày làm việc: | E6: =VLOOKUP(m.mar,ngaycong,2,0) -> 26 | H6: << | K6: >> | AK6: FALSE | AL6: =DATEVALUE("1/3/"&year) -> 2021-01-03
C8: =Setup!F10 -> Công ty TNHH Webkynang Việt Nam | CJ8: =VALUE(MID(F10,8,1)) -> 3
C9: =Setup!D11&" "&Setup!F11 -> Địa chỉ: Tầng 6, Tòa nhà Sannam, Duy Tân, Cầu Giấy, Hà Nội | F9: BẢNG CHẤM CÔNG
F10: ="Tháng 3 năm "&year -> Tháng 3 năm 2021
G11: =F13+1 -> 2021-03-02 | H11: =G11+1 -> 2021-03-03 | I11: =H11+1 -> 2021-03-04 | J11: 2021-03-05 | K11: 2021-03-06 | L11: 2021-03-07 | M11: 2021-03-08 | N11: 2021-03-09 | O11: 2021-03-10 | P11: 2021-03-11 | Q11: 2021-03-12 | R11: 2021-03-13 | S11: 2021-03-14 | T11: 2021-03-15 | U11: 2021-03-16 | V11: 2021-03-17 | W11: 2021-03-18 | X11: 2021-03-19 | Y11: 2021-03-20 | Z11: 2021-03-21 | AA11: 2021-03-22 | AB11: 2021-03-23 | AC11: 2021-03-24 | AD11: 2021-03-25 | AE11: 2021-03-26 | AF11: 2021-03-27 | AG11: 2021-03-28 | AH11: 2021-03-29 | AI11: 2021-03-30 | AJ11: 2021-03-31
C12: SỐ TT | D12: HỌ VÀ TÊN | E12: CHỨC VỤ | F12: NGÀY TRONG THÁNG/ THỨ TRONG TUẦN | AK12: TỔNG | AQ12: GHI CHÚ
F13: =DATE(year,m.mar,1) -> 2021-03-01 | G13: =IF(MONTH(G11)>m.mar,"",G11) -> 2021-03-02 | H13: 2021-03-03 | I13: 2021-03-04 | J13: 2021-03-05 | K13: 2021-03-06 | L13: 2021-03-07 | M13: 2021-03-08 | N13: 2021-03-09 | O13: 2021-03-10 | P13: 2021-03-11 | Q13: 2021-03-12 | R13: 2021-03-13 | S13: 2021-03-14 | T13: 2021-03-15 | U13: 2021-03-16 | V13: 2021-03-17 | W13: 2021-03-18 | X13: 2021-03-19 | Y13: 2021-03-20 | Z13: 2021-03-21 | AA13: 2021-03-22 | AB13: 2021-03-23 | AC13: 2021-03-24 | AD13: 2021-03-25 | AE13: 2021-03-26 | AF13: 2021-03-27 | AG13: 2021-03-28 | AH13: 2021-03-29 | AI13: 2021-03-30 | AJ13: 2021-03-31 | AK13: =macong1 -> x | AL13: =macong2 -> x2 | AM13: =macong3 -> NC | AN13: =macong4 -> NO | AO13: =macong5 -> 00:00:00 | AP13: Tổng
F14: =IF(F13="","",CHOOSE(WEEKDAY(F13),"C.Nhật","T.Hai","T.Ba","T.Tư","T.Năm","T.Sáu","T.Bảy")) -> T.Hai | G14: =IF(G13="","",CHOOSE(WEEKDAY(G13),"C.Nhật","T.Hai","T.Ba","T.Tư","T.Năm","T.Sáu","T.Bảy")) -> T.Ba | H14: T.Tư | I14: T.Năm | J14: T.Sáu | K14: T.Bảy | L14: C.Nhật | M14: T.Hai | N14: T.Ba | O14: T.Tư | P14: T.Năm | Q14: T.Sáu | R14: T.Bảy | S14: C.Nhật | T14: T.Hai | U14: T.Ba | V14: T.Tư | W14: T.Năm | X14: T.Sáu | Y14: T.Bảy | Z14: C.Nhật | AA14: T.Hai | AB14: T.Ba | AC14: T.Tư | AD14: T.Năm | AE14: T.Sáu | AF14: T.Bảy | AG14: C.Nhật | AH14: =IF(AH13="","",CHOOSE(WEEKDAY(AH13),"C.Nhật","T.Hai","T.Ba","T.Tư","T.Năm","T.Sáu","T.Bảy")) -> T.Hai | AI14: =IF(AI13="","",CHOOSE(WEEKDAY(AI13),"C.Nhật","T.Hai","T.Ba","T.Tư","T.Năm","T.Sáu","T.Bảy")) -> T.Ba | AJ14: T.Tư
C15: =SUBTOTAL(3,$D$15:D15) -> 1 | D15: ='Danh muc nhan vien'!E12 -> Trần Văn Tám | E15: =IFERROR(VLOOKUP(D15,'Danh muc nhan vien'!$E$12:$BY$42,2,0),"") -> Giám Đốc | AK15: =COUNTIF($F15:$AJ15,AK$13) -> 0 | AL15: =COUNTIF($F15:$AJ15,AL$13) -> 0 | AM15: 0 | AN15: 0 | AO15: 0 | AP15: =AK15*1+AL15*0.5+AM15*1 -> 0 | AQ15: =IF(E15="","",IF(OR(VLOOKUP(D15,DSNV,5,0)<1,VLOOKUP(D15,DSNV,5,0)>eomonth3),"","Đã nghỉ")) ->  | BB15: =IF(AND(VLOOKUP(D15,DSNV,5,0)>1,$F$13>VLOOKUP(D15,DSNV,5,0)),"",IF(SUM(AK15:AP15)<$E$6,"x","")) -> x
C16: =SUBTOTAL(3,$D$15:D16) -> 2 | D16: ='Danh muc nhan vien'!E13 -> Đặng Văn Thành | E16: =IFERROR(VLOOKUP(D16,'Danh muc nhan vien'!$E$12:$BY$42,2,0),"") -> Phó GĐ | AK16: =COUNTIF($F16:$AJ16,AK$13) -> 0 | AL16: 0 | AM16: 0 | AN16: 0 | AO16: 0 | AP16: =AK16*1+AL16*0.5+AM16*1 -> 0 | BB16: x
C17: =SUBTOTAL(3,$D$15:D17) -> 3 | D17: ='Danh muc nhan vien'!E14 -> Đặng Thành Tâm | E17: =IFERROR(VLOOKUP(D17,'Danh muc nhan vien'!$E$12:$BY$42,2,0),"") -> KTT | AK17: 0 | AL17: 0 | AM17: 0 | AN17: 0 | AO17: 0 | AP17: 0 | BB17: x
C18: =SUBTOTAL(3,$D$15:D18) -> 4 | D18: ='Danh muc nhan vien'!E15 -> Đoàn Văn Cường | E18: =IFERROR(VLOOKUP(D18,'Danh muc nhan vien'!$E$12:$BY$42,2,0),"") -> TP Kinh Doanh | AK18: 0 | AL18: 0 | AM18: 0 | AN18: 0 | AO18: 0 | AP18: 0 | BB18: x
C19: =SUBTOTAL(3,$D$15:D19) -> 5 | D19: ='Danh muc nhan vien'!E16 -> Hồ Phương Lanh | E19: =IFERROR(VLOOKUP(D19,'Danh muc nhan vien'!$E$12:$BY$42,2,0),"") -> KT Tổng hợp | AK19: 0 | AL19: 0 | AM19: 0 | AN19: 0 | AO19: 0 | AP19: 0 | BB19: x
C20: =SUBTOTAL(3,$D$15:D20) -> 6 | D20: ='Danh muc nhan vien'!E17 -> Huỳnh Tùng Lâm | E20: =IFERROR(VLOOKUP(D20,'Danh muc nhan vien'!$E$12:$BY$42,2,0),"") -> KT Viên | AK20: 0 | AL20: 0 | AM20: 0 | AN20: 0 | AO20: 0 | AP20: 0 | AQ20: Đã nghỉ
C21: =SUBTOTAL(3,$D$15:D21) -> 7 | D21: ='Danh muc nhan vien'!E18 -> Lê Đại Tài | E21: =IFERROR(VLOOKUP(D21,'Danh muc nhan vien'!$E$12:$BY$42,2,0),"") -> KT Viên | AK21: 0 | AL21: 0 | AM21: 0 | AN21: 0 | AO21: 0 | AP21: 0 | BB21: x
C22: =SUBTOTAL(3,$D$15:D22) -> 8 | D22: ='Danh muc nhan vien'!E19 -> Lâm Thị Cành | E22: =IFERROR(VLOOKUP(D22,'Danh muc nhan vien'!$E$12:$BY$42,2,0),"") -> Nhân sự | AK22: 0 | AL22: 0 | AM22: 0 | AN22: 0 | AO22: 0 | AP22: 0 | BB22: x
C23: =SUBTOTAL(3,$D$15:D23) -> 9 | D23: ='Danh muc nhan vien'!E20 -> Lê Đức Chinh | E23: =IFERROR(VLOOKUP(D23,'Danh muc nhan vien'!$E$12:$BY$42,2,0),"") -> Hành chính | AK23: 0 | AL23: 0 | AM23: 0 | AN23: 0 | AO23: 0 | AP23: 0 | AQ23: Đã nghỉ
C24: =SUBTOTAL(3,$D$15:D24) -> 10 | D24: ='Danh muc nhan vien'!E21 -> Lê Văn Liêm | E24: =IFERROR(VLOOKUP(D24,'Danh muc nhan vien'!$E$12:$BY$42,2,0),"") -> Marketing | AK24: 0 | AL24: 0 | AM24: 0 | AN24: 0 | AO24: 0 | AP24: 0 | BB24: x
C25: =SUBTOTAL(3,$D$15:D25) -> 11 | D25: ='Danh muc nhan vien'!E22 -> Nguyễn Chí Thanh | E25: =IFERROR(VLOOKUP(D25,'Danh muc nhan vien'!$E$12:$BY$42,2,0),"") -> NV Kinh Doanh | AK25: 0 | AL25: 0 | AM25: 0 | AN25: 0 | AO25: 0 | AP25: 0 | BB25: x
C26: =SUBTOTAL(3,$D$15:D26) -> 12 | D26: ='Danh muc nhan vien'!E23 -> Nguyễn Hoàng Tính | E26: =IFERROR(VLOOKUP(D26,'Danh muc nhan vien'!$E$12:$BY$42,2,0),"") -> NV Kinh Doanh | AK26: 0 | AL26: 0 | AM26: 0 | AN26: 0 | AO26: 0 | AP26: 0 | AQ26: Đã nghỉ
C27: =SUBTOTAL(3,$D$15:D27) -> 13 | D27: ='Danh muc nhan vien'!E24 -> Nguyễn Văn Hân | E27: =IFERROR(VLOOKUP(D27,'Danh muc nhan vien'!$E$12:$BY$42,2,0),"") -> NV Kinh Doanh | AK27: 0 | AL27: 0 | AM27: 0 | AN27: 0 | AO27: 0 | AP27: 0 | BB27: x
C28: =SUBTOTAL(3,$D$15:D28) -> 14 | D28: ='Danh muc nhan vien'!E25 -> Phạm Hoài An | E28: =IFERROR(VLOOKUP(D28,'Danh muc nhan vien'!$E$12:$BY$42,2,0),"") -> NV Kinh Doanh | AK28: 0 | AL28: 0 | AM28: 0 | AN28: 0 | AO28: 0 | AP28: 0 | BB28: x
C29: =SUBTOTAL(3,$D$15:D29) -> 15 | D29: ='Danh muc nhan vien'!E26 -> 0 | E29: =IFERROR(VLOOKUP(D29,'Danh muc nhan vien'!$E$12:$BY$42,2,0),"") ->  | AK29: 0 | AL29: 0 | AM29: 0 | AN29: 0 | AO29: 0 | AP29: 0
C30: =SUBTOTAL(3,$D$15:D30) -> 16 | D30: ='Danh muc nhan vien'!E27 -> 0 | E30: =IFERROR(VLOOKUP(D30,'Danh muc nhan vien'!$E$12:$BY$42,2,0),"") ->  | AK30: 0 | AL30: 0 | AM30: 0 | AN30: 0 | AO30: 0 | AP30: 0
C31: =SUBTOTAL(3,$D$15:D31) -> 17 | D31: ='Danh muc nhan vien'!E28 -> 0 | E31: =IFERROR(VLOOKUP(D31,'Danh muc nhan vien'!$E$12:$BY$42,2,0),"") ->  | AK31: 0 | AL31: 0 | AM31: 0 | AN31: 0 | AO31: 0 | AP31: 0
C32: =SUBTOTAL(3,$D$15:D32) -> 18 | D32: ='Danh muc nhan vien'!E29 -> 0 | E32: =IFERROR(VLOOKUP(D32,'Danh muc nhan vien'!$E$12:$BY$42,2,0),"") ->  | AK32: =COUNTIF($F32:$AJ32,AK$13) -> 0 | AL32: 0 | AM32: 0 | AN32: 0 | AO32: 0 | AP32: 0
C33: =SUBTOTAL(3,$D$15:D33) -> 19 | D33: ='Danh muc nhan vien'!E30 -> 0 | E33: =IFERROR(VLOOKUP(D33,'Danh muc nhan vien'!$E$12:$BY$42,2,0),"") ->  | AK33: 0 | AL33: 0 | AM33: 0 | AN33: 0 | AO33: 0 | AP33: 0
C34: =SUBTOTAL(3,$D$15:D34) -> 20 | D34: ='Danh muc nhan vien'!E31 -> 0 | E34: =IFERROR(VLOOKUP(D34,'Danh muc nhan vien'!$E$12:$BY$42,2,0),"") ->  | AK34: 0 | AL34: 0 | AM34: 0 | AN34: 0 | AO34: 0 | AP34: 0
C35: =SUBTOTAL(3,$D$15:D35) -> 21 | D35: ='Danh muc nhan vien'!E32 -> 0 | E35: =IFERROR(VLOOKUP(D35,'Danh muc nhan vien'!$E$12:$BY$42,2,0),"") ->  | AK35: 0 | AL35: 0 | AM35: 0 | AN35: 0 | AO35: 0 | AP35: 0
C36: =SUBTOTAL(3,$D$15:D36) -> 22 | D36: ='Danh muc nhan vien'!E33 -> 0 | E36: =IFERROR(VLOOKUP(D36,'Danh muc nhan vien'!$E$12:$BY$42,2,0),"") ->  | AK36: 0 | AL36: 0 | AM36: 0 | AN36: 0 | AO36: 0 | AP36: 0
C37: =SUBTOTAL(3,$D$15:D37) -> 23 | D37: ='Danh muc nhan vien'!E34 -> 0 | E37: =IFERROR(VLOOKUP(D37,'Danh muc nhan vien'!$E$12:$BY$42,2,0),"") ->  | AK37: 0 | AL37: 0 | AM37: 0 | AN37: 0 | AO37: 0 | AP37: 0
C38: =SUBTOTAL(3,$D$15:D38) -> 24 | D38: ='Danh muc nhan vien'!E35 -> 0 | E38: =IFERROR(VLOOKUP(D38,'Danh muc nhan vien'!$E$12:$BY$42,2,0),"") ->  | AK38: 0 | AL38: 0 | AM38: 0 | AN38: 0 | AO38: 0 | AP38: 0
C39: =SUBTOTAL(3,$D$15:D39) -> 25 | D39: ='Danh muc nhan vien'!E36 -> 0 | E39: =IFERROR(VLOOKUP(D39,'Danh muc nhan vien'!$E$12:$BY$42,2,0),"") ->  | AK39: 0 | AL39: 0 | AM39: 0 | AN39: 0 | AO39: 0 | AP39: 0
C40: =SUBTOTAL(3,$D$15:D40) -> 26 | D40: ='Danh muc nhan vien'!E37 -> 0 | E40: =IFERROR(VLOOKUP(D40,'Danh muc nhan vien'!$E$12:$BY$42,2,0),"") ->  | AK40: 0 | AL40: 0 | AM40: 0 | AN40: 0 | AO40: 0 | AP40: 0
C41: =SUBTOTAL(3,$D$15:D41) -> 27 | D41: ='Danh muc nhan vien'!E38 -> 0 | E41: =IFERROR(VLOOKUP(D41,'Danh muc nhan vien'!$E$12:$BY$42,2,0),"") ->  | AK41: 0 | AL41: 0 | AM41: 0 | AN41: 0 | AO41: 0 | AP41: 0
C42: =SUBTOTAL(3,$D$15:D42) -> 28 | D42: ='Danh muc nhan vien'!E39 -> 0 | E42: =IFERROR(VLOOKUP(D42,'Danh muc nhan vien'!$E$12:$BY$42,2,0),"") ->  | AK42: 0 | AL42: 0 | AM42: 0 | AN42: 0 | AO42: 0 | AP42: 0
C43: =SUBTOTAL(3,$D$15:D43) -> 29 | D43: ='Danh muc nhan vien'!E40 -> 0 | E43: =IFERROR(VLOOKUP(D43,'Danh muc nhan vien'!$E$12:$BY$42,2,0),"") ->  | AK43: 0 | AL43: 0 | AM43: 0 | AN43: 0 | AO43: 0 | AP43: 0
C44: =SUBTOTAL(3,$D$15:D44) -> 30 | D44: ='Danh muc nhan vien'!E41 -> 0 | E44: =IFERROR(VLOOKUP(D44,'Danh muc nhan vien'!$E$12:$BY$42,2,0),"") ->  | AK44: 0 | AL44: 0 | AM44: 0 | AN44: 0 | AO44: 0 | AP44: 0
C46: . | D46: . | E46: . | AK46: . | AL46: . | AM46: . | AN46: . | AO46: . | AP46: . | AQ46: .
AH48: ="Ngày …….. Tháng …….. Năm "&year -> Ngày …….. Tháng …….. Năm 2021
D49: NGƯỜI CHẤM CÔNG | T49: PHỤ TRÁCH BỘ PHẬN | AH49: THỦ TRƯỞNG ĐƠN VỊ
D50: (Ký tên) | T50: (Ký tên) | AH50: (Ký tên)
D55: =Chamcong -> Vũ Trình B | T55: =phutrach -> Nguyễn Linh A | AH55: =Giamdoc -> Mr. Trường

Sheet T4
C6: Số ngày làm việc: | E6: =VLOOKUP(m.apr,ngaycong,2,0) -> 26 | H6: << | K6: >> | AK6: FALSE | AL6: =DATEVALUE("1/4/"&year) -> 2021-01-04
C8: =Setup!F10 -> Công ty TNHH Webkynang Việt Nam | CJ8: =VALUE(MID(F10,8,1)) -> 4
C9: =Setup!D11&" "&Setup!F11 -> Địa chỉ: Tầng 6, Tòa nhà Sannam, Duy Tân, Cầu Giấy, Hà Nội | F9: BẢNG CHẤM CÔNG
F10: ="Tháng 4 năm "&year -> Tháng 4 năm 2021
G11: =F13+1 -> 2021-04-02 | H11: =G11+1 -> 2021-04-03 | I11: =H11+1 -> 2021-04-04 | J11: 2021-04-05 | K11: 2021-04-06 | L11: 2021-04-07 | M11: 2021-04-08 | N11: 2021-04-09 | O11: 2021-04-10 | P11: 2021-04-11 | Q11: 2021-04-12 | R11: 2021-04-13 | S11: 2021-04-14 | T11: 2021-04-15 | U11: 2021-04-16 | V11: 2021-04-17 | W11: 2021-04-18 | X11: 2021-04-19 | Y11: 2021-04-20 | Z11: 2021-04-21 | AA11: 2021-04-22 | AB11: 2021-04-23 | AC11: 2021-04-24 | AD11: 2021-04-25 | AE11: 2021-04-26 | AF11: 2021-04-27 | AG11: 2021-04-28 | AH11: 2021-04-29 | AI11: 2021-04-30 | AJ11: 2021-05-01
C12: SỐ TT | D12: HỌ VÀ TÊN | E12: CHỨC VỤ | F12: NGÀY TRONG THÁNG/ THỨ TRONG TUẦN | AK12: TỔNG | AQ12: GHI CHÚ
F13: =DATE(year,m.apr,1) -> 2021-04-01 | G13: =IF(MONTH(G11)>m.apr,"",G11) -> 2021-04-02 | H13: 2021-04-03 | I13: 2021-04-04 | J13: 2021-04-05 | K13: 2021-04-06 | L13: 2021-04-07 | M13: 2021-04-08 | N13: 2021-04-09 | O13: 2021-04-10 | P13: 2021-04-11 | Q13: 2021-04-12 | R13: 2021-04-13 | S13: 2021-04-14 | T13: 2021-04-15 | U13: 2021-04-16 | V13: 2021-04-17 | W13: 2021-04-18 | X13: 2021-04-19 | Y13: 2021-04-20 | Z13: 2021-04-21 | AA13: 2021-04-22 | AB13: 2021-04-23 | AC13: 2021-04-24 | AD13: 2021-04-25 | AE13: 2021-04-26 | AF13: 2021-04-27 | AG13: 2021-04-28 | AH13: 2021-04-29 | AI13: 2021-04-30 | AK13: =macong1 -> x | AL13: =macong2 -> x2 | AM13: =macong3 -> NC | AN13: =macong4 -> NO | AO13: =macong5 -> 00:00:00 | AP13: Tổng
F14: =IF(F13="","",CHOOSE(WEEKDAY(F13),"C.Nhật","T.Hai","T.Ba","T.Tư","T.Năm","T.Sáu","T.Bảy")) -> T.Năm | G14: =IF(G13="","",CHOOSE(WEEKDAY(G13),"C.Nhật","T.Hai","T.Ba","T.Tư","T.Năm","T.Sáu","T.Bảy")) -> T.Sáu | H14: T.Bảy | I14: C.Nhật | J14: T.Hai | K14: T.Ba | L14: T.Tư | M14: T.Năm | N14: T.Sáu | O14: T.Bảy | P14: C.Nhật | Q14: T.Hai | R14: T.Ba | S14: T.Tư | T14: T.Năm | U14: T.Sáu | V14: T.Bảy | W14: C.Nhật | X14: T.Hai | Y14: T.Ba | Z14: T.Tư | AA14: T.Năm | AB14: T.Sáu | AC14: T.Bảy | AD14: C.Nhật | AE14: T.Hai | AF14: T.Ba | AG14: T.Tư | AH14: =IF(AH13="","",CHOOSE(WEEKDAY(AH13),"C.Nhật","T.Hai","T.Ba","T.Tư","T.Năm","T.Sáu","T.Bảy")) -> T.Năm | AI14: =IF(AI13="","",CHOOSE(WEEKDAY(AI13),"C.Nhật","T.Hai","T.Ba","T.Tư","T.Năm","T.Sáu","T.Bảy")) -> T.Sáu
C15: =SUBTOTAL(3,$D$15:D15) -> 1 | D15: ='Danh muc nhan vien'!E12 -> Trần Văn Tám | E15: =IFERROR(VLOOKUP(D15,'Danh muc nhan vien'!$E$12:$BY$42,2,0),"") -> Giám Đốc | AK15: =COUNTIF($F15:$AJ15,AK$13) -> 0 | AL15: =COUNTIF($F15:$AJ15,AL$13) -> 0 | AM15: 0 | AN15: 0 | AO15: 0 | AP15: =AK15*1+AL15*0.5+AM15*1 -> 0 | AQ15: =IF(E15="","",IF(OR(VLOOKUP(D15,DSNV,5,0)<1,VLOOKUP(D15,DSNV,5,0)>eomonth4),"","Đã nghỉ")) ->  | BB15: =IF(AND(VLOOKUP(D15,DSNV,5,0)>1,$F$13>VLOOKUP(D15,DSNV,5,0)),"",IF(SUM(AK15:AP15)<$E$6,"x","")) -> x
C16: =SUBTOTAL(3,$D$15:D16) -> 2 | D16: ='Danh muc nhan vien'!E13 -> Đặng Văn Thành | E16: =IFERROR(VLOOKUP(D16,'Danh muc nhan vien'!$E$12:$BY$42,2,0),"") -> Phó GĐ | AK16: =COUNTIF($F16:$AJ16,AK$13) -> 0 | AL16: 0 | AM16: 0 | AN16: 0 | AO16: 0 | AP16: =AK16*1+AL16*0.5+AM16*1 -> 0 | BB16: x
C17: =SUBTOTAL(3,$D$15:D17) -> 3 | D17: ='Danh muc nhan vien'!E14 -> Đặng Thành Tâm | E17: =IFERROR(VLOOKUP(D17,'Danh muc nhan vien'!$E$12:$BY$42,2,0),"") -> KTT | AK17: 0 | AL17: 0 | AM17: 0 | AN17: 0 | AO17: 0 | AP17: 0 | BB17: x
C18: =SUBTOTAL(3,$D$15:D18) -> 4 | D18: ='Danh muc nhan vien'!E15 -> Đoàn Văn Cường | E18: =IFERROR(VLOOKUP(D18,'Danh muc nhan vien'!$E$12:$BY$42,2,0),"") -> TP Kinh Doanh | AK18: 0 | AL18: 0 | AM18: 0 | AN18: 0 | AO18: 0 | AP18: 0 | BB18: x
C19: =SUBTOTAL(3,$D$15:D19) -> 5 | D19: ='Danh muc nhan vien'!E16 -> Hồ Phương Lanh | E19: =IFERROR(VLOOKUP(D19,'Danh muc nhan vien'!$E$12:$BY$42,2,0),"") -> KT Tổng hợp | AK19: 0 | AL19: 0 | AM19: 0 | AN19: 0 | AO19: 0 | AP19: 0 | BB19: x
C20: =SUBTOTAL(3,$D$15:D20) -> 6 | D20: ='Danh muc nhan vien'!E17 -> Huỳnh Tùng Lâm | E20: =IFERROR(VLOOKUP(D20,'Danh muc nhan vien'!$E$12:$BY$42,2,0),"") -> KT Viên | AK20: 0 | AL20: 0 | AM20: 0 | AN20: 0 | AO20: 0 | AP20: 0 | AQ20: Đã nghỉ
C21: =SUBTOTAL(3,$D$15:D21) -> 7 | D21: ='Danh muc nhan vien'!E18 -> Lê Đại Tài | E21: =IFERROR(VLOOKUP(D21,'Danh muc nhan vien'!$E$12:$BY$42,2,0),"") -> KT Viên | AK21: 0 | AL21: 0 | AM21: 0 | AN21: 0 | AO21: 0 | AP21: 0 | BB21: x
C22: =SUBTOTAL(3,$D$15:D22) -> 8 | D22: ='Danh muc nhan vien'!E19 -> Lâm Thị Cành | E22: =IFERROR(VLOOKUP(D22,'Danh muc nhan vien'!$E$12:$BY$42,2,0),"") -> Nhân sự | AK22: 0 | AL22: 0 | AM22: 0 | AN22: 0 | AO22: 0 | AP22: 0 | BB22: x
C23: =SUBTOTAL(3,$D$15:D23) -> 9 | D23: ='Danh muc nhan vien'!E20 -> Lê Đức Chinh | E23: =IFERROR(VLOOKUP(D23,'Danh muc nhan vien'!$E$12:$BY$42,2,0),"") -> Hành chính | AK23: 0 | AL23: 0 | AM23: 0 | AN23: 0 | AO23: 0 | AP23: 0 | AQ23: Đã nghỉ
C24: =SUBTOTAL(3,$D$15:D24) -> 10 | D24: ='Danh muc nhan vien'!E21 -> Lê Văn Liêm | E24: =IFERROR(VLOOKUP(D24,'Danh muc nhan vien'!$E$12:$BY$42,2,0),"") -> Marketing | AK24: 0 | AL24: 0 | AM24: 0 | AN24: 0 | AO24: 0 | AP24: 0 | BB24: x
C25: =SUBTOTAL(3,$D$15:D25) -> 11 | D25: ='Danh muc nhan vien'!E22 -> Nguyễn Chí Thanh | E25: =IFERROR(VLOOKUP(D25,'Danh muc nhan vien'!$E$12:$BY$42,2,0),"") -> NV Kinh Doanh | AK25: 0 | AL25: 0 | AM25: 0 | AN25: 0 | AO25: 0 | AP25: 0 | BB25: x
C26: =SUBTOTAL(3,$D$15:D26) -> 12 | D26: ='Danh muc nhan vien'!E23 -> Nguyễn Hoàng Tính | E26: =IFERROR(VLOOKUP(D26,'Danh muc nhan vien'!$E$12:$BY$42,2,0),"") -> NV Kinh Doanh | AK26: 0 | AL26: 0 | AM26: 0 | AN26: 0 | AO26: 0 | AP26: 0 | AQ26: Đã nghỉ
C27: =SUBTOTAL(3,$D$15:D27) -> 13 | D27: ='Danh muc nhan vien'!E24 -> Nguyễn Văn Hân | E27: =IFERROR(VLOOKUP(D27,'Danh muc nhan vien'!$E$12:$BY$42,2,0),"") -> NV Kinh Doanh | AK27: 0 | AL27: 0 | AM27: 0 | AN27: 0 | AO27: 0 | AP27: 0 | BB27: x
C28: =SUBTOTAL(3,$D$15:D28) -> 14 | D28: ='Danh muc nhan vien'!E25 -> Phạm Hoài An | E28: =IFERROR(VLOOKUP(D28,'Danh muc nhan vien'!$E$12:$BY$42,2,0),"") -> NV Kinh Doanh | AK28: 0 | AL28: 0 | AM28: 0 | AN28: 0 | AO28: 0 | AP28: 0 | BB28: x
C29: =SUBTOTAL(3,$D$15:D29) -> 15 | D29: ='Danh muc nhan vien'!E26 -> 0 | E29: =IFERROR(VLOOKUP(D29,'Danh muc nhan vien'!$E$12:$BY$42,2,0),"") ->  | AK29: 0 | AL29: 0 | AM29: 0 | AN29: 0 | AO29: 0 | AP29: 0
C30: =SUBTOTAL(3,$D$15:D30) -> 16 | D30: ='Danh muc nhan vien'!E27 -> 0 | E30: =IFERROR(VLOOKUP(D30,'Danh muc nhan vien'!$E$12:$BY$42,2,0),"") ->  | AK30: 0 | AL30: 0 | AM30: 0 | AN30: 0 | AO30: 0 | AP30: 0
C31: =SUBTOTAL(3,$D$15:D31) -> 17 | D31: ='Danh muc nhan vien'!E28 -> 0 | E31: =IFERROR(VLOOKUP(D31,'Danh muc nhan vien'!$E$12:$BY$42,2,0),"") ->  | AK31: 0 | AL31: 0 | AM31: 0 | AN31: 0 | AO31: 0 | AP31: 0
C32: =SUBTOTAL(3,$D$15:D32) -> 18 | D32: ='Danh muc nhan vien'!E29 -> 0 | E32: =IFERROR(VLOOKUP(D32,'Danh muc nhan vien'!$E$12:$BY$42,2,0),"") ->  | AK32: =COUNTIF($F32:$AJ32,AK$13) -> 0 | AL32: 0 | AM32: 0 | AN32: 0 | AO32: 0 | AP32: 0
C33: =SUBTOTAL(3,$D$15:D33) -> 19 | D33: ='Danh muc nhan vien'!E30 -> 0 | E33: =IFERROR(VLOOKUP(D33,'Danh muc nhan vien'!$E$12:$BY$42,2,0),"") ->  | AK33: 0 | AL33: 0 | AM33: 0 | AN33: 0 | AO33: 0 | AP33: 0
C34: =SUBTOTAL(3,$D$15:D34) -> 20 | D34: ='Danh muc nhan vien'!E31 -> 0 | E34: =IFERROR(VLOOKUP(D34,'Danh muc nhan vien'!$E$12:$BY$42,2,0),"") ->  | AK34: 0 | AL34: 0 | AM34: 0 | AN34: 0 | AO34: 0 | AP34: 0
C35: =SUBTOTAL(3,$D$15:D35) -> 21 | D35: ='Danh muc nhan vien'!E32 -> 0 | E35: =IFERROR(VLOOKUP(D35,'Danh muc nhan vien'!$E$12:$BY$42,2,0),"") ->  | AK35: 0 | AL35: 0 | AM35: 0 | AN35: 0 | AO35: 0 | AP35: 0
C36: =SUBTOTAL(3,$D$15:D36) -> 22 | D36: ='Danh muc nhan vien'!E33 -> 0 | E36: =IFERROR(VLOOKUP(D36,'Danh muc nhan vien'!$E$12:$BY$42,2,0),"") ->  | AK36: 0 | AL36: 0 | AM36: 0 | AN36: 0 | AO36: 0 | AP36: 0
C37: =SUBTOTAL(3,$D$15:D37) -> 23 | D37: ='Danh muc nhan vien'!E34 -> 0 | E37: =IFERROR(VLOOKUP(D37,'Danh muc nhan vien'!$E$12:$BY$42,2,0),"") ->  | AK37: 0 | AL37: 0 | AM37: 0 | AN37: 0 | AO37: 0 | AP37: 0
C38: =SUBTOTAL(3,$D$15:D38) -> 24 | D38: ='Danh muc nhan vien'!E35 -> 0 | E38: =IFERROR(VLOOKUP(D38,'Danh muc nhan vien'!$E$12:$BY$42,2,0),"") ->  | AK38: 0 | AL38: 0 | AM38: 0 | AN38: 0 | AO38: 0 | AP38: 0
C39: =SUBTOTAL(3,$D$15:D39) -> 25 | D39: ='Danh muc nhan vien'!E36 -> 0 | E39: =IFERROR(VLOOKUP(D39,'Danh muc nhan vien'!$E$12:$BY$42,2,0),"") ->  | AK39: 0 | AL39: 0 | AM39: 0 | AN39: 0 | AO39: 0 | AP39: 0
C40: =SUBTOTAL(3,$D$15:D40) -> 26 | D40: ='Danh muc nhan vien'!E37 -> 0 | E40: =IFERROR(VLOOKUP(D40,'Danh muc nhan vien'!$E$12:$BY$42,2,0),"") ->  | AK40: 0 | AL40: 0 | AM40: 0 | AN40: 0 | AO40: 0 | AP40: 0
C41: =SUBTOTAL(3,$D$15:D41) -> 27 | D41: ='Danh muc nhan vien'!E38 -> 0 | E41: =IFERROR(VLOOKUP(D41,'Danh muc nhan vien'!$E$12:$BY$42,2,0),"") ->  | AK41: 0 | AL41: 0 | AM41: 0 | AN41: 0 | AO41: 0 | AP41: 0
C42: =SUBTOTAL(3,$D$15:D42) -> 28 | D42: ='Danh muc nhan vien'!E39 -> 0 | E42: =IFERROR(VLOOKUP(D42,'Danh muc nhan vien'!$E$12:$BY$42,2,0),"") ->  | AK42: 0 | AL42: 0 | AM42: 0 | AN42: 0 | AO42: 0 | AP42: 0
C43: =SUBTOTAL(3,$D$15:D43) -> 29 | D43: ='Danh muc nhan vien'!E40 -> 0 | E43: =IFERROR(VLOOKUP(D43,'Danh muc nhan vien'!$E$12:$BY$42,2,0),"") ->  | AK43: 0 | AL43: 0 | AM43: 0 | AN43: 0 | AO43: 0 | AP43: 0
C44: =SUBTOTAL(3,$D$15:D44) -> 30 | D44: ='Danh muc nhan vien'!E41 -> 0 | E44: =IFERROR(VLOOKUP(D44,'Danh muc nhan vien'!$E$12:$BY$42,2,0),"") ->  | AK44: 0 | AL44: 0 | AM44: 0 | AN44: 0 | AO44: 0 | AP44: 0
C46: . | D46: . | E46: . | F46: . | G46: . | H46: . | I46: . | J46: . | K46: . | L46: . | M46: . | N46: . | O46: . | P46: . | Q46: . | R46: . | S46: . | T46: . | U46: . | V46: . | W46: . | X46: . | Y46: . | Z46: . | AA46: . | AB46: . | AC46: . | AD46: . | AE46: . | AF46: . | AG46: . | AH46: . | AI46: . | AJ46: . | AK46: . | AL46: . | AM46: . | AN46: . | AO46: . | AP46: . | AQ46: .
AH48: ="Ngày …….. Tháng …….. Năm "&year -> Ngày …….. Tháng …….. Năm 2021
D49: NGƯỜI CHẤM CÔNG | T49: PHỤ TRÁCH BỘ PHẬN | AH49: THỦ TRƯỞNG ĐƠN VỊ
D50: (Ký tên) | T50: (Ký tên) | AH50: (Ký tên)
D55: =Chamcong -> Vũ Trình B | T55: =phutrach -> Nguyễn Linh A | AH55: =Giamdoc -> Mr. Trường

Sheet T5
C6: Số ngày làm việc: | E6: =VLOOKUP(m.may,ngaycong,2,0) -> 26 | H6: << | K6: >> | AE6: =DATEVALUE("1/5/"&year) -> 2021-01-05 | AK6: FALSE
C8: =Setup!F10 -> Công ty TNHH Webkynang Việt Nam | CJ8: =VALUE(MID(F10,8,1)) -> 5
C9: =Setup!D11&" "&Setup!F11 -> Địa chỉ: Tầng 6, Tòa nhà Sannam, Duy Tân, Cầu Giấy, Hà Nội | F9: BẢNG CHẤM CÔNG
F10: ="Tháng 5 năm "&year -> Tháng 5 năm 2021
G11: =F13+1 -> 2021-05-02 | H11: =G11+1 -> 2021-05-03 | I11: =H11+1 -> 2021-05-04 | J11: 2021-05-05 | K11: 2021-05-06 | L11: 2021-05-07 | M11: 2021-05-08 | N11: 2021-05-09 | O11: 2021-05-10 | P11: 2021-05-11 | Q11: 2021-05-12 | R11: 2021-05-13 | S11: 2021-05-14 | T11: 2021-05-15 | U11: 2021-05-16 | V11: 2021-05-17 | W11: 2021-05-18 | X11: 2021-05-19 | Y11: 2021-05-20 | Z11: 2021-05-21 | AA11: 2021-05-22 | AB11: 2021-05-23 | AC11: 2021-05-24 | AD11: 2021-05-25 | AE11: 2021-05-26 | AF11: 2021-05-27 | AG11: 2021-05-28 | AH11: 2021-05-29 | AI11: 2021-05-30 | AJ11: 2021-05-31
C12: SỐ TT | D12: HỌ VÀ TÊN | E12: CHỨC VỤ | F12: NGÀY TRONG THÁNG/ THỨ TRONG TUẦN | AK12: TỔNG | AQ12: GHI CHÚ
F13: =DATE(year,m.may,1) -> 2021-05-01 | G13: =IF(MONTH(G11)>m.may,"",G11) -> 2021-05-02 | H13: 2021-05-03 | I13: 2021-05-04 | J13: 2021-05-05 | K13: 2021-05-06 | L13: 2021-05-07 | M13: 2021-05-08 | N13: 2021-05-09 | O13: 2021-05-10 | P13: 2021-05-11 | Q13: 2021-05-12 | R13: 2021-05-13 | S13: 2021-05-14 | T13: 2021-05-15 | U13: 2021-05-16 | V13: 2021-05-17 | W13: 2021-05-18 | X13: 2021-05-19 | Y13: 2021-05-20 | Z13: 2021-05-21 | AA13: 2021-05-22 | AB13: 2021-05-23 | AC13: 2021-05-24 | AD13: 2021-05-25 | AE13: 2021-05-26 | AF13: 2021-05-27 | AG13: 2021-05-28 | AH13: 2021-05-29 | AI13: 2021-05-30 | AJ13: 2021-05-31 | AK13: =macong1 -> x | AL13: =macong2 -> x2 | AM13: =macong3 -> NC | AN13: =macong4 -> NO | AO13: =macong5 -> 00:00:00 | AP13: Tổng
F14: =IF(F13="","",CHOOSE(WEEKDAY(F13),"C.Nhật","T.Hai","T.Ba","T.Tư","T.Năm","T.Sáu","T.Bảy")) -> T.Bảy | G14: =IF(G13="","",CHOOSE(WEEKDAY(G13),"C.Nhật","T.Hai","T.Ba","T.Tư","T.Năm","T.Sáu","T.Bảy")) -> C.Nhật | H14: T.Hai | I14: T.Ba | J14: T.Tư | K14: T.Năm | L14: T.Sáu | M14: T.Bảy | N14: C.Nhật | O14: T.Hai | P14: T.Ba | Q14: T.Tư | R14: T.Năm | S14: T.Sáu | T14: T.Bảy | U14: C.Nhật | V14: T.Hai | W14: T.Ba | X14: T.Tư | Y14: T.Năm | Z14: T.Sáu | AA14: T.Bảy | AB14: C.Nhật | AC14: T.Hai | AD14: T.Ba | AE14: T.Tư | AF14: T.Năm | AG14: T.Sáu | AH14: =IF(AH13="","",CHOOSE(WEEKDAY(AH13),"C.Nhật","T.Hai","T.Ba","T.Tư","T.Năm","T.Sáu","T.Bảy")) -> T.Bảy | AI14: =IF(AI13="","",CHOOSE(WEEKDAY(AI13),"C.Nhật","T.Hai","T.Ba","T.Tư","T.Năm","T.Sáu","T.Bảy")) -> C.Nhật | AJ14: T.Hai
C15: =SUBTOTAL(3,$D$15:D15) -> 1 | D15: ='Danh muc nhan vien'!E12 -> Trần Văn Tám | E15: =IFERROR(VLOOKUP(D15,'Danh muc nhan vien'!$E$12:$BY$42,2,0),"") -> Giám Đốc | AK15: =COUNTIF($F15:$AJ15,AK$13) -> 0 | AL15: =COUNTIF($F15:$AJ15,AL$13) -> 0 | AM15: 0 | AN15: 0 | AO15: 0 | AP15: =AK15*1+AL15*0.5+AM15*1 -> 0 | AQ15: =IF(E15="","",IF(OR(VLOOKUP(D15,DSNV,5,0)<1,VLOOKUP(D15,DSNV,5,0)>eomonth5),"","Đã nghỉ")) ->  | BB15: =IF(AND(VLOOKUP(D15,DSNV,5,0)>1,$F$13>VLOOKUP(D15,DSNV,5,0)),"",IF(SUM(AK15:AP15)<$E$6,"x","")) -> x
C16: =SUBTOTAL(3,$D$15:D16) -> 2 | D16: ='Danh muc nhan vien'!E13 -> Đặng Văn Thành | E16: =IFERROR(VLOOKUP(D16,'Danh muc nhan vien'!$E$12:$BY$42,2,0),"") -> Phó GĐ | AK16: =COUNTIF($F16:$AJ16,AK$13) -> 0 | AL16: 0 | AM16: 0 | AN16: 0 | AO16: 0 | AP16: =AK16*1+AL16*0.5+AM16*1 -> 0 | BB16: x
C17: =SUBTOTAL(3,$D$15:D17) -> 3 | D17: ='Danh muc nhan vien'!E14 -> Đặng Thành Tâm | E17: =IFERROR(VLOOKUP(D17,'Danh muc nhan vien'!$E$12:$BY$42,2,0),"") -> KTT | AK17: 0 | AL17: 0 | AM17: 0 | AN17: 0 | AO17: 0 | AP17: 0 | BB17: x
C18: =SUBTOTAL(3,$D$15:D18) -> 4 | D18: ='Danh muc nhan vien'!E15 -> Đoàn Văn Cường | E18: =IFERROR(VLOOKUP(D18,'Danh muc nhan vien'!$E$12:$BY$42,2,0),"") -> TP Kinh Doanh | AK18: 0 | AL18: 0 | AM18: 0 | AN18: 0 | AO18: 0 | AP18: 0 | BB18: x
C19: =SUBTOTAL(3,$D$15:D19) -> 5 | D19: ='Danh muc nhan vien'!E16 -> Hồ Phương Lanh | E19: =IFERROR(VLOOKUP(D19,'Danh muc nhan vien'!$E$12:$BY$42,2,0),"") -> KT Tổng hợp | AK19: 0 | AL19: 0 | AM19: 0 | AN19: 0 | AO19: 0 | AP19: 0 | BB19: x
C20: =SUBTOTAL(3,$D$15:D20) -> 6 | D20: ='Danh muc nhan vien'!E17 -> Huỳnh Tùng Lâm | E20: =IFERROR(VLOOKUP(D20,'Danh muc nhan vien'!$E$12:$BY$42,2,0),"") -> KT Viên | AK20: 0 | AL20: 0 | AM20: 0 | AN20: 0 | AO20: 0 | AP20: 0 | AQ20: Đã nghỉ
C21: =SUBTOTAL(3,$D$15:D21) -> 7 | D21: ='Danh muc nhan vien'!E18 -> Lê Đại Tài | E21: =IFERROR(VLOOKUP(D21,'Danh muc nhan vien'!$E$12:$BY$42,2,0),"") -> KT Viên | AK21: 0 | AL21: 0 | AM21: 0 | AN21: 0 | AO21: 0 | AP21: 0 | BB21: x
C22: =SUBTOTAL(3,$D$15:D22) -> 8 | D22: ='Danh muc nhan vien'!E19 -> Lâm Thị Cành | E22: =IFERROR(VLOOKUP(D22,'Danh muc nhan vien'!$E$12:$BY$42,2,0),"") -> Nhân sự | AK22: 0 | AL22: 0 | AM22: 0 | AN22: 0 | AO22: 0 | AP22: 0 | BB22: x
C23: =SUBTOTAL(3,$D$15:D23) -> 9 | D23: ='Danh muc nhan vien'!E20 -> Lê Đức Chinh | E23: =IFERROR(VLOOKUP(D23,'Danh muc nhan vien'!$E$12:$BY$42,2,0),"") -> Hành chính | AK23: 0 | AL23: 0 | AM23: 0 | AN23: 0 | AO23: 0 | AP23: 0 | AQ23: Đã nghỉ
C24: =SUBTOTAL(3,$D$15:D24) -> 10 | D24: ='Danh muc nhan vien'!E21 -> Lê Văn Liêm | E24: =IFERROR(VLOOKUP(D24,'Danh muc nhan vien'!$E$12:$BY$42,2,0),"") -> Marketing | AK24: 0 | AL24: 0 | AM24: 0 | AN24: 0 | AO24: 0 | AP24: 0 | BB24: x
C25: =SUBTOTAL(3,$D$15:D25) -> 11 | D25: ='Danh muc nhan vien'!E22 -> Nguyễn Chí Thanh | E25: =IFERROR(VLOOKUP(D25,'Danh muc nhan vien'!$E$12:$BY$42,2,0),"") -> NV Kinh Doanh | AK25: 0 | AL25: 0 | AM25: 0 | AN25: 0 | AO25: 0 | AP25: 0 | BB25: x
C26: =SUBTOTAL(3,$D$15:D26) -> 12 | D26: ='Danh muc nhan vien'!E23 -> Nguyễn Hoàng Tính | E26: =IFERROR(VLOOKUP(D26,'Danh muc nhan vien'!$E$12:$BY$42,2,0),"") -> NV Kinh Doanh | AK26: 0 | AL26: 0 | AM26: 0 | AN26: 0 | AO26: 0 | AP26: 0 | AQ26: Đã nghỉ
C27: =SUBTOTAL(3,$D$15:D27) -> 13 | D27: ='Danh muc nhan vien'!E24 -> Nguyễn Văn Hân | E27: =IFERROR(VLOOKUP(D27,'Danh muc nhan vien'!$E$12:$BY$42,2,0),"") -> NV Kinh Doanh | AK27: 0 | AL27: 0 | AM27: 0 | AN27: 0 | AO27: 0 | AP27: 0 | BB27: x
C28: =SUBTOTAL(3,$D$15:D28) -> 14 | D28: ='Danh muc nhan vien'!E25 -> Phạm Hoài An | E28: =IFERROR(VLOOKUP(D28,'Danh muc nhan vien'!$E$12:$BY$42,2,0),"") -> NV Kinh Doanh | AK28: 0 | AL28: 0 | AM28: 0 | AN28: 0 | AO28: 0 | AP28: 0 | BB28: x
C29: =SUBTOTAL(3,$D$15:D29) -> 15 | D29: ='Danh muc nhan vien'!E26 -> 0 | E29: =IFERROR(VLOOKUP(D29,'Danh muc nhan vien'!$E$12:$BY$42,2,0),"") ->  | AK29: 0 | AL29: 0 | AM29: 0 | AN29: 0 | AO29: 0 | AP29: 0
C30: =SUBTOTAL(3,$D$15:D30) -> 16 | D30: ='Danh muc nhan vien'!E27 -> 0 | E30: =IFERROR(VLOOKUP(D30,'Danh muc nhan vien'!$E$12:$BY$42,2,0),"") ->  | AK30: 0 | AL30: 0 | AM30: 0 | AN30: 0 | AO30: 0 | AP30: 0
C31: =SUBTOTAL(3,$D$15:D31) -> 17 | D31: ='Danh muc nhan vien'!E28 -> 0 | E31: =IFERROR(VLOOKUP(D31,'Danh muc nhan vien'!$E$12:$BY$42,2,0),"") ->  | AK31: 0 | AL31: 0 | AM31: 0 | AN31: 0 | AO31: 0 | AP31: 0
C32: =SUBTOTAL(3,$D$15:D32) -> 18 | D32: ='Danh muc nhan vien'!E29 -> 0 | E32: =IFERROR(VLOOKUP(D32,'Danh muc nhan vien'!$E$12:$BY$42,2,0),"") ->  | AK32: =COUNTIF($F32:$AJ32,AK$13) -> 0 | AL32: 0 | AM32: 0 | AN32: 0 | AO32: 0 | AP32: 0
C33: =SUBTOTAL(3,$D$15:D33) -> 19 | D33: ='Danh muc nhan vien'!E30 -> 0 | E33: =IFERROR(VLOOKUP(D33,'Danh muc nhan vien'!$E$12:$BY$42,2,0),"") ->  | AK33: 0 | AL33: 0 | AM33: 0 | AN33: 0 | AO33: 0 | AP33: 0
C34: =SUBTOTAL(3,$D$15:D34) -> 20 | D34: ='Danh muc nhan vien'!E31 -> 0 | E34: =IFERROR(VLOOKUP(D34,'Danh muc nhan vien'!$E$12:$BY$42,2,0),"") ->  | AK34: 0 | AL34: 0 | AM34: 0 | AN34: 0 | AO34: 0 | AP34: 0
C35: =SUBTOTAL(3,$D$15:D35) -> 21 | D35: ='Danh muc nhan vien'!E32 -> 0 | E35: =IFERROR(VLOOKUP(D35,'Danh muc nhan vien'!$E$12:$BY$42,2,0),"") ->  | AK35: 0 | AL35: 0 | AM35: 0 | AN35: 0 | AO35: 0 | AP35: 0
C36: =SUBTOTAL(3,$D$15:D36) -> 22 | D36: ='Danh muc nhan vien'!E33 -> 0 | E36: =IFERROR(VLOOKUP(D36,'Danh muc nhan vien'!$E$12:$BY$42,2,0),"") ->  | AK36: 0 | AL36: 0 | AM36: 0 | AN36: 0 | AO36: 0 | AP36: 0
C37: =SUBTOTAL(3,$D$15:D37) -> 23 | D37: ='Danh muc nhan vien'!E34 -> 0 | E37: =IFERROR(VLOOKUP(D37,'Danh muc nhan vien'!$E$12:$BY$42,2,0),"") ->  | AK37: 0 | AL37: 0 | AM37: 0 | AN37: 0 | AO37: 0 | AP37: 0
C38: =SUBTOTAL(3,$D$15:D38) -> 24 | D38: ='Danh muc nhan vien'!E35 -> 0 | E38: =IFERROR(VLOOKUP(D38,'Danh muc nhan vien'!$E$12:$BY$42,2,0),"") ->  | AK38: 0 | AL38: 0 | AM38: 0 | AN38: 0 | AO38: 0 | AP38: 0
C39: =SUBTOTAL(3,$D$15:D39) -> 25 | D39: ='Danh muc nhan vien'!E36 -> 0 | E39: =IFERROR(VLOOKUP(D39,'Danh muc nhan vien'!$E$12:$BY$42,2,0),"") ->  | AK39: 0 | AL39: 0 | AM39: 0 | AN39: 0 | AO39: 0 | AP39: 0
C40: =SUBTOTAL(3,$D$15:D40) -> 26 | D40: ='Danh muc nhan vien'!E37 -> 0 | E40: =IFERROR(VLOOKUP(D40,'Danh muc nhan vien'!$E$12:$BY$42,2,0),"") ->  | AK40: 0 | AL40: 0 | AM40: 0 | AN40: 0 | AO40: 0 | AP40: 0
C41: =SUBTOTAL(3,$D$15:D41) -> 27 | D41: ='Danh muc nhan vien'!E38 -> 0 | E41: =IFERROR(VLOOKUP(D41,'Danh muc nhan vien'!$E$12:$BY$42,2,0),"") ->  | AK41: 0 | AL41: 0 | AM41: 0 | AN41: 0 | AO41: 0 | AP41: 0
C42: =SUBTOTAL(3,$D$15:D42) -> 28 | D42: ='Danh muc nhan vien'!E39 -> 0 | E42: =IFERROR(VLOOKUP(D42,'Danh muc nhan vien'!$E$12:$BY$42,2,0),"") ->  | AK42: 0 | AL42: 0 | AM42: 0 | AN42: 0 | AO42: 0 | AP42: 0
C43: =SUBTOTAL(3,$D$15:D43) -> 29 | D43: ='Danh muc nhan vien'!E40 -> 0 | E43: =IFERROR(VLOOKUP(D43,'Danh muc nhan vien'!$E$12:$BY$42,2,0),"") ->  | AK43: 0 | AL43: 0 | AM43: 0 | AN43: 0 | AO43: 0 | AP43: 0
C44: =SUBTOTAL(3,$D$15:D44) -> 30 | D44: ='Danh muc nhan vien'!E41 -> 0 | E44: =IFERROR(VLOOKUP(D44,'Danh muc nhan vien'!$E$12:$BY$42,2,0),"") ->  | AK44: 0 | AL44: 0 | AM44: 0 | AN44: 0 | AO44: 0 | AP44: 0
C46: . | D46: . | E46: . | F46: . | G46: . | H46: . | I46: . | J46: . | K46: . | L46: . | M46: . | N46: . | O46: . | P46: . | Q46: . | R46: . | S46: . | T46: . | U46: . | V46: . | W46: . | X46: . | Y46: . | Z46: . | AA46: . | AB46: . | AC46: . | AD46: . | AE46: . | AF46: . | AG46: . | AH46: . | AI46: . | AJ46: . | AK46: . | AL46: . | AM46: . | AN46: . | AO46: . | AP46: . | AQ46: .
AH48: ="Ngày …….. Tháng …….. Năm "&year -> Ngày …….. Tháng …….. Năm 2021
D49: NGƯỜI CHẤM CÔNG | T49: PHỤ TRÁCH BỘ PHẬN | AH49: THỦ TRƯỞNG ĐƠN VỊ
D50: (Ký tên) | T50: (Ký tên) | AH50: (Ký tên)
D55: =Chamcong -> Vũ Trình B | T55: =phutrach -> Nguyễn Linh A | AH55: =Giamdoc -> Mr. Trường

Sheet T6
C6: Số ngày làm việc: | E6: =VLOOKUP(m.jun,ngaycong,2,0) -> 26 | H6: << | K6: >> | AE6: =DATEVALUE("1/6/"&year) -> 2021-01-06
C8: =Setup!F10 -> Công ty TNHH Webkynang Việt Nam | CJ8: =VALUE(MID(F10,8,1)) -> 6
C9: =Setup!D11&" "&Setup!F11 -> Địa chỉ: Tầng 6, Tòa nhà Sannam, Duy Tân, Cầu Giấy, Hà Nội | F9: BẢNG CHẤM CÔNG
F10: ="Tháng 6 năm "&year -> Tháng 6 năm 2021
G11: =F13+1 -> 2021-06-02 | H11: =G11+1 -> 2021-06-03 | I11: =H11+1 -> 2021-06-04 | J11: 2021-06-05 | K11: 2021-06-06 | L11: 2021-06-07 | M11: 2021-06-08 | N11: 2021-06-09 | O11: 2021-06-10 | P11: 2021-06-11 | Q11: 2021-06-12 | R11: 2021-06-13 | S11: 2021-06-14 | T11: 2021-06-15 | U11: 2021-06-16 | V11: 2021-06-17 | W11: 2021-06-18 | X11: 2021-06-19 | Y11: 2021-06-20 | Z11: 2021-06-21 | AA11: 2021-06-22 | AB11: 2021-06-23 | AC11: 2021-06-24 | AD11: 2021-06-25 | AE11: 2021-06-26 | AF11: 2021-06-27 | AG11: 2021-06-28 | AH11: 2021-06-29 | AI11: 2021-06-30 | AJ11: 2021-07-01
C12: SỐ TT | D12: HỌ VÀ TÊN | E12: CHỨC VỤ | F12: NGÀY TRONG THÁNG/ THỨ TRONG TUẦN | AK12: TỔNG | AQ12: GHI CHÚ
F13: =DATE(year,m.jun,1) -> 2021-06-01 | G13: =IF(MONTH(G11)>m.jun,"",G11) -> 2021-06-02 | H13: 2021-06-03 | I13: 2021-06-04 | J13: 2021-06-05 | K13: 2021-06-06 | L13: 2021-06-07 | M13: 2021-06-08 | N13: 2021-06-09 | O13: 2021-06-10 | P13: 2021-06-11 | Q13: 2021-06-12 | R13: 2021-06-13 | S13: 2021-06-14 | T13: 2021-06-15 | U13: 2021-06-16 | V13: 2021-06-17 | W13: 2021-06-18 | X13: 2021-06-19 | Y13: 2021-06-20 | Z13: 2021-06-21 | AA13: 2021-06-22 | AB13: 2021-06-23 | AC13: 2021-06-24 | AD13: 2021-06-25 | AE13: 2021-06-26 | AF13: 2021-06-27 | AG13: 2021-06-28 | AH13: 2021-06-29 | AI13: 2021-06-30 | AK13: =macong1 -> x | AL13: =macong2 -> x2 | AM13: =macong3 -> NC | AN13: =macong4 -> NO | AO13: =macong5 -> 00:00:00 | AP13: Tổng
F14: =IF(F13="","",CHOOSE(WEEKDAY(F13),"C.Nhật","T.Hai","T.Ba","T.Tư","T.Năm","T.Sáu","T.Bảy")) -> T.Ba | G14: =IF(G13="","",CHOOSE(WEEKDAY(G13),"C.Nhật","T.Hai","T.Ba","T.Tư","T.Năm","T.Sáu","T.Bảy")) -> T.Tư | H14: T.Năm | I14: T.Sáu | J14: T.Bảy | K14: C.Nhật | L14: T.Hai | M14: T.Ba | N14: T.Tư | O14: T.Năm | P14: T.Sáu | Q14: T.Bảy | R14: C.Nhật | S14: T.Hai | T14: T.Ba | U14: T.Tư | V14: T.Năm | W14: T.Sáu | X14: T.Bảy | Y14: C.Nhật | Z14: T.Hai | AA14: T.Ba | AB14: T.Tư | AC14: T.Năm | AD14: T.Sáu | AE14: T.Bảy | AF14: C.Nhật | AG14: T.Hai | AH14: =IF(AH13="","",CHOOSE(WEEKDAY(AH13),"C.Nhật","T.Hai","T.Ba","T.Tư","T.Năm","T.Sáu","T.Bảy")) -> T.Ba | AI14: =IF(AI13="","",CHOOSE(WEEKDAY(AI13),"C.Nhật","T.Hai","T.Ba","T.Tư","T.Năm","T.Sáu","T.Bảy")) -> T.Tư
C15: =SUBTOTAL(3,$D$15:D15) -> 1 | D15: ='Danh muc nhan vien'!E12 -> Trần Văn Tám | E15: =IFERROR(VLOOKUP(D15,'Danh muc nhan vien'!$E$12:$BY$42,2,0),"") -> Giám Đốc | AK15: =COUNTIF($F15:$AJ15,AK$13) -> 0 | AL15: =COUNTIF($F15:$AJ15,AL$13) -> 0 | AM15: 0 | AN15: 0 | AO15: 0 | AP15: =AK15*1+AL15*0.5+AM15*1 -> 0 | AQ15: =IF(E15="","",IF(OR(VLOOKUP(D15,DSNV,5,0)<1,VLOOKUP(D15,DSNV,5,0)>eomonth6),"","Đã nghỉ")) ->  | BB15: =IF(AND(VLOOKUP(D15,DSNV,5,0)>1,$F$13>VLOOKUP(D15,DSNV,5,0)),"",IF(SUM(AK15:AP15)<$E$6,"x","")) -> x
C16: =SUBTOTAL(3,$D$15:D16) -> 2 | D16: ='Danh muc nhan vien'!E13 -> Đặng Văn Thành | E16: =IFERROR(VLOOKUP(D16,'Danh muc nhan vien'!$E$12:$BY$42,2,0),"") -> Phó GĐ | AK16: =COUNTIF($F16:$AJ16,AK$13) -> 0 | AL16: 0 | AM16: 0 | AN16: 0 | AO16: 0 | AP16: =AK16*1+AL16*0.5+AM16*1 -> 0 | BB16: x
C17: =SUBTOTAL(3,$D$15:D17) -> 3 | D17: ='Danh muc nhan vien'!E14 -> Đặng Thành Tâm | E17: =IFERROR(VLOOKUP(D17,'Danh muc nhan vien'!$E$12:$BY$42,2,0),"") -> KTT | AK17: 0 | AL17: 0 | AM17: 0 | AN17: 0 | AO17: 0 | AP17: 0 | BB17: x
C18: =SUBTOTAL(3,$D$15:D18) -> 4 | D18: ='Danh muc nhan vien'!E15 -> Đoàn Văn Cường | E18: =IFERROR(VLOOKUP(D18,'Danh muc nhan vien'!$E$12:$BY$42,2,0),"") -> TP Kinh Doanh | AK18: 0 | AL18: 0 | AM18: 0 | AN18: 0 | AO18: 0 | AP18: 0 | BB18: x
C19: =SUBTOTAL(3,$D$15:D19) -> 5 | D19: ='Danh muc nhan vien'!E16 -> Hồ Phương Lanh | E19: =IFERROR(VLOOKUP(D19,'Danh muc nhan vien'!$E$12:$BY$42,2,0),"") -> KT Tổng hợp | AK19: 0 | AL19: 0 | AM19: 0 | AN19: 0 | AO19: 0 | AP19: 0 | BB19: x
C20: =SUBTOTAL(3,$D$15:D20) -> 6 | D20: ='Danh muc nhan vien'!E17 -> Huỳnh Tùng Lâm | E20: =IFERROR(VLOOKUP(D20,'Danh muc nhan vien'!$E$12:$BY$42,2,0),"") -> KT Viên | AK20: 0 | AL20: 0 | AM20: 0 | AN20: 0 | AO20: 0 | AP20: 0 | AQ20: Đã nghỉ
C21: =SUBTOTAL(3,$D$15:D21) -> 7 | D21: ='Danh muc nhan vien'!E18 -> Lê Đại Tài | E21: =IFERROR(VLOOKUP(D21,'Danh muc nhan vien'!$E$12:$BY$42,2,0),"") -> KT Viên | AK21: 0 | AL21: 0 | AM21: 0 | AN21: 0 | AO21: 0 | AP21: 0 | BB21: x
C22: =SUBTOTAL(3,$D$15:D22) -> 8 | D22: ='Danh muc nhan vien'!E19 -> Lâm Thị Cành | E22: =IFERROR(VLOOKUP(D22,'Danh muc nhan vien'!$E$12:$BY$42,2,0),"") -> Nhân sự | AK22: 0 | AL22: 0 | AM22: 0 | AN22: 0 | AO22: 0 | AP22: 0 | BB22: x
C23: =SUBTOTAL(3,$D$15:D23) -> 9 | D23: ='Danh muc nhan vien'!E20 -> Lê Đức Chinh | E23: =IFERROR(VLOOKUP(D23,'Danh muc nhan vien'!$E$12:$BY$42,2,0),"") -> Hành chính | AK23: 0 | AL23: 0 | AM23: 0 | AN23: 0 | AO23: 0 | AP23: 0 | AQ23: Đã nghỉ
C24: =SUBTOTAL(3,$D$15:D24) -> 10 | D24: ='Danh muc nhan vien'!E21 -> Lê Văn Liêm | E24: =IFERROR(VLOOKUP(D24,'Danh muc nhan vien'!$E$12:$BY$42,2,0),"") -> Marketing | AK24: 0 | AL24: 0 | AM24: 0 | AN24: 0 | AO24: 0 | AP24: 0 | BB24: x
C25: =SUBTOTAL(3,$D$15:D25) -> 11 | D25: ='Danh muc nhan vien'!E22 -> Nguyễn Chí Thanh | E25: =IFERROR(VLOOKUP(D25,'Danh muc nhan vien'!$E$12:$BY$42,2,0),"") -> NV Kinh Doanh | AK25: 0 | AL25: 0 | AM25: 0 | AN25: 0 | AO25: 0 | AP25: 0 | BB25: x
C26: =SUBTOTAL(3,$D$15:D26) -> 12 | D26: ='Danh muc nhan vien'!E23 -> Nguyễn Hoàng Tính | E26: =IFERROR(VLOOKUP(D26,'Danh muc nhan vien'!$E$12:$BY$42,2,0),"") -> NV Kinh Doanh | AK26: 0 | AL26: 0 | AM26: 0 | AN26: 0 | AO26: 0 | AP26: 0 | AQ26: Đã nghỉ
C27: =SUBTOTAL(3,$D$15:D27) -> 13 | D27: ='Danh muc nhan vien'!E24 -> Nguyễn Văn Hân | E27: =IFERROR(VLOOKUP(D27,'Danh muc nhan vien'!$E$12:$BY$42,2,0),"") -> NV Kinh Doanh | AK27: 0 | AL27: 0 | AM27: 0 | AN27: 0 | AO27: 0 | AP27: 0 | BB27: x
C28: =SUBTOTAL(3,$D$15:D28) -> 14 | D28: ='Danh muc nhan vien'!E25 -> Phạm Hoài An | E28: =IFERROR(VLOOKUP(D28,'Danh muc nhan vien'!$E$12:$BY$42,2,0),"") -> NV Kinh Doanh | AK28: 0 | AL28: 0 | AM28: 0 | AN28: 0 | AO28: 0 | AP28: 0 | BB28: x
C29: =SUBTOTAL(3,$D$15:D29) -> 15 | D29: ='Danh muc nhan vien'!E26 -> 0 | E29: =IFERROR(VLOOKUP(D29,'Danh muc nhan vien'!$E$12:$BY$42,2,0),"") ->  | AK29: 0 | AL29: 0 | AM29: 0 | AN29: 0 | AO29: 0 | AP29: 0
C30: =SUBTOTAL(3,$D$15:D30) -> 16 | D30: ='Danh muc nhan vien'!E27 -> 0 | E30: =IFERROR(VLOOKUP(D30,'Danh muc nhan vien'!$E$12:$BY$42,2,0),"") ->  | AK30: 0 | AL30: 0 | AM30: 0 | AN30: 0 | AO30: 0 | AP30: 0
C31: =SUBTOTAL(3,$D$15:D31) -> 17 | D31: ='Danh muc nhan vien'!E28 -> 0 | E31: =IFERROR(VLOOKUP(D31,'Danh muc nhan vien'!$E$12:$BY$42,2,0),"") ->  | AK31: 0 | AL31: 0 | AM31: 0 | AN31: 0 | AO31: 0 | AP31: 0
C32: =SUBTOTAL(3,$D$15:D32) -> 18 | D32: ='Danh muc nhan vien'!E29 -> 0 | E32: =IFERROR(VLOOKUP(D32,'Danh muc nhan vien'!$E$12:$BY$42,2,0),"") ->  | AK32: =COUNTIF($F32:$AJ32,AK$13) -> 0 | AL32: 0 | AM32: 0 | AN32: 0 | AO32: 0 | AP32: 0
C33: =SUBTOTAL(3,$D$15:D33) -> 19 | D33: ='Danh muc nhan vien'!E30 -> 0 | E33: =IFERROR(VLOOKUP(D33,'Danh muc nhan vien'!$E$12:$BY$42,2,0),"") ->  | AK33: 0 | AL33: 0 | AM33: 0 | AN33: 0 | AO33: 0 | AP33: 0
C34: =SUBTOTAL(3,$D$15:D34) -> 20 | D34: ='Danh muc nhan vien'!E31 -> 0 | E34: =IFERROR(VLOOKUP(D34,'Danh muc nhan vien'!$E$12:$BY$42,2,0),"") ->  | AK34: 0 | AL34: 0 | AM34: 0 | AN34: 0 | AO34: 0 | AP34: 0
C35: =SUBTOTAL(3,$D$15:D35) -> 21 | D35: ='Danh muc nhan vien'!E32 -> 0 | E35: =IFERROR(VLOOKUP(D35,'Danh muc nhan vien'!$E$12:$BY$42,2,0),"") ->  | AK35: 0 | AL35: 0 | AM35: 0 | AN35: 0 | AO35: 0 | AP35: 0
C36: =SUBTOTAL(3,$D$15:D36) -> 22 | D36: ='Danh muc nhan vien'!E33 -> 0 | E36: =IFERROR(VLOOKUP(D36,'Danh muc nhan vien'!$E$12:$BY$42,2,0),"") ->  | AK36: 0 | AL36: 0 | AM36: 0 | AN36: 0 | AO36: 0 | AP36: 0
C37: =SUBTOTAL(3,$D$15:D37) -> 23 | D37: ='Danh muc nhan vien'!E34 -> 0 | E37: =IFERROR(VLOOKUP(D37,'Danh muc nhan vien'!$E$12:$BY$42,2,0),"") ->  | AK37: 0 | AL37: 0 | AM37: 0 | AN37: 0 | AO37: 0 | AP37: 0
C38: =SUBTOTAL(3,$D$15:D38) -> 24 | D38: ='Danh muc nhan vien'!E35 -> 0 | E38: =IFERROR(VLOOKUP(D38,'Danh muc nhan vien'!$E$12:$BY$42,2,0),"") ->  | AK38: 0 | AL38: 0 | AM38: 0 | AN38: 0 | AO38: 0 | AP38: 0
C39: =SUBTOTAL(3,$D$15:D39) -> 25 | D39: ='Danh muc nhan vien'!E36 -> 0 | E39: =IFERROR(VLOOKUP(D39,'Danh muc nhan vien'!$E$12:$BY$42,2,0),"") ->  | AK39: 0 | AL39: 0 | AM39: 0 | AN39: 0 | AO39: 0 | AP39: 0
C40: =SUBTOTAL(3,$D$15:D40) -> 26 | D40: ='Danh muc nhan vien'!E37 -> 0 | E40: =IFERROR(VLOOKUP(D40,'Danh muc nhan vien'!$E$12:$BY$42,2,0),"") ->  | AK40: 0 | AL40: 0 | AM40: 0 | AN40: 0 | AO40: 0 | AP40: 0
C41: =SUBTOTAL(3,$D$15:D41) -> 27 | D41: ='Danh muc nhan vien'!E38 -> 0 | E41: =IFERROR(VLOOKUP(D41,'Danh muc nhan vien'!$E$12:$BY$42,2,0),"") ->  | AK41: 0 | AL41: 0 | AM41: 0 | AN41: 0 | AO41: 0 | AP41: 0
C42: =SUBTOTAL(3,$D$15:D42) -> 28 | D42: ='Danh muc nhan vien'!E39 -> 0 | E42: =IFERROR(VLOOKUP(D42,'Danh muc nhan vien'!$E$12:$BY$42,2,0),"") ->  | AK42: 0 | AL42: 0 | AM42: 0 | AN42: 0 | AO42: 0 | AP42: 0
C43: =SUBTOTAL(3,$D$15:D43) -> 29 | D43: ='Danh muc nhan vien'!E40 -> 0 | E43: =IFERROR(VLOOKUP(D43,'Danh muc nhan vien'!$E$12:$BY$42,2,0),"") ->  | AK43: 0 | AL43: 0 | AM43: 0 | AN43: 0 | AO43: 0 | AP43: 0
C44: =SUBTOTAL(3,$D$15:D44) -> 30 | D44: ='Danh muc nhan vien'!E41 -> 0 | E44: =IFERROR(VLOOKUP(D44,'Danh muc nhan vien'!$E$12:$BY$42,2,0),"") ->  | AK44: 0 | AL44: 0 | AM44: 0 | AN44: 0 | AO44: 0 | AP44: 0
C46: . | D46: . | E46: . | F46: . | G46: . | H46: . | I46: . | J46: . | K46: . | L46: . | M46: . | N46: . | O46: . | P46: . | Q46: . | R46: . | S46: . | T46: . | U46: . | V46: . | W46: . | X46: . | Y46: . | Z46: . | AA46: . | AB46: . | AC46: . | AD46: . | AE46: . | AF46: . | AG46: . | AH46: . | AI46: . | AJ46: . | AK46: . | AL46: . | AM46: . | AN46: . | AO46: . | AP46: . | AQ46: .
AH48: ="Ngày …….. Tháng …….. Năm "&year -> Ngày …….. Tháng …….. Năm 2021
D49: NGƯỜI CHẤM CÔNG | T49: PHỤ TRÁCH BỘ PHẬN | AH49: THỦ TRƯỞNG ĐƠN VỊ
D50: (Ký tên) | T50: (Ký tên) | AH50: (Ký tên)
D55: =Chamcong -> Vũ Trình B | T55: =phutrach -> Nguyễn Linh A | AH55: =Giamdoc -> Mr. Trường

Sheet T7
C6: Số ngày làm việc: | E6: =VLOOKUP(m.jul,ngaycong,2,0) -> 26 | H6: << | K6: >> | AE6: =DATEVALUE("1/7/"&year) -> 2021-01-07
C8: =Setup!F10 -> Công ty TNHH Webkynang Việt Nam | CJ8: =VALUE(MID(F10,8,1)) -> 7
C9: =Setup!D11&" "&Setup!F11 -> Địa chỉ: Tầng 6, Tòa nhà Sannam, Duy Tân, Cầu Giấy, Hà Nội | F9: BẢNG CHẤM CÔNG
F10: ="Tháng 7 năm "&year -> Tháng 7 năm 2021
G11: =F13+1 -> 2021-07-02 | H11: =G11+1 -> 2021-07-03 | I11: =H11+1 -> 2021-07-04 | J11: 2021-07-05 | K11: 2021-07-06 | L11: 2021-07-07 | M11: 2021-07-08 | N11: 2021-07-09 | O11: 2021-07-10 | P11: 2021-07-11 | Q11: 2021-07-12 | R11: 2021-07-13 | S11: 2021-07-14 | T11: 2021-07-15 | U11: 2021-07-16 | V11: 2021-07-17 | W11: 2021-07-18 | X11: 2021-07-19 | Y11: 2021-07-20 | Z11: 2021-07-21 | AA11: 2021-07-22 | AB11: 2021-07-23 | AC11: 2021-07-24 | AD11: 2021-07-25 | AE11: 2021-07-26 | AF11: 2021-07-27 | AG11: 2021-07-28 | AH11: 2021-07-29 | AI11: 2021-07-30 | AJ11: 2021-07-31
C12: SỐ TT | D12: HỌ VÀ TÊN | E12: CHỨC VỤ | F12: NGÀY TRONG THÁNG/ THỨ TRONG TUẦN | AK12: TỔNG | AQ12: GHI CHÚ
F13: =DATE(year,m.jul,1) -> 2021-07-01 | G13: =IF(MONTH(G11)>m.jul,"",G11) -> 2021-07-02 | H13: 2021-07-03 | I13: 2021-07-04 | J13: 2021-07-05 | K13: 2021-07-06 | L13: 2021-07-07 | M13: 2021-07-08 | N13: 2021-07-09 | O13: 2021-07-10 | P13: 2021-07-11 | Q13: 2021-07-12 | R13: 2021-07-13 | S13: 2021-07-14 | T13: 2021-07-15 | U13: 2021-07-16 | V13: 2021-07-17 | W13: 2021-07-18 | X13: 2021-07-19 | Y13: 2021-07-20 | Z13: 2021-07-21 | AA13: 2021-07-22 | AB13: 2021-07-23 | AC13: 2021-07-24 | AD13: 2021-07-25 | AE13: 2021-07-26 | AF13: 2021-07-27 | AG13: 2021-07-28 | AH13: 2021-07-29 | AI13: 2021-07-30 | AJ13: 2021-07-31 | AK13: =macong1 -> x | AL13: =macong2 -> x2 | AM13: =macong3 -> NC | AN13: =macong4 -> NO | AO13: =macong5 -> 00:00:00 | AP13: Tổng
F14: =IF(F13="","",CHOOSE(WEEKDAY(F13),"C.Nhật","T.Hai","T.Ba","T.Tư","T.Năm","T.Sáu","T.Bảy")) -> T.Năm | G14: =IF(G13="","",CHOOSE(WEEKDAY(G13),"C.Nhật","T.Hai","T.Ba","T.Tư","T.Năm","T.Sáu","T.Bảy")) -> T.Sáu | H14: T.Bảy | I14: C.Nhật | J14: T.Hai | K14: T.Ba | L14: T.Tư | M14: T.Năm | N14: T.Sáu | O14: T.Bảy | P14: C.Nhật | Q14: T.Hai | R14: T.Ba | S14: T.Tư | T14: T.Năm | U14: T.Sáu | V14: T.Bảy | W14: C.Nhật | X14: T.Hai | Y14: T.Ba | Z14: T.Tư | AA14: T.Năm | AB14: T.Sáu | AC14: T.Bảy | AD14: C.Nhật | AE14: T.Hai | AF14: T.Ba | AG14: T.Tư | AH14: =IF(AH13="","",CHOOSE(WEEKDAY(AH13),"C.Nhật","T.Hai","T.Ba","T.Tư","T.Năm","T.Sáu","T.Bảy")) -> T.Năm | AI14: =IF(AI13="","",CHOOSE(WEEKDAY(AI13),"C.Nhật","T.Hai","T.Ba","T.Tư","T.Năm","T.Sáu","T.Bảy")) -> T.Sáu | AJ14: T.Bảy
C15: =SUBTOTAL(3,$D$15:D15) -> 1 | D15: ='Danh muc nhan vien'!E12 -> Trần Văn Tám | E15: =IFERROR(VLOOKUP(D15,'Danh muc nhan vien'!$E$12:$BY$42,2,0),"") -> Giám Đốc | AK15: =COUNTIF($F15:$AJ15,AK$13) -> 0 | AL15: =COUNTIF($F15:$AJ15,AL$13) -> 0 | AM15: 0 | AN15: 0 | AO15: 0 | AP15: =AK15*1+AL15*0.5+AM15*1 -> 0 | AQ15: =IF(E15="","",IF(OR(VLOOKUP(D15,DSNV,5,0)<1,VLOOKUP(D15,DSNV,5,0)>eomonth7),"","Đã nghỉ")) ->  | BB15: =IF(AND(VLOOKUP(D15,DSNV,5,0)>1,$F$13>VLOOKUP(D15,DSNV,5,0)),"",IF(SUM(AK15:AP15)<$E$6,"x","")) -> x
C16: =SUBTOTAL(3,$D$15:D16) -> 2 | D16: ='Danh muc nhan vien'!E13 -> Đặng Văn Thành | E16: =IFERROR(VLOOKUP(D16,'Danh muc nhan vien'!$E$12:$BY$42,2,0),"") -> Phó GĐ | AK16: =COUNTIF($F16:$AJ16,AK$13) -> 0 | AL16: 0 | AM16: 0 | AN16: 0 | AO16: 0 | AP16: =AK16*1+AL16*0.5+AM16*1 -> 0 | BB16: x
C17: =SUBTOTAL(3,$D$15:D17) -> 3 | D17: ='Danh muc nhan vien'!E14 -> Đặng Thành Tâm | E17: =IFERROR(VLOOKUP(D17,'Danh muc nhan vien'!$E$12:$BY$42,2,0),"") -> KTT | AK17: 0 | AL17: 0 | AM17: 0 | AN17: 0 | AO17: 0 | AP17: 0 | BB17: x
C18: =SUBTOTAL(3,$D$15:D18) -> 4 | D18: ='Danh muc nhan vien'!E15 -> Đoàn Văn Cường | E18: =IFERROR(VLOOKUP(D18,'Danh muc nhan vien'!$E$12:$BY$42,2,0),"") -> TP Kinh Doanh | AK18: 0 | AL18: 0 | AM18: 0 | AN18: 0 | AO18: 0 | AP18: 0 | BB18: x
C19: =SUBTOTAL(3,$D$15:D19) -> 5 | D19: ='Danh muc nhan vien'!E16 -> Hồ Phương Lanh | E19: =IFERROR(VLOOKUP(D19,'Danh muc nhan vien'!$E$12:$BY$42,2,0),"") -> KT Tổng hợp | AK19: 0 | AL19: 0 | AM19: 0 | AN19: 0 | AO19: 0 | AP19: 0 | BB19: x
C20: =SUBTOTAL(3,$D$15:D20) -> 6 | D20: ='Danh muc nhan vien'!E17 -> Huỳnh Tùng Lâm | E20: =IFERROR(VLOOKUP(D20,'Danh muc nhan vien'!$E$12:$BY$42,2,0),"") -> KT Viên | AK20: 0 | AL20: 0 | AM20: 0 | AN20: 0 | AO20: 0 | AP20: 0 | AQ20: Đã nghỉ
C21: =SUBTOTAL(3,$D$15:D21) -> 7 | D21: ='Danh muc nhan vien'!E18 -> Lê Đại Tài | E21: =IFERROR(VLOOKUP(D21,'Danh muc nhan vien'!$E$12:$BY$42,2,0),"") -> KT Viên | AK21: 0 | AL21: 0 | AM21: 0 | AN21: 0 | AO21: 0 | AP21: 0 | BB21: x
C22: =SUBTOTAL(3,$D$15:D22) -> 8 | D22: ='Danh muc nhan vien'!E19 -> Lâm Thị Cành | E22: =IFERROR(VLOOKUP(D22,'Danh muc nhan vien'!$E$12:$BY$42,2,0),"") -> Nhân sự | AK22: 0 | AL22: 0 | AM22: 0 | AN22: 0 | AO22: 0 | AP22: 0 | BB22: x
C23: =SUBTOTAL(3,$D$15:D23) -> 9 | D23: ='Danh muc nhan vien'!E20 -> Lê Đức Chinh | E23: =IFERROR(VLOOKUP(D23,'Danh muc nhan vien'!$E$12:$BY$42,2,0),"") -> Hành chính | AK23: 0 | AL23: 0 | AM23: 0 | AN23: 0 | AO23: 0 | AP23: 0 | AQ23: Đã nghỉ
C24: =SUBTOTAL(3,$D$15:D24) -> 10 | D24: ='Danh muc nhan vien'!E21 -> Lê Văn Liêm | E24: =IFERROR(VLOOKUP(D24,'Danh muc nhan vien'!$E$12:$BY$42,2,0),"") -> Marketing | AK24: 0 | AL24: 0 | AM24: 0 | AN24: 0 | AO24: 0 | AP24: 0 | BB24: x
C25: =SUBTOTAL(3,$D$15:D25) -> 11 | D25: ='Danh muc nhan vien'!E22 -> Nguyễn Chí Thanh | E25: =IFERROR(VLOOKUP(D25,'Danh muc nhan vien'!$E$12:$BY$42,2,0),"") -> NV Kinh Doanh | AK25: 0 | AL25: 0 | AM25: 0 | AN25: 0 | AO25: 0 | AP25: 0 | BB25: x
C26: =SUBTOTAL(3,$D$15:D26) -> 12 | D26: ='Danh muc nhan vien'!E23 -> Nguyễn Hoàng Tính | E26: =IFERROR(VLOOKUP(D26,'Danh muc nhan vien'!$E$12:$BY$42,2,0),"") -> NV Kinh Doanh | AK26: 0 | AL26: 0 | AM26: 0 | AN26: 0 | AO26: 0 | AP26: 0 | AQ26: Đã nghỉ
C27: =SUBTOTAL(3,$D$15:D27) -> 13 | D27: ='Danh muc nhan vien'!E24 -> Nguyễn Văn Hân | E27: =IFERROR(VLOOKUP(D27,'Danh muc nhan vien'!$E$12:$BY$42,2,0),"") -> NV Kinh Doanh | AK27: 0 | AL27: 0 | AM27: 0 | AN27: 0 | AO27: 0 | AP27: 0 | BB27: x
C28: =SUBTOTAL(3,$D$15:D28) -> 14 | D28: ='Danh muc nhan vien'!E25 -> Phạm Hoài An | E28: =IFERROR(VLOOKUP(D28,'Danh muc nhan vien'!$E$12:$BY$42,2,0),"") -> NV Kinh Doanh | AK28: 0 | AL28: 0 | AM28: 0 | AN28: 0 | AO28: 0 | AP28: 0 | BB28: x
C29: =SUBTOTAL(3,$D$15:D29) -> 15 | D29: ='Danh muc nhan vien'!E26 -> 0 | E29: =IFERROR(VLOOKUP(D29,'Danh muc nhan vien'!$E$12:$BY$42,2,0),"") ->  | AK29: 0 | AL29: 0 | AM29: 0 | AN29: 0 | AO29: 0 | AP29: 0
C30: =SUBTOTAL(3,$D$15:D30) -> 16 | D30: ='Danh muc nhan vien'!E27 -> 0 | E30: =IFERROR(VLOOKUP(D30,'Danh muc nhan vien'!$E$12:$BY$42,2,0),"") ->  | AK30: 0 | AL30: 0 | AM30: 0 | AN30: 0 | AO30: 0 | AP30: 0
C31: =SUBTOTAL(3,$D$15:D31) -> 17 | D31: ='Danh muc nhan vien'!E28 -> 0 | E31: =IFERROR(VLOOKUP(D31,'Danh muc nhan vien'!$E$12:$BY$42,2,0),"") ->  | AK31: 0 | AL31: 0 | AM31: 0 | AN31: 0 | AO31: 0 | AP31: 0
C32: =SUBTOTAL(3,$D$15:D32) -> 18 | D32: ='Danh muc nhan vien'!E29 -> 0 | E32: =IFERROR(VLOOKUP(D32,'Danh muc nhan vien'!$E$12:$BY$42,2,0),"") ->  | AK32: =COUNTIF($F32:$AJ32,AK$13) -> 0 | AL32: 0 | AM32: 0 | AN32: 0 | AO32: 0 | AP32: 0
C33: =SUBTOTAL(3,$D$15:D33) -> 19 | D33: ='Danh muc nhan vien'!E30 -> 0 | E33: =IFERROR(VLOOKUP(D33,'Danh muc nhan vien'!$E$12:$BY$42,2,0),"") ->  | AK33: 0 | AL33: 0 | AM33: 0 | AN33: 0 | AO33: 0 | AP33: 0
C34: =SUBTOTAL(3,$D$15:D34) -> 20 | D34: ='Danh muc nhan vien'!E31 -> 0 | E34: =IFERROR(VLOOKUP(D34,'Danh muc nhan vien'!$E$12:$BY$42,2,0),"") ->  | AK34: 0 | AL34: 0 | AM34: 0 | AN34: 0 | AO34: 0 | AP34: 0
C35: =SUBTOTAL(3,$D$15:D35) -> 21 | D35: ='Danh muc nhan vien'!E32 -> 0 | E35: =IFERROR(VLOOKUP(D35,'Danh muc nhan vien'!$E$12:$BY$42,2,0),"") ->  | AK35: 0 | AL35: 0 | AM35: 0 | AN35: 0 | AO35: 0 | AP35: 0
C36: =SUBTOTAL(3,$D$15:D36) -> 22 | D36: ='Danh muc nhan vien'!E33 -> 0 | E36: =IFERROR(VLOOKUP(D36,'Danh muc nhan vien'!$E$12:$BY$42,2,0),"") ->  | AK36: 0 | AL36: 0 | AM36: 0 | AN36: 0 | AO36: 0 | AP36: 0
C37: =SUBTOTAL(3,$D$15:D37) -> 23 | D37: ='Danh muc nhan vien'!E34 -> 0 | E37: =IFERROR(VLOOKUP(D37,'Danh muc nhan vien'!$E$12:$BY$42,2,0),"") ->  | AK37: 0 | AL37: 0 | AM37: 0 | AN37: 0 | AO37: 0 | AP37: 0
C38: =SUBTOTAL(3,$D$15:D38) -> 24 | D38: ='Danh muc nhan vien'!E35 -> 0 | E38: =IFERROR(VLOOKUP(D38,'Danh muc nhan vien'!$E$12:$BY$42,2,0),"") ->  | AK38: 0 | AL38: 0 | AM38: 0 | AN38: 0 | AO38: 0 | AP38: 0
C39: =SUBTOTAL(3,$D$15:D39) -> 25 | D39: ='Danh muc nhan vien'!E36 -> 0 | E39: =IFERROR(VLOOKUP(D39,'Danh muc nhan vien'!$E$12:$BY$42,2,0),"") ->  | AK39: 0 | AL39: 0 | AM39: 0 | AN39: 0 | AO39: 0 | AP39: 0
C40: =SUBTOTAL(3,$D$15:D40) -> 26 | D40: ='Danh muc nhan vien'!E37 -> 0 | E40: =IFERROR(VLOOKUP(D40,'Danh muc nhan vien'!$E$12:$BY$42,2,0),"") ->  | AK40: 0 | AL40: 0 | AM40: 0 | AN40: 0 | AO40: 0 | AP40: 0
C41: =SUBTOTAL(3,$D$15:D41) -> 27 | D41: ='Danh muc nhan vien'!E38 -> 0 | E41: =IFERROR(VLOOKUP(D41,'Danh muc nhan vien'!$E$12:$BY$42,2,0),"") ->  | AK41: 0 | AL41: 0 | AM41: 0 | AN41: 0 | AO41: 0 | AP41: 0
C42: =SUBTOTAL(3,$D$15:D42) -> 28 | D42: ='Danh muc nhan vien'!E39 -> 0 | E42: =IFERROR(VLOOKUP(D42,'Danh muc nhan vien'!$E$12:$BY$42,2,0),"") ->  | AK42: 0 | AL42: 0 | AM42: 0 | AN42: 0 | AO42: 0 | AP42: 0
C43: =SUBTOTAL(3,$D$15:D43) -> 29 | D43: ='Danh muc nhan vien'!E40 -> 0 | E43: =IFERROR(VLOOKUP(D43,'Danh muc nhan vien'!$E$12:$BY$42,2,0),"") ->  | AK43: 0 | AL43: 0 | AM43: 0 | AN43: 0 | AO43: 0 | AP43: 0
C44: =SUBTOTAL(3,$D$15:D44) -> 30 | D44: ='Danh muc nhan vien'!E41 -> 0 | E44: =IFERROR(VLOOKUP(D44,'Danh muc nhan vien'!$E$12:$BY$42,2,0),"") ->  | AK44: 0 | AL44: 0 | AM44: 0 | AN44: 0 | AO44: 0 | AP44: 0
C46: . | D46: . | E46: . | F46: . | G46: . | H46: . | I46: . | J46: . | K46: . | L46: . | M46: . | N46: . | O46: . | P46: . | Q46: . | R46: . | S46: . | T46: . | U46: . | V46: . | W46: . | X46: . | Y46: . | Z46: . | AA46: . | AB46: . | AC46: . | AD46: . | AE46: . | AF46: . | AG46: . | AH46: . | AI46: . | AJ46: . | AK46: . | AL46: . | AM46: . | AN46: . | AO46: . | AP46: . | AQ46: .
AH48: ="Ngày …….. Tháng …….. Năm "&year -> Ngày …….. Tháng …….. Năm 2021
D49: NGƯỜI CHẤM CÔNG | T49: PHỤ TRÁCH BỘ PHẬN | AH49: THỦ TRƯỞNG ĐƠN VỊ
D50: (Ký tên) | T50: (Ký tên) | AH50: (Ký tên)
D55: =Chamcong -> Vũ Trình B | T55: =phutrach -> Nguyễn Linh A | AH55: =Giamdoc -> Mr. Trường

Sheet T8
C6: Số ngày làm việc: | E6: =VLOOKUP(m.aug,ngaycong,2,0) -> 26 | H6: << | K6: >> | AE6: =DATEVALUE("1/8/"&year) -> 2021-01-08
C8: =Setup!F10 -> Công ty TNHH Webkynang Việt Nam | CJ8: =VALUE(MID(F10,8,1)) -> 8
C9: =Setup!D11&" "&Setup!F11 -> Địa chỉ: Tầng 6, Tòa nhà Sannam, Duy Tân, Cầu Giấy, Hà Nội | F9: BẢNG CHẤM CÔNG
F10: ="Tháng 8 năm "&year -> Tháng 8 năm 2021
G11: =F13+1 -> 2021-08-02 | H11: =G11+1 -> 2021-08-03 | I11: =H11+1 -> 2021-08-04 | J11: 2021-08-05 | K11: 2021-08-06 | L11: 2021-08-07 | M11: 2021-08-08 | N11: 2021-08-09 | O11: 2021-08-10 | P11: 2021-08-11 | Q11: 2021-08-12 | R11: 2021-08-13 | S11: 2021-08-14 | T11: 2021-08-15 | U11: 2021-08-16 | V11: 2021-08-17 | W11: 2021-08-18 | X11: 2021-08-19 | Y11: 2021-08-20 | Z11: 2021-08-21 | AA11: 2021-08-22 | AB11: 2021-08-23 | AC11: 2021-08-24 | AD11: 2021-08-25 | AE11: 2021-08-26 | AF11: 2021-08-27 | AG11: 2021-08-28 | AH11: 2021-08-29 | AI11: 2021-08-30 | AJ11: 2021-08-31
C12: SỐ TT | D12: HỌ VÀ TÊN | E12: CHỨC VỤ | F12: NGÀY TRONG THÁNG/ THỨ TRONG TUẦN | AK12: TỔNG | AQ12: GHI CHÚ
F13: =DATE(year,m.aug,1) -> 2021-08-01 | G13: =IF(MONTH(G11)>m.aug,"",G11) -> 2021-08-02 | H13: 2021-08-03 | I13: 2021-08-04 | J13: 2021-08-05 | K13: 2021-08-06 | L13: 2021-08-07 | M13: 2021-08-08 | N13: 2021-08-09 | O13: 2021-08-10 | P13: 2021-08-11 | Q13: 2021-08-12 | R13: 2021-08-13 | S13: 2021-08-14 | T13: 2021-08-15 | U13: 2021-08-16 | V13: 2021-08-17 | W13: 2021-08-18 | X13: 2021-08-19 | Y13: 2021-08-20 | Z13: 2021-08-21 | AA13: 2021-08-22 | AB13: 2021-08-23 | AC13: 2021-08-24 | AD13: 2021-08-25 | AE13: 2021-08-26 | AF13: 2021-08-27 | AG13: 2021-08-28 | AH13: 2021-08-29 | AI13: 2021-08-30 | AJ13: 2021-08-31 | AK13: =macong1 -> x | AL13: =macong2 -> x2 | AM13: =macong3 -> NC | AN13: =macong4 -> NO | AO13: =macong5 -> 00:00:00 | AP13: Tổng
F14: =IF(F13="","",CHOOSE(WEEKDAY(F13),"C.Nhật","T.Hai","T.Ba","T.Tư","T.Năm","T.Sáu","T.Bảy")) -> C.Nhật | G14: =IF(G13="","",CHOOSE(WEEKDAY(G13),"C.Nhật","T.Hai","T.Ba","T.Tư","T.Năm","T.Sáu","T.Bảy")) -> T.Hai | H14: T.Ba | I14: T.Tư | J14: T.Năm | K14: T.Sáu | L14: T.Bảy | M14: C.Nhật | N14: T.Hai | O14: T.Ba | P14: T.Tư | Q14: T.Năm | R14: T.Sáu | S14: T.Bảy | T14: C.Nhật | U14: T.Hai | V14: T.Ba | W14: T.Tư | X14: T.Năm | Y14: T.Sáu | Z14: T.Bảy | AA14: C.Nhật | AB14: T.Hai | AC14: T.Ba | AD14: T.Tư | AE14: T.Năm | AF14: T.Sáu | AG14: T.Bảy | AH14: =IF(AH13="","",CHOOSE(WEEKDAY(AH13),"C.Nhật","T.Hai","T.Ba","T.Tư","T.Năm","T.Sáu","T.Bảy")) -> C.Nhật | AI14: =IF(AI13="","",CHOOSE(WEEKDAY(AI13),"C.Nhật","T.Hai","T.Ba","T.Tư","T.Năm","T.Sáu","T.Bảy")) -> T.Hai | AJ14: T.Ba
C15: =SUBTOTAL(3,$D$15:D15) -> 1 | D15: ='Danh muc nhan vien'!E12 -> Trần Văn Tám | E15: =IFERROR(VLOOKUP(D15,'Danh muc nhan vien'!$E$12:$BY$42,2,0),"") -> Giám Đốc | AK15: =COUNTIF($F15:$AJ15,AK$13) -> 0 | AL15: =COUNTIF($F15:$AJ15,AL$13) -> 0 | AM15: 0 | AN15: 0 | AO15: 0 | AP15: =AK15*1+AL15*0.5+AM15*1 -> 0 | AQ15: =IF(E15="","",IF(OR(VLOOKUP(D15,DSNV,5,0)<1,VLOOKUP(D15,DSNV,5,0)>eomonth8),"","Đã nghỉ")) ->  | BB15: =IF(AND(VLOOKUP(D15,DSNV,5,0)>1,$F$13>VLOOKUP(D15,DSNV,5,0)),"",IF(SUM(AK15:AP15)<$E$6,"x","")) -> x
C16: =SUBTOTAL(3,$D$15:D16) -> 2 | D16: ='Danh muc nhan vien'!E13 -> Đặng Văn Thành | E16: =IFERROR(VLOOKUP(D16,'Danh muc nhan vien'!$E$12:$BY$42,2,0),"") -> Phó GĐ | AK16: =COUNTIF($F16:$AJ16,AK$13) -> 0 | AL16: 0 | AM16: 0 | AN16: 0 | AO16: 0 | AP16: =AK16*1+AL16*0.5+AM16*1 -> 0 | BB16: x
C17: =SUBTOTAL(3,$D$15:D17) -> 3 | D17: ='Danh muc nhan vien'!E14 -> Đặng Thành Tâm | E17: =IFERROR(VLOOKUP(D17,'Danh muc nhan vien'!$E$12:$BY$42,2,0),"") -> KTT | AK17: 0 | AL17: 0 | AM17: 0 | AN17: 0 | AO17: 0 | AP17: 0 | BB17: x
C18: =SUBTOTAL(3,$D$15:D18) -> 4 | D18: ='Danh muc nhan vien'!E15 -> Đoàn Văn Cường | E18: =IFERROR(VLOOKUP(D18,'Danh muc nhan vien'!$E$12:$BY$42,2,0),"") -> TP Kinh Doanh | AK18: 0 | AL18: 0 | AM18: 0 | AN18: 0 | AO18: 0 | AP18: 0 | BB18: x
C19: =SUBTOTAL(3,$D$15:D19) -> 5 | D19: ='Danh muc nhan vien'!E16 -> Hồ Phương Lanh | E19: =IFERROR(VLOOKUP(D19,'Danh muc nhan vien'!$E$12:$BY$42,2,0),"") -> KT Tổng hợp | AK19: 0 | AL19: 0 | AM19: 0 | AN19: 0 | AO19: 0 | AP19: 0 | BB19: x
C20: =SUBTOTAL(3,$D$15:D20) -> 6 | D20: ='Danh muc nhan vien'!E17 -> Huỳnh Tùng Lâm | E20: =IFERROR(VLOOKUP(D20,'Danh muc nhan vien'!$E$12:$BY$42,2,0),"") -> KT Viên | AK20: 0 | AL20: 0 | AM20: 0 | AN20: 0 | AO20: 0 | AP20: 0 | AQ20: Đã nghỉ
C21: =SUBTOTAL(3,$D$15:D21) -> 7 | D21: ='Danh muc nhan vien'!E18 -> Lê Đại Tài | E21: =IFERROR(VLOOKUP(D21,'Danh muc nhan vien'!$E$12:$BY$42,2,0),"") -> KT Viên | AK21: 0 | AL21: 0 | AM21: 0 | AN21: 0 | AO21: 0 | AP21: 0 | BB21: x
C22: =SUBTOTAL(3,$D$15:D22) -> 8 | D22: ='Danh muc nhan vien'!E19 -> Lâm Thị Cành | E22: =IFERROR(VLOOKUP(D22,'Danh muc nhan vien'!$E$12:$BY$42,2,0),"") -> Nhân sự | AK22: 0 | AL22: 0 | AM22: 0 | AN22: 0 | AO22: 0 | AP22: 0 | BB22: x
C23: =SUBTOTAL(3,$D$15:D23) -> 9 | D23: ='Danh muc nhan vien'!E20 -> Lê Đức Chinh | E23: =IFERROR(VLOOKUP(D23,'Danh muc nhan vien'!$E$12:$BY$42,2,0),"") -> Hành chính | AK23: 0 | AL23: 0 | AM23: 0 | AN23: 0 | AO23: 0 | AP23: 0 | AQ23: Đã nghỉ
C24: =SUBTOTAL(3,$D$15:D24) -> 10 | D24: ='Danh muc nhan vien'!E21 -> Lê Văn Liêm | E24: =IFERROR(VLOOKUP(D24,'Danh muc nhan vien'!$E$12:$BY$42,2,0),"") -> Marketing | AK24: 0 | AL24: 0 | AM24: 0 | AN24: 0 | AO24: 0 | AP24: 0 | BB24: x
C25: =SUBTOTAL(3,$D$15:D25) -> 11 | D25: ='Danh muc nhan vien'!E22 -> Nguyễn Chí Thanh | E25: =IFERROR(VLOOKUP(D25,'Danh muc nhan vien'!$E$12:$BY$42,2,0),"") -> NV Kinh Doanh | AK25: 0 | AL25: 0 | AM25: 0 | AN25: 0 | AO25: 0 | AP25: 0 | BB25: x
C26: =SUBTOTAL(3,$D$15:D26) -> 12 | D26: ='Danh muc nhan vien'!E23 -> Nguyễn Hoàng Tính | E26: =IFERROR(VLOOKUP(D26,'Danh muc nhan vien'!$E$12:$BY$42,2,0),"") -> NV Kinh Doanh | AK26: 0 | AL26: 0 | AM26: 0 | AN26: 0 | AO26: 0 | AP26: 0 | AQ26: Đã nghỉ
C27: =SUBTOTAL(3,$D$15:D27) -> 13 | D27: ='Danh muc nhan vien'!E24 -> Nguyễn Văn Hân | E27: =IFERROR(VLOOKUP(D27,'Danh muc nhan vien'!$E$12:$BY$42,2,0),"") -> NV Kinh Doanh | AK27: 0 | AL27: 0 | AM27: 0 | AN27: 0 | AO27: 0 | AP27: 0 | BB27: x
C28: =SUBTOTAL(3,$D$15:D28) -> 14 | D28: ='Danh muc nhan vien'!E25 -> Phạm Hoài An | E28: =IFERROR(VLOOKUP(D28,'Danh muc nhan vien'!$E$12:$BY$42,2,0),"") -> NV Kinh Doanh | AK28: 0 | AL28: 0 | AM28: 0 | AN28: 0 | AO28: 0 | AP28: 0 | BB28: x
C29: =SUBTOTAL(3,$D$15:D29) -> 15 | D29: ='Danh muc nhan vien'!E26 -> 0 | E29: =IFERROR(VLOOKUP(D29,'Danh muc nhan vien'!$E$12:$BY$42,2,0),"") ->  | AK29: 0 | AL29: 0 | AM29: 0 | AN29: 0 | AO29: 0 | AP29: 0
C30: =SUBTOTAL(3,$D$15:D30) -> 16 | D30: ='Danh muc nhan vien'!E27 -> 0 | E30: =IFERROR(VLOOKUP(D30,'Danh muc nhan vien'!$E$12:$BY$42,2,0),"") ->  | AK30: 0 | AL30: 0 | AM30: 0 | AN30: 0 | AO30: 0 | AP30: 0
C31: =SUBTOTAL(3,$D$15:D31) -> 17 | D31: ='Danh muc nhan vien'!E28 -> 0 | E31: =IFERROR(VLOOKUP(D31,'Danh muc nhan vien'!$E$12:$BY$42,2,0),"") ->  | AK31: 0 | AL31: 0 | AM31: 0 | AN31: 0 | AO31: 0 | AP31: 0
C32: =SUBTOTAL(3,$D$15:D32) -> 18 | D32: ='Danh muc nhan vien'!E29 -> 0 | E32: =IFERROR(VLOOKUP(D32,'Danh muc nhan vien'!$E$12:$BY$42,2,0),"") ->  | AK32: =COUNTIF($F32:$AJ32,AK$13) -> 0 | AL32: 0 | AM32: 0 | AN32: 0 | AO32: 0 | AP32: 0
C33: =SUBTOTAL(3,$D$15:D33) -> 19 | D33: ='Danh muc nhan vien'!E30 -> 0 | E33: =IFERROR(VLOOKUP(D33,'Danh muc nhan vien'!$E$12:$BY$42,2,0),"") ->  | AK33: 0 | AL33: 0 | AM33: 0 | AN33: 0 | AO33: 0 | AP33: 0
C34: =SUBTOTAL(3,$D$15:D34) -> 20 | D34: ='Danh muc nhan vien'!E31 -> 0 | E34: =IFERROR(VLOOKUP(D34,'Danh muc nhan vien'!$E$12:$BY$42,2,0),"") ->  | AK34: 0 | AL34: 0 | AM34: 0 | AN34: 0 | AO34: 0 | AP34: 0
C35: =SUBTOTAL(3,$D$15:D35) -> 21 | D35: ='Danh muc nhan vien'!E32 -> 0 | E35: =IFERROR(VLOOKUP(D35,'Danh muc nhan vien'!$E$12:$BY$42,2,0),"") ->  | AK35: 0 | AL35: 0 | AM35: 0 | AN35: 0 | AO35: 0 | AP35: 0
C36: =SUBTOTAL(3,$D$15:D36) -> 22 | D36: ='Danh muc nhan vien'!E33 -> 0 | E36: =IFERROR(VLOOKUP(D36,'Danh muc nhan vien'!$E$12:$BY$42,2,0),"") ->  | AK36: 0 | AL36: 0 | AM36: 0 | AN36: 0 | AO36: 0 | AP36: 0
C37: =SUBTOTAL(3,$D$15:D37) -> 23 | D37: ='Danh muc nhan vien'!E34 -> 0 | E37: =IFERROR(VLOOKUP(D37,'Danh muc nhan vien'!$E$12:$BY$42,2,0),"") ->  | AK37: 0 | AL37: 0 | AM37: 0 | AN37: 0 | AO37: 0 | AP37: 0
C38: =SUBTOTAL(3,$D$15:D38) -> 24 | D38: ='Danh muc nhan vien'!E35 -> 0 | E38: =IFERROR(VLOOKUP(D38,'Danh muc nhan vien'!$E$12:$BY$42,2,0),"") ->  | AK38: 0 | AL38: 0 | AM38: 0 | AN38: 0 | AO38: 0 | AP38: 0
C39: =SUBTOTAL(3,$D$15:D39) -> 25 | D39: ='Danh muc nhan vien'!E36 -> 0 | E39: =IFERROR(VLOOKUP(D39,'Danh muc nhan vien'!$E$12:$BY$42,2,0),"") ->  | AK39: 0 | AL39: 0 | AM39: 0 | AN39: 0 | AO39: 0 | AP39: 0
C40: =SUBTOTAL(3,$D$15:D40) -> 26 | D40: ='Danh muc nhan vien'!E37 -> 0 | E40: =IFERROR(VLOOKUP(D40,'Danh muc nhan vien'!$E$12:$BY$42,2,0),"") ->  | AK40: 0 | AL40: 0 | AM40: 0 | AN40: 0 | AO40: 0 | AP40: 0
C41: =SUBTOTAL(3,$D$15:D41) -> 27 | D41: ='Danh muc nhan vien'!E38 -> 0 | E41: =IFERROR(VLOOKUP(D41,'Danh muc nhan vien'!$E$12:$BY$42,2,0),"") ->  | AK41: 0 | AL41: 0 | AM41: 0 | AN41: 0 | AO41: 0 | AP41: 0
C42: =SUBTOTAL(3,$D$15:D42) -> 28 | D42: ='Danh muc nhan vien'!E39 -> 0 | E42: =IFERROR(VLOOKUP(D42,'Danh muc nhan vien'!$E$12:$BY$42,2,0),"") ->  | AK42: 0 | AL42: 0 | AM42: 0 | AN42: 0 | AO42: 0 | AP42: 0
C43: =SUBTOTAL(3,$D$15:D43) -> 29 | D43: ='Danh muc nhan vien'!E40 -> 0 | E43: =IFERROR(VLOOKUP(D43,'Danh muc nhan vien'!$E$12:$BY$42,2,0),"") ->  | AK43: 0 | AL43: 0 | AM43: 0 | AN43: 0 | AO43: 0 | AP43: 0
C44: =SUBTOTAL(3,$D$15:D44) -> 30 | D44: ='Danh muc nhan vien'!E41 -> 0 | E44: =IFERROR(VLOOKUP(D44,'Danh muc nhan vien'!$E$12:$BY$42,2,0),"") ->  | AK44: 0 | AL44: 0 | AM44: 0 | AN44: 0 | AO44: 0 | AP44: 0
C46: . | D46: . | E46: . | F46: . | G46: . | H46: . | I46: . | J46: . | K46: . | L46: . | M46: . | N46: . | O46: . | P46: . | Q46: . | R46: . | S46: . | T46: . | U46: . | V46: . | W46: . | X46: . | Y46: . | Z46: . | AA46: . | AB46: . | AC46: . | AD46: . | AE46: . | AF46: . | AG46: . | AH46: . | AI46: . | AJ46: . | AK46: . | AL46: . | AM46: . | AN46: . | AO46: . | AP46: . | AQ46: .
AH48: ="Ngày …….. Tháng …….. Năm "&year -> Ngày …….. Tháng …….. Năm 2021
D49: NGƯỜI CHẤM CÔNG | T49: PHỤ TRÁCH BỘ PHẬN | AH49: THỦ TRƯỞNG ĐƠN VỊ
D50: (Ký tên) | T50: (Ký tên) | AH50: (Ký tên)
D55: =Chamcong -> Vũ Trình B | T55: =phutrach -> Nguyễn Linh A | AH55: =Giamdoc -> Mr. Trường

Sheet T9
C6: Số ngày làm việc: | E6: =VLOOKUP(m.sep,ngaycong,2,0) -> 26 | H6: << | K6: >> | AE6: =DATEVALUE("1/9/"&year) -> 2021-01-09 | AK6: FALSE
C8: =Setup!F10 -> Công ty TNHH Webkynang Việt Nam | CJ8: =VALUE(MID(F10,8,1)) -> 9
C9: =Setup!D11&" "&Setup!F11 -> Địa chỉ: Tầng 6, Tòa nhà Sannam, Duy Tân, Cầu Giấy, Hà Nội | F9: BẢNG CHẤM CÔNG
F10: ="Tháng 9 năm "&year -> Tháng 9 năm 2021
G11: =F13+1 -> 2021-09-02 | H11: =G11+1 -> 2021-09-03 | I11: =H11+1 -> 2021-09-04 | J11: 2021-09-05 | K11: 2021-09-06 | L11: 2021-09-07 | M11: 2021-09-08 | N11: 2021-09-09 | O11: 2021-09-10 | P11: 2021-09-11 | Q11: 2021-09-12 | R11: 2021-09-13 | S11: 2021-09-14 | T11: 2021-09-15 | U11: 2021-09-16 | V11: 2021-09-17 | W11: 2021-09-18 | X11: 2021-09-19 | Y11: 2021-09-20 | Z11: 2021-09-21 | AA11: 2021-09-22 | AB11: 2021-09-23 | AC11: 2021-09-24 | AD11: 2021-09-25 | AE11: 2021-09-26 | AF11: 2021-09-27 | AG11: 2021-09-28 | AH11: 2021-09-29 | AI11: 2021-09-30 | AJ11: 2021-10-01
C12: SỐ TT | D12: HỌ VÀ TÊN | E12: CHỨC VỤ | F12: NGÀY TRONG THÁNG/ THỨ TRONG TUẦN | AK12: TỔNG | AQ12: GHI CHÚ
F13: =DATE(year,m.sep,1) -> 2021-09-01 | G13: =IF(MONTH(G11)>m.sep,"",G11) -> 2021-09-02 | H13: 2021-09-03 | I13: 2021-09-04 | J13: 2021-09-05 | K13: 2021-09-06 | L13: 2021-09-07 | M13: 2021-09-08 | N13: 2021-09-09 | O13: 2021-09-10 | P13: 2021-09-11 | Q13: 2021-09-12 | R13: 2021-09-13 | S13: 2021-09-14 | T13: 2021-09-15 | U13: 2021-09-16 | V13: 2021-09-17 | W13: 2021-09-18 | X13: 2021-09-19 | Y13: 2021-09-20 | Z13: 2021-09-21 | AA13: 2021-09-22 | AB13: 2021-09-23 | AC13: 2021-09-24 | AD13: 2021-09-25 | AE13: 2021-09-26 | AF13: 2021-09-27 | AG13: 2021-09-28 | AH13: 2021-09-29 | AI13: 2021-09-30 | AK13: =macong1 -> x | AL13: =macong2 -> x2 | AM13: =macong3 -> NC | AN13: =macong4 -> NO | AO13: =macong5 -> 00:00:00 | AP13: Tổng
F14: =IF(F13="","",CHOOSE(WEEKDAY(F13),"C.Nhật","T.Hai","T.Ba","T.Tư","T.Năm","T.Sáu","T.Bảy")) -> T.Tư | G14: =IF(G13="","",CHOOSE(WEEKDAY(G13),"C.Nhật","T.Hai","T.Ba","T.Tư","T.Năm","T.Sáu","T.Bảy")) -> T.Năm | H14: T.Sáu | I14: T.Bảy | J14: C.Nhật | K14: T.Hai | L14: T.Ba | M14: T.Tư | N14: T.Năm | O14: T.Sáu | P14: T.Bảy | Q14: C.Nhật | R14: T.Hai | S14: T.Ba | T14: T.Tư | U14: T.Năm | V14: T.Sáu | W14: T.Bảy | X14: C.Nhật | Y14: T.Hai | Z14: T.Ba | AA14: T.Tư | AB14: T.Năm | AC14: T.Sáu | AD14: T.Bảy | AE14: C.Nhật | AF14: T.Hai | AG14: T.Ba | AH14: =IF(AH13="","",CHOOSE(WEEKDAY(AH13),"C.Nhật","T.Hai","T.Ba","T.Tư","T.Năm","T.Sáu","T.Bảy")) -> T.Tư | AI14: =IF(AI13="","",CHOOSE(WEEKDAY(AI13),"C.Nhật","T.Hai","T.Ba","T.Tư","T.Năm","T.Sáu","T.Bảy")) -> T.Năm
C15: =SUBTOTAL(3,$D$15:D15) -> 1 | D15: ='Danh muc nhan vien'!E12 -> Trần Văn Tám | E15: =IFERROR(VLOOKUP(D15,'Danh muc nhan vien'!$E$12:$BY$42,2,0),"") -> Giám Đốc | AK15: =COUNTIF($F15:$AJ15,AK$13) -> 0 | AL15: =COUNTIF($F15:$AJ15,AL$13) -> 0 | AM15: 0 | AN15: 0 | AO15: 0 | AP15: =AK15*1+AL15*0.5+AM15*1 -> 0 | AQ15: =IF(E15="","",IF(OR(VLOOKUP(D15,DSNV,5,0)<1,VLOOKUP(D15,DSNV,5,0)>eomonth9),"","Đã nghỉ")) ->  | BB15: =IF(AND(VLOOKUP(D15,DSNV,5,0)>1,$F$13>VLOOKUP(D15,DSNV,5,0)),"",IF(SUM(AK15:AP15)<$E$6,"x","")) -> x
C16: =SUBTOTAL(3,$D$15:D16) -> 2 | D16: ='Danh muc nhan vien'!E13 -> Đặng Văn Thành | E16: =IFERROR(VLOOKUP(D16,'Danh muc nhan vien'!$E$12:$BY$42,2,0),"") -> Phó GĐ | AK16: =COUNTIF($F16:$AJ16,AK$13) -> 0 | AL16: 0 | AM16: 0 | AN16: 0 | AO16: 0 | AP16: =AK16*1+AL16*0.5+AM16*1 -> 0 | BB16: x
C17: =SUBTOTAL(3,$D$15:D17) -> 3 | D17: ='Danh muc nhan vien'!E14 -> Đặng Thành Tâm | E17: =IFERROR(VLOOKUP(D17,'Danh muc nhan vien'!$E$12:$BY$42,2,0),"") -> KTT | AK17: 0 | AL17: 0 | AM17: 0 | AN17: 0 | AO17: 0 | AP17: 0 | BB17: x
C18: =SUBTOTAL(3,$D$15:D18) -> 4 | D18: ='Danh muc nhan vien'!E15 -> Đoàn Văn Cường | E18: =IFERROR(VLOOKUP(D18,'Danh muc nhan vien'!$E$12:$BY$42,2,0),"") -> TP Kinh Doanh | AK18: 0 | AL18: 0 | AM18: 0 | AN18: 0 | AO18: 0 | AP18: 0 | BB18: x
C19: =SUBTOTAL(3,$D$15:D19) -> 5 | D19: ='Danh muc nhan vien'!E16 -> Hồ Phương Lanh | E19: =IFERROR(VLOOKUP(D19,'Danh muc nhan vien'!$E$12:$BY$42,2,0),"") -> KT Tổng hợp | AK19: 0 | AL19: 0 | AM19: 0 | AN19: 0 | AO19: 0 | AP19: 0 | BB19: x
C20: =SUBTOTAL(3,$D$15:D20) -> 6 | D20: ='Danh muc nhan vien'!E17 -> Huỳnh Tùng Lâm | E20: =IFERROR(VLOOKUP(D20,'Danh muc nhan vien'!$E$12:$BY$42,2,0),"") -> KT Viên | AK20: 0 | AL20: 0 | AM20: 0 | AN20: 0 | AO20: 0 | AP20: 0 | AQ20: Đã nghỉ
C21: =SUBTOTAL(3,$D$15:D21) -> 7 | D21: ='Danh muc nhan vien'!E18 -> Lê Đại Tài | E21: =IFERROR(VLOOKUP(D21,'Danh muc nhan vien'!$E$12:$BY$42,2,0),"") -> KT Viên | AK21: 0 | AL21: 0 | AM21: 0 | AN21: 0 | AO21: 0 | AP21: 0 | BB21: x
C22: =SUBTOTAL(3,$D$15:D22) -> 8 | D22: ='Danh muc nhan vien'!E19 -> Lâm Thị Cành | E22: =IFERROR(VLOOKUP(D22,'Danh muc nhan vien'!$E$12:$BY$42,2,0),"") -> Nhân sự | AK22: 0 | AL22: 0 | AM22: 0 | AN22: 0 | AO22: 0 | AP22: 0 | BB22: x
C23: =SUBTOTAL(3,$D$15:D23) -> 9 | D23: ='Danh muc nhan vien'!E20 -> Lê Đức Chinh | E23: =IFERROR(VLOOKUP(D23,'Danh muc nhan vien'!$E$12:$BY$42,2,0),"") -> Hành chính | AK23: 0 | AL23: 0 | AM23: 0 | AN23: 0 | AO23: 0 | AP23: 0 | AQ23: Đã nghỉ
C24: =SUBTOTAL(3,$D$15:D24) -> 10 | D24: ='Danh muc nhan vien'!E21 -> Lê Văn Liêm | E24: =IFERROR(VLOOKUP(D24,'Danh muc nhan vien'!$E$12:$BY$42,2,0),"") -> Marketing | AK24: 0 | AL24: 0 | AM24: 0 | AN24: 0 | AO24: 0 | AP24: 0 | BB24: x
C25: =SUBTOTAL(3,$D$15:D25) -> 11 | D25: ='Danh muc nhan vien'!E22 -> Nguyễn Chí Thanh | E25: =IFERROR(VLOOKUP(D25,'Danh muc nhan vien'!$E$12:$BY$42,2,0),"") -> NV Kinh Doanh | AK25: 0 | AL25: 0 | AM25: 0 | AN25: 0 | AO25: 0 | AP25: 0 | BB25: x
C26: =SUBTOTAL(3,$D$15:D26) -> 12 | D26: ='Danh muc nhan vien'!E23 -> Nguyễn Hoàng Tính | E26: =IFERROR(VLOOKUP(D26,'Danh muc nhan vien'!$E$12:$BY$42,2,0),"") -> NV Kinh Doanh | AK26: 0 | AL26: 0 | AM26: 0 | AN26: 0 | AO26: 0 | AP26: 0 | AQ26: Đã nghỉ
C27: =SUBTOTAL(3,$D$15:D27) -> 13 | D27: ='Danh muc nhan vien'!E24 -> Nguyễn Văn Hân | E27: =IFERROR(VLOOKUP(D27,'Danh muc nhan vien'!$E$12:$BY$42,2,0),"") -> NV Kinh Doanh | AK27: 0 | AL27: 0 | AM27: 0 | AN27: 0 | AO27: 0 | AP27: 0 | BB27: x
C28: =SUBTOTAL(3,$D$15:D28) -> 14 | D28: ='Danh muc nhan vien'!E25 -> Phạm Hoài An | E28: =IFERROR(VLOOKUP(D28,'Danh muc nhan vien'!$E$12:$BY$42,2,0),"") -> NV Kinh Doanh | AK28: 0 | AL28: 0 | AM28: 0 | AN28: 0 | AO28: 0 | AP28: 0 | BB28: x
C29: =SUBTOTAL(3,$D$15:D29) -> 15 | D29: ='Danh muc nhan vien'!E26 -> 0 | E29: =IFERROR(VLOOKUP(D29,'Danh muc nhan vien'!$E$12:$BY$42,2,0),"") ->  | AK29: 0 | AL29: 0 | AM29: 0 | AN29: 0 | AO29: 0 | AP29: 0
C30: =SUBTOTAL(3,$D$15:D30) -> 16 | D30: ='Danh muc nhan vien'!E27 -> 0 | E30: =IFERROR(VLOOKUP(D30,'Danh muc nhan vien'!$E$12:$BY$42,2,0),"") ->  | AK30: 0 | AL30: 0 | AM30: 0 | AN30: 0 | AO30: 0 | AP30: 0
C31: =SUBTOTAL(3,$D$15:D31) -> 17 | D31: ='Danh muc nhan vien'!E28 -> 0 | E31: =IFERROR(VLOOKUP(D31,'Danh muc nhan vien'!$E$12:$BY$42,2,0),"") ->  | AK31: 0 | AL31: 0 | AM31: 0 | AN31: 0 | AO31: 0 | AP31: 0
C32: =SUBTOTAL(3,$D$15:D32) -> 18 | D32: ='Danh muc nhan vien'!E29 -> 0 | E32: =IFERROR(VLOOKUP(D32,'Danh muc nhan vien'!$E$12:$BY$42,2,0),"") ->  | AK32: =COUNTIF($F32:$AJ32,AK$13) -> 0 | AL32: 0 | AM32: 0 | AN32: 0 | AO32: 0 | AP32: 0
C33: =SUBTOTAL(3,$D$15:D33) -> 19 | D33: ='Danh muc nhan vien'!E30 -> 0 | E33: =IFERROR(VLOOKUP(D33,'Danh muc nhan vien'!$E$12:$BY$42,2,0),"") ->  | AK33: 0 | AL33: 0 | AM33: 0 | AN33: 0 | AO33: 0 | AP33: 0
C34: =SUBTOTAL(3,$D$15:D34) -> 20 | D34: ='Danh muc nhan vien'!E31 -> 0 | E34: =IFERROR(VLOOKUP(D34,'Danh muc nhan vien'!$E$12:$BY$42,2,0),"") ->  | AK34: 0 | AL34: 0 | AM34: 0 | AN34: 0 | AO34: 0 | AP34: 0
C35: =SUBTOTAL(3,$D$15:D35) -> 21 | D35: ='Danh muc nhan vien'!E32 -> 0 | E35: =IFERROR(VLOOKUP(D35,'Danh muc nhan vien'!$E$12:$BY$42,2,0),"") ->  | AK35: 0 | AL35: 0 | AM35: 0 | AN35: 0 | AO35: 0 | AP35: 0
C36: =SUBTOTAL(3,$D$15:D36) -> 22 | D36: ='Danh muc nhan vien'!E33 -> 0 | E36: =IFERROR(VLOOKUP(D36,'Danh muc nhan vien'!$E$12:$BY$42,2,0),"") ->  | AK36: 0 | AL36: 0 | AM36: 0 | AN36: 0 | AO36: 0 | AP36: 0
C37: =SUBTOTAL(3,$D$15:D37) -> 23 | D37: ='Danh muc nhan vien'!E34 -> 0 | E37: =IFERROR(VLOOKUP(D37,'Danh muc nhan vien'!$E$12:$BY$42,2,0),"") ->  | AK37: 0 | AL37: 0 | AM37: 0 | AN37: 0 | AO37: 0 | AP37: 0
C38: =SUBTOTAL(3,$D$15:D38) -> 24 | D38: ='Danh muc nhan vien'!E35 -> 0 | E38: =IFERROR(VLOOKUP(D38,'Danh muc nhan vien'!$E$12:$BY$42,2,0),"") ->  | AK38: 0 | AL38: 0 | AM38: 0 | AN38: 0 | AO38: 0 | AP38: 0
C39: =SUBTOTAL(3,$D$15:D39) -> 25 | D39: ='Danh muc nhan vien'!E36 -> 0 | E39: =IFERROR(VLOOKUP(D39,'Danh muc nhan vien'!$E$12:$BY$42,2,0),"") ->  | AK39: 0 | AL39: 0 | AM39: 0 | AN39: 0 | AO39: 0 | AP39: 0
C40: =SUBTOTAL(3,$D$15:D40) -> 26 | D40: ='Danh muc nhan vien'!E37 -> 0 | E40: =IFERROR(VLOOKUP(D40,'Danh muc nhan vien'!$E$12:$BY$42,2,0),"") ->  | AK40: 0 | AL40: 0 | AM40: 0 | AN40: 0 | AO40: 0 | AP40: 0
C41: =SUBTOTAL(3,$D$15:D41) -> 27 | D41: ='Danh muc nhan vien'!E38 -> 0 | E41: =IFERROR(VLOOKUP(D41,'Danh muc nhan vien'!$E$12:$BY$42,2,0),"") ->  | AK41: 0 | AL41: 0 | AM41: 0 | AN41: 0 | AO41: 0 | AP41: 0
C42: =SUBTOTAL(3,$D$15:D42) -> 28 | D42: ='Danh muc nhan vien'!E39 -> 0 | E42: =IFERROR(VLOOKUP(D42,'Danh muc nhan vien'!$E$12:$BY$42,2,0),"") ->  | AK42: 0 | AL42: 0 | AM42: 0 | AN42: 0 | AO42: 0 | AP42: 0
C43: =SUBTOTAL(3,$D$15:D43) -> 29 | D43: ='Danh muc nhan vien'!E40 -> 0 | E43: =IFERROR(VLOOKUP(D43,'Danh muc nhan vien'!$E$12:$BY$42,2,0),"") ->  | AK43: 0 | AL43: 0 | AM43: 0 | AN43: 0 | AO43: 0 | AP43: 0
C44: =SUBTOTAL(3,$D$15:D44) -> 30 | D44: ='Danh muc nhan vien'!E41 -> 0 | E44: =IFERROR(VLOOKUP(D44,'Danh muc nhan vien'!$E$12:$BY$42,2,0),"") ->  | AK44: 0 | AL44: 0 | AM44: 0 | AN44: 0 | AO44: 0 | AP44: 0
C46: . | D46: . | E46: . | F46: . | G46: . | H46: . | I46: . | J46: . | K46: . | L46: . | M46: . | N46: . | O46: . | P46: . | Q46: . | R46: . | S46: . | T46: . | U46: . | V46: . | W46: . | X46: . | Y46: . | Z46: . | AA46: . | AB46: . | AC46: . | AD46: . | AE46: . | AF46: . | AG46: . | AH46: . | AI46: . | AJ46: . | AK46: . | AL46: . | AM46: . | AN46: . | AO46: . | AP46: . | AQ46: .
AH48: ="Ngày …….. Tháng …….. Năm "&year -> Ngày …….. Tháng …….. Năm 2021
D49: NGƯỜI CHẤM CÔNG | T49: PHỤ TRÁCH BỘ PHẬN | AH49: THỦ TRƯỞNG ĐƠN VỊ
D50: (Ký tên) | T50: (Ký tên) | AH50: (Ký tên)
D55: =Chamcong -> Vũ Trình B | T55: =phutrach -> Nguyễn Linh A | AH55: =Giamdoc -> Mr. Trường

Sheet T10
C6: Số ngày làm việc: | E6: =VLOOKUP(m.oct,ngaycong,2,0) -> 26 | H6: << | K6: >> | AE6: =DATEVALUE("1/10/"&year) -> 2021-01-10 | AK6: FALSE
C8: =Setup!F10 -> Công ty TNHH Webkynang Việt Nam | CJ8: =VALUE(MID(F10,8,2)) -> 10
C9: =Setup!D11&" "&Setup!F11 -> Địa chỉ: Tầng 6, Tòa nhà Sannam, Duy Tân, Cầu Giấy, Hà Nội | F9: BẢNG CHẤM CÔNG
F10: ="Tháng 10 năm "&year -> Tháng 10 năm 2021
G11: =F13+1 -> 2021-10-02 | H11: =G11+1 -> 2021-10-03 | I11: =H11+1 -> 2021-10-04 | J11: 2021-10-05 | K11: 2021-10-06 | L11: 2021-10-07 | M11: 2021-10-08 | N11: 2021-10-09 | O11: 2021-10-10 | P11: 2021-10-11 | Q11: 2021-10-12 | R11: 2021-10-13 | S11: 2021-10-14 | T11: 2021-10-15 | U11: 2021-10-16 | V11: 2021-10-17 | W11: 2021-10-18 | X11: 2021-10-19 | Y11: 2021-10-20 | Z11: 2021-10-21 | AA11: 2021-10-22 | AB11: 2021-10-23 | AC11: 2021-10-24 | AD11: 2021-10-25 | AE11: 2021-10-26 | AF11: 2021-10-27 | AG11: 2021-10-28 | AH11: 2021-10-29 | AI11: 2021-10-30 | AJ11: 2021-10-31
C12: SỐ TT | D12: HỌ VÀ TÊN | E12: CHỨC VỤ | F12: NGÀY TRONG THÁNG/ THỨ TRONG TUẦN | AK12: TỔNG | AQ12: GHI CHÚ
F13: =DATE(year,m.oct,1) -> 2021-10-01 | G13: =IF(MONTH(G11)>m.oct,"",G11) -> 2021-10-02 | H13: 2021-10-03 | I13: 2021-10-04 | J13: 2021-10-05 | K13: 2021-10-06 | L13: 2021-10-07 | M13: 2021-10-08 | N13: 2021-10-09 | O13: 2021-10-10 | P13: 2021-10-11 | Q13: 2021-10-12 | R13: 2021-10-13 | S13: 2021-10-14 | T13: 2021-10-15 | U13: 2021-10-16 | V13: 2021-10-17 | W13: 2021-10-18 | X13: 2021-10-19 | Y13: 2021-10-20 | Z13: 2021-10-21 | AA13: 2021-10-22 | AB13: 2021-10-23 | AC13: 2021-10-24 | AD13: 2021-10-25 | AE13: 2021-10-26 | AF13: 2021-10-27 | AG13: 2021-10-28 | AH13: 2021-10-29 | AI13: 2021-10-30 | AJ13: 2021-10-31 | AK13: =macong1 -> x | AL13: =macong2 -> x2 | AM13: =macong3 -> NC | AN13: =macong4 -> NO | AO13: =macong5 -> 00:00:00 | AP13: Tổng
F14: =IF(F13="","",CHOOSE(WEEKDAY(F13),"C.Nhật","T.Hai","T.Ba","T.Tư","T.Năm","T.Sáu","T.Bảy")) -> T.Sáu | G14: =IF(G13="","",CHOOSE(WEEKDAY(G13),"C.Nhật","T.Hai","T.Ba","T.Tư","T.Năm","T.Sáu","T.Bảy")) -> T.Bảy | H14: C.Nhật | I14: T.Hai | J14: T.Ba | K14: T.Tư | L14: T.Năm | M14: T.Sáu | N14: T.Bảy | O14: C.Nhật | P14: T.Hai | Q14: T.Ba | R14: T.Tư | S14: T.Năm | T14: T.Sáu | U14: T.Bảy | V14: C.Nhật | W14: T.Hai | X14: T.Ba | Y14: T.Tư | Z14: T.Năm | AA14: T.Sáu | AB14: T.Bảy | AC14: C.Nhật | AD14: T.Hai | AE14: T.Ba | AF14: T.Tư | AG14: T.Năm | AH14: =IF(AH13="","",CHOOSE(WEEKDAY(AH13),"C.Nhật","T.Hai","T.Ba","T.Tư","T.Năm","T.Sáu","T.Bảy")) -> T.Sáu | AI14: =IF(AI13="","",CHOOSE(WEEKDAY(AI13),"C.Nhật","T.Hai","T.Ba","T.Tư","T.Năm","T.Sáu","T.Bảy")) -> T.Bảy | AJ14: C.Nhật
C15: =SUBTOTAL(3,$D$15:D15) -> 1 | D15: ='Danh muc nhan vien'!E12 -> Trần Văn Tám | E15: =IFERROR(VLOOKUP(D15,'Danh muc nhan vien'!$E$12:$BY$42,2,0),"") -> Giám Đốc | AK15: =COUNTIF($F15:$AJ15,AK$13) -> 0 | AL15: =COUNTIF($F15:$AJ15,AL$13) -> 0 | AM15: 0 | AN15: 0 | AO15: 0 | AP15: =AK15*1+AL15*0.5+AM15*1 -> 0 | AQ15: =IF(E15="","",IF(OR(VLOOKUP(D15,DSNV,5,0)<1,VLOOKUP(D15,DSNV,5,0)>eomonth10),"","Đã nghỉ")) ->  | BB15: =IF(AND(VLOOKUP(D15,DSNV,5,0)>1,$F$13>VLOOKUP(D15,DSNV,5,0)),"",IF(SUM(AK15:AP15)<$E$6,"x","")) -> x
C16: =SUBTOTAL(3,$D$15:D16) -> 2 | D16: ='Danh muc nhan vien'!E13 -> Đặng Văn Thành | E16: =IFERROR(VLOOKUP(D16,'Danh muc nhan vien'!$E$12:$BY$42,2,0),"") -> Phó GĐ | AK16: =COUNTIF($F16:$AJ16,AK$13) -> 0 | AL16: 0 | AM16: 0 | AN16: 0 | AO16: 0 | AP16: =AK16*1+AL16*0.5+AM16*1 -> 0 | BB16: x
C17: =SUBTOTAL(3,$D$15:D17) -> 3 | D17: ='Danh muc nhan vien'!E14 -> Đặng Thành Tâm | E17: =IFERROR(VLOOKUP(D17,'Danh muc nhan vien'!$E$12:$BY$42,2,0),"") -> KTT | AK17: 0 | AL17: 0 | AM17: 0 | AN17: 0 | AO17: 0 | AP17: 0 | BB17: x
C18: =SUBTOTAL(3,$D$15:D18) -> 4 | D18: ='Danh muc nhan vien'!E15 -> Đoàn Văn Cường | E18: =IFERROR(VLOOKUP(D18,'Danh muc nhan vien'!$E$12:$BY$42,2,0),"") -> TP Kinh Doanh | AK18: 0 | AL18: 0 | AM18: 0 | AN18: 0 | AO18: 0 | AP18: 0 | BB18: x
C19: =SUBTOTAL(3,$D$15:D19) -> 5 | D19: ='Danh muc nhan vien'!E16 -> Hồ Phương Lanh | E19: =IFERROR(VLOOKUP(D19,'Danh muc nhan vien'!$E$12:$BY$42,2,0),"") -> KT Tổng hợp | AK19: 0 | AL19: 0 | AM19: 0 | AN19: 0 | AO19: 0 | AP19: 0 | BB19: x
C20: =SUBTOTAL(3,$D$15:D20) -> 6 | D20: ='Danh muc nhan vien'!E17 -> Huỳnh Tùng Lâm | E20: =IFERROR(VLOOKUP(D20,'Danh muc nhan vien'!$E$12:$BY$42,2,0),"") -> KT Viên | AK20: 0 | AL20: 0 | AM20: 0 | AN20: 0 | AO20: 0 | AP20: 0 | AQ20: Đã nghỉ
C21: =SUBTOTAL(3,$D$15:D21) -> 7 | D21: ='Danh muc nhan vien'!E18 -> Lê Đại Tài | E21: =IFERROR(VLOOKUP(D21,'Danh muc nhan vien'!$E$12:$BY$42,2,0),"") -> KT Viên | AK21: 0 | AL21: 0 | AM21: 0 | AN21: 0 | AO21: 0 | AP21: 0 | BB21: x
C22: =SUBTOTAL(3,$D$15:D22) -> 8 | D22: ='Danh muc nhan vien'!E19 -> Lâm Thị Cành | E22: =IFERROR(VLOOKUP(D22,'Danh muc nhan vien'!$E$12:$BY$42,2,0),"") -> Nhân sự | AK22: 0 | AL22: 0 | AM22: 0 | AN22: 0 | AO22: 0 | AP22: 0 | BB22: x
C23: =SUBTOTAL(3,$D$15:D23) -> 9 | D23: ='Danh muc nhan vien'!E20 -> Lê Đức Chinh | E23: =IFERROR(VLOOKUP(D23,'Danh muc nhan vien'!$E$12:$BY$42,2,0),"") -> Hành chính | AK23: 0 | AL23: 0 | AM23: 0 | AN23: 0 | AO23: 0 | AP23: 0 | AQ23: Đã nghỉ
C24: =SUBTOTAL(3,$D$15:D24) -> 10 | D24: ='Danh muc nhan vien'!E21 -> Lê Văn Liêm | E24: =IFERROR(VLOOKUP(D24,'Danh muc nhan vien'!$E$12:$BY$42,2,0),"") -> Marketing | AK24: 0 | AL24: 0 | AM24: 0 | AN24: 0 | AO24: 0 | AP24: 0 | BB24: x
C25: =SUBTOTAL(3,$D$15:D25) -> 11 | D25: ='Danh muc nhan vien'!E22 -> Nguyễn Chí Thanh | E25: =IFERROR(VLOOKUP(D25,'Danh muc nhan vien'!$E$12:$BY$42,2,0),"") -> NV Kinh Doanh | AK25: 0 | AL25: 0 | AM25: 0 | AN25: 0 | AO25: 0 | AP25: 0 | BB25: x
C26: =SUBTOTAL(3,$D$15:D26) -> 12 | D26: ='Danh muc nhan vien'!E23 -> Nguyễn Hoàng Tính | E26: =IFERROR(VLOOKUP(D26,'Danh muc nhan vien'!$E$12:$BY$42,2,0),"") -> NV Kinh Doanh | AK26: 0 | AL26: 0 | AM26: 0 | AN26: 0 | AO26: 0 | AP26: 0 | AQ26: Đã nghỉ
C27: =SUBTOTAL(3,$D$15:D27) -> 13 | D27: ='Danh muc nhan vien'!E24 -> Nguyễn Văn Hân | E27: =IFERROR(VLOOKUP(D27,'Danh muc nhan vien'!$E$12:$BY$42,2,0),"") -> NV Kinh Doanh | AK27: 0 | AL27: 0 | AM27: 0 | AN27: 0 | AO27: 0 | AP27: 0 | BB27: x
C28: =SUBTOTAL(3,$D$15:D28) -> 14 | D28: ='Danh muc nhan vien'!E25 -> Phạm Hoài An | E28: =IFERROR(VLOOKUP(D28,'Danh muc nhan vien'!$E$12:$BY$42,2,0),"") -> NV Kinh Doanh | AK28: 0 | AL28: 0 | AM28: 0 | AN28: 0 | AO28: 0 | AP28: 0 | BB28: x
C29: =SUBTOTAL(3,$D$15:D29) -> 15 | D29: ='Danh muc nhan vien'!E26 -> 0 | E29: =IFERROR(VLOOKUP(D29,'Danh muc nhan vien'!$E$12:$BY$42,2,0),"") ->  | AK29: 0 | AL29: 0 | AM29: 0 | AN29: 0 | AO29: 0 | AP29: 0
C30: =SUBTOTAL(3,$D$15:D30) -> 16 | D30: ='Danh muc nhan vien'!E27 -> 0 | E30: =IFERROR(VLOOKUP(D30,'Danh muc nhan vien'!$E$12:$BY$42,2,0),"") ->  | AK30: 0 | AL30: 0 | AM30: 0 | AN30: 0 | AO30: 0 | AP30: 0
C31: =SUBTOTAL(3,$D$15:D31) -> 17 | D31: ='Danh muc nhan vien'!E28 -> 0 | E31: =IFERROR(VLOOKUP(D31,'Danh muc nhan vien'!$E$12:$BY$42,2,0),"") ->  | AK31: 0 | AL31: 0 | AM31: 0 | AN31: 0 | AO31: 0 | AP31: 0
C32: =SUBTOTAL(3,$D$15:D32) -> 18 | D32: ='Danh muc nhan vien'!E29 -> 0 | E32: =IFERROR(VLOOKUP(D32,'Danh muc nhan vien'!$E$12:$BY$42,2,0),"") ->  | AK32: =COUNTIF($F32:$AJ32,AK$13) -> 0 | AL32: 0 | AM32: 0 | AN32: 0 | AO32: 0 | AP32: 0
C33: =SUBTOTAL(3,$D$15:D33) -> 19 | D33: ='Danh muc nhan vien'!E30 -> 0 | E33: =IFERROR(VLOOKUP(D33,'Danh muc nhan vien'!$E$12:$BY$42,2,0),"") ->  | AK33: 0 | AL33: 0 | AM33: 0 | AN33: 0 | AO33: 0 | AP33: 0
C34: =SUBTOTAL(3,$D$15:D34) -> 20 | D34: ='Danh muc nhan vien'!E31 -> 0 | E34: =IFERROR(VLOOKUP(D34,'Danh muc nhan vien'!$E$12:$BY$42,2,0),"") ->  | AK34: 0 | AL34: 0 | AM34: 0 | AN34: 0 | AO34: 0 | AP34: 0
C35: =SUBTOTAL(3,$D$15:D35) -> 21 | D35: ='Danh muc nhan vien'!E32 -> 0 | E35: =IFERROR(VLOOKUP(D35,'Danh muc nhan vien'!$E$12:$BY$42,2,0),"") ->  | AK35: 0 | AL35: 0 | AM35: 0 | AN35: 0 | AO35: 0 | AP35: 0
C36: =SUBTOTAL(3,$D$15:D36) -> 22 | D36: ='Danh muc nhan vien'!E33 -> 0 | E36: =IFERROR(VLOOKUP(D36,'Danh muc nhan vien'!$E$12:$BY$42,2,0),"") ->  | AK36: 0 | AL36: 0 | AM36: 0 | AN36: 0 | AO36: 0 | AP36: 0
C37: =SUBTOTAL(3,$D$15:D37) -> 23 | D37: ='Danh muc nhan vien'!E34 -> 0 | E37: =IFERROR(VLOOKUP(D37,'Danh muc nhan vien'!$E$12:$BY$42,2,0),"") ->  | AK37: 0 | AL37: 0 | AM37: 0 | AN37: 0 | AO37: 0 | AP37: 0
C38: =SUBTOTAL(3,$D$15:D38) -> 24 | D38: ='Danh muc nhan vien'!E35 -> 0 | E38: =IFERROR(VLOOKUP(D38,'Danh muc nhan vien'!$E$12:$BY$42,2,0),"") ->  | AK38: 0 | AL38: 0 | AM38: 0 | AN38: 0 | AO38: 0 | AP38: 0
C39: =SUBTOTAL(3,$D$15:D39) -> 25 | D39: ='Danh muc nhan vien'!E36 -> 0 | E39: =IFERROR(VLOOKUP(D39,'Danh muc nhan vien'!$E$12:$BY$42,2,0),"") ->  | AK39: 0 | AL39: 0 | AM39: 0 | AN39: 0 | AO39: 0 | AP39: 0
C40: =SUBTOTAL(3,$D$15:D40) -> 26 | D40: ='Danh muc nhan vien'!E37 -> 0 | E40: =IFERROR(VLOOKUP(D40,'Danh muc nhan vien'!$E$12:$BY$42,2,0),"") ->  | AK40: 0 | AL40: 0 | AM40: 0 | AN40: 0 | AO40: 0 | AP40: 0
C41: =SUBTOTAL(3,$D$15:D41) -> 27 | D41: ='Danh muc nhan vien'!E38 -> 0 | E41: =IFERROR(VLOOKUP(D41,'Danh muc nhan vien'!$E$12:$BY$42,2,0),"") ->  | AK41: 0 | AL41: 0 | AM41: 0 | AN41: 0 | AO41: 0 | AP41: 0
C42: =SUBTOTAL(3,$D$15:D42) -> 28 | D42: ='Danh muc nhan vien'!E39 -> 0 | E42: =IFERROR(VLOOKUP(D42,'Danh muc nhan vien'!$E$12:$BY$42,2,0),"") ->  | AK42: 0 | AL42: 0 | AM42: 0 | AN42: 0 | AO42: 0 | AP42: 0
C43: =SUBTOTAL(3,$D$15:D43) -> 29 | D43: ='Danh muc nhan vien'!E40 -> 0 | E43: =IFERROR(VLOOKUP(D43,'Danh muc nhan vien'!$E$12:$BY$42,2,0),"") ->  | AK43: 0 | AL43: 0 | AM43: 0 | AN43: 0 | AO43: 0 | AP43: 0
C44: =SUBTOTAL(3,$D$15:D44) -> 30 | D44: ='Danh muc nhan vien'!E41 -> 0 | E44: =IFERROR(VLOOKUP(D44,'Danh muc nhan vien'!$E$12:$BY$42,2,0),"") ->  | AK44: 0 | AL44: 0 | AM44: 0 | AN44: 0 | AO44: 0 | AP44: 0
C46: . | D46: . | E46: . | F46: . | G46: . | H46: . | I46: . | J46: . | K46: . | L46: . | M46: . | N46: . | O46: . | P46: . | Q46: . | R46: . | S46: . | T46: . | U46: . | V46: . | W46: . | X46: . | Y46: . | Z46: . | AA46: . | AB46: . | AC46: . | AD46: . | AE46: . | AF46: . | AG46: . | AH46: . | AI46: . | AJ46: . | AK46: . | AL46: . | AM46: . | AN46: . | AO46: . | AP46: . | AQ46: .
AH48: ="Ngày …….. Tháng …….. Năm "&year -> Ngày …….. Tháng …….. Năm 2021
D49: NGƯỜI CHẤM CÔNG | T49: PHỤ TRÁCH BỘ PHẬN | AH49: THỦ TRƯỞNG ĐƠN VỊ
D50: (Ký tên) | T50: (Ký tên) | AH50: (Ký tên)
D55: =Chamcong -> Vũ Trình B | T55: =phutrach -> Nguyễn Linh A | AH55: =Giamdoc -> Mr. Trường

Sheet T11
C6: Số ngày làm việc: | E6: =VLOOKUP(m.nov,ngaycong,2,0) -> 26 | H6: << | K6: >> | AE6: =DATEVALUE("1/11/"&year) -> 2021-01-11 | AK6: FALSE
C8: =Setup!F10 -> Công ty TNHH Webkynang Việt Nam | CJ8: =VALUE(MID(F10,8,2)) -> 11
C9: =Setup!D11&" "&Setup!F11 -> Địa chỉ: Tầng 6, Tòa nhà Sannam, Duy Tân, Cầu Giấy, Hà Nội | F9: BẢNG CHẤM CÔNG
F10: ="Tháng 11 năm "&year -> Tháng 11 năm 2021
G11: =F13+1 -> 2021-11-02 | H11: =G11+1 -> 2021-11-03 | I11: =H11+1 -> 2021-11-04 | J11: 2021-11-05 | K11: 2021-11-06 | L11: 2021-11-07 | M11: 2021-11-08 | N11: 2021-11-09 | O11: 2021-11-10 | P11: 2021-11-11 | Q11: 2021-11-12 | R11: 2021-11-13 | S11: 2021-11-14 | T11: 2021-11-15 | U11: 2021-11-16 | V11: 2021-11-17 | W11: 2021-11-18 | X11: 2021-11-19 | Y11: 2021-11-20 | Z11: 2021-11-21 | AA11: 2021-11-22 | AB11: 2021-11-23 | AC11: 2021-11-24 | AD11: 2021-11-25 | AE11: 2021-11-26 | AF11: 2021-11-27 | AG11: 2021-11-28 | AH11: 2021-11-29 | AI11: 2021-11-30 | AJ11: 2021-12-01
C12: SỐ TT | D12: HỌ VÀ TÊN | E12: CHỨC VỤ | F12: NGÀY TRONG THÁNG/ THỨ TRONG TUẦN | AK12: TỔNG | AQ12: GHI CHÚ
F13: =DATE(year,m.nov,1) -> 2021-11-01 | G13: =IF(MONTH(G11)>m.nov,"",G11) -> 2021-11-02 | H13: 2021-11-03 | I13: 2021-11-04 | J13: 2021-11-05 | K13: 2021-11-06 | L13: 2021-11-07 | M13: 2021-11-08 | N13: 2021-11-09 | O13: 2021-11-10 | P13: 2021-11-11 | Q13: 2021-11-12 | R13: 2021-11-13 | S13: 2021-11-14 | T13: 2021-11-15 | U13: 2021-11-16 | V13: 2021-11-17 | W13: 2021-11-18 | X13: 2021-11-19 | Y13: 2021-11-20 | Z13: 2021-11-21 | AA13: 2021-11-22 | AB13: 2021-11-23 | AC13: 2021-11-24 | AD13: 2021-11-25 | AE13: 2021-11-26 | AF13: 2021-11-27 | AG13: 2021-11-28 | AH13: 2021-11-29 | AI13: 2021-11-30 | AK13: =macong1 -> x | AL13: =macong2 -> x2 | AM13: =macong3 -> NC | AN13: =macong4 -> NO | AO13: =macong5 -> 00:00:00 | AP13: Tổng
F14: =IF(F13="","",CHOOSE(WEEKDAY(F13),"C.Nhật","T.Hai","T.Ba","T.Tư","T.Năm","T.Sáu","T.Bảy")) -> T.Hai | G14: =IF(G13="","",CHOOSE(WEEKDAY(G13),"C.Nhật","T.Hai","T.Ba","T.Tư","T.Năm","T.Sáu","T.Bảy")) -> T.Ba | H14: T.Tư | I14: T.Năm | J14: T.Sáu | K14: T.Bảy | L14: C.Nhật | M14: T.Hai | N14: T.Ba | O14: T.Tư | P14: T.Năm | Q14: T.Sáu | R14: T.Bảy | S14: C.Nhật | T14: T.Hai | U14: T.Ba | V14: T.Tư | W14: T.Năm | X14: T.Sáu | Y14: T.Bảy | Z14: C.Nhật | AA14: T.Hai | AB14: T.Ba | AC14: T.Tư | AD14: T.Năm | AE14: T.Sáu | AF14: T.Bảy | AG14: C.Nhật | AH14: =IF(AH13="","",CHOOSE(WEEKDAY(AH13),"C.Nhật","T.Hai","T.Ba","T.Tư","T.Năm","T.Sáu","T.Bảy")) -> T.Hai | AI14: =IF(AI13="","",CHOOSE(WEEKDAY(AI13),"C.Nhật","T.Hai","T.Ba","T.Tư","T.Năm","T.Sáu","T.Bảy")) -> T.Ba
C15: =SUBTOTAL(3,$D$15:D15) -> 1 | D15: ='Danh muc nhan vien'!E12 -> Trần Văn Tám | E15: =IFERROR(VLOOKUP(D15,'Danh muc nhan vien'!$E$12:$BY$42,2,0),"") -> Giám Đốc | AK15: =COUNTIF($F15:$AJ15,AK$13) -> 0 | AL15: =COUNTIF($F15:$AJ15,AL$13) -> 0 | AM15: 0 | AN15: 0 | AO15: 0 | AP15: =AK15*1+AL15*0.5+AM15*1 -> 0 | AQ15: =IF(E15="","",IF(OR(VLOOKUP(D15,DSNV,5,0)<1,VLOOKUP(D15,DSNV,5,0)>eomonth11),"","Đã nghỉ")) ->  | BB15: =IF(AND(VLOOKUP(D15,DSNV,5,0)>1,$F$13>VLOOKUP(D15,DSNV,5,0)),"",IF(SUM(AK15:AP15)<$E$6,"x","")) -> x
C16: =SUBTOTAL(3,$D$15:D16) -> 2 | D16: ='Danh muc nhan vien'!E13 -> Đặng Văn Thành | E16: =IFERROR(VLOOKUP(D16,'Danh muc nhan vien'!$E$12:$BY$42,2,0),"") -> Phó GĐ | AK16: =COUNTIF($F16:$AJ16,AK$13) -> 0 | AL16: 0 | AM16: 0 | AN16: 0 | AO16: 0 | AP16: =AK16*1+AL16*0.5+AM16*1 -> 0 | BB16: x
C17: =SUBTOTAL(3,$D$15:D17) -> 3 | D17: ='Danh muc nhan vien'!E14 -> Đặng Thành Tâm | E17: =IFERROR(VLOOKUP(D17,'Danh muc nhan vien'!$E$12:$BY$42,2,0),"") -> KTT | AK17: 0 | AL17: 0 | AM17: 0 | AN17: 0 | AO17: 0 | AP17: 0 | BB17: x
C18: =SUBTOTAL(3,$D$15:D18) -> 4 | D18: ='Danh muc nhan vien'!E15 -> Đoàn Văn Cường | E18: =IFERROR(VLOOKUP(D18,'Danh muc nhan vien'!$E$12:$BY$42,2,0),"") -> TP Kinh Doanh | AK18: 0 | AL18: 0 | AM18: 0 | AN18: 0 | AO18: 0 | AP18: 0 | BB18: x
C19: =SUBTOTAL(3,$D$15:D19) -> 5 | D19: ='Danh muc nhan vien'!E16 -> Hồ Phương Lanh | E19: =IFERROR(VLOOKUP(D19,'Danh muc nhan vien'!$E$12:$BY$42,2,0),"") -> KT Tổng hợp | AK19: 0 | AL19: 0 | AM19: 0 | AN19: 0 | AO19: 0 | AP19: 0 | BB19: x
C20: =SUBTOTAL(3,$D$15:D20) -> 6 | D20: ='Danh muc nhan vien'!E17 -> Huỳnh Tùng Lâm | E20: =IFERROR(VLOOKUP(D20,'Danh muc nhan vien'!$E$12:$BY$42,2,0),"") -> KT Viên | AK20: 0 | AL20: 0 | AM20: 0 | AN20: 0 | AO20: 0 | AP20: 0 | AQ20: Đã nghỉ
C21: =SUBTOTAL(3,$D$15:D21) -> 7 | D21: ='Danh muc nhan vien'!E18 -> Lê Đại Tài | E21: =IFERROR(VLOOKUP(D21,'Danh muc nhan vien'!$E$12:$BY$42,2,0),"") -> KT Viên | AK21: 0 | AL21: 0 | AM21: 0 | AN21: 0 | AO21: 0 | AP21: 0 | BB21: x
C22: =SUBTOTAL(3,$D$15:D22) -> 8 | D22: ='Danh muc nhan vien'!E19 -> Lâm Thị Cành | E22: =IFERROR(VLOOKUP(D22,'Danh muc nhan vien'!$E$12:$BY$42,2,0),"") -> Nhân sự | AK22: 0 | AL22: 0 | AM22: 0 | AN22: 0 | AO22: 0 | AP22: 0 | BB22: x
C23: =SUBTOTAL(3,$D$15:D23) -> 9 | D23: ='Danh muc nhan vien'!E20 -> Lê Đức Chinh | E23: =IFERROR(VLOOKUP(D23,'Danh muc nhan vien'!$E$12:$BY$42,2,0),"") -> Hành chính | AK23: 0 | AL23: 0 | AM23: 0 | AN23: 0 | AO23: 0 | AP23: 0 | AQ23: Đã nghỉ
C24: =SUBTOTAL(3,$D$15:D24) -> 10 | D24: ='Danh muc nhan vien'!E21 -> Lê Văn Liêm | E24: =IFERROR(VLOOKUP(D24,'Danh muc nhan vien'!$E$12:$BY$42,2,0),"") -> Marketing | AK24: 0 | AL24: 0 | AM24: 0 | AN24: 0 | AO24: 0 | AP24: 0 | BB24: x
C25: =SUBTOTAL(3,$D$15:D25) -> 11 | D25: ='Danh muc nhan vien'!E22 -> Nguyễn Chí Thanh | E25: =IFERROR(VLOOKUP(D25,'Danh muc nhan vien'!$E$12:$BY$42,2,0),"") -> NV Kinh Doanh | AK25: 0 | AL25: 0 | AM25: 0 | AN25: 0 | AO25: 0 | AP25: 0 | BB25: x
C26: =SUBTOTAL(3,$D$15:D26) -> 12 | D26: ='Danh muc nhan vien'!E23 -> Nguyễn Hoàng Tính | E26: =IFERROR(VLOOKUP(D26,'Danh muc nhan vien'!$E$12:$BY$42,2,0),"") -> NV Kinh Doanh | AK26: 0 | AL26: 0 | AM26: 0 | AN26: 0 | AO26: 0 | AP26: 0 | AQ26: Đã nghỉ
C27: =SUBTOTAL(3,$D$15:D27) -> 13 | D27: ='Danh muc nhan vien'!E24 -> Nguyễn Văn Hân | E27: =IFERROR(VLOOKUP(D27,'Danh muc nhan vien'!$E$12:$BY$42,2,0),"") -> NV Kinh Doanh | AK27: 0 | AL27: 0 | AM27: 0 | AN27: 0 | AO27: 0 | AP27: 0 | BB27: x
C28: =SUBTOTAL(3,$D$15:D28) -> 14 | D28: ='Danh muc nhan vien'!E25 -> Phạm Hoài An | E28: =IFERROR(VLOOKUP(D28,'Danh muc nhan vien'!$E$12:$BY$42,2,0),"") -> NV Kinh Doanh | AK28: 0 | AL28: 0 | AM28: 0 | AN28: 0 | AO28: 0 | AP28: 0 | BB28: x
C29: =SUBTOTAL(3,$D$15:D29) -> 15 | D29: ='Danh muc nhan vien'!E26 -> 0 | E29: =IFERROR(VLOOKUP(D29,'Danh muc nhan vien'!$E$12:$BY$42,2,0),"") ->  | AK29: 0 | AL29: 0 | AM29: 0 | AN29: 0 | AO29: 0 | AP29: 0
C30: =SUBTOTAL(3,$D$15:D30) -> 16 | D30: ='Danh muc nhan vien'!E27 -> 0 | E30: =IFERROR(VLOOKUP(D30,'Danh muc nhan vien'!$E$12:$BY$42,2,0),"") ->  | AK30: 0 | AL30: 0 | AM30: 0 | AN30: 0 | AO30: 0 | AP30: 0
C31: =SUBTOTAL(3,$D$15:D31) -> 17 | D31: ='Danh muc nhan vien'!E28 -> 0 | E31: =IFERROR(VLOOKUP(D31,'Danh muc nhan vien'!$E$12:$BY$42,2,0),"") ->  | AK31: 0 | AL31: 0 | AM31: 0 | AN31: 0 | AO31: 0 | AP31: 0
C32: =SUBTOTAL(3,$D$15:D32) -> 18 | D32: ='Danh muc nhan vien'!E29 -> 0 | E32: =IFERROR(VLOOKUP(D32,'Danh muc nhan vien'!$E$12:$BY$42,2,0),"") ->  | AK32: =COUNTIF($F32:$AJ32,AK$13) -> 0 | AL32: 0 | AM32: 0 | AN32: 0 | AO32: 0 | AP32: 0
C33: =SUBTOTAL(3,$D$15:D33) -> 19 | D33: ='Danh muc nhan vien'!E30 -> 0 | E33: =IFERROR(VLOOKUP(D33,'Danh muc nhan vien'!$E$12:$BY$42,2,0),"") ->  | AK33: 0 | AL33: 0 | AM33: 0 | AN33: 0 | AO33: 0 | AP33: 0
C34: =SUBTOTAL(3,$D$15:D34) -> 20 | D34: ='Danh muc nhan vien'!E31 -> 0 | E34: =IFERROR(VLOOKUP(D34,'Danh muc nhan vien'!$E$12:$BY$42,2,0),"") ->  | AK34: 0 | AL34: 0 | AM34: 0 | AN34: 0 | AO34: 0 | AP34: 0
C35: =SUBTOTAL(3,$D$15:D35) -> 21 | D35: ='Danh muc nhan vien'!E32 -> 0 | E35: =IFERROR(VLOOKUP(D35,'Danh muc nhan vien'!$E$12:$BY$42,2,0),"") ->  | AK35: 0 | AL35: 0 | AM35: 0 | AN35: 0 | AO35: 0 | AP35: 0
C36: =SUBTOTAL(3,$D$15:D36) -> 22 | D36: ='Danh muc nhan vien'!E33 -> 0 | E36: =IFERROR(VLOOKUP(D36,'Danh muc nhan vien'!$E$12:$BY$42,2,0),"") ->  | AK36: 0 | AL36: 0 | AM36: 0 | AN36: 0 | AO36: 0 | AP36: 0
C37: =SUBTOTAL(3,$D$15:D37) -> 23 | D37: ='Danh muc nhan vien'!E34 -> 0 | E37: =IFERROR(VLOOKUP(D37,'Danh muc nhan vien'!$E$12:$BY$42,2,0),"") ->  | AK37: 0 | AL37: 0 | AM37: 0 | AN37: 0 | AO37: 0 | AP37: 0
C38: =SUBTOTAL(3,$D$15:D38) -> 24 | D38: ='Danh muc nhan vien'!E35 -> 0 | E38: =IFERROR(VLOOKUP(D38,'Danh muc nhan vien'!$E$12:$BY$42,2,0),"") ->  | AK38: 0 | AL38: 0 | AM38: 0 | AN38: 0 | AO38: 0 | AP38: 0
C39: =SUBTOTAL(3,$D$15:D39) -> 25 | D39: ='Danh muc nhan vien'!E36 -> 0 | E39: =IFERROR(VLOOKUP(D39,'Danh muc nhan vien'!$E$12:$BY$42,2,0),"") ->  | AK39: 0 | AL39: 0 | AM39: 0 | AN39: 0 | AO39: 0 | AP39: 0
C40: =SUBTOTAL(3,$D$15:D40) -> 26 | D40: ='Danh muc nhan vien'!E37 -> 0 | E40: =IFERROR(VLOOKUP(D40,'Danh muc nhan vien'!$E$12:$BY$42,2,0),"") ->  | AK40: 0 | AL40: 0 | AM40: 0 | AN40: 0 | AO40: 0 | AP40: 0
C41: =SUBTOTAL(3,$D$15:D41) -> 27 | D41: ='Danh muc nhan vien'!E38 -> 0 | E41: =IFERROR(VLOOKUP(D41,'Danh muc nhan vien'!$E$12:$BY$42,2,0),"") ->  | AK41: 0 | AL41: 0 | AM41: 0 | AN41: 0 | AO41: 0 | AP41: 0
C42: =SUBTOTAL(3,$D$15:D42) -> 28 | D42: ='Danh muc nhan vien'!E39 -> 0 | E42: =IFERROR(VLOOKUP(D42,'Danh muc nhan vien'!$E$12:$BY$42,2,0),"") ->  | AK42: 0 | AL42: 0 | AM42: 0 | AN42: 0 | AO42: 0 | AP42: 0
C43: =SUBTOTAL(3,$D$15:D43) -> 29 | D43: ='Danh muc nhan vien'!E40 -> 0 | E43: =IFERROR(VLOOKUP(D43,'Danh muc nhan vien'!$E$12:$BY$42,2,0),"") ->  | AK43: 0 | AL43: 0 | AM43: 0 | AN43: 0 | AO43: 0 | AP43: 0
C44: =SUBTOTAL(3,$D$15:D44) -> 30 | D44: ='Danh muc nhan vien'!E41 -> 0 | E44: =IFERROR(VLOOKUP(D44,'Danh muc nhan vien'!$E$12:$BY$42,2,0),"") ->  | AK44: 0 | AL44: 0 | AM44: 0 | AN44: 0 | AO44: 0 | AP44: 0
C46: . | D46: . | E46: . | F46: . | G46: . | H46: . | I46: . | J46: . | K46: . | L46: . | M46: . | N46: . | O46: . | P46: . | Q46: . | R46: . | S46: . | T46: . | U46: . | V46: . | W46: . | X46: . | Y46: . | Z46: . | AA46: . | AB46: . | AC46: . | AD46: . | AE46: . | AF46: . | AG46: . | AH46: . | AI46: . | AJ46: . | AK46: . | AL46: . | AM46: . | AN46: . | AO46: . | AP46: . | AQ46: .
AH48: ="Ngày …….. Tháng …….. Năm "&year -> Ngày …….. Tháng …….. Năm 2021
D49: NGƯỜI CHẤM CÔNG | T49: PHỤ TRÁCH BỘ PHẬN | AH49: THỦ TRƯỞNG ĐƠN VỊ
D50: (Ký tên) | T50: (Ký tên) | AH50: (Ký tên)
D55: =Chamcong -> Vũ Trình B | T55: =phutrach -> Nguyễn Linh A | AH55: =Giamdoc -> Mr. Trường

Sheet T12
C6: Số ngày làm việc: | E6: =VLOOKUP(m.dec,ngaycong,2,0) -> 26 | H6: << | K6: >> | AE6: =DATEVALUE("1/12/"&year) -> 2021-01-12 | AK6: FALSE
C8: =Setup!F10 -> Công ty TNHH Webkynang Việt Nam | CJ8: =VALUE(MID(F10,8,2)) -> 12
C9: =Setup!D11&" "&Setup!F11 -> Địa chỉ: Tầng 6, Tòa nhà Sannam, Duy Tân, Cầu Giấy, Hà Nội | F9: BẢNG CHẤM CÔNG
F10: ="Tháng 12 năm "&year -> Tháng 12 năm 2021
G11: =F13+1 -> 2021-12-02 | H11: =G11+1 -> 2021-12-03 | I11: =H11+1 -> 2021-12-04 | J11: 2021-12-05 | K11: 2021-12-06 | L11: 2021-12-07 | M11: 2021-12-08 | N11: 2021-12-09 | O11: 2021-12-10 | P11: 2021-12-11 | Q11: 2021-12-12 | R11: 2021-12-13 | S11: 2021-12-14 | T11: 2021-12-15 | U11: 2021-12-16 | V11: 2021-12-17 | W11: 2021-12-18 | X11: 2021-12-19 | Y11: 2021-12-20 | Z11: 2021-12-21 | AA11: 2021-12-22 | AB11: 2021-12-23 | AC11: 2021-12-24 | AD11: 2021-12-25 | AE11: 2021-12-26 | AF11: 2021-12-27 | AG11: 2021-12-28 | AH11: 2021-12-29 | AI11: 2021-12-30 | AJ11: 2021-12-31
C12: SỐ TT | D12: HỌ VÀ TÊN | E12: CHỨC VỤ | F12: NGÀY TRONG THÁNG/ THỨ TRONG TUẦN | AK12: TỔNG | AQ12: GHI CHÚ
F13: =DATE(year,m.dec,1) -> 2021-12-01 | G13: =IF(MONTH(G11)>m.dec,"",G11) -> 2021-12-02 | H13: 2021-12-03 | I13: 2021-12-04 | J13: 2021-12-05 | K13: 2021-12-06 | L13: 2021-12-07 | M13: 2021-12-08 | N13: 2021-12-09 | O13: 2021-12-10 | P13: 2021-12-11 | Q13: 2021-12-12 | R13: 2021-12-13 | S13: 2021-12-14 | T13: 2021-12-15 | U13: 2021-12-16 | V13: 2021-12-17 | W13: 2021-12-18 | X13: 2021-12-19 | Y13: 2021-12-20 | Z13: 2021-12-21 | AA13: 2021-12-22 | AB13: 2021-12-23 | AC13: 2021-12-24 | AD13: 2021-12-25 | AE13: 2021-12-26 | AF13: 2021-12-27 | AG13: 2021-12-28 | AH13: 2021-12-29 | AI13: 2021-12-30 | AJ13: 2021-12-31 | AK13: =macong1 -> x | AL13: =macong2 -> x2 | AM13: =macong3 -> NC | AN13: =macong4 -> NO | AO13: =macong5 -> 00:00:00 | AP13: Tổng
F14: =IF(F13="","",CHOOSE(WEEKDAY(F13),"C.Nhật","T.Hai","T.Ba","T.Tư","T.Năm","T.Sáu","T.Bảy")) -> T.Tư | G14: =IF(G13="","",CHOOSE(WEEKDAY(G13),"C.Nhật","T.Hai","T.Ba","T.Tư","T.Năm","T.Sáu","T.Bảy")) -> T.Năm | H14: T.Sáu | I14: T.Bảy | J14: C.Nhật | K14: T.Hai | L14: T.Ba | M14: T.Tư | N14: T.Năm | O14: T.Sáu | P14: T.Bảy | Q14: C.Nhật | R14: T.Hai | S14: T.Ba | T14: T.Tư | U14: T.Năm | V14: T.Sáu | W14: T.Bảy | X14: C.Nhật | Y14: T.Hai | Z14: T.Ba | AA14: T.Tư | AB14: T.Năm | AC14: T.Sáu | AD14: T.Bảy | AE14: C.Nhật | AF14: T.Hai | AG14: T.Ba | AH14: =IF(AH13="","",CHOOSE(WEEKDAY(AH13),"C.Nhật","T.Hai","T.Ba","T.Tư","T.Năm","T.Sáu","T.Bảy")) -> T.Tư | AI14: =IF(AI13="","",CHOOSE(WEEKDAY(AI13),"C.Nhật","T.Hai","T.Ba","T.Tư","T.Năm","T.Sáu","T.Bảy")) -> T.Năm | AJ14: T.Sáu
C15: =SUBTOTAL(3,$D$15:D15) -> 1 | D15: ='Danh muc nhan vien'!E12 -> Trần Văn Tám | E15: =IFERROR(VLOOKUP(D15,'Danh muc nhan vien'!$E$12:$BY$42,2,0),"") -> Giám Đốc | AK15: =COUNTIF($F15:$AJ15,AK$13) -> 0 | AL15: =COUNTIF($F15:$AJ15,AL$13) -> 0 | AM15: 0 | AN15: 0 | AO15: 0 | AP15: =AK15*1+AL15*0.5+AM15*1 -> 0 | AQ15: =IF(E15="","",IF(OR(VLOOKUP(D15,DSNV,5,0)<1,VLOOKUP(D15,DSNV,5,0)>eomonth12),"","Đã nghỉ")) ->  | BB15: =IF(AND(VLOOKUP(D15,DSNV,5,0)>1,$F$13>VLOOKUP(D15,DSNV,5,0)),"",IF(SUM(AK15:AP15)<$E$6,"x","")) -> x
C16: =SUBTOTAL(3,$D$15:D16) -> 2 | D16: ='Danh muc nhan vien'!E13 -> Đặng Văn Thành | E16: =IFERROR(VLOOKUP(D16,'Danh muc nhan vien'!$E$12:$BY$42,2,0),"") -> Phó GĐ | AK16: =COUNTIF($F16:$AJ16,AK$13) -> 0 | AL16: 0 | AM16: 0 | AN16: 0 | AO16: 0 | AP16: =AK16*1+AL16*0.5+AM16*1 -> 0 | BB16: x
C17: =SUBTOTAL(3,$D$15:D17) -> 3 | D17: ='Danh muc nhan vien'!E14 -> Đặng Thành Tâm | E17: =IFERROR(VLOOKUP(D17,'Danh muc nhan vien'!$E$12:$BY$42,2,0),"") -> KTT | AK17: 0 | AL17: 0 | AM17: 0 | AN17: 0 | AO17: 0 | AP17: 0 | BB17: x
C18: =SUBTOTAL(3,$D$15:D18) -> 4 | D18: ='Danh muc nhan vien'!E15 -> Đoàn Văn Cường | E18: =IFERROR(VLOOKUP(D18,'Danh muc nhan vien'!$E$12:$BY$42,2,0),"") -> TP Kinh Doanh | AK18: 0 | AL18: 0 | AM18: 0 | AN18: 0 | AO18: 0 | AP18: 0 | BB18: x
C19: =SUBTOTAL(3,$D$15:D19) -> 5 | D19: ='Danh muc nhan vien'!E16 -> Hồ Phương Lanh | E19: =IFERROR(VLOOKUP(D19,'Danh muc nhan vien'!$E$12:$BY$42,2,0),"") -> KT Tổng hợp | AK19: 0 | AL19: 0 | AM19: 0 | AN19: 0 | AO19: 0 | AP19: 0 | BB19: x
C20: =SUBTOTAL(3,$D$15:D20) -> 6 | D20: ='Danh muc nhan vien'!E17 -> Huỳnh Tùng Lâm | E20: =IFERROR(VLOOKUP(D20,'Danh muc nhan vien'!$E$12:$BY$42,2,0),"") -> KT Viên | AK20: 0 | AL20: 0 | AM20: 0 | AN20: 0 | AO20: 0 | AP20: 0 | AQ20: Đã nghỉ
C21: =SUBTOTAL(3,$D$15:D21) -> 7 | D21: ='Danh muc nhan vien'!E18 -> Lê Đại Tài | E21: =IFERROR(VLOOKUP(D21,'Danh muc nhan vien'!$E$12:$BY$42,2,0),"") -> KT Viên | AK21: 0 | AL21: 0 | AM21: 0 | AN21: 0 | AO21: 0 | AP21: 0 | BB21: x
C22: =SUBTOTAL(3,$D$15:D22) -> 8 | D22: ='Danh muc nhan vien'!E19 -> Lâm Thị Cành | E22: =IFERROR(VLOOKUP(D22,'Danh muc nhan vien'!$E$12:$BY$42,2,0),"") -> Nhân sự | AK22: 0 | AL22: 0 | AM22: 0 | AN22: 0 | AO22: 0 | AP22: 0 | BB22: x
C23: =SUBTOTAL(3,$D$15:D23) -> 9 | D23: ='Danh muc nhan vien'!E20 -> Lê Đức Chinh | E23: =IFERROR(VLOOKUP(D23,'Danh muc nhan vien'!$E$12:$BY$42,2,0),"") -> Hành chính | AK23: 0 | AL23: 0 | AM23: 0 | AN23: 0 | AO23: 0 | AP23: 0 | AQ23: Đã nghỉ
C24: =SUBTOTAL(3,$D$15:D24) -> 10 | D24: ='Danh muc nhan vien'!E21 -> Lê Văn Liêm | E24: =IFERROR(VLOOKUP(D24,'Danh muc nhan vien'!$E$12:$BY$42,2,0),"") -> Marketing | AK24: 0 | AL24: 0 | AM24: 0 | AN24: 0 | AO24: 0 | AP24: 0 | BB24: x
C25: =SUBTOTAL(3,$D$15:D25) -> 11 | D25: ='Danh muc nhan vien'!E22 -> Nguyễn Chí Thanh | E25: =IFERROR(VLOOKUP(D25,'Danh muc nhan vien'!$E$12:$BY$42,2,0),"") -> NV Kinh Doanh | AK25: 0 | AL25: 0 | AM25: 0 | AN25: 0 | AO25: 0 | AP25: 0 | BB25: x
C26: =SUBTOTAL(3,$D$15:D26) -> 12 | D26: ='Danh muc nhan vien'!E23 -> Nguyễn Hoàng Tính | E26: =IFERROR(VLOOKUP(D26,'Danh muc nhan vien'!$E$12:$BY$42,2,0),"") -> NV Kinh Doanh | AK26: 0 | AL26: 0 | AM26: 0 | AN26: 0 | AO26: 0 | AP26: 0 | AQ26: Đã nghỉ
C27: =SUBTOTAL(3,$D$15:D27) -> 13 | D27: ='Danh muc nhan vien'!E24 -> Nguyễn Văn Hân | E27: =IFERROR(VLOOKUP(D27,'Danh muc nhan vien'!$E$12:$BY$42,2,0),"") -> NV Kinh Doanh | AK27: 0 | AL27: 0 | AM27: 0 | AN27: 0 | AO27: 0 | AP27: 0 | BB27: x
C28: =SUBTOTAL(3,$D$15:D28) -> 14 | D28: ='Danh muc nhan vien'!E25 -> Phạm Hoài An | E28: =IFERROR(VLOOKUP(D28,'Danh muc nhan vien'!$E$12:$BY$42,2,0),"") -> NV Kinh Doanh | AK28: 0 | AL28: 0 | AM28: 0 | AN28: 0 | AO28: 0 | AP28: 0 | BB28: x
C29: =SUBTOTAL(3,$D$15:D29) -> 15 | D29: ='Danh muc nhan vien'!E26 -> 0 | E29: =IFERROR(VLOOKUP(D29,'Danh muc nhan vien'!$E$12:$BY$42,2,0),"") ->  | AK29: 0 | AL29: 0 | AM29: 0 | AN29: 0 | AO29: 0 | AP29: 0
C30: =SUBTOTAL(3,$D$15:D30) -> 16 | D30: ='Danh muc nhan vien'!E27 -> 0 | E30: =IFERROR(VLOOKUP(D30,'Danh muc nhan vien'!$E$12:$BY$42,2,0),"") ->  | AK30: 0 | AL30: 0 | AM30: 0 | AN30: 0 | AO30: 0 | AP30: 0
C31: =SUBTOTAL(3,$D$15:D31) -> 17 | D31: ='Danh muc nhan vien'!E28 -> 0 | E31: =IFERROR(VLOOKUP(D31,'Danh muc nhan vien'!$E$12:$BY$42,2,0),"") ->  | AK31: 0 | AL31: 0 | AM31: 0 | AN31: 0 | AO31: 0 | AP31: 0
C32: =SUBTOTAL(3,$D$15:D32) -> 18 | D32: ='Danh muc nhan vien'!E29 -> 0 | E32: =IFERROR(VLOOKUP(D32,'Danh muc nhan vien'!$E$12:$BY$42,2,0),"") ->  | AK32: =COUNTIF($F32:$AJ32,AK$13) -> 0 | AL32: 0 | AM32: 0 | AN32: 0 | AO32: 0 | AP32: 0
C33: =SUBTOTAL(3,$D$15:D33) -> 19 | D33: ='Danh muc nhan vien'!E30 -> 0 | E33: =IFERROR(VLOOKUP(D33,'Danh muc nhan vien'!$E$12:$BY$42,2,0),"") ->  | AK33: 0 | AL33: 0 | AM33: 0 | AN33: 0 | AO33: 0 | AP33: 0
C34: =SUBTOTAL(3,$D$15:D34) -> 20 | D34: ='Danh muc nhan vien'!E31 -> 0 | E34: =IFERROR(VLOOKUP(D34,'Danh muc nhan vien'!$E$12:$BY$42,2,0),"") ->  | AK34: 0 | AL34: 0 | AM34: 0 | AN34: 0 | AO34: 0 | AP34: 0
C35: =SUBTOTAL(3,$D$15:D35) -> 21 | D35: ='Danh muc nhan vien'!E32 -> 0 | E35: =IFERROR(VLOOKUP(D35,'Danh muc nhan vien'!$E$12:$BY$42,2,0),"") ->  | AK35: 0 | AL35: 0 | AM35: 0 | AN35: 0 | AO35: 0 | AP35: 0
C36: =SUBTOTAL(3,$D$15:D36) -> 22 | D36: ='Danh muc nhan vien'!E33 -> 0 | E36: =IFERROR(VLOOKUP(D36,'Danh muc nhan vien'!$E$12:$BY$42,2,0),"") ->  | AK36: 0 | AL36: 0 | AM36: 0 | AN36: 0 | AO36: 0 | AP36: 0
C37: =SUBTOTAL(3,$D$15:D37) -> 23 | D37: ='Danh muc nhan vien'!E34 -> 0 | E37: =IFERROR(VLOOKUP(D37,'Danh muc nhan vien'!$E$12:$BY$42,2,0),"") ->  | AK37: 0 | AL37: 0 | AM37: 0 | AN37: 0 | AO37: 0 | AP37: 0
C38: =SUBTOTAL(3,$D$15:D38) -> 24 | D38: ='Danh muc nhan vien'!E35 -> 0 | E38: =IFERROR(VLOOKUP(D38,'Danh muc nhan vien'!$E$12:$BY$42,2,0),"") ->  | AK38: 0 | AL38: 0 | AM38: 0 | AN38: 0 | AO38: 0 | AP38: 0
C39: =SUBTOTAL(3,$D$15:D39) -> 25 | D39: ='Danh muc nhan vien'!E36 -> 0 | E39: =IFERROR(VLOOKUP(D39,'Danh muc nhan vien'!$E$12:$BY$42,2,0),"") ->  | AK39: 0 | AL39: 0 | AM39: 0 | AN39: 0 | AO39: 0 | AP39: 0
C40: =SUBTOTAL(3,$D$15:D40) -> 26 | D40: ='Danh muc nhan vien'!E37 -> 0 | E40: =IFERROR(VLOOKUP(D40,'Danh muc nhan vien'!$E$12:$BY$42,2,0),"") ->  | AK40: 0 | AL40: 0 | AM40: 0 | AN40: 0 | AO40: 0 | AP40: 0
C41: =SUBTOTAL(3,$D$15:D41) -> 27 | D41: ='Danh muc nhan vien'!E38 -> 0 | E41: =IFERROR(VLOOKUP(D41,'Danh muc nhan vien'!$E$12:$BY$42,2,0),"") ->  | AK41: 0 | AL41: 0 | AM41: 0 | AN41: 0 | AO41: 0 | AP41: 0
C42: =SUBTOTAL(3,$D$15:D42) -> 28 | D42: ='Danh muc nhan vien'!E39 -> 0 | E42: =IFERROR(VLOOKUP(D42,'Danh muc nhan vien'!$E$12:$BY$42,2,0),"") ->  | AK42: 0 | AL42: 0 | AM42: 0 | AN42: 0 | AO42: 0 | AP42: 0
C43: =SUBTOTAL(3,$D$15:D43) -> 29 | D43: ='Danh muc nhan vien'!E40 -> 0 | E43: =IFERROR(VLOOKUP(D43,'Danh muc nhan vien'!$E$12:$BY$42,2,0),"") ->  | AK43: 0 | AL43: 0 | AM43: 0 | AN43: 0 | AO43: 0 | AP43: 0
C44: =SUBTOTAL(3,$D$15:D44) -> 30 | D44: ='Danh muc nhan vien'!E41 -> 0 | E44: =IFERROR(VLOOKUP(D44,'Danh muc nhan vien'!$E$12:$BY$42,2,0),"") ->  | AK44: 0 | AL44: 0 | AM44: 0 | AN44: 0 | AO44: 0 | AP44: 0
C46: . | D46: . | E46: . | F46: . | G46: . | H46: . | I46: . | J46: . | K46: . | L46: . | M46: . | N46: . | O46: . | P46: . | Q46: . | R46: . | S46: . | T46: . | U46: . | V46: . | W46: . | X46: . | Y46: . | Z46: . | AA46: . | AB46: . | AC46: . | AD46: . | AE46: . | AF46: . | AG46: . | AH46: . | AI46: . | AJ46: . | AK46: . | AL46: . | AM46: . | AN46: . | AO46: . | AP46: . | AQ46: .
AH48: ="Ngày …….. Tháng …….. Năm "&year -> Ngày …….. Tháng …….. Năm 2021
D49: NGƯỜI CHẤM CÔNG | T49: PHỤ TRÁCH BỘ PHẬN | AH49: THỦ TRƯỞNG ĐƠN VỊ
D50: (Ký tên) | T50: (Ký tên) | AH50: (Ký tên)
D55: =Chamcong -> Vũ Trình B | T55: =phutrach -> Nguyễn Linh A | AH55: =Giamdoc -> Mr. Trường

Sheet About us
A5: THÔNG TIN NHANH VỀ PM NHÂN SỰ 12 TH | I5: HƯỚNG DẪN SỬ DỤNG NHANH
A7: Phiên bản | B7: : | C7: WPRO.VN_018_20210103
J8: LẦN ĐẦU SỬ DỤNG PHẦN MỀM
A9: Tác giả | B9: : | C9: Mr. Trường | J9: - Vào phần cài đặt
J10: + Thông tin cơ bản của Doanh nghiệp | U10: => Click để Cập nhật
A11: Cập nhật | B11: : | C11: 2021-01-03 | J11: + Năm báo cáo | U11: => Click để Cập nhật
J12: + Cập nhật Tổng số ngày công từng tháng (trừ nghỉ lễ) | U12: => Click để Cập nhật
A13: Hỗ Trợ | B13: : | C13: Webkynang.vn@gmail.com | J13: + Chọn ngày làm việc trong 1 tuần | U13: => Click để Cập nhật
B14: : | C14: Đây là phiên bản miễn phí dành cho doanh nghiệp nhỏ với số lượng nhân viên nhỏ hơn 30. | J14: + Liệt kê danh sách ngày lễ | U14: => Click để Cập nhật
J15: + Mã hóa loại ngày công | U15: => Click để Cập nhật
J16: - Cập nhật danh sách nhân viên | U16: => Click để Cập nhật
C17: Với phiên bản miễn phí, BQT không cam kết hỗ trợ xử lý các vấn đề phát sinh liên quan tới PM. Trong trường hợp doanh nghiệp của bạn có nhu cầu sử dụng bản FULL hãy liên hệ với webkynang.vn qua email. | J17: Danh mục nhân viên chưa rất nhiều thông tin liên quan đến nhân viên, có những thông tin được cập nhật chi tiết cho 12 tháng trong năm
J19: Ví dụ như lương cơ bản, trong trường hợp Nhân viên Nguyễn Thị Lan, tháng 1 ->3 đều có lương 5 triệu, bạn sẽ để 3 tháng này lương là 5 triệu, từ tháng 4 trở đi bạn cập nhật lương mới 6 triệu.
J21: Lưu ý: Phần "Lịch" sẽ giúp bạn làm tốt phần tính tổng số ngày công từng tháng
A22: Bản quyền | B22: : | C22: Webkynang.vn công bố bản quyền với Phần mềm chấm công này.
J23: CHẤM CÔNG
C24: Nghiêm cấm mọi hành vi phát tán, lợi dụng để kiếm lợi, sửa đổi hoặc bất kỳ hình thức nào mà chưa nhận được sự chấp thuận bằng văn bản từ Webkynang.vn | J24: >> Click "Chấm Công"
J25: >> Tick "Tiến hành chấm công"
J26: >> Kiểm tra các mã chấm công đã có đủ trong phần "Tổng" hay chưa, nếu chưa thì cần bổ sung
J27: >> Tiến hành chấm công từng ngày bằng cách đánh các mã chấm công vào ngày và nhân viên tương ứng
J28: Lưu ý: Cột "Ghi chú" hiện tại đang tìm kiếm ngày nghỉ việc của nhân viên đã nghỉ để tiện chấm công
K30: Click để bắt đầu chấm công
J32: TÍNH LƯƠNG
J33: Bảng tính lương trong phần mềm này tự động đên 99%.
J34: Bạn chỉ cần chọn tháng để xem bảng tính lương của tháng đó.
J35: Lưu ý rằng, nếu trong tháng có người tạm ứng lương thì bạn cần chọn "Tạm ứng" để cập nhật dữ liệu.
J37: Khi muốn in phiếu lương của từng nhân viên, bạn hãy chọn vào phần "P.Luong" để chuyển sang phần in phiếu
J41: XEM BÁO CÁO CHẤM CÔNG
J42: Có 2 loại báo cáo:
J43: - All | K43: : Tổng hợp từng loại ngày công cho tất cả nhân viên | V43: >> Chỉ cần chọn loại ngày công
J44: - 1- | K44: : Tổng hợp ngày công chi tiết từng loại cho từng nhân viên | V44: >> Chỉ cần chọn tên nhân viên

Sheet Report
C6: Chọn loại ngày công | F6: x
C8: =Setup!F10 -> Công ty TNHH Webkynang Việt Nam
C9: =Setup!F11 -> Tầng 6, Tòa nhà Sannam, Duy Tân, Cầu Giấy, Hà Nội | G9: BÁO CÁO TỔNG HỢP CHẤM CÔNG
C13: STT | D13: MÃ NV | E13: TÊN NV | F13: CHỨC VỤ | G13: BẮT ĐẦU | H13: KẾT THÚC | I13: T1 | J13: T2 | K13: T3 | L13: T4 | M13: T5 | N13: T6 | O13: T7 | P13: T8 | Q13: T9 | R13: T10 | S13: T11 | T13: T12 | U13: NOTE
C14: ='Danh muc nhan vien'!C12 -> 1 | D14: ='Danh muc nhan vien'!D12 -> QL001 | E14: ='Danh muc nhan vien'!E12 -> Trần Văn Tám | F14: ='Danh muc nhan vien'!F12 -> Giám Đốc | G14: =IF('Danh muc nhan vien'!H12="","",'Danh muc nhan vien'!H12) -> 2014-03-14 | H14: =IF('Danh muc nhan vien'!I12="","",'Danh muc nhan vien'!I12) ->  | I14: =IF($G14="","",VLOOKUP($E14,'T1'!$D$15:$AQ$44,MATCH($F$6,'T1'!$D$13:$AR$13,0),0)) -> 2 | J14: =IF($G14="","",VLOOKUP($E14,'T2'!$D$15:$AQ$44,MATCH($F$6,'T2'!$D$13:$AR$13,0),0)) -> 0 | K14: =IF($G14="","",VLOOKUP($E14,'T3'!$D$15:$AQ$44,MATCH($F$6,'T3'!$D$13:$AR$13,0),0)) -> 0 | L14: =IF($G14="","",VLOOKUP($E14,'T4'!$D$15:$AQ$44,MATCH($F$6,'T4'!$D$13:$AR$13,0),0)) -> 0 | M14: =IF($G14="","",VLOOKUP($E14,'T5'!$D$15:$AQ$44,MATCH($F$6,'T5'!$D$13:$AR$13,0),0)) -> 0 | N14: =IF($G14="","",VLOOKUP($E14,'T6'!$D$15:$AQ$44,MATCH($F$6,'T6'!$D$13:$AR$13,0),0)) -> 0 | O14: =IF($G14="","",VLOOKUP($E14,'T7'!$D$15:$AQ$44,MATCH($F$6,'T7'!$D$13:$AR$13,0),0)) -> 0 | P14: =IF($G14="","",VLOOKUP($E14,'T8'!$D$15:$AQ$44,MATCH($F$6,'T8'!$D$13:$AR$13,0),0)) -> 0 | Q14: =IF($G14="","",VLOOKUP($E14,'T9'!$D$15:$AQ$44,MATCH($F$6,'T9'!$D$13:$AR$13,0),0)) -> 0 | R14: =IF($G14="","",VLOOKUP($E14,'T10'!$D$15:$AQ$44,MATCH($F$6,'T10'!$D$13:$AR$13,0),0)) -> 0 | S14: =IF($G14="","",VLOOKUP($E14,'T11'!$D$15:$AQ$44,MATCH($F$6,'T11'!$D$13:$AR$13,0),0)) -> 0 | T14: =IF($G14="","",VLOOKUP($E14,'T12'!$D$15:$AQ$44,MATCH($F$6,'T12'!$D$13:$AR$13,0),0)) -> 0
C15: ='Danh muc nhan vien'!C13 -> 2 | D15: ='Danh muc nhan vien'!D13 -> QL002 | E15: ='Danh muc nhan vien'!E13 -> Đặng Văn Thành | F15: ='Danh muc nhan vien'!F13 -> Phó GĐ | G15: =IF('Danh muc nhan vien'!H13="","",'Danh muc nhan vien'!H13) -> 2014-03-15 | H15: =IF('Danh muc nhan vien'!I13="","",'Danh muc nhan vien'!I13) ->  | I15: =IF($G15="","",VLOOKUP($E15,'T1'!$D$15:$AQ$44,MATCH($F$6,'T1'!$D$13:$AR$13,0),0)) -> 0 | J15: =IF($G15="","",VLOOKUP($E15,'T2'!$D$15:$AQ$44,MATCH($F$6,'T2'!$D$13:$AR$13,0),0)) -> 0 | K15: =IF($G15="","",VLOOKUP($E15,'T3'!$D$15:$AQ$44,MATCH($F$6,'T3'!$D$13:$AR$13,0),0)) -> 0 | L15: =IF($G15="","",VLOOKUP($E15,'T4'!$D$15:$AQ$44,MATCH($F$6,'T4'!$D$13:$AR$13,0),0)) -> 0 | M15: =IF($G15="","",VLOOKUP($E15,'T5'!$D$15:$AQ$44,MATCH($F$6,'T5'!$D$13:$AR$13,0),0)) -> 0 | N15: =IF($G15="","",VLOOKUP($E15,'T6'!$D$15:$AQ$44,MATCH($F$6,'T6'!$D$13:$AR$13,0),0)) -> 0 | O15: =IF($G15="","",VLOOKUP($E15,'T7'!$D$15:$AQ$44,MATCH($F$6,'T7'!$D$13:$AR$13,0),0)) -> 0 | P15: =IF($G15="","",VLOOKUP($E15,'T8'!$D$15:$AQ$44,MATCH($F$6,'T8'!$D$13:$AR$13,0),0)) -> 0 | Q15: =IF($G15="","",VLOOKUP($E15,'T9'!$D$15:$AQ$44,MATCH($F$6,'T9'!$D$13:$AR$13,0),0)) -> 0 | R15: =IF($G15="","",VLOOKUP($E15,'T10'!$D$15:$AQ$44,MATCH($F$6,'T10'!$D$13:$AR$13,0),0)) -> 0 | S15: =IF($G15="","",VLOOKUP($E15,'T11'!$D$15:$AQ$44,MATCH($F$6,'T11'!$D$13:$AR$13,0),0)) -> 0 | T15: =IF($G15="","",VLOOKUP($E15,'T12'!$D$15:$AQ$44,MATCH($F$6,'T12'!$D$13:$AR$13,0),0)) -> 0
C16: ='Danh muc nhan vien'!C14 -> 3 | D16: ='Danh muc nhan vien'!D14 -> QL003 | E16: ='Danh muc nhan vien'!E14 -> Đặng Thành Tâm | F16: ='Danh muc nhan vien'!F14 -> KTT | G16: =IF('Danh muc nhan vien'!H14="","",'Danh muc nhan vien'!H14) -> 2014-03-15 | H16: =IF('Danh muc nhan vien'!I14="","",'Danh muc nhan vien'!I14) ->  | I16: =IF($G16="","",VLOOKUP($E16,'T1'!$D$15:$AQ$44,MATCH($F$6,'T1'!$D$13:$AR$13,0),0)) -> 0 | J16: =IF($G16="","",VLOOKUP($E16,'T2'!$D$15:$AQ$44,MATCH($F$6,'T2'!$D$13:$AR$13,0),0)) -> 0 | K16: =IF($G16="","",VLOOKUP($E16,'T3'!$D$15:$AQ$44,MATCH($F$6,'T3'!$D$13:$AR$13,0),0)) -> 0 | L16: =IF($G16="","",VLOOKUP($E16,'T4'!$D$15:$AQ$44,MATCH($F$6,'T4'!$D$13:$AR$13,0),0)) -> 0 | M16: =IF($G16="","",VLOOKUP($E16,'T5'!$D$15:$AQ$44,MATCH($F$6,'T5'!$D$13:$AR$13,0),0)) -> 0 | N16: =IF($G16="","",VLOOKUP($E16,'T6'!$D$15:$AQ$44,MATCH($F$6,'T6'!$D$13:$AR$13,0),0)) -> 0 | O16: =IF($G16="","",VLOOKUP($E16,'T7'!$D$15:$AQ$44,MATCH($F$6,'T7'!$D$13:$AR$13,0),0)) -> 0 | P16: =IF($G16="","",VLOOKUP($E16,'T8'!$D$15:$AQ$44,MATCH($F$6,'T8'!$D$13:$AR$13,0),0)) -> 0 | Q16: =IF($G16="","",VLOOKUP($E16,'T9'!$D$15:$AQ$44,MATCH($F$6,'T9'!$D$13:$AR$13,0),0)) -> 0 | R16: =IF($G16="","",VLOOKUP($E16,'T10'!$D$15:$AQ$44,MATCH($F$6,'T10'!$D$13:$AR$13,0),0)) -> 0 | S16: =IF($G16="","",VLOOKUP($E16,'T11'!$D$15:$AQ$44,MATCH($F$6,'T11'!$D$13:$AR$13,0),0)) -> 0 | T16: =IF($G16="","",VLOOKUP($E16,'T12'!$D$15:$AQ$44,MATCH($F$6,'T12'!$D$13:$AR$13,0),0)) -> 0
C17: ='Danh muc nhan vien'!C15 -> 4 | D17: ='Danh muc nhan vien'!D15 -> QL004 | E17: ='Danh muc nhan vien'!E15 -> Đoàn Văn Cường | F17: ='Danh muc nhan vien'!F15 -> TP Kinh Doanh | G17: =IF('Danh muc nhan vien'!H15="","",'Danh muc nhan vien'!H15) -> 2014-03-15 | H17: =IF('Danh muc nhan vien'!I15="","",'Danh muc nhan vien'!I15) ->  | I17: =IF($G17="","",VLOOKUP($E17,'T1'!$D$15:$AQ$44,MATCH($F$6,'T1'!$D$13:$AR$13,0),0)) -> 0 | J17: =IF($G17="","",VLOOKUP($E17,'T2'!$D$15:$AQ$44,MATCH($F$6,'T2'!$D$13:$AR$13,0),0)) -> 0 | K17: =IF($G17="","",VLOOKUP($E17,'T3'!$D$15:$AQ$44,MATCH($F$6,'T3'!$D$13:$AR$13,0),0)) -> 0 | L17: =IF($G17="","",VLOOKUP($E17,'T4'!$D$15:$AQ$44,MATCH($F$6,'T4'!$D$13:$AR$13,0),0)) -> 0 | M17: =IF($G17="","",VLOOKUP($E17,'T5'!$D$15:$AQ$44,MATCH($F$6,'T5'!$D$13:$AR$13,0),0)) -> 0 | N17: =IF($G17="","",VLOOKUP($E17,'T6'!$D$15:$AQ$44,MATCH($F$6,'T6'!$D$13:$AR$13,0),0)) -> 0 | O17: =IF($G17="","",VLOOKUP($E17,'T7'!$D$15:$AQ$44,MATCH($F$6,'T7'!$D$13:$AR$13,0),0)) -> 0 | P17: =IF($G17="","",VLOOKUP($E17,'T8'!$D$15:$AQ$44,MATCH($F$6,'T8'!$D$13:$AR$13,0),0)) -> 0 | Q17: =IF($G17="","",VLOOKUP($E17,'T9'!$D$15:$AQ$44,MATCH($F$6,'T9'!$D$13:$AR$13,0),0)) -> 0 | R17: =IF($G17="","",VLOOKUP($E17,'T10'!$D$15:$AQ$44,MATCH($F$6,'T10'!$D$13:$AR$13,0),0)) -> 0 | S17: =IF($G17="","",VLOOKUP($E17,'T11'!$D$15:$AQ$44,MATCH($F$6,'T11'!$D$13:$AR$13,0),0)) -> 0 | T17: =IF($G17="","",VLOOKUP($E17,'T12'!$D$15:$AQ$44,MATCH($F$6,'T12'!$D$13:$AR$13,0),0)) -> 0
C18: ='Danh muc nhan vien'!C16 -> 5 | D18: ='Danh muc nhan vien'!D16 -> VP001 | E18: ='Danh muc nhan vien'!E16 -> Hồ Phương Lanh | F18: ='Danh muc nhan vien'!F16 -> KT Tổng hợp | G18: =IF('Danh muc nhan vien'!H16="","",'Danh muc nhan vien'!H16) -> 2014-05-10 | H18: =IF('Danh muc nhan vien'!I16="","",'Danh muc nhan vien'!I16) ->  | I18: =IF($G18="","",VLOOKUP($E18,'T1'!$D$15:$AQ$44,MATCH($F$6,'T1'!$D$13:$AR$13,0),0)) -> 0 | J18: =IF($G18="","",VLOOKUP($E18,'T2'!$D$15:$AQ$44,MATCH($F$6,'T2'!$D$13:$AR$13,0),0)) -> 0 | K18: =IF($G18="","",VLOOKUP($E18,'T3'!$D$15:$AQ$44,MATCH($F$6,'T3'!$D$13:$AR$13,0),0)) -> 0 | L18: =IF($G18="","",VLOOKUP($E18,'T4'!$D$15:$AQ$44,MATCH($F$6,'T4'!$D$13:$AR$13,0),0)) -> 0 | M18: =IF($G18="","",VLOOKUP($E18,'T5'!$D$15:$AQ$44,MATCH($F$6,'T5'!$D$13:$AR$13,0),0)) -> 0 | N18: =IF($G18="","",VLOOKUP($E18,'T6'!$D$15:$AQ$44,MATCH($F$6,'T6'!$D$13:$AR$13,0),0)) -> 0 | O18: =IF($G18="","",VLOOKUP($E18,'T7'!$D$15:$AQ$44,MATCH($F$6,'T7'!$D$13:$AR$13,0),0)) -> 0 | P18: =IF($G18="","",VLOOKUP($E18,'T8'!$D$15:$AQ$44,MATCH($F$6,'T8'!$D$13:$AR$13,0),0)) -> 0 | Q18: =IF($G18="","",VLOOKUP($E18,'T9'!$D$15:$AQ$44,MATCH($F$6,'T9'!$D$13:$AR$13,0),0)) -> 0 | R18: =IF($G18="","",VLOOKUP($E18,'T10'!$D$15:$AQ$44,MATCH($F$6,'T10'!$D$13:$AR$13,0),0)) -> 0 | S18: =IF($G18="","",VLOOKUP($E18,'T11'!$D$15:$AQ$44,MATCH($F$6,'T11'!$D$13:$AR$13,0),0)) -> 0 | T18: =IF($G18="","",VLOOKUP($E18,'T12'!$D$15:$AQ$44,MATCH($F$6,'T12'!$D$13:$AR$13,0),0)) -> 0
C19: ='Danh muc nhan vien'!C17 -> 6 | D19: ='Danh muc nhan vien'!D17 -> VP002 | E19: ='Danh muc nhan vien'!E17 -> Huỳnh Tùng Lâm | F19: ='Danh muc nhan vien'!F17 -> KT Viên | G19: =IF('Danh muc nhan vien'!H17="","",'Danh muc nhan vien'!H17) -> 2014-05-10 | H19: =IF('Danh muc nhan vien'!I17="","",'Danh muc nhan vien'!I17) -> 2015-01-15 | I19: =IF($G19="","",VLOOKUP($E19,'T1'!$D$15:$AQ$44,MATCH($F$6,'T1'!$D$13:$AR$13,0),0)) -> 0 | J19: =IF($G19="","",VLOOKUP($E19,'T2'!$D$15:$AQ$44,MATCH($F$6,'T2'!$D$13:$AR$13,0),0)) -> 0 | K19: =IF($G19="","",VLOOKUP($E19,'T3'!$D$15:$AQ$44,MATCH($F$6,'T3'!$D$13:$AR$13,0),0)) -> 0 | L19: =IF($G19="","",VLOOKUP($E19,'T4'!$D$15:$AQ$44,MATCH($F$6,'T4'!$D$13:$AR$13,0),0)) -> 0 | M19: =IF($G19="","",VLOOKUP($E19,'T5'!$D$15:$AQ$44,MATCH($F$6,'T5'!$D$13:$AR$13,0),0)) -> 0 | N19: =IF($G19="","",VLOOKUP($E19,'T6'!$D$15:$AQ$44,MATCH($F$6,'T6'!$D$13:$AR$13,0),0)) -> 0 | O19: =IF($G19="","",VLOOKUP($E19,'T7'!$D$15:$AQ$44,MATCH($F$6,'T7'!$D$13:$AR$13,0),0)) -> 0 | P19: =IF($G19="","",VLOOKUP($E19,'T8'!$D$15:$AQ$44,MATCH($F$6,'T8'!$D$13:$AR$13,0),0)) -> 0 | Q19: =IF($G19="","",VLOOKUP($E19,'T9'!$D$15:$AQ$44,MATCH($F$6,'T9'!$D$13:$AR$13,0),0)) -> 0 | R19: =IF($G19="","",VLOOKUP($E19,'T10'!$D$15:$AQ$44,MATCH($F$6,'T10'!$D$13:$AR$13,0),0)) -> 0 | S19: =IF($G19="","",VLOOKUP($E19,'T11'!$D$15:$AQ$44,MATCH($F$6,'T11'!$D$13:$AR$13,0),0)) -> 0 | T19: =IF($G19="","",VLOOKUP($E19,'T12'!$D$15:$AQ$44,MATCH($F$6,'T12'!$D$13:$AR$13,0),0)) -> 0
C20: ='Danh muc nhan vien'!C18 -> 7 | D20: ='Danh muc nhan vien'!D18 -> VP003 | E20: ='Danh muc nhan vien'!E18 -> Lê Đại Tài | F20: ='Danh muc nhan vien'!F18 -> KT Viên | G20: =IF('Danh muc nhan vien'!H18="","",'Danh muc nhan vien'!H18) -> 2014-05-10 | H20: =IF('Danh muc nhan vien'!I18="","",'Danh muc nhan vien'!I18) ->  | I20: =IF($G20="","",VLOOKUP($E20,'T1'!$D$15:$AQ$44,MATCH($F$6,'T1'!$D$13:$AR$13,0),0)) -> 0 | J20: =IF($G20="","",VLOOKUP($E20,'T2'!$D$15:$AQ$44,MATCH($F$6,'T2'!$D$13:$AR$13,0),0)) -> 0 | K20: =IF($G20="","",VLOOKUP($E20,'T3'!$D$15:$AQ$44,MATCH($F$6,'T3'!$D$13:$AR$13,0),0)) -> 0 | L20: =IF($G20="","",VLOOKUP($E20,'T4'!$D$15:$AQ$44,MATCH($F$6,'T4'!$D$13:$AR$13,0),0)) -> 0 | M20: =IF($G20="","",VLOOKUP($E20,'T5'!$D$15:$AQ$44,MATCH($F$6,'T5'!$D$13:$AR$13,0),0)) -> 0 | N20: =IF($G20="","",VLOOKUP($E20,'T6'!$D$15:$AQ$44,MATCH($F$6,'T6'!$D$13:$AR$13,0),0)) -> 0 | O20: =IF($G20="","",VLOOKUP($E20,'T7'!$D$15:$AQ$44,MATCH($F$6,'T7'!$D$13:$AR$13,0),0)) -> 0 | P20: =IF($G20="","",VLOOKUP($E20,'T8'!$D$15:$AQ$44,MATCH($F$6,'T8'!$D$13:$AR$13,0),0)) -> 0 | Q20: =IF($G20="","",VLOOKUP($E20,'T9'!$D$15:$AQ$44,MATCH($F$6,'T9'!$D$13:$AR$13,0),0)) -> 0 | R20: =IF($G20="","",VLOOKUP($E20,'T10'!$D$15:$AQ$44,MATCH($F$6,'T10'!$D$13:$AR$13,0),0)) -> 0 | S20: =IF($G20="","",VLOOKUP($E20,'T11'!$D$15:$AQ$44,MATCH($F$6,'T11'!$D$13:$AR$13,0),0)) -> 0 | T20: =IF($G20="","",VLOOKUP($E20,'T12'!$D$15:$AQ$44,MATCH($F$6,'T12'!$D$13:$AR$13,0),0)) -> 0
C21: ='Danh muc nhan vien'!C19 -> 8 | D21: ='Danh muc nhan vien'!D19 -> VP004 | E21: ='Danh muc nhan vien'!E19 -> Lâm Thị Cành | F21: ='Danh muc nhan vien'!F19 -> Nhân sự | G21: =IF('Danh muc nhan vien'!H19="","",'Danh muc nhan vien'!H19) -> 2014-09-22 | H21: =IF('Danh muc nhan vien'!I19="","",'Danh muc nhan vien'!I19) ->  | I21: =IF($G21="","",VLOOKUP($E21,'T1'!$D$15:$AQ$44,MATCH($F$6,'T1'!$D$13:$AR$13,0),0)) -> 0 | J21: =IF($G21="","",VLOOKUP($E21,'T2'!$D$15:$AQ$44,MATCH($F$6,'T2'!$D$13:$AR$13,0),0)) -> 0 | K21: =IF($G21="","",VLOOKUP($E21,'T3'!$D$15:$AQ$44,MATCH($F$6,'T3'!$D$13:$AR$13,0),0)) -> 0 | L21: =IF($G21="","",VLOOKUP($E21,'T4'!$D$15:$AQ$44,MATCH($F$6,'T4'!$D$13:$AR$13,0),0)) -> 0 | M21: =IF($G21="","",VLOOKUP($E21,'T5'!$D$15:$AQ$44,MATCH($F$6,'T5'!$D$13:$AR$13,0),0)) -> 0 | N21: =IF($G21="","",VLOOKUP($E21,'T6'!$D$15:$AQ$44,MATCH($F$6,'T6'!$D$13:$AR$13,0),0)) -> 0 | O21: =IF($G21="","",VLOOKUP($E21,'T7'!$D$15:$AQ$44,MATCH($F$6,'T7'!$D$13:$AR$13,0),0)) -> 0 | P21: =IF($G21="","",VLOOKUP($E21,'T8'!$D$15:$AQ$44,MATCH($F$6,'T8'!$D$13:$AR$13,0),0)) -> 0 | Q21: =IF($G21="","",VLOOKUP($E21,'T9'!$D$15:$AQ$44,MATCH($F$6,'T9'!$D$13:$AR$13,0),0)) -> 0 | R21: =IF($G21="","",VLOOKUP($E21,'T10'!$D$15:$AQ$44,MATCH($F$6,'T10'!$D$13:$AR$13,0),0)) -> 0 | S21: =IF($G21="","",VLOOKUP($E21,'T11'!$D$15:$AQ$44,MATCH($F$6,'T11'!$D$13:$AR$13,0),0)) -> 0 | T21: =IF($G21="","",VLOOKUP($E21,'T12'!$D$15:$AQ$44,MATCH($F$6,'T12'!$D$13:$AR$13,0),0)) -> 0
C22: ='Danh muc nhan vien'!C20 -> 9 | D22: ='Danh muc nhan vien'!D20 -> VP005 | E22: ='Danh muc nhan vien'!E20 -> Lê Đức Chinh | F22: ='Danh muc nhan vien'!F20 -> Hành chính | G22: =IF('Danh muc nhan vien'!H20="","",'Danh muc nhan vien'!H20) -> 2014-09-23 | H22: =IF('Danh muc nhan vien'!I20="","",'Danh muc nhan vien'!I20) -> 2015-11-15 | I22: =IF($G22="","",VLOOKUP($E22,'T1'!$D$15:$AQ$44,MATCH($F$6,'T1'!$D$13:$AR$13,0),0)) -> 0 | J22: =IF($G22="","",VLOOKUP($E22,'T2'!$D$15:$AQ$44,MATCH($F$6,'T2'!$D$13:$AR$13,0),0)) -> 0 | K22: =IF($G22="","",VLOOKUP($E22,'T3'!$D$15:$AQ$44,MATCH($F$6,'T3'!$D$13:$AR$13,0),0)) -> 0 | L22: =IF($G22="","",VLOOKUP($E22,'T4'!$D$15:$AQ$44,MATCH($F$6,'T4'!$D$13:$AR$13,0),0)) -> 0 | M22: =IF($G22="","",VLOOKUP($E22,'T5'!$D$15:$AQ$44,MATCH($F$6,'T5'!$D$13:$AR$13,0),0)) -> 0 | N22: =IF($G22="","",VLOOKUP($E22,'T6'!$D$15:$AQ$44,MATCH($F$6,'T6'!$D$13:$AR$13,0),0)) -> 0 | O22: =IF($G22="","",VLOOKUP($E22,'T7'!$D$15:$AQ$44,MATCH($F$6,'T7'!$D$13:$AR$13,0),0)) -> 0 | P22: =IF($G22="","",VLOOKUP($E22,'T8'!$D$15:$AQ$44,MATCH($F$6,'T8'!$D$13:$AR$13,0),0)) -> 0 | Q22: =IF($G22="","",VLOOKUP($E22,'T9'!$D$15:$AQ$44,MATCH($F$6,'T9'!$D$13:$AR$13,0),0)) -> 0 | R22: =IF($G22="","",VLOOKUP($E22,'T10'!$D$15:$AQ$44,MATCH($F$6,'T10'!$D$13:$AR$13,0),0)) -> 0 | S22: =IF($G22="","",VLOOKUP($E22,'T11'!$D$15:$AQ$44,MATCH($F$6,'T11'!$D$13:$AR$13,0),0)) -> 0 | T22: =IF($G22="","",VLOOKUP($E22,'T12'!$D$15:$AQ$44,MATCH($F$6,'T12'!$D$13:$AR$13,0),0)) -> 0
C23: ='Danh muc nhan vien'!C21 -> 10 | D23: ='Danh muc nhan vien'!D21 -> VP006 | E23: ='Danh muc nhan vien'!E21 -> Lê Văn Liêm | F23: ='Danh muc nhan vien'!F21 -> Marketing | G23: =IF('Danh muc nhan vien'!H21="","",'Danh muc nhan vien'!H21) -> 2014-09-24 | H23: =IF('Danh muc nhan vien'!I21="","",'Danh muc nhan vien'!I21) ->  | I23: =IF($G23="","",VLOOKUP($E23,'T1'!$D$15:$AQ$44,MATCH($F$6,'T1'!$D$13:$AR$13,0),0)) -> 0 | J23: =IF($G23="","",VLOOKUP($E23,'T2'!$D$15:$AQ$44,MATCH($F$6,'T2'!$D$13:$AR$13,0),0)) -> 0 | K23: =IF($G23="","",VLOOKUP($E23,'T3'!$D$15:$AQ$44,MATCH($F$6,'T3'!$D$13:$AR$13,0),0)) -> 0 | L23: =IF($G23="","",VLOOKUP($E23,'T4'!$D$15:$AQ$44,MATCH($F$6,'T4'!$D$13:$AR$13,0),0)) -> 0 | M23: =IF($G23="","",VLOOKUP($E23,'T5'!$D$15:$AQ$44,MATCH($F$6,'T5'!$D$13:$AR$13,0),0)) -> 0 | N23: =IF($G23="","",VLOOKUP($E23,'T6'!$D$15:$AQ$44,MATCH($F$6,'T6'!$D$13:$AR$13,0),0)) -> 0 | O23: =IF($G23="","",VLOOKUP($E23,'T7'!$D$15:$AQ$44,MATCH($F$6,'T7'!$D$13:$AR$13,0),0)) -> 0 | P23: =IF($G23="","",VLOOKUP($E23,'T8'!$D$15:$AQ$44,MATCH($F$6,'T8'!$D$13:$AR$13,0),0)) -> 0 | Q23: =IF($G23="","",VLOOKUP($E23,'T9'!$D$15:$AQ$44,MATCH($F$6,'T9'!$D$13:$AR$13,0),0)) -> 0 | R23: =IF($G23="","",VLOOKUP($E23,'T10'!$D$15:$AQ$44,MATCH($F$6,'T10'!$D$13:$AR$13,0),0)) -> 0 | S23: =IF($G23="","",VLOOKUP($E23,'T11'!$D$15:$AQ$44,MATCH($F$6,'T11'!$D$13:$AR$13,0),0)) -> 0 | T23: =IF($G23="","",VLOOKUP($E23,'T12'!$D$15:$AQ$44,MATCH($F$6,'T12'!$D$13:$AR$13,0),0)) -> 0
C24: ='Danh muc nhan vien'!C22 -> 11 | D24: ='Danh muc nhan vien'!D22 -> KD001 | E24: ='Danh muc nhan vien'!E22 -> Nguyễn Chí Thanh | F24: ='Danh muc nhan vien'!F22 -> NV Kinh Doanh | G24: =IF('Danh muc nhan vien'!H22="","",'Danh muc nhan vien'!H22) -> 2014-09-25 | H24: =IF('Danh muc nhan vien'!I22="","",'Danh muc nhan vien'!I22) ->  | I24: =IF($G24="","",VLOOKUP($E24,'T1'!$D$15:$AQ$44,MATCH($F$6,'T1'!$D$13:$AR$13,0),0)) -> 0 | J24: =IF($G24="","",VLOOKUP($E24,'T2'!$D$15:$AQ$44,MATCH($F$6,'T2'!$D$13:$AR$13,0),0)) -> 0 | K24: =IF($G24="","",VLOOKUP($E24,'T3'!$D$15:$AQ$44,MATCH($F$6,'T3'!$D$13:$AR$13,0),0)) -> 0 | L24: =IF($G24="","",VLOOKUP($E24,'T4'!$D$15:$AQ$44,MATCH($F$6,'T4'!$D$13:$AR$13,0),0)) -> 0 | M24: =IF($G24="","",VLOOKUP($E24,'T5'!$D$15:$AQ$44,MATCH($F$6,'T5'!$D$13:$AR$13,0),0)) -> 0 | N24: =IF($G24="","",VLOOKUP($E24,'T6'!$D$15:$AQ$44,MATCH($F$6,'T6'!$D$13:$AR$13,0),0)) -> 0 | O24: =IF($G24="","",VLOOKUP($E24,'T7'!$D$15:$AQ$44,MATCH($F$6,'T7'!$D$13:$AR$13,0),0)) -> 0 | P24: =IF($G24="","",VLOOKUP($E24,'T8'!$D$15:$AQ$44,MATCH($F$6,'T8'!$D$13:$AR$13,0),0)) -> 0 | Q24: =IF($G24="","",VLOOKUP($E24,'T9'!$D$15:$AQ$44,MATCH($F$6,'T9'!$D$13:$AR$13,0),0)) -> 0 | R24: =IF($G24="","",VLOOKUP($E24,'T10'!$D$15:$AQ$44,MATCH($F$6,'T10'!$D$13:$AR$13,0),0)) -> 0 | S24: =IF($G24="","",VLOOKUP($E24,'T11'!$D$15:$AQ$44,MATCH($F$6,'T11'!$D$13:$AR$13,0),0)) -> 0 | T24: =IF($G24="","",VLOOKUP($E24,'T12'!$D$15:$AQ$44,MATCH($F$6,'T12'!$D$13:$AR$13,0),0)) -> 0
C25: ='Danh muc nhan vien'!C23 -> 12 | D25: ='Danh muc nhan vien'!D23 -> KD002 | E25: ='Danh muc nhan vien'!E23 -> Nguyễn Hoàng Tính | F25: ='Danh muc nhan vien'!F23 -> NV Kinh Doanh | G25: =IF('Danh muc nhan vien'!H23="","",'Danh muc nhan vien'!H23) -> 2014-09-26 | H25: =IF('Danh muc nhan vien'!I23="","",'Danh muc nhan vien'!I23) -> 2015-08-10 | I25: =IF($G25="","",VLOOKUP($E25,'T1'!$D$15:$AQ$44,MATCH($F$6,'T1'!$D$13:$AR$13,0),0)) -> 0 | J25: =IF($G25="","",VLOOKUP($E25,'T2'!$D$15:$AQ$44,MATCH($F$6,'T2'!$D$13:$AR$13,0),0)) -> 0 | K25: =IF($G25="","",VLOOKUP($E25,'T3'!$D$15:$AQ$44,MATCH($F$6,'T3'!$D$13:$AR$13,0),0)) -> 0 | L25: =IF($G25="","",VLOOKUP($E25,'T4'!$D$15:$AQ$44,MATCH($F$6,'T4'!$D$13:$AR$13,0),0)) -> 0 | M25: =IF($G25="","",VLOOKUP($E25,'T5'!$D$15:$AQ$44,MATCH($F$6,'T5'!$D$13:$AR$13,0),0)) -> 0 | N25: =IF($G25="","",VLOOKUP($E25,'T6'!$D$15:$AQ$44,MATCH($F$6,'T6'!$D$13:$AR$13,0),0)) -> 0 | O25: =IF($G25="","",VLOOKUP($E25,'T7'!$D$15:$AQ$44,MATCH($F$6,'T7'!$D$13:$AR$13,0),0)) -> 0 | P25: =IF($G25="","",VLOOKUP($E25,'T8'!$D$15:$AQ$44,MATCH($F$6,'T8'!$D$13:$AR$13,0),0)) -> 0 | Q25: =IF($G25="","",VLOOKUP($E25,'T9'!$D$15:$AQ$44,MATCH($F$6,'T9'!$D$13:$AR$13,0),0)) -> 0 | R25: =IF($G25="","",VLOOKUP($E25,'T10'!$D$15:$AQ$44,MATCH($F$6,'T10'!$D$13:$AR$13,0),0)) -> 0 | S25: =IF($G25="","",VLOOKUP($E25,'T11'!$D$15:$AQ$44,MATCH($F$6,'T11'!$D$13:$AR$13,0),0)) -> 0 | T25: =IF($G25="","",VLOOKUP($E25,'T12'!$D$15:$AQ$44,MATCH($F$6,'T12'!$D$13:$AR$13,0),0)) -> 0
C26: ='Danh muc nhan vien'!C24 -> 13 | D26: ='Danh muc nhan vien'!D24 -> KD003 | E26: ='Danh muc nhan vien'!E24 -> Nguyễn Văn Hân | F26: ='Danh muc nhan vien'!F24 -> NV Kinh Doanh | G26: =IF('Danh muc nhan vien'!H24="","",'Danh muc nhan vien'!H24) -> 2014-09-27 | H26: =IF('Danh muc nhan vien'!I24="","",'Danh muc nhan vien'!I24) ->  | I26: =IF($G26="","",VLOOKUP($E26,'T1'!$D$15:$AQ$44,MATCH($F$6,'T1'!$D$13:$AR$13,0),0)) -> 0 | J26: =IF($G26="","",VLOOKUP($E26,'T2'!$D$15:$AQ$44,MATCH($F$6,'T2'!$D$13:$AR$13,0),0)) -> 0 | K26: =IF($G26="","",VLOOKUP($E26,'T3'!$D$15:$AQ$44,MATCH($F$6,'T3'!$D$13:$AR$13,0),0)) -> 0 | L26: =IF($G26="","",VLOOKUP($E26,'T4'!$D$15:$AQ$44,MATCH($F$6,'T4'!$D$13:$AR$13,0),0)) -> 0 | M26: =IF($G26="","",VLOOKUP($E26,'T5'!$D$15:$AQ$44,MATCH($F$6,'T5'!$D$13:$AR$13,0),0)) -> 0 | N26: =IF($G26="","",VLOOKUP($E26,'T6'!$D$15:$AQ$44,MATCH($F$6,'T6'!$D$13:$AR$13,0),0)) -> 0 | O26: =IF($G26="","",VLOOKUP($E26,'T7'!$D$15:$AQ$44,MATCH($F$6,'T7'!$D$13:$AR$13,0),0)) -> 0 | P26: =IF($G26="","",VLOOKUP($E26,'T8'!$D$15:$AQ$44,MATCH($F$6,'T8'!$D$13:$AR$13,0),0)) -> 0 | Q26: =IF($G26="","",VLOOKUP($E26,'T9'!$D$15:$AQ$44,MATCH($F$6,'T9'!$D$13:$AR$13,0),0)) -> 0 | R26: =IF($G26="","",VLOOKUP($E26,'T10'!$D$15:$AQ$44,MATCH($F$6,'T10'!$D$13:$AR$13,0),0)) -> 0 | S26: =IF($G26="","",VLOOKUP($E26,'T11'!$D$15:$AQ$44,MATCH($F$6,'T11'!$D$13:$AR$13,0),0)) -> 0 | T26: =IF($G26="","",VLOOKUP($E26,'T12'!$D$15:$AQ$44,MATCH($F$6,'T12'!$D$13:$AR$13,0),0)) -> 0
C27: ='Danh muc nhan vien'!C25 -> 14 | D27: ='Danh muc nhan vien'!D25 -> KD004 | E27: ='Danh muc nhan vien'!E25 -> Phạm Hoài An | F27: ='Danh muc nhan vien'!F25 -> NV Kinh Doanh | G27: =IF('Danh muc nhan vien'!H25="","",'Danh muc nhan vien'!H25) -> 2014-09-28 | H27: =IF('Danh muc nhan vien'!I25="","",'Danh muc nhan vien'!I25) ->  | I27: =IF($G27="","",VLOOKUP($E27,'T1'!$D$15:$AQ$44,MATCH($F$6,'T1'!$D$13:$AR$13,0),0)) -> 0 | J27: =IF($G27="","",VLOOKUP($E27,'T2'!$D$15:$AQ$44,MATCH($F$6,'T2'!$D$13:$AR$13,0),0)) -> 0 | K27: =IF($G27="","",VLOOKUP($E27,'T3'!$D$15:$AQ$44,MATCH($F$6,'T3'!$D$13:$AR$13,0),0)) -> 0 | L27: =IF($G27="","",VLOOKUP($E27,'T4'!$D$15:$AQ$44,MATCH($F$6,'T4'!$D$13:$AR$13,0),0)) -> 0 | M27: =IF($G27="","",VLOOKUP($E27,'T5'!$D$15:$AQ$44,MATCH($F$6,'T5'!$D$13:$AR$13,0),0)) -> 0 | N27: =IF($G27="","",VLOOKUP($E27,'T6'!$D$15:$AQ$44,MATCH($F$6,'T6'!$D$13:$AR$13,0),0)) -> 0 | O27: =IF($G27="","",VLOOKUP($E27,'T7'!$D$15:$AQ$44,MATCH($F$6,'T7'!$D$13:$AR$13,0),0)) -> 0 | P27: =IF($G27="","",VLOOKUP($E27,'T8'!$D$15:$AQ$44,MATCH($F$6,'T8'!$D$13:$AR$13,0),0)) -> 0 | Q27: =IF($G27="","",VLOOKUP($E27,'T9'!$D$15:$AQ$44,MATCH($F$6,'T9'!$D$13:$AR$13,0),0)) -> 0 | R27: =IF($G27="","",VLOOKUP($E27,'T10'!$D$15:$AQ$44,MATCH($F$6,'T10'!$D$13:$AR$13,0),0)) -> 0 | S27: =IF($G27="","",VLOOKUP($E27,'T11'!$D$15:$AQ$44,MATCH($F$6,'T11'!$D$13:$AR$13,0),0)) -> 0 | T27: =IF($G27="","",VLOOKUP($E27,'T12'!$D$15:$AQ$44,MATCH($F$6,'T12'!$D$13:$AR$13,0),0)) -> 0
C28: ='Danh muc nhan vien'!C26 -> 15 | D28: ='Danh muc nhan vien'!D26 -> 0 | E28: ='Danh muc nhan vien'!E26 -> 0 | F28: ='Danh muc nhan vien'!F26 -> 0 | G28: =IF('Danh muc nhan vien'!H26="","",'Danh muc nhan vien'!H26) ->  | H28: =IF('Danh muc nhan vien'!I26="","",'Danh muc nhan vien'!I26) ->  | I28: =IF($G28="","",VLOOKUP($E28,'T1'!$D$15:$AQ$44,MATCH($F$6,'T1'!$D$13:$AR$13,0),0)) ->  | J28: =IF($G28="","",VLOOKUP($E28,'T2'!$D$15:$AQ$44,MATCH($F$6,'T2'!$D$13:$AR$13,0),0)) ->  | K28: =IF($G28="","",VLOOKUP($E28,'T3'!$D$15:$AQ$44,MATCH($F$6,'T3'!$D$13:$AR$13,0),0)) ->  | L28: =IF($G28="","",VLOOKUP($E28,'T4'!$D$15:$AQ$44,MATCH($F$6,'T4'!$D$13:$AR$13,0),0)) ->  | M28: =IF($G28="","",VLOOKUP($E28,'T5'!$D$15:$AQ$44,MATCH($F$6,'T5'!$D$13:$AR$13,0),0)) ->  | N28: =IF($G28="","",VLOOKUP($E28,'T6'!$D$15:$AQ$44,MATCH($F$6,'T6'!$D$13:$AR$13,0),0)) ->  | O28: =IF($G28="","",VLOOKUP($E28,'T7'!$D$15:$AQ$44,MATCH($F$6,'T7'!$D$13:$AR$13,0),0)) ->  | P28: =IF($G28="","",VLOOKUP($E28,'T8'!$D$15:$AQ$44,MATCH($F$6,'T8'!$D$13:$AR$13,0),0)) ->  | Q28: =IF($G28="","",VLOOKUP($E28,'T9'!$D$15:$AQ$44,MATCH($F$6,'T9'!$D$13:$AR$13,0),0)) ->  | R28: =IF($G28="","",VLOOKUP($E28,'T10'!$D$15:$AQ$44,MATCH($F$6,'T10'!$D$13:$AR$13,0),0)) ->  | S28: =IF($G28="","",VLOOKUP($E28,'T11'!$D$15:$AQ$44,MATCH($F$6,'T11'!$D$13:$AR$13,0),0)) ->  | T28: =IF($G28="","",VLOOKUP($E28,'T12'!$D$15:$AQ$44,MATCH($F$6,'T12'!$D$13:$AR$13,0),0)) -> 
C29: ='Danh muc nhan vien'!C27 -> 16 | D29: ='Danh muc nhan vien'!D27 -> 0 | E29: ='Danh muc nhan vien'!E27 -> 0 | F29: ='Danh muc nhan vien'!F27 -> 0 | G29: =IF('Danh muc nhan vien'!H27="","",'Danh muc nhan vien'!H27) ->  | H29: =IF('Danh muc nhan vien'!I27="","",'Danh muc nhan vien'!I27) ->  | I29: =IF($G29="","",VLOOKUP($E29,'T1'!$D$15:$AQ$44,MATCH($F$6,'T1'!$D$13:$AR$13,0),0)) ->  | J29: =IF($G29="","",VLOOKUP($E29,'T2'!$D$15:$AQ$44,MATCH($F$6,'T2'!$D$13:$AR$13,0),0)) ->  | K29: =IF($G29="","",VLOOKUP($E29,'T3'!$D$15:$AQ$44,MATCH($F$6,'T3'!$D$13:$AR$13,0),0)) ->  | L29: =IF($G29="","",VLOOKUP($E29,'T4'!$D$15:$AQ$44,MATCH($F$6,'T4'!$D$13:$AR$13,0),0)) ->  | M29: =IF($G29="","",VLOOKUP($E29,'T5'!$D$15:$AQ$44,MATCH($F$6,'T5'!$D$13:$AR$13,0),0)) ->  | N29: =IF($G29="","",VLOOKUP($E29,'T6'!$D$15:$AQ$44,MATCH($F$6,'T6'!$D$13:$AR$13,0),0)) ->  | O29: =IF($G29="","",VLOOKUP($E29,'T7'!$D$15:$AQ$44,MATCH($F$6,'T7'!$D$13:$AR$13,0),0)) ->  | P29: =IF($G29="","",VLOOKUP($E29,'T8'!$D$15:$AQ$44,MATCH($F$6,'T8'!$D$13:$AR$13,0),0)) ->  | Q29: =IF($G29="","",VLOOKUP($E29,'T9'!$D$15:$AQ$44,MATCH($F$6,'T9'!$D$13:$AR$13,0),0)) ->  | R29: =IF($G29="","",VLOOKUP($E29,'T10'!$D$15:$AQ$44,MATCH($F$6,'T10'!$D$13:$AR$13,0),0)) ->  | S29: =IF($G29="","",VLOOKUP($E29,'T11'!$D$15:$AQ$44,MATCH($F$6,'T11'!$D$13:$AR$13,0),0)) ->  | T29: =IF($G29="","",VLOOKUP($E29,'T12'!$D$15:$AQ$44,MATCH($F$6,'T12'!$D$13:$AR$13,0),0)) -> 
C30: ='Danh muc nhan vien'!C28 -> 17 | D30: ='Danh muc nhan vien'!D28 -> 0 | E30: ='Danh muc nhan vien'!E28 -> 0 | F30: ='Danh muc nhan vien'!F28 -> 0 | G30: =IF('Danh muc nhan vien'!H28="","",'Danh muc nhan vien'!H28) ->  | H30: =IF('Danh muc nhan vien'!I28="","",'Danh muc nhan vien'!I28) ->  | I30: =IF($G30="","",VLOOKUP($E30,'T1'!$D$15:$AQ$44,MATCH($F$6,'T1'!$D$13:$AR$13,0),0)) ->  | J30: =IF($G30="","",VLOOKUP($E30,'T2'!$D$15:$AQ$44,MATCH($F$6,'T2'!$D$13:$AR$13,0),0)) ->  | K30: =IF($G30="","",VLOOKUP($E30,'T3'!$D$15:$AQ$44,MATCH($F$6,'T3'!$D$13:$AR$13,0),0)) ->  | L30: =IF($G30="","",VLOOKUP($E30,'T4'!$D$15:$AQ$44,MATCH($F$6,'T4'!$D$13:$AR$13,0),0)) ->  | M30: =IF($G30="","",VLOOKUP($E30,'T5'!$D$15:$AQ$44,MATCH($F$6,'T5'!$D$13:$AR$13,0),0)) ->  | N30: =IF($G30="","",VLOOKUP($E30,'T6'!$D$15:$AQ$44,MATCH($F$6,'T6'!$D$13:$AR$13,0),0)) ->  | O30: =IF($G30="","",VLOOKUP($E30,'T7'!$D$15:$AQ$44,MATCH($F$6,'T7'!$D$13:$AR$13,0),0)) ->  | P30: =IF($G30="","",VLOOKUP($E30,'T8'!$D$15:$AQ$44,MATCH($F$6,'T8'!$D$13:$AR$13,0),0)) ->  | Q30: =IF($G30="","",VLOOKUP($E30,'T9'!$D$15:$AQ$44,MATCH($F$6,'T9'!$D$13:$AR$13,0),0)) ->  | R30: =IF($G30="","",VLOOKUP($E30,'T10'!$D$15:$AQ$44,MATCH($F$6,'T10'!$D$13:$AR$13,0),0)) ->  | S30: =IF($G30="","",VLOOKUP($E30,'T11'!$D$15:$AQ$44,MATCH($F$6,'T11'!$D$13:$AR$13,0),0)) ->  | T30: =IF($G30="","",VLOOKUP($E30,'T12'!$D$15:$AQ$44,MATCH($F$6,'T12'!$D$13:$AR$13,0),0)) -> 
C31: ='Danh muc nhan vien'!C29 -> 18 | D31: ='Danh muc nhan vien'!D29 -> 0 | E31: ='Danh muc nhan vien'!E29 -> 0 | F31: ='Danh muc nhan vien'!F29 -> 0 | G31: =IF('Danh muc nhan vien'!H29="","",'Danh muc nhan vien'!H29) ->  | H31: =IF('Danh muc nhan vien'!I29="","",'Danh muc nhan vien'!I29) ->  | I31: =IF($G31="","",VLOOKUP($E31,'T1'!$D$15:$AQ$44,MATCH($F$6,'T1'!$D$13:$AR$13,0),0)) ->  | J31: =IF($G31="","",VLOOKUP($E31,'T2'!$D$15:$AQ$44,MATCH($F$6,'T2'!$D$13:$AR$13,0),0)) ->  | K31: =IF($G31="","",VLOOKUP($E31,'T3'!$D$15:$AQ$44,MATCH($F$6,'T3'!$D$13:$AR$13,0),0)) ->  | L31: =IF($G31="","",VLOOKUP($E31,'T4'!$D$15:$AQ$44,MATCH($F$6,'T4'!$D$13:$AR$13,0),0)) ->  | M31: =IF($G31="","",VLOOKUP($E31,'T5'!$D$15:$AQ$44,MATCH($F$6,'T5'!$D$13:$AR$13,0),0)) ->  | N31: =IF($G31="","",VLOOKUP($E31,'T6'!$D$15:$AQ$44,MATCH($F$6,'T6'!$D$13:$AR$13,0),0)) ->  | O31: =IF($G31="","",VLOOKUP($E31,'T7'!$D$15:$AQ$44,MATCH($F$6,'T7'!$D$13:$AR$13,0),0)) ->  | P31: =IF($G31="","",VLOOKUP($E31,'T8'!$D$15:$AQ$44,MATCH($F$6,'T8'!$D$13:$AR$13,0),0)) ->  | Q31: =IF($G31="","",VLOOKUP($E31,'T9'!$D$15:$AQ$44,MATCH($F$6,'T9'!$D$13:$AR$13,0),0)) ->  | R31: =IF($G31="","",VLOOKUP($E31,'T10'!$D$15:$AQ$44,MATCH($F$6,'T10'!$D$13:$AR$13,0),0)) ->  | S31: =IF($G31="","",VLOOKUP($E31,'T11'!$D$15:$AQ$44,MATCH($F$6,'T11'!$D$13:$AR$13,0),0)) ->  | T31: =IF($G31="","",VLOOKUP($E31,'T12'!$D$15:$AQ$44,MATCH($F$6,'T12'!$D$13:$AR$13,0),0)) -> 
C32: ='Danh muc nhan vien'!C30 -> 19 | D32: ='Danh muc nhan vien'!D30 -> 0 | E32: ='Danh muc nhan vien'!E30 -> 0 | F32: ='Danh muc nhan vien'!F30 -> 0 | G32: =IF('Danh muc nhan vien'!H30="","",'Danh muc nhan vien'!H30) ->  | H32: =IF('Danh muc nhan vien'!I30="","",'Danh muc nhan vien'!I30) ->  | I32: =IF($G32="","",VLOOKUP($E32,'T1'!$D$15:$AQ$44,MATCH($F$6,'T1'!$D$13:$AR$13,0),0)) ->  | J32: =IF($G32="","",VLOOKUP($E32,'T2'!$D$15:$AQ$44,MATCH($F$6,'T2'!$D$13:$AR$13,0),0)) ->  | K32: =IF($G32="","",VLOOKUP($E32,'T3'!$D$15:$AQ$44,MATCH($F$6,'T3'!$D$13:$AR$13,0),0)) ->  | L32: =IF($G32="","",VLOOKUP($E32,'T4'!$D$15:$AQ$44,MATCH($F$6,'T4'!$D$13:$AR$13,0),0)) ->  | M32: =IF($G32="","",VLOOKUP($E32,'T5'!$D$15:$AQ$44,MATCH($F$6,'T5'!$D$13:$AR$13,0),0)) ->  | N32: =IF($G32="","",VLOOKUP($E32,'T6'!$D$15:$AQ$44,MATCH($F$6,'T6'!$D$13:$AR$13,0),0)) ->  | O32: =IF($G32="","",VLOOKUP($E32,'T7'!$D$15:$AQ$44,MATCH($F$6,'T7'!$D$13:$AR$13,0),0)) ->  | P32: =IF($G32="","",VLOOKUP($E32,'T8'!$D$15:$AQ$44,MATCH($F$6,'T8'!$D$13:$AR$13,0),0)) ->  | Q32: =IF($G32="","",VLOOKUP($E32,'T9'!$D$15:$AQ$44,MATCH($F$6,'T9'!$D$13:$AR$13,0),0)) ->  | R32: =IF($G32="","",VLOOKUP($E32,'T10'!$D$15:$AQ$44,MATCH($F$6,'T10'!$D$13:$AR$13,0),0)) ->  | S32: =IF($G32="","",VLOOKUP($E32,'T11'!$D$15:$AQ$44,MATCH($F$6,'T11'!$D$13:$AR$13,0),0)) ->  | T32: =IF($G32="","",VLOOKUP($E32,'T12'!$D$15:$AQ$44,MATCH($F$6,'T12'!$D$13:$AR$13,0),0)) -> 
C33: ='Danh muc nhan vien'!C31 -> 20 | D33: ='Danh muc nhan vien'!D31 -> 0 | E33: ='Danh muc nhan vien'!E31 -> 0 | F33: ='Danh muc nhan vien'!F31 -> 0 | G33: =IF('Danh muc nhan vien'!H31="","",'Danh muc nhan vien'!H31) ->  | H33: =IF('Danh muc nhan vien'!I31="","",'Danh muc nhan vien'!I31) ->  | I33: =IF($G33="","",VLOOKUP($E33,'T1'!$D$15:$AQ$44,MATCH($F$6,'T1'!$D$13:$AR$13,0),0)) ->  | J33: =IF($G33="","",VLOOKUP($E33,'T2'!$D$15:$AQ$44,MATCH($F$6,'T2'!$D$13:$AR$13,0),0)) ->  | K33: =IF($G33="","",VLOOKUP($E33,'T3'!$D$15:$AQ$44,MATCH($F$6,'T3'!$D$13:$AR$13,0),0)) ->  | L33: =IF($G33="","",VLOOKUP($E33,'T4'!$D$15:$AQ$44,MATCH($F$6,'T4'!$D$13:$AR$13,0),0)) ->  | M33: =IF($G33="","",VLOOKUP($E33,'T5'!$D$15:$AQ$44,MATCH($F$6,'T5'!$D$13:$AR$13,0),0)) ->  | N33: =IF($G33="","",VLOOKUP($E33,'T6'!$D$15:$AQ$44,MATCH($F$6,'T6'!$D$13:$AR$13,0),0)) ->  | O33: =IF($G33="","",VLOOKUP($E33,'T7'!$D$15:$AQ$44,MATCH($F$6,'T7'!$D$13:$AR$13,0),0)) ->  | P33: =IF($G33="","",VLOOKUP($E33,'T8'!$D$15:$AQ$44,MATCH($F$6,'T8'!$D$13:$AR$13,0),0)) ->  | Q33: =IF($G33="","",VLOOKUP($E33,'T9'!$D$15:$AQ$44,MATCH($F$6,'T9'!$D$13:$AR$13,0),0)) ->  | R33: =IF($G33="","",VLOOKUP($E33,'T10'!$D$15:$AQ$44,MATCH($F$6,'T10'!$D$13:$AR$13,0),0)) ->  | S33: =IF($G33="","",VLOOKUP($E33,'T11'!$D$15:$AQ$44,MATCH($F$6,'T11'!$D$13:$AR$13,0),0)) ->  | T33: =IF($G33="","",VLOOKUP($E33,'T12'!$D$15:$AQ$44,MATCH($F$6,'T12'!$D$13:$AR$13,0),0)) -> 
C34: ='Danh muc nhan vien'!C32 -> 21 | D34: ='Danh muc nhan vien'!D32 -> 0 | E34: ='Danh muc nhan vien'!E32 -> 0 | F34: ='Danh muc nhan vien'!F32 -> 0 | G34: =IF('Danh muc nhan vien'!H32="","",'Danh muc nhan vien'!H32) ->  | H34: =IF('Danh muc nhan vien'!I32="","",'Danh muc nhan vien'!I32) ->  | I34: =IF($G34="","",VLOOKUP($E34,'T1'!$D$15:$AQ$44,MATCH($F$6,'T1'!$D$13:$AR$13,0),0)) ->  | J34: =IF($G34="","",VLOOKUP($E34,'T2'!$D$15:$AQ$44,MATCH($F$6,'T2'!$D$13:$AR$13,0),0)) ->  | K34: =IF($G34="","",VLOOKUP($E34,'T3'!$D$15:$AQ$44,MATCH($F$6,'T3'!$D$13:$AR$13,0),0)) ->  | L34: =IF($G34="","",VLOOKUP($E34,'T4'!$D$15:$AQ$44,MATCH($F$6,'T4'!$D$13:$AR$13,0),0)) ->  | M34: =IF($G34="","",VLOOKUP($E34,'T5'!$D$15:$AQ$44,MATCH($F$6,'T5'!$D$13:$AR$13,0),0)) ->  | N34: =IF($G34="","",VLOOKUP($E34,'T6'!$D$15:$AQ$44,MATCH($F$6,'T6'!$D$13:$AR$13,0),0)) ->  | O34: =IF($G34="","",VLOOKUP($E34,'T7'!$D$15:$AQ$44,MATCH($F$6,'T7'!$D$13:$AR$13,0),0)) ->  | P34: =IF($G34="","",VLOOKUP($E34,'T8'!$D$15:$AQ$44,MATCH($F$6,'T8'!$D$13:$AR$13,0),0)) ->  | Q34: =IF($G34="","",VLOOKUP($E34,'T9'!$D$15:$AQ$44,MATCH($F$6,'T9'!$D$13:$AR$13,0),0)) ->  | R34: =IF($G34="","",VLOOKUP($E34,'T10'!$D$15:$AQ$44,MATCH($F$6,'T10'!$D$13:$AR$13,0),0)) ->  | S34: =IF($G34="","",VLOOKUP($E34,'T11'!$D$15:$AQ$44,MATCH($F$6,'T11'!$D$13:$AR$13,0),0)) ->  | T34: =IF($G34="","",VLOOKUP($E34,'T12'!$D$15:$AQ$44,MATCH($F$6,'T12'!$D$13:$AR$13,0),0)) -> 
C35: ='Danh muc nhan vien'!C33 -> 22 | D35: ='Danh muc nhan vien'!D33 -> 0 | E35: ='Danh muc nhan vien'!E33 -> 0 | F35: ='Danh muc nhan vien'!F33 -> 0 | G35: =IF('Danh muc nhan vien'!H33="","",'Danh muc nhan vien'!H33) ->  | H35: =IF('Danh muc nhan vien'!I33="","",'Danh muc nhan vien'!I33) ->  | I35: =IF($G35="","",VLOOKUP($E35,'T1'!$D$15:$AQ$44,MATCH($F$6,'T1'!$D$13:$AR$13,0),0)) ->  | J35: =IF($G35="","",VLOOKUP($E35,'T2'!$D$15:$AQ$44,MATCH($F$6,'T2'!$D$13:$AR$13,0),0)) ->  | K35: =IF($G35="","",VLOOKUP($E35,'T3'!$D$15:$AQ$44,MATCH($F$6,'T3'!$D$13:$AR$13,0),0)) ->  | L35: =IF($G35="","",VLOOKUP($E35,'T4'!$D$15:$AQ$44,MATCH($F$6,'T4'!$D$13:$AR$13,0),0)) ->  | M35: =IF($G35="","",VLOOKUP($E35,'T5'!$D$15:$AQ$44,MATCH($F$6,'T5'!$D$13:$AR$13,0),0)) ->  | N35: =IF($G35="","",VLOOKUP($E35,'T6'!$D$15:$AQ$44,MATCH($F$6,'T6'!$D$13:$AR$13,0),0)) ->  | O35: =IF($G35="","",VLOOKUP($E35,'T7'!$D$15:$AQ$44,MATCH($F$6,'T7'!$D$13:$AR$13,0),0)) ->  | P35: =IF($G35="","",VLOOKUP($E35,'T8'!$D$15:$AQ$44,MATCH($F$6,'T8'!$D$13:$AR$13,0),0)) ->  | Q35: =IF($G35="","",VLOOKUP($E35,'T9'!$D$15:$AQ$44,MATCH($F$6,'T9'!$D$13:$AR$13,0),0)) ->  | R35: =IF($G35="","",VLOOKUP($E35,'T10'!$D$15:$AQ$44,MATCH($F$6,'T10'!$D$13:$AR$13,0),0)) ->  | S35: =IF($G35="","",VLOOKUP($E35,'T11'!$D$15:$AQ$44,MATCH($F$6,'T11'!$D$13:$AR$13,0),0)) ->  | T35: =IF($G35="","",VLOOKUP($E35,'T12'!$D$15:$AQ$44,MATCH($F$6,'T12'!$D$13:$AR$13,0),0)) -> 
C36: ='Danh muc nhan vien'!C34 -> 23 | D36: ='Danh muc nhan vien'!D34 -> 0 | E36: ='Danh muc nhan vien'!E34 -> 0 | F36: ='Danh muc nhan vien'!F34 -> 0 | G36: =IF('Danh muc nhan vien'!H34="","",'Danh muc nhan vien'!H34) ->  | H36: =IF('Danh muc nhan vien'!I34="","",'Danh muc nhan vien'!I34) ->  | I36: =IF($G36="","",VLOOKUP($E36,'T1'!$D$15:$AQ$44,MATCH($F$6,'T1'!$D$13:$AR$13,0),0)) ->  | J36: =IF($G36="","",VLOOKUP($E36,'T2'!$D$15:$AQ$44,MATCH($F$6,'T2'!$D$13:$AR$13,0),0)) ->  | K36: =IF($G36="","",VLOOKUP($E36,'T3'!$D$15:$AQ$44,MATCH($F$6,'T3'!$D$13:$AR$13,0),0)) ->  | L36: =IF($G36="","",VLOOKUP($E36,'T4'!$D$15:$AQ$44,MATCH($F$6,'T4'!$D$13:$AR$13,0),0)) ->  | M36: =IF($G36="","",VLOOKUP($E36,'T5'!$D$15:$AQ$44,MATCH($F$6,'T5'!$D$13:$AR$13,0),0)) ->  | N36: =IF($G36="","",VLOOKUP($E36,'T6'!$D$15:$AQ$44,MATCH($F$6,'T6'!$D$13:$AR$13,0),0)) ->  | O36: =IF($G36="","",VLOOKUP($E36,'T7'!$D$15:$AQ$44,MATCH($F$6,'T7'!$D$13:$AR$13,0),0)) ->  | P36: =IF($G36="","",VLOOKUP($E36,'T8'!$D$15:$AQ$44,MATCH($F$6,'T8'!$D$13:$AR$13,0),0)) ->  | Q36: =IF($G36="","",VLOOKUP($E36,'T9'!$D$15:$AQ$44,MATCH($F$6,'T9'!$D$13:$AR$13,0),0)) ->  | R36: =IF($G36="","",VLOOKUP($E36,'T10'!$D$15:$AQ$44,MATCH($F$6,'T10'!$D$13:$AR$13,0),0)) ->  | S36: =IF($G36="","",VLOOKUP($E36,'T11'!$D$15:$AQ$44,MATCH($F$6,'T11'!$D$13:$AR$13,0),0)) ->  | T36: =IF($G36="","",VLOOKUP($E36,'T12'!$D$15:$AQ$44,MATCH($F$6,'T12'!$D$13:$AR$13,0),0)) -> 
C37: ='Danh muc nhan vien'!C35 -> 24 | D37: ='Danh muc nhan vien'!D35 -> 0 | E37: ='Danh muc nhan vien'!E35 -> 0 | F37: ='Danh muc nhan vien'!F35 -> 0 | G37: =IF('Danh muc nhan vien'!H35="","",'Danh muc nhan vien'!H35) ->  | H37: =IF('Danh muc nhan vien'!I35="","",'Danh muc nhan vien'!I35) ->  | I37: =IF($G37="","",VLOOKUP($E37,'T1'!$D$15:$AQ$44,MATCH($F$6,'T1'!$D$13:$AR$13,0),0)) ->  | J37: =IF($G37="","",VLOOKUP($E37,'T2'!$D$15:$AQ$44,MATCH($F$6,'T2'!$D$13:$AR$13,0),0)) ->  | K37: =IF($G37="","",VLOOKUP($E37,'T3'!$D$15:$AQ$44,MATCH($F$6,'T3'!$D$13:$AR$13,0),0)) ->  | L37: =IF($G37="","",VLOOKUP($E37,'T4'!$D$15:$AQ$44,MATCH($F$6,'T4'!$D$13:$AR$13,0),0)) ->  | M37: =IF($G37="","",VLOOKUP($E37,'T5'!$D$15:$AQ$44,MATCH($F$6,'T5'!$D$13:$AR$13,0),0)) ->  | N37: =IF($G37="","",VLOOKUP($E37,'T6'!$D$15:$AQ$44,MATCH($F$6,'T6'!$D$13:$AR$13,0),0)) ->  | O37: =IF($G37="","",VLOOKUP($E37,'T7'!$D$15:$AQ$44,MATCH($F$6,'T7'!$D$13:$AR$13,0),0)) ->  | P37: =IF($G37="","",VLOOKUP($E37,'T8'!$D$15:$AQ$44,MATCH($F$6,'T8'!$D$13:$AR$13,0),0)) ->  | Q37: =IF($G37="","",VLOOKUP($E37,'T9'!$D$15:$AQ$44,MATCH($F$6,'T9'!$D$13:$AR$13,0),0)) ->  | R37: =IF($G37="","",VLOOKUP($E37,'T10'!$D$15:$AQ$44,MATCH($F$6,'T10'!$D$13:$AR$13,0),0)) ->  | S37: =IF($G37="","",VLOOKUP($E37,'T11'!$D$15:$AQ$44,MATCH($F$6,'T11'!$D$13:$AR$13,0),0)) ->  | T37: =IF($G37="","",VLOOKUP($E37,'T12'!$D$15:$AQ$44,MATCH($F$6,'T12'!$D$13:$AR$13,0),0)) -> 
C38: ='Danh muc nhan vien'!C36 -> 25 | D38: ='Danh muc nhan vien'!D36 -> 0 | E38: ='Danh muc nhan vien'!E36 -> 0 | F38: ='Danh muc nhan vien'!F36 -> 0 | G38: =IF('Danh muc nhan vien'!H36="","",'Danh muc nhan vien'!H36) ->  | H38: =IF('Danh muc nhan vien'!I36="","",'Danh muc nhan vien'!I36) ->  | I38: =IF($G38="","",VLOOKUP($E38,'T1'!$D$15:$AQ$44,MATCH($F$6,'T1'!$D$13:$AR$13,0),0)) ->  | J38: =IF($G38="","",VLOOKUP($E38,'T2'!$D$15:$AQ$44,MATCH($F$6,'T2'!$D$13:$AR$13,0),0)) ->  | K38: =IF($G38="","",VLOOKUP($E38,'T3'!$D$15:$AQ$44,MATCH($F$6,'T3'!$D$13:$AR$13,0),0)) ->  | L38: =IF($G38="","",VLOOKUP($E38,'T4'!$D$15:$AQ$44,MATCH($F$6,'T4'!$D$13:$AR$13,0),0)) ->  | M38: =IF($G38="","",VLOOKUP($E38,'T5'!$D$15:$AQ$44,MATCH($F$6,'T5'!$D$13:$AR$13,0),0)) ->  | N38: =IF($G38="","",VLOOKUP($E38,'T6'!$D$15:$AQ$44,MATCH($F$6,'T6'!$D$13:$AR$13,0),0)) ->  | O38: =IF($G38="","",VLOOKUP($E38,'T7'!$D$15:$AQ$44,MATCH($F$6,'T7'!$D$13:$AR$13,0),0)) ->  | P38: =IF($G38="","",VLOOKUP($E38,'T8'!$D$15:$AQ$44,MATCH($F$6,'T8'!$D$13:$AR$13,0),0)) ->  | Q38: =IF($G38="","",VLOOKUP($E38,'T9'!$D$15:$AQ$44,MATCH($F$6,'T9'!$D$13:$AR$13,0),0)) ->  | R38: =IF($G38="","",VLOOKUP($E38,'T10'!$D$15:$AQ$44,MATCH($F$6,'T10'!$D$13:$AR$13,0),0)) ->  | S38: =IF($G38="","",VLOOKUP($E38,'T11'!$D$15:$AQ$44,MATCH($F$6,'T11'!$D$13:$AR$13,0),0)) ->  | T38: =IF($G38="","",VLOOKUP($E38,'T12'!$D$15:$AQ$44,MATCH($F$6,'T12'!$D$13:$AR$13,0),0)) -> 
C39: ='Danh muc nhan vien'!C37 -> 26 | D39: ='Danh muc nhan vien'!D37 -> 0 | E39: ='Danh muc nhan vien'!E37 -> 0 | F39: ='Danh muc nhan vien'!F37 -> 0 | G39: =IF('Danh muc nhan vien'!H37="","",'Danh muc nhan vien'!H37) ->  | H39: =IF('Danh muc nhan vien'!I37="","",'Danh muc nhan vien'!I37) ->  | I39: =IF($G39="","",VLOOKUP($E39,'T1'!$D$15:$AQ$44,MATCH($F$6,'T1'!$D$13:$AR$13,0),0)) ->  | J39: =IF($G39="","",VLOOKUP($E39,'T2'!$D$15:$AQ$44,MATCH($F$6,'T2'!$D$13:$AR$13,0),0)) ->  | K39: =IF($G39="","",VLOOKUP($E39,'T3'!$D$15:$AQ$44,MATCH($F$6,'T3'!$D$13:$AR$13,0),0)) ->  | L39: =IF($G39="","",VLOOKUP($E39,'T4'!$D$15:$AQ$44,MATCH($F$6,'T4'!$D$13:$AR$13,0),0)) ->  | M39: =IF($G39="","",VLOOKUP($E39,'T5'!$D$15:$AQ$44,MATCH($F$6,'T5'!$D$13:$AR$13,0),0)) ->  | N39: =IF($G39="","",VLOOKUP($E39,'T6'!$D$15:$AQ$44,MATCH($F$6,'T6'!$D$13:$AR$13,0),0)) ->  | O39: =IF($G39="","",VLOOKUP($E39,'T7'!$D$15:$AQ$44,MATCH($F$6,'T7'!$D$13:$AR$13,0),0)) ->  | P39: =IF($G39="","",VLOOKUP($E39,'T8'!$D$15:$AQ$44,MATCH($F$6,'T8'!$D$13:$AR$13,0),0)) ->  | Q39: =IF($G39="","",VLOOKUP($E39,'T9'!$D$15:$AQ$44,MATCH($F$6,'T9'!$D$13:$AR$13,0),0)) ->  | R39: =IF($G39="","",VLOOKUP($E39,'T10'!$D$15:$AQ$44,MATCH($F$6,'T10'!$D$13:$AR$13,0),0)) ->  | S39: =IF($G39="","",VLOOKUP($E39,'T11'!$D$15:$AQ$44,MATCH($F$6,'T11'!$D$13:$AR$13,0),0)) ->  | T39: =IF($G39="","",VLOOKUP($E39,'T12'!$D$15:$AQ$44,MATCH($F$6,'T12'!$D$13:$AR$13,0),0)) -> 
C40: ='Danh muc nhan vien'!C38 -> 27 | D40: ='Danh muc nhan vien'!D38 -> 0 | E40: ='Danh muc nhan vien'!E38 -> 0 | F40: ='Danh muc nhan vien'!F38 -> 0 | G40: =IF('Danh muc nhan vien'!H38="","",'Danh muc nhan vien'!H38) ->  | H40: =IF('Danh muc nhan vien'!I38="","",'Danh muc nhan vien'!I38) ->  | I40: =IF($G40="","",VLOOKUP($E40,'T1'!$D$15:$AQ$44,MATCH($F$6,'T1'!$D$13:$AR$13,0),0)) ->  | J40: =IF($G40="","",VLOOKUP($E40,'T2'!$D$15:$AQ$44,MATCH($F$6,'T2'!$D$13:$AR$13,0),0)) ->  | K40: =IF($G40="","",VLOOKUP($E40,'T3'!$D$15:$AQ$44,MATCH($F$6,'T3'!$D$13:$AR$13,0),0)) ->  | L40: =IF($G40="","",VLOOKUP($E40,'T4'!$D$15:$AQ$44,MATCH($F$6,'T4'!$D$13:$AR$13,0),0)) ->  | M40: =IF($G40="","",VLOOKUP($E40,'T5'!$D$15:$AQ$44,MATCH($F$6,'T5'!$D$13:$AR$13,0),0)) ->  | N40: =IF($G40="","",VLOOKUP($E40,'T6'!$D$15:$AQ$44,MATCH($F$6,'T6'!$D$13:$AR$13,0),0)) ->  | O40: =IF($G40="","",VLOOKUP($E40,'T7'!$D$15:$AQ$44,MATCH($F$6,'T7'!$D$13:$AR$13,0),0)) ->  | P40: =IF($G40="","",VLOOKUP($E40,'T8'!$D$15:$AQ$44,MATCH($F$6,'T8'!$D$13:$AR$13,0),0)) ->  | Q40: =IF($G40="","",VLOOKUP($E40,'T9'!$D$15:$AQ$44,MATCH($F$6,'T9'!$D$13:$AR$13,0),0)) ->  | R40: =IF($G40="","",VLOOKUP($E40,'T10'!$D$15:$AQ$44,MATCH($F$6,'T10'!$D$13:$AR$13,0),0)) ->  | S40: =IF($G40="","",VLOOKUP($E40,'T11'!$D$15:$AQ$44,MATCH($F$6,'T11'!$D$13:$AR$13,0),0)) ->  | T40: =IF($G40="","",VLOOKUP($E40,'T12'!$D$15:$AQ$44,MATCH($F$6,'T12'!$D$13:$AR$13,0),0)) -> 
C41: ='Danh muc nhan vien'!C39 -> 28 | D41: ='Danh muc nhan vien'!D39 -> 0 | E41: ='Danh muc nhan vien'!E39 -> 0 | F41: ='Danh muc nhan vien'!F39 -> 0 | G41: =IF('Danh muc nhan vien'!H39="","",'Danh muc nhan vien'!H39) ->  | H41: =IF('Danh muc nhan vien'!I39="","",'Danh muc nhan vien'!I39) ->  | I41: =IF($G41="","",VLOOKUP($E41,'T1'!$D$15:$AQ$44,MATCH($F$6,'T1'!$D$13:$AR$13,0),0)) ->  | J41: =IF($G41="","",VLOOKUP($E41,'T2'!$D$15:$AQ$44,MATCH($F$6,'T2'!$D$13:$AR$13,0),0)) ->  | K41: =IF($G41="","",VLOOKUP($E41,'T3'!$D$15:$AQ$44,MATCH($F$6,'T3'!$D$13:$AR$13,0),0)) ->  | L41: =IF($G41="","",VLOOKUP($E41,'T4'!$D$15:$AQ$44,MATCH($F$6,'T4'!$D$13:$AR$13,0),0)) ->  | M41: =IF($G41="","",VLOOKUP($E41,'T5'!$D$15:$AQ$44,MATCH($F$6,'T5'!$D$13:$AR$13,0),0)) ->  | N41: =IF($G41="","",VLOOKUP($E41,'T6'!$D$15:$AQ$44,MATCH($F$6,'T6'!$D$13:$AR$13,0),0)) ->  | O41: =IF($G41="","",VLOOKUP($E41,'T7'!$D$15:$AQ$44,MATCH($F$6,'T7'!$D$13:$AR$13,0),0)) ->  | P41: =IF($G41="","",VLOOKUP($E41,'T8'!$D$15:$AQ$44,MATCH($F$6,'T8'!$D$13:$AR$13,0),0)) ->  | Q41: =IF($G41="","",VLOOKUP($E41,'T9'!$D$15:$AQ$44,MATCH($F$6,'T9'!$D$13:$AR$13,0),0)) ->  | R41: =IF($G41="","",VLOOKUP($E41,'T10'!$D$15:$AQ$44,MATCH($F$6,'T10'!$D$13:$AR$13,0),0)) ->  | S41: =IF($G41="","",VLOOKUP($E41,'T11'!$D$15:$AQ$44,MATCH($F$6,'T11'!$D$13:$AR$13,0),0)) ->  | T41: =IF($G41="","",VLOOKUP($E41,'T12'!$D$15:$AQ$44,MATCH($F$6,'T12'!$D$13:$AR$13,0),0)) -> 
C42: ='Danh muc nhan vien'!C40 -> 29 | D42: ='Danh muc nhan vien'!D40 -> 0 | E42: ='Danh muc nhan vien'!E40 -> 0 | F42: ='Danh muc nhan vien'!F40 -> 0 | G42: =IF('Danh muc nhan vien'!H40="","",'Danh muc nhan vien'!H40) ->  | H42: =IF('Danh muc nhan vien'!I40="","",'Danh muc nhan vien'!I40) ->  | I42: =IF($G42="","",VLOOKUP($E42,'T1'!$D$15:$AQ$44,MATCH($F$6,'T1'!$D$13:$AR$13,0),0)) ->  | J42: =IF($G42="","",VLOOKUP($E42,'T2'!$D$15:$AQ$44,MATCH($F$6,'T2'!$D$13:$AR$13,0),0)) ->  | K42: =IF($G42="","",VLOOKUP($E42,'T3'!$D$15:$AQ$44,MATCH($F$6,'T3'!$D$13:$AR$13,0),0)) ->  | L42: =IF($G42="","",VLOOKUP($E42,'T4'!$D$15:$AQ$44,MATCH($F$6,'T4'!$D$13:$AR$13,0),0)) ->  | M42: =IF($G42="","",VLOOKUP($E42,'T5'!$D$15:$AQ$44,MATCH($F$6,'T5'!$D$13:$AR$13,0),0)) ->  | N42: =IF($G42="","",VLOOKUP($E42,'T6'!$D$15:$AQ$44,MATCH($F$6,'T6'!$D$13:$AR$13,0),0)) ->  | O42: =IF($G42="","",VLOOKUP($E42,'T7'!$D$15:$AQ$44,MATCH($F$6,'T7'!$D$13:$AR$13,0),0)) ->  | P42: =IF($G42="","",VLOOKUP($E42,'T8'!$D$15:$AQ$44,MATCH($F$6,'T8'!$D$13:$AR$13,0),0)) ->  | Q42: =IF($G42="","",VLOOKUP($E42,'T9'!$D$15:$AQ$44,MATCH($F$6,'T9'!$D$13:$AR$13,0),0)) ->  | R42: =IF($G42="","",VLOOKUP($E42,'T10'!$D$15:$AQ$44,MATCH($F$6,'T10'!$D$13:$AR$13,0),0)) ->  | S42: =IF($G42="","",VLOOKUP($E42,'T11'!$D$15:$AQ$44,MATCH($F$6,'T11'!$D$13:$AR$13,0),0)) ->  | T42: =IF($G42="","",VLOOKUP($E42,'T12'!$D$15:$AQ$44,MATCH($F$6,'T12'!$D$13:$AR$13,0),0)) -> 
C43: ='Danh muc nhan vien'!C41 -> 30 | D43: ='Danh muc nhan vien'!D41 -> 0 | E43: ='Danh muc nhan vien'!E41 -> 0 | F43: ='Danh muc nhan vien'!F41 -> 0 | G43: =IF('Danh muc nhan vien'!H41="","",'Danh muc nhan vien'!H41) ->  | H43: =IF('Danh muc nhan vien'!I41="","",'Danh muc nhan vien'!I41) ->  | I43: =IF($G43="","",VLOOKUP($E43,'T1'!$D$15:$AQ$44,MATCH($F$6,'T1'!$D$13:$AR$13,0),0)) ->  | J43: =IF($G43="","",VLOOKUP($E43,'T2'!$D$15:$AQ$44,MATCH($F$6,'T2'!$D$13:$AR$13,0),0)) ->  | K43: =IF($G43="","",VLOOKUP($E43,'T3'!$D$15:$AQ$44,MATCH($F$6,'T3'!$D$13:$AR$13,0),0)) ->  | L43: =IF($G43="","",VLOOKUP($E43,'T4'!$D$15:$AQ$44,MATCH($F$6,'T4'!$D$13:$AR$13,0),0)) ->  | M43: =IF($G43="","",VLOOKUP($E43,'T5'!$D$15:$AQ$44,MATCH($F$6,'T5'!$D$13:$AR$13,0),0)) ->  | N43: =IF($G43="","",VLOOKUP($E43,'T6'!$D$15:$AQ$44,MATCH($F$6,'T6'!$D$13:$AR$13,0),0)) ->  | O43: =IF($G43="","",VLOOKUP($E43,'T7'!$D$15:$AQ$44,MATCH($F$6,'T7'!$D$13:$AR$13,0),0)) ->  | P43: =IF($G43="","",VLOOKUP($E43,'T8'!$D$15:$AQ$44,MATCH($F$6,'T8'!$D$13:$AR$13,0),0)) ->  | Q43: =IF($G43="","",VLOOKUP($E43,'T9'!$D$15:$AQ$44,MATCH($F$6,'T9'!$D$13:$AR$13,0),0)) ->  | R43: =IF($G43="","",VLOOKUP($E43,'T10'!$D$15:$AQ$44,MATCH($F$6,'T10'!$D$13:$AR$13,0),0)) ->  | S43: =IF($G43="","",VLOOKUP($E43,'T11'!$D$15:$AQ$44,MATCH($F$6,'T11'!$D$13:$AR$13,0),0)) ->  | T43: =IF($G43="","",VLOOKUP($E43,'T12'!$D$15:$AQ$44,MATCH($F$6,'T12'!$D$13:$AR$13,0),0)) -> 
C45: . | D45: . | E45: . | F45: . | G45: . | H45: . | I45: . | J45: . | K45: . | L45: . | M45: . | N45: . | O45: . | P45: . | Q45: . | R45: . | S45: . | T45: . | U45: .

Sheet Report-1
C7: =Setup!F10 -> Công ty TNHH Webkynang Việt Nam
C12: Tên Nhân viên | G12: : | H12: Lâm Thị Cành | O12: Năm | R12: : | S12: =year -> 2021
C14: Chức danh | G14: : | H14: =VLOOKUP(H12,DSNV,2,0) -> Nhân sự | O14: Ngày bắt đầu | R14: : | S14: =VLOOKUP(H12,DSNV,4,0) -> 2014-09-22
C16: Bộ phận | G16: : | H16: =VLOOKUP(H12,DSNV,3,0) -> HC - NS | O16: Ngày kết thúc | R16: : | S16: =IF(VLOOKUP(H12,DSNV,5,0)<1,"",VLOOKUP(H12,DSNV,5,0)) -> 
C21: Tháng | H21: TỔNG HỢP CHẤM CÔNG THEO TỪNG LOẠI
H22: X | I22: X2 | J22: NC | K22: NO | L22: … | M22: … | N22: … | O22: … | P22: … | Q22: … | S22: … | T22: … | U22: … | V22: …
C24: =year -> 2021 | H24: =SUM(H25:H36) -> 0 | I24: 0 | J24: 0 | K24: 0 | L24: 0 | M24: 0 | N24: 0 | O24: 0 | P24: 0 | Q24: 0 | R24: 0 | S24: 0 | T24: 0 | U24: 0 | V24: 0
C25: 1 | H25: =IF(H$22="…","",HLOOKUP(H$22,'T1'!$C$13:$AP$44,MATCH($H$12,'T1'!$D$13:$D$44,0),0)) -> 0 | I25: =IF(I$22="…","",HLOOKUP(I$22,'T1'!$C$13:$AP$44,MATCH($H$12,'T1'!$D$13:$D$44,0),0)) -> 0 | J25: =IF(J$22="…","",HLOOKUP(J$22,'T1'!$C$13:$AP$44,MATCH($H$12,'T1'!$D$13:$D$44,0),0)) -> 0 | K25: =IF(K$22="…","",HLOOKUP(K$22,'T1'!$C$13:$AP$44,MATCH($H$12,'T1'!$D$13:$D$44,0),0)) -> 0 | L25: =IF(L$22="…","",HLOOKUP(L$22,'T1'!$C$13:$AP$44,MATCH($H$12,'T1'!$D$13:$D$44,0),0)) ->  | M25: =IF(M$22="…","",HLOOKUP(M$22,'T1'!$C$13:$AP$44,MATCH($H$12,'T1'!$D$13:$D$44,0),0)) ->  | N25: =IF(N$22="…","",HLOOKUP(N$22,'T1'!$C$13:$AP$44,MATCH($H$12,'T1'!$D$13:$D$44,0),0)) ->  | O25: =IF(O$22="…","",HLOOKUP(O$22,'T1'!$C$13:$AP$44,MATCH($H$12,'T1'!$D$13:$D$44,0),0)) ->  | P25: =IF(P$22="…","",HLOOKUP(P$22,'T1'!$C$13:$AP$44,MATCH($H$12,'T1'!$D$13:$D$44,0),0)) ->  | Q25: =IF(Q$22="…","",HLOOKUP(Q$22,'T1'!$C$13:$AP$44,MATCH($H$12,'T1'!$D$13:$D$44,0),0)) ->  | S25: =IF(S$22="…","",HLOOKUP(S$22,'T1'!$C$13:$AP$44,MATCH($H$12,'T1'!$D$13:$D$44,0),0)) ->  | T25: =IF(T$22="…","",HLOOKUP(T$22,'T1'!$C$13:$AP$44,MATCH($H$12,'T1'!$D$13:$D$44,0),0)) ->  | U25: =IF(U$22="…","",HLOOKUP(U$22,'T1'!$C$13:$AP$44,MATCH($H$12,'T1'!$D$13:$D$44,0),0)) ->  | V25: =IF(V$22="…","",HLOOKUP(V$22,'T1'!$C$13:$AP$44,MATCH($H$12,'T1'!$D$13:$D$44,0),0)) -> 
C26: =C25+1 -> 2 | H26: =IF(H$22="…","",HLOOKUP(H$22,'T2'!$C$13:$AP$44,MATCH($H$12,'T2'!$D$13:$D$44,0),0)) -> 0 | I26: =IF(I$22="…","",HLOOKUP(I$22,'T2'!$C$13:$AP$44,MATCH($H$12,'T2'!$D$13:$D$44,0),0)) -> 0 | J26: =IF(J$22="…","",HLOOKUP(J$22,'T2'!$C$13:$AP$44,MATCH($H$12,'T2'!$D$13:$D$44,0),0)) -> 0 | K26: =IF(K$22="…","",HLOOKUP(K$22,'T2'!$C$13:$AP$44,MATCH($H$12,'T2'!$D$13:$D$44,0),0)) -> 0 | L26: =IF(L$22="…","",HLOOKUP(L$22,'T2'!$C$13:$AP$44,MATCH($H$12,'T2'!$D$13:$D$44,0),0)) ->  | M26: =IF(M$22="…","",HLOOKUP(M$22,'T2'!$C$13:$AP$44,MATCH($H$12,'T2'!$D$13:$D$44,0),0)) ->  | N26: =IF(N$22="…","",HLOOKUP(N$22,'T2'!$C$13:$AP$44,MATCH($H$12,'T2'!$D$13:$D$44,0),0)) ->  | O26: =IF(O$22="…","",HLOOKUP(O$22,'T2'!$C$13:$AP$44,MATCH($H$12,'T2'!$D$13:$D$44,0),0)) ->  | P26: =IF(P$22="…","",HLOOKUP(P$22,'T2'!$C$13:$AP$44,MATCH($H$12,'T2'!$D$13:$D$44,0),0)) ->  | Q26: =IF(Q$22="…","",HLOOKUP(Q$22,'T2'!$C$13:$AP$44,MATCH($H$12,'T2'!$D$13:$D$44,0),0)) ->  | S26: =IF(S$22="…","",HLOOKUP(S$22,'T2'!$C$13:$AP$44,MATCH($H$12,'T2'!$D$13:$D$44,0),0)) ->  | T26: =IF(T$22="…","",HLOOKUP(T$22,'T2'!$C$13:$AP$44,MATCH($H$12,'T2'!$D$13:$D$44,0),0)) ->  | U26: =IF(U$22="…","",HLOOKUP(U$22,'T2'!$C$13:$AP$44,MATCH($H$12,'T2'!$D$13:$D$44,0),0)) ->  | V26: =IF(V$22="…","",HLOOKUP(V$22,'T2'!$C$13:$AP$44,MATCH($H$12,'T2'!$D$13:$D$44,0),0)) -> 
C27: =C26+1 -> 3 | H27: =IF(H$22="…","",HLOOKUP(H$22,'T3'!$C$13:$AP$44,MATCH($H$12,'T3'!$D$13:$D$44,0),0)) -> 0 | I27: =IF(I$22="…","",HLOOKUP(I$22,'T3'!$C$13:$AP$44,MATCH($H$12,'T3'!$D$13:$D$44,0),0)) -> 0 | J27: =IF(J$22="…","",HLOOKUP(J$22,'T3'!$C$13:$AP$44,MATCH($H$12,'T3'!$D$13:$D$44,0),0)) -> 0 | K27: =IF(K$22="…","",HLOOKUP(K$22,'T3'!$C$13:$AP$44,MATCH($H$12,'T3'!$D$13:$D$44,0),0)) -> 0 | L27: =IF(L$22="…","",HLOOKUP(L$22,'T3'!$C$13:$AP$44,MATCH($H$12,'T3'!$D$13:$D$44,0),0)) ->  | M27: =IF(M$22="…","",HLOOKUP(M$22,'T3'!$C$13:$AP$44,MATCH($H$12,'T3'!$D$13:$D$44,0),0)) ->  | N27: =IF(N$22="…","",HLOOKUP(N$22,'T3'!$C$13:$AP$44,MATCH($H$12,'T3'!$D$13:$D$44,0),0)) ->  | O27: =IF(O$22="…","",HLOOKUP(O$22,'T3'!$C$13:$AP$44,MATCH($H$12,'T3'!$D$13:$D$44,0),0)) ->  | P27: =IF(P$22="…","",HLOOKUP(P$22,'T3'!$C$13:$AP$44,MATCH($H$12,'T3'!$D$13:$D$44,0),0)) ->  | Q27: =IF(Q$22="…","",HLOOKUP(Q$22,'T3'!$C$13:$AP$44,MATCH($H$12,'T3'!$D$13:$D$44,0),0)) ->  | S27: =IF(S$22="…","",HLOOKUP(S$22,'T3'!$C$13:$AP$44,MATCH($H$12,'T3'!$D$13:$D$44,0),0)) ->  | T27: =IF(T$22="…","",HLOOKUP(T$22,'T3'!$C$13:$AP$44,MATCH($H$12,'T3'!$D$13:$D$44,0),0)) ->  | U27: =IF(U$22="…","",HLOOKUP(U$22,'T3'!$C$13:$AP$44,MATCH($H$12,'T3'!$D$13:$D$44,0),0)) ->  | V27: =IF(V$22="…","",HLOOKUP(V$22,'T3'!$C$13:$AP$44,MATCH($H$12,'T3'!$D$13:$D$44,0),0)) -> 
C28: 4 | H28: =IF(H$22="…","",HLOOKUP(H$22,'T4'!$C$13:$AP$44,MATCH($H$12,'T4'!$D$13:$D$44,0),0)) -> 0 | I28: =IF(I$22="…","",HLOOKUP(I$22,'T4'!$C$13:$AP$44,MATCH($H$12,'T4'!$D$13:$D$44,0),0)) -> 0 | J28: =IF(J$22="…","",HLOOKUP(J$22,'T4'!$C$13:$AP$44,MATCH($H$12,'T4'!$D$13:$D$44,0),0)) -> 0 | K28: =IF(K$22="…","",HLOOKUP(K$22,'T4'!$C$13:$AP$44,MATCH($H$12,'T4'!$D$13:$D$44,0),0)) -> 0 | L28: =IF(L$22="…","",HLOOKUP(L$22,'T4'!$C$13:$AP$44,MATCH($H$12,'T4'!$D$13:$D$44,0),0)) ->  | M28: =IF(M$22="…","",HLOOKUP(M$22,'T4'!$C$13:$AP$44,MATCH($H$12,'T4'!$D$13:$D$44,0),0)) ->  | N28: =IF(N$22="…","",HLOOKUP(N$22,'T4'!$C$13:$AP$44,MATCH($H$12,'T4'!$D$13:$D$44,0),0)) ->  | O28: =IF(O$22="…","",HLOOKUP(O$22,'T4'!$C$13:$AP$44,MATCH($H$12,'T4'!$D$13:$D$44,0),0)) ->  | P28: =IF(P$22="…","",HLOOKUP(P$22,'T4'!$C$13:$AP$44,MATCH($H$12,'T4'!$D$13:$D$44,0),0)) ->  | Q28: =IF(Q$22="…","",HLOOKUP(Q$22,'T4'!$C$13:$AP$44,MATCH($H$12,'T4'!$D$13:$D$44,0),0)) ->  | S28: =IF(S$22="…","",HLOOKUP(S$22,'T4'!$C$13:$AP$44,MATCH($H$12,'T4'!$D$13:$D$44,0),0)) ->  | T28: =IF(T$22="…","",HLOOKUP(T$22,'T4'!$C$13:$AP$44,MATCH($H$12,'T4'!$D$13:$D$44,0),0)) ->  | U28: =IF(U$22="…","",HLOOKUP(U$22,'T4'!$C$13:$AP$44,MATCH($H$12,'T4'!$D$13:$D$44,0),0)) ->  | V28: =IF(V$22="…","",HLOOKUP(V$22,'T4'!$C$13:$AP$44,MATCH($H$12,'T4'!$D$13:$D$44,0),0)) -> 
C29: 5 | H29: =IF(H$22="…","",HLOOKUP(H$22,'T5'!$C$13:$AP$44,MATCH($H$12,'T5'!$D$13:$D$44,0),0)) -> 0 | I29: =IF(I$22="…","",HLOOKUP(I$22,'T5'!$C$13:$AP$44,MATCH($H$12,'T5'!$D$13:$D$44,0),0)) -> 0 | J29: =IF(J$22="…","",HLOOKUP(J$22,'T5'!$C$13:$AP$44,MATCH($H$12,'T5'!$D$13:$D$44,0),0)) -> 0 | K29: =IF(K$22="…","",HLOOKUP(K$22,'T5'!$C$13:$AP$44,MATCH($H$12,'T5'!$D$13:$D$44,0),0)) -> 0 | L29: =IF(L$22="…","",HLOOKUP(L$22,'T5'!$C$13:$AP$44,MATCH($H$12,'T5'!$D$13:$D$44,0),0)) ->  | M29: =IF(M$22="…","",HLOOKUP(M$22,'T5'!$C$13:$AP$44,MATCH($H$12,'T5'!$D$13:$D$44,0),0)) ->  | N29: =IF(N$22="…","",HLOOKUP(N$22,'T5'!$C$13:$AP$44,MATCH($H$12,'T5'!$D$13:$D$44,0),0)) ->  | O29: =IF(O$22="…","",HLOOKUP(O$22,'T5'!$C$13:$AP$44,MATCH($H$12,'T5'!$D$13:$D$44,0),0)) ->  | P29: =IF(P$22="…","",HLOOKUP(P$22,'T5'!$C$13:$AP$44,MATCH($H$12,'T5'!$D$13:$D$44,0),0)) ->  | Q29: =IF(Q$22="…","",HLOOKUP(Q$22,'T5'!$C$13:$AP$44,MATCH($H$12,'T5'!$D$13:$D$44,0),0)) ->  | S29: =IF(S$22="…","",HLOOKUP(S$22,'T5'!$C$13:$AP$44,MATCH($H$12,'T5'!$D$13:$D$44,0),0)) ->  | T29: =IF(T$22="…","",HLOOKUP(T$22,'T5'!$C$13:$AP$44,MATCH($H$12,'T5'!$D$13:$D$44,0),0)) ->  | U29: =IF(U$22="…","",HLOOKUP(U$22,'T5'!$C$13:$AP$44,MATCH($H$12,'T5'!$D$13:$D$44,0),0)) ->  | V29: =IF(V$22="…","",HLOOKUP(V$22,'T5'!$C$13:$AP$44,MATCH($H$12,'T5'!$D$13:$D$44,0),0)) -> 
C30: 6 | H30: =IF(H$22="…","",HLOOKUP(H$22,'T6'!$C$13:$AP$44,MATCH($H$12,'T6'!$D$13:$D$44,0),0)) -> 0 | I30: =IF(I$22="…","",HLOOKUP(I$22,'T6'!$C$13:$AP$44,MATCH($H$12,'T6'!$D$13:$D$44,0),0)) -> 0 | J30: =IF(J$22="…","",HLOOKUP(J$22,'T6'!$C$13:$AP$44,MATCH($H$12,'T6'!$D$13:$D$44,0),0)) -> 0 | K30: =IF(K$22="…","",HLOOKUP(K$22,'T6'!$C$13:$AP$44,MATCH($H$12,'T6'!$D$13:$D$44,0),0)) -> 0 | L30: =IF(L$22="…","",HLOOKUP(L$22,'T6'!$C$13:$AP$44,MATCH($H$12,'T6'!$D$13:$D$44,0),0)) ->  | M30: =IF(M$22="…","",HLOOKUP(M$22,'T6'!$C$13:$AP$44,MATCH($H$12,'T6'!$D$13:$D$44,0),0)) ->  | N30: =IF(N$22="…","",HLOOKUP(N$22,'T6'!$C$13:$AP$44,MATCH($H$12,'T6'!$D$13:$D$44,0),0)) ->  | O30: =IF(O$22="…","",HLOOKUP(O$22,'T6'!$C$13:$AP$44,MATCH($H$12,'T6'!$D$13:$D$44,0),0)) ->  | P30: =IF(P$22="…","",HLOOKUP(P$22,'T6'!$C$13:$AP$44,MATCH($H$12,'T6'!$D$13:$D$44,0),0)) ->  | Q30: =IF(Q$22="…","",HLOOKUP(Q$22,'T6'!$C$13:$AP$44,MATCH($H$12,'T6'!$D$13:$D$44,0),0)) ->  | S30: =IF(S$22="…","",HLOOKUP(S$22,'T6'!$C$13:$AP$44,MATCH($H$12,'T6'!$D$13:$D$44,0),0)) ->  | T30: =IF(T$22="…","",HLOOKUP(T$22,'T6'!$C$13:$AP$44,MATCH($H$12,'T6'!$D$13:$D$44,0),0)) ->  | U30: =IF(U$22="…","",HLOOKUP(U$22,'T6'!$C$13:$AP$44,MATCH($H$12,'T6'!$D$13:$D$44,0),0)) ->  | V30: =IF(V$22="…","",HLOOKUP(V$22,'T6'!$C$13:$AP$44,MATCH($H$12,'T6'!$D$13:$D$44,0),0)) -> 
C31: 7 | H31: =IF(H$22="…","",HLOOKUP(H$22,'T7'!$C$13:$AP$44,MATCH($H$12,'T7'!$D$13:$D$44,0),0)) -> 0 | I31: =IF(I$22="…","",HLOOKUP(I$22,'T7'!$C$13:$AP$44,MATCH($H$12,'T7'!$D$13:$D$44,0),0)) -> 0 | J31: =IF(J$22="…","",HLOOKUP(J$22,'T7'!$C$13:$AP$44,MATCH($H$12,'T7'!$D$13:$D$44,0),0)) -> 0 | K31: =IF(K$22="…","",HLOOKUP(K$22,'T7'!$C$13:$AP$44,MATCH($H$12,'T7'!$D$13:$D$44,0),0)) -> 0 | L31: =IF(L$22="…","",HLOOKUP(L$22,'T7'!$C$13:$AP$44,MATCH($H$12,'T7'!$D$13:$D$44,0),0)) ->  | M31: =IF(M$22="…","",HLOOKUP(M$22,'T7'!$C$13:$AP$44,MATCH($H$12,'T7'!$D$13:$D$44,0),0)) ->  | N31: =IF(N$22="…","",HLOOKUP(N$22,'T7'!$C$13:$AP$44,MATCH($H$12,'T7'!$D$13:$D$44,0),0)) ->  | O31: =IF(O$22="…","",HLOOKUP(O$22,'T7'!$C$13:$AP$44,MATCH($H$12,'T7'!$D$13:$D$44,0),0)) ->  | P31: =IF(P$22="…","",HLOOKUP(P$22,'T7'!$C$13:$AP$44,MATCH($H$12,'T7'!$D$13:$D$44,0),0)) ->  | Q31: =IF(Q$22="…","",HLOOKUP(Q$22,'T7'!$C$13:$AP$44,MATCH($H$12,'T7'!$D$13:$D$44,0),0)) ->  | S31: =IF(S$22="…","",HLOOKUP(S$22,'T7'!$C$13:$AP$44,MATCH($H$12,'T7'!$D$13:$D$44,0),0)) ->  | T31: =IF(T$22="…","",HLOOKUP(T$22,'T7'!$C$13:$AP$44,MATCH($H$12,'T7'!$D$13:$D$44,0),0)) ->  | U31: =IF(U$22="…","",HLOOKUP(U$22,'T7'!$C$13:$AP$44,MATCH($H$12,'T7'!$D$13:$D$44,0),0)) ->  | V31: =IF(V$22="…","",HLOOKUP(V$22,'T7'!$C$13:$AP$44,MATCH($H$12,'T7'!$D$13:$D$44,0),0)) -> 
C32: 8 | H32: =IF(H$22="…","",HLOOKUP(H$22,'T8'!$C$13:$AP$44,MATCH($H$12,'T8'!$D$13:$D$44,0),0)) -> 0 | I32: =IF(I$22="…","",HLOOKUP(I$22,'T8'!$C$13:$AP$44,MATCH($H$12,'T8'!$D$13:$D$44,0),0)) -> 0 | J32: =IF(J$22="…","",HLOOKUP(J$22,'T8'!$C$13:$AP$44,MATCH($H$12,'T8'!$D$13:$D$44,0),0)) -> 0 | K32: =IF(K$22="…","",HLOOKUP(K$22,'T8'!$C$13:$AP$44,MATCH($H$12,'T8'!$D$13:$D$44,0),0)) -> 0 | L32: =IF(L$22="…","",HLOOKUP(L$22,'T8'!$C$13:$AP$44,MATCH($H$12,'T8'!$D$13:$D$44,0),0)) ->  | M32: =IF(M$22="…","",HLOOKUP(M$22,'T8'!$C$13:$AP$44,MATCH($H$12,'T8'!$D$13:$D$44,0),0)) ->  | N32: =IF(N$22="…","",HLOOKUP(N$22,'T8'!$C$13:$AP$44,MATCH($H$12,'T8'!$D$13:$D$44,0),0)) ->  | O32: =IF(O$22="…","",HLOOKUP(O$22,'T8'!$C$13:$AP$44,MATCH($H$12,'T8'!$D$13:$D$44,0),0)) ->  | P32: =IF(P$22="…","",HLOOKUP(P$22,'T8'!$C$13:$AP$44,MATCH($H$12,'T8'!$D$13:$D$44,0),0)) ->  | Q32: =IF(Q$22="…","",HLOOKUP(Q$22,'T8'!$C$13:$AP$44,MATCH($H$12,'T8'!$D$13:$D$44,0),0)) ->  | S32: =IF(S$22="…","",HLOOKUP(S$22,'T8'!$C$13:$AP$44,MATCH($H$12,'T8'!$D$13:$D$44,0),0)) ->  | T32: =IF(T$22="…","",HLOOKUP(T$22,'T8'!$C$13:$AP$44,MATCH($H$12,'T8'!$D$13:$D$44,0),0)) ->  | U32: =IF(U$22="…","",HLOOKUP(U$22,'T8'!$C$13:$AP$44,MATCH($H$12,'T8'!$D$13:$D$44,0),0)) ->  | V32: =IF(V$22="…","",HLOOKUP(V$22,'T8'!$C$13:$AP$44,MATCH($H$12,'T8'!$D$13:$D$44,0),0)) -> 
C33: 9 | H33: =IF(H$22="…","",HLOOKUP(H$22,'T9'!$C$13:$AP$44,MATCH($H$12,'T9'!$D$13:$D$44,0),0)) -> 0 | I33: =IF(I$22="…","",HLOOKUP(I$22,'T9'!$C$13:$AP$44,MATCH($H$12,'T9'!$D$13:$D$44,0),0)) -> 0 | J33: =IF(J$22="…","",HLOOKUP(J$22,'T9'!$C$13:$AP$44,MATCH($H$12,'T9'!$D$13:$D$44,0),0)) -> 0 | K33: =IF(K$22="…","",HLOOKUP(K$22,'T9'!$C$13:$AP$44,MATCH($H$12,'T9'!$D$13:$D$44,0),0)) -> 0 | L33: =IF(L$22="…","",HLOOKUP(L$22,'T9'!$C$13:$AP$44,MATCH($H$12,'T9'!$D$13:$D$44,0),0)) ->  | M33: =IF(M$22="…","",HLOOKUP(M$22,'T9'!$C$13:$AP$44,MATCH($H$12,'T9'!$D$13:$D$44,0),0)) ->  | N33: =IF(N$22="…","",HLOOKUP(N$22,'T9'!$C$13:$AP$44,MATCH($H$12,'T9'!$D$13:$D$44,0),0)) ->  | O33: =IF(O$22="…","",HLOOKUP(O$22,'T9'!$C$13:$AP$44,MATCH($H$12,'T9'!$D$13:$D$44,0),0)) ->  | P33: =IF(P$22="…","",HLOOKUP(P$22,'T9'!$C$13:$AP$44,MATCH($H$12,'T9'!$D$13:$D$44,0),0)) ->  | Q33: =IF(Q$22="…","",HLOOKUP(Q$22,'T9'!$C$13:$AP$44,MATCH($H$12,'T9'!$D$13:$D$44,0),0)) ->  | S33: =IF(S$22="…","",HLOOKUP(S$22,'T9'!$C$13:$AP$44,MATCH($H$12,'T9'!$D$13:$D$44,0),0)) ->  | T33: =IF(T$22="…","",HLOOKUP(T$22,'T9'!$C$13:$AP$44,MATCH($H$12,'T9'!$D$13:$D$44,0),0)) ->  | U33: =IF(U$22="…","",HLOOKUP(U$22,'T9'!$C$13:$AP$44,MATCH($H$12,'T9'!$D$13:$D$44,0),0)) ->  | V33: =IF(V$22="…","",HLOOKUP(V$22,'T9'!$C$13:$AP$44,MATCH($H$12,'T9'!$D$13:$D$44,0),0)) -> 
C34: 10 | H34: =IF(H$22="…","",HLOOKUP(H$22,'T10'!$C$13:$AP$44,MATCH($H$12,'T10'!$D$13:$D$44,0),0)) -> 0 | I34: =IF(I$22="…","",HLOOKUP(I$22,'T10'!$C$13:$AP$44,MATCH($H$12,'T10'!$D$13:$D$44,0),0)) -> 0 | J34: =IF(J$22="…","",HLOOKUP(J$22,'T10'!$C$13:$AP$44,MATCH($H$12,'T10'!$D$13:$D$44,0),0)) -> 0 | K34: =IF(K$22="…","",HLOOKUP(K$22,'T10'!$C$13:$AP$44,MATCH($H$12,'T10'!$D$13:$D$44,0),0)) -> 0 | L34: =IF(L$22="…","",HLOOKUP(L$22,'T10'!$C$13:$AP$44,MATCH($H$12,'T10'!$D$13:$D$44,0),0)) ->  | M34: =IF(M$22="…","",HLOOKUP(M$22,'T10'!$C$13:$AP$44,MATCH($H$12,'T10'!$D$13:$D$44,0),0)) ->  | N34: =IF(N$22="…","",HLOOKUP(N$22,'T10'!$C$13:$AP$44,MATCH($H$12,'T10'!$D$13:$D$44,0),0)) ->  | O34: =IF(O$22="…","",HLOOKUP(O$22,'T10'!$C$13:$AP$44,MATCH($H$12,'T10'!$D$13:$D$44,0),0)) ->  | P34: =IF(P$22="…","",HLOOKUP(P$22,'T10'!$C$13:$AP$44,MATCH($H$12,'T10'!$D$13:$D$44,0),0)) ->  | Q34: =IF(Q$22="…","",HLOOKUP(Q$22,'T10'!$C$13:$AP$44,MATCH($H$12,'T10'!$D$13:$D$44,0),0)) ->  | S34: =IF(S$22="…","",HLOOKUP(S$22,'T10'!$C$13:$AP$44,MATCH($H$12,'T10'!$D$13:$D$44,0),0)) ->  | T34: =IF(T$22="…","",HLOOKUP(T$22,'T10'!$C$13:$AP$44,MATCH($H$12,'T10'!$D$13:$D$44,0),0)) ->  | U34: =IF(U$22="…","",HLOOKUP(U$22,'T10'!$C$13:$AP$44,MATCH($H$12,'T10'!$D$13:$D$44,0),0)) ->  | V34: =IF(V$22="…","",HLOOKUP(V$22,'T10'!$C$13:$AP$44,MATCH($H$12,'T10'!$D$13:$D$44,0),0)) -> 
C35: 11 | H35: =IF(H$22="…","",HLOOKUP(H$22,'T11'!$C$13:$AP$44,MATCH($H$12,'T11'!$D$13:$D$44,0),0)) -> 0 | I35: =IF(I$22="…","",HLOOKUP(I$22,'T11'!$C$13:$AP$44,MATCH($H$12,'T11'!$D$13:$D$44,0),0)) -> 0 | J35: =IF(J$22="…","",HLOOKUP(J$22,'T11'!$C$13:$AP$44,MATCH($H$12,'T11'!$D$13:$D$44,0),0)) -> 0 | K35: =IF(K$22="…","",HLOOKUP(K$22,'T11'!$C$13:$AP$44,MATCH($H$12,'T11'!$D$13:$D$44,0),0)) -> 0 | L35: =IF(L$22="…","",HLOOKUP(L$22,'T11'!$C$13:$AP$44,MATCH($H$12,'T11'!$D$13:$D$44,0),0)) ->  | M35: =IF(M$22="…","",HLOOKUP(M$22,'T11'!$C$13:$AP$44,MATCH($H$12,'T11'!$D$13:$D$44,0),0)) ->  | N35: =IF(N$22="…","",HLOOKUP(N$22,'T11'!$C$13:$AP$44,MATCH($H$12,'T11'!$D$13:$D$44,0),0)) ->  | O35: =IF(O$22="…","",HLOOKUP(O$22,'T11'!$C$13:$AP$44,MATCH($H$12,'T11'!$D$13:$D$44,0),0)) ->  | P35: =IF(P$22="…","",HLOOKUP(P$22,'T11'!$C$13:$AP$44,MATCH($H$12,'T11'!$D$13:$D$44,0),0)) ->  | Q35: =IF(Q$22="…","",HLOOKUP(Q$22,'T11'!$C$13:$AP$44,MATCH($H$12,'T11'!$D$13:$D$44,0),0)) ->  | S35: =IF(S$22="…","",HLOOKUP(S$22,'T11'!$C$13:$AP$44,MATCH($H$12,'T11'!$D$13:$D$44,0),0)) ->  | T35: =IF(T$22="…","",HLOOKUP(T$22,'T11'!$C$13:$AP$44,MATCH($H$12,'T11'!$D$13:$D$44,0),0)) ->  | U35: =IF(U$22="…","",HLOOKUP(U$22,'T11'!$C$13:$AP$44,MATCH($H$12,'T11'!$D$13:$D$44,0),0)) ->  | V35: =IF(V$22="…","",HLOOKUP(V$22,'T11'!$C$13:$AP$44,MATCH($H$12,'T11'!$D$13:$D$44,0),0)) -> 
C36: 12 | H36: =IF(H$22="…","",HLOOKUP(H$22,'T12'!$C$13:$AP$44,MATCH($H$12,'T12'!$D$13:$D$44,0),0)) -> 0 | I36: =IF(I$22="…","",HLOOKUP(I$22,'T12'!$C$13:$AP$44,MATCH($H$12,'T12'!$D$13:$D$44,0),0)) -> 0 | J36: =IF(J$22="…","",HLOOKUP(J$22,'T12'!$C$13:$AP$44,MATCH($H$12,'T12'!$D$13:$D$44,0),0)) -> 0 | K36: =IF(K$22="…","",HLOOKUP(K$22,'T12'!$C$13:$AP$44,MATCH($H$12,'T12'!$D$13:$D$44,0),0)) -> 0 | L36: =IF(L$22="…","",HLOOKUP(L$22,'T12'!$C$13:$AP$44,MATCH($H$12,'T12'!$D$13:$D$44,0),0)) ->  | M36: =IF(M$22="…","",HLOOKUP(M$22,'T12'!$C$13:$AP$44,MATCH($H$12,'T12'!$D$13:$D$44,0),0)) ->  | N36: =IF(N$22="…","",HLOOKUP(N$22,'T12'!$C$13:$AP$44,MATCH($H$12,'T12'!$D$13:$D$44,0),0)) ->  | O36: =IF(O$22="…","",HLOOKUP(O$22,'T12'!$C$13:$AP$44,MATCH($H$12,'T12'!$D$13:$D$44,0),0)) ->  | P36: =IF(P$22="…","",HLOOKUP(P$22,'T12'!$C$13:$AP$44,MATCH($H$12,'T12'!$D$13:$D$44,0),0)) ->  | Q36: =IF(Q$22="…","",HLOOKUP(Q$22,'T12'!$C$13:$AP$44,MATCH($H$12,'T12'!$D$13:$D$44,0),0)) ->  | S36: =IF(S$22="…","",HLOOKUP(S$22,'T12'!$C$13:$AP$44,MATCH($H$12,'T12'!$D$13:$D$44,0),0)) ->  | T36: =IF(T$22="…","",HLOOKUP(T$22,'T12'!$C$13:$AP$44,MATCH($H$12,'T12'!$D$13:$D$44,0),0)) ->  | U36: =IF(U$22="…","",HLOOKUP(U$22,'T12'!$C$13:$AP$44,MATCH($H$12,'T12'!$D$13:$D$44,0),0)) ->  | V36: =IF(V$22="…","",HLOOKUP(V$22,'T12'!$C$13:$AP$44,MATCH($H$12,'T12'!$D$13:$D$44,0),0)) -> 
C38: . | D38: . | E38: . | F38: . | G38: . | H38: . | S38: . | T38: . | U38: . | V38: .

Sheet Calendar
D1: Jan | E1: Apr | F1: Jul | G1: Oct | N1: Feb | O1: May | P1: Aug | Q1: Nov | V1: Mar | W1: Jun | X1: Sep | Y1: Dec
D2: ="1/1/" &C15 -> 1/1/2019 | E2: =V2+31 -> 2019-04-01 | F2: =W2+30 -> 2019-07-01 | G2: =X2+30 -> 2019-10-01 | M2: =IF(OR((AND(MOD(YEAR(D2),4)=0,MOD(YEAR(D2),100)<>0)), (MOD(YEAR(D2),400)=0)), 29,28) -> 28 | N2: =D2+31 -> 2019-02-01 | O2: =E2+30 -> 2019-05-01 | P2: =F2+31 -> 2019-08-01 | Q2: =G2+31 -> 2019-11-01 | V2: =N2+M2 -> 2019-03-01 | W2: =O2+31 -> 2019-06-01 | X2: =P2+31 -> 2019-09-01 | Y2: =Q2+30 -> 2019-12-01
B3: Jan | D3: =IF(WEEKDAY($D$2)=1,1,0) -> 0 | E3: =IF(WEEKDAY($D$2)=2,1,0) -> 0 | F3: =IF(WEEKDAY($D$2)=3,1,0) -> 1 | G3: =IF(WEEKDAY($D$2)=4,1,0) -> 0 | H3: =IF(WEEKDAY($D$2)=5,1,0) -> 0 | I3: =IF(WEEKDAY($D$2)=6,1,0) -> 0 | J3: =IF(WEEKDAY($D$2)=7,1,0) -> 0 | K3: Feb | M3: =IF(WEEKDAY($N$2)=1,1,0) -> 0 | N3: =IF(WEEKDAY($N$2)=2,1,0) -> 0 | O3: =IF(WEEKDAY($N$2)=3,1,0) -> 0 | P3: =IF(WEEKDAY($N$2)=4,1,0) -> 0 | Q3: =IF(WEEKDAY($N$2)=5,1,0) -> 0 | R3: =IF(WEEKDAY($N$2)=6,1,0) -> 1 | S3: =IF(WEEKDAY($N$2)=7,1,0) -> 0 | T3: Mar | V3: =IF(WEEKDAY($V$2)=1,1,0) -> 0 | W3: =IF(WEEKDAY($V$2)=2,1,0) -> 0 | X3: =IF(WEEKDAY($V$2)=3,1,0) -> 0 | Y3: =IF(WEEKDAY($V$2)=4,1,0) -> 0 | Z3: =IF(WEEKDAY($V$2)=5,1,0) -> 0 | AA3: =IF(WEEKDAY($V$2)=6,1,0) -> 1 | AB3: =IF(WEEKDAY($V$2)=7,1,0) -> 0
B4: Apr | D4: =IF(WEEKDAY($E$2)=1,1,0) -> 0 | E4: =IF(WEEKDAY($E$2)=2,1,0) -> 1 | F4: =IF(WEEKDAY($E$2)=3,1,0) -> 0 | G4: =IF(WEEKDAY($E$2)=4,1,0) -> 0 | H4: =IF(WEEKDAY($E$2)=5,1,0) -> 0 | I4: =IF(WEEKDAY($E$2)=6,1,0) -> 0 | J4: =IF(WEEKDAY($E$2)=7,1,0) -> 0 | K4: May | M4: =IF(WEEKDAY($O$2)=1,1,0) -> 0 | N4: =IF(WEEKDAY($O$2)=2,1,0) -> 0 | O4: =IF(WEEKDAY($O$2)=3,1,0) -> 0 | P4: =IF(WEEKDAY($O$2)=4,1,0) -> 1 | Q4: =IF(WEEKDAY($O$2)=5,1,0) -> 0 | R4: =IF(WEEKDAY($O$2)=6,1,0) -> 0 | S4: =IF(WEEKDAY($O$2)=7,1,0) -> 0 | T4: Jun | V4: =IF(WEEKDAY($W$2)=1,1,0) -> 0 | W4: =IF(WEEKDAY($W$2)=2,1,0) -> 0 | X4: =IF(WEEKDAY($W$2)=3,1,0) -> 0 | Y4: =IF(WEEKDAY($W$2)=4,1,0) -> 0 | Z4: =IF(WEEKDAY($W$2)=5,1,0) -> 0 | AA4: =IF(WEEKDAY($W$2)=6,1,0) -> 0 | AB4: =IF(WEEKDAY($W$2)=7,1,0) -> 1
B5: Jul | D5: =IF(WEEKDAY($F$2)=1,1,0) -> 0 | E5: =IF(WEEKDAY($F$2)=2,1,0) -> 1 | F5: =IF(WEEKDAY($F$2)=3,1,0) -> 0 | G5: =IF(WEEKDAY($F$2)=4,1,0) -> 0 | H5: =IF(WEEKDAY($F$2)=5,1,0) -> 0 | I5: =IF(WEEKDAY($F$2)=6,1,0) -> 0 | J5: =IF(WEEKDAY($F$2)=7,1,0) -> 0 | K5: Aug | M5: =IF(WEEKDAY($P$2)=1,1,0) -> 0 | N5: =IF(WEEKDAY($P$2)=2,1,0) -> 0 | O5: =IF(WEEKDAY($P$2)=3,1,0) -> 0 | P5: =IF(WEEKDAY($P$2)=4,1,0) -> 0 | Q5: =IF(WEEKDAY($P$2)=5,1,0) -> 1 | R5: =IF(WEEKDAY($P$2)=6,1,0) -> 0 | S5: =IF(WEEKDAY($P$2)=7,1,0) -> 0 | T5: Sep | V5: =IF(WEEKDAY($X$2)=1,1,0) -> 1 | W5: =IF(WEEKDAY($X$2)=2,1,0) -> 0 | X5: =IF(WEEKDAY($X$2)=3,1,0) -> 0 | Y5: =IF(WEEKDAY($X$2)=4,1,0) -> 0 | Z5: =IF(WEEKDAY($X$2)=5,1,0) -> 0 | AA5: =IF(WEEKDAY($X$2)=6,1,0) -> 0 | AB5: =IF(WEEKDAY($X$2)=7,1,0) -> 0
B6: Oct | D6: =IF(WEEKDAY($G$2)=1,1,0) -> 0 | E6: =IF(WEEKDAY($G$2)=2,1,0) -> 0 | F6: =IF(WEEKDAY($G$2)=3,1,0) -> 1 | G6: =IF(WEEKDAY($G$2)=4,1,0) -> 0 | H6: =IF(WEEKDAY($G$2)=5,1,0) -> 0 | I6: =IF(WEEKDAY($G$2)=6,1,0) -> 0 | J6: =IF(WEEKDAY($G$2)=7,1,0) -> 0 | K6: Nov | M6: =IF(WEEKDAY($Q$2)=1,1,0) -> 0 | N6: =IF(WEEKDAY($Q$2)=2,1,0) -> 0 | O6: =IF(WEEKDAY($Q$2)=3,1,0) -> 0 | P6: =IF(WEEKDAY($Q$2)=4,1,0) -> 0 | Q6: =IF(WEEKDAY($Q$2)=5,1,0) -> 0 | R6: =IF(WEEKDAY($Q$2)=6,1,0) -> 1 | S6: =IF(WEEKDAY($Q$2)=7,1,0) -> 0 | T6: Dec | V6: =IF(WEEKDAY($Y$2)=1,1,0) -> 1 | W6: =IF(WEEKDAY($Y$2)=2,1,0) -> 0 | X6: =IF(WEEKDAY($Y$2)=3,1,0) -> 0 | Y6: =IF(WEEKDAY($Y$2)=4,1,0) -> 0 | Z6: =IF(WEEKDAY($Y$2)=5,1,0) -> 0 | AA6: =IF(WEEKDAY($Y$2)=6,1,0) -> 0 | AB6: =IF(WEEKDAY($Y$2)=7,1,0) -> 0
C15: 2019 | K15: LỊCH NĂM | Q15: =C15 -> 2019
C17: THÁNG 1 | L17: THÁNG 2 | U17: THÁNG 3
C18: WK | D18: SUN | E18: MON | F18: TUE | G18: WED | H18: THU | I18: FRI | J18: SAT | L18: WK | M18: SUN | N18: MON | O18: TUE | P18: WED | Q18: THU | R18: FRI | S18: SAT | U18: WK | V18: SUN | W18: MON | X18: TUE | Y18: WED | Z18: THU | AA18: FRI | AB18: SAT
C19: 1 | D19: =IF($D$3=1,1,0) -> 0 | E19: =IF($E$3=1,1, IF(D19>0,D19+1, 0)) -> 0 | F19: =IF($F$3=1,1, IF(E19>0,E19+1, 0)) -> 1 | G19: =IF($G$3=1,1, IF(F19>0,F19+1, 0)) -> 2 | H19: =IF($H$3=1,1, IF(G19>0,G19+1, 0)) -> 3 | I19: =IF($I$3=1,1, IF(H19>0,H19+1, 0)) -> 4 | J19: =IF($J$3=1,1, IF(I19>0,I19+1, 0)) -> 5 | L19: =IF(MIN(D22:J22)=0,C22,IF(MIN(D23:J23)=0,C23,IF(MIN(D24:J24)=0,C23+1,0))) -> 5 | M19: =IF($M$3=1,1,0) -> 0 | N19: =IF($N$3=1,1, IF(M19>0,M19+1, 0)) -> 0 | O19: =IF($O$3=1,1, IF(N19>0,N19+1, 0)) -> 0 | P19: =IF($P$3=1,1, IF(O19>0,O19+1, 0)) -> 0 | Q19: =IF($Q$3=1,1, IF(P19>0,P19+1, 0)) -> 0 | R19: =IF($R$3=1,1, IF(Q19>0,Q19+1, 0)) -> 1 | S19: =IF($S$3=1,1, IF(R19>0,R19+1, 0)) -> 2 | U19: =IF(MIN(M22:S22)=0,L22,IF(MIN(M23:S23)=0,L23,IF(MIN(M24:S24)=0,L23+1,0))) -> 9 | V19: =IF($V$3=1,1,0) -> 0 | W19: =IF($W$3=1,1, IF(V19>0,V19+1, 0)) -> 0 | X19: =IF($X$3=1,1, IF(W19>0,W19+1, 0)) -> 0 | Y19: =IF($Y$3=1,1, IF(X19>0,X19+1, 0)) -> 0 | Z19: =IF($Z$3=1,1, IF(Y19>0,Y19+1, 0)) -> 0 | AA19: =IF($AA$3=1,1, IF(Z19>0,Z19+1, 0)) -> 1 | AB19: =IF($AB$3=1,1, IF(AA19>0,AA19+1, 0)) -> 2
C20: =C19+1 -> 2 | D20: =IF(AND(J19>0,J19<31),J19+1,0) -> 6 | E20: =IF(AND(D20>0,D20<31),D20+1,0) -> 7 | F20: 8 | G20: 9 | H20: 10 | I20: 11 | J20: 12 | L20: =L19+1 -> 6 | M20: =IF(AND(S19>0,S19<$M$2),S19+1,0) -> 3 | N20: =IF(AND(M20>0,M20<$M$2),M20+1,0) -> 4 | O20: 5 | P20: 6 | Q20: 7 | R20: 8 | S20: =IF(AND(R20>0,R20<$M$2),R20+1,0) -> 9 | U20: =U19+1 -> 10 | V20: =IF(AND(AB19>0,AB19<31),AB19+1,0) -> 3 | W20: =IF(AND(V20>0,V20<31),V20+1,0) -> 4 | X20: 5 | Y20: 6 | Z20: 7 | AA20: 8 | AB20: 9
C21: =C20+1 -> 3 | D21: =IF(AND(J20>0,J20<31),J20+1,0) -> 13 | E21: 14 | F21: 15 | G21: 16 | H21: 17 | I21: 18 | J21: 19 | L21: =L20+1 -> 7 | M21: =IF(AND(S20>0,S20<$M$2),S20+1,0) -> 10 | N21: 11 | O21: 12 | P21: 13 | Q21: 14 | R21: 15 | S21: 16 | U21: =U20+1 -> 11 | V21: =IF(AND(AB20>0,AB20<31),AB20+1,0) -> 10 | W21: 11 | X21: 12 | Y21: 13 | Z21: 14 | AA21: 15 | AB21: 16
C22: =C21+1 -> 4 | D22: =IF(AND(J21>0,J21<31),J21+1,0) -> 20 | E22: 21 | F22: 22 | G22: 23 | H22: 24 | I22: 25 | J22: 26 | L22: =L21+1 -> 8 | M22: =IF(AND(S21>0,S21<$M$2),S21+1,0) -> 17 | N22: 18 | O22: 19 | P22: 20 | Q22: 21 | R22: 22 | S22: 23 | U22: =U21+1 -> 12 | V22: =IF(AND(AB21>0,AB21<31),AB21+1,0) -> 17 | W22: 18 | X22: 19 | Y22: 20 | Z22: 21 | AA22: 22 | AB22: 23
C23: =C22+1 -> 5 | D23: =IF(AND(J22>0,J22<31),J22+1,0) -> 27 | E23: 28 | F23: 29 | G23: 30 | H23: 31 | I23: 0 | J23: 0 | L23: =L22+1 -> 9 | M23: =IF(AND(S22>0,S22<$M$2),S22+1,0) -> 24 | N23: 25 | O23: 26 | P23: 27 | Q23: 28 | R23: 0 | S23: 0 | U23: =U22+1 -> 13 | V23: =IF(AND(AB22>0,AB22<31),AB22+1,0) -> 24 | W23: 25 | X23: 26 | Y23: 27 | Z23: 28 | AA23: 29 | AB23: 30
C24: =IF(D24=0,0,C23+1) -> 0 | D24: =IF(AND(J23>0,J23<31),J23+1,0) -> 0 | E24: 0 | F24: 0 | G24: 0 | H24: 0 | I24: 0 | J24: 0 | L24: =IF(M24=0,0,L23+1) -> 0 | M24: =IF(AND(S23>0,S23<$M$2),S23+1,0) -> 0 | N24: 0 | O24: 0 | P24: 0 | Q24: 0 | R24: 0 | S24: 0 | U24: =IF(V24=0,0,U23+1) -> 14 | V24: =IF(AND(AB23>0,AB23<31),AB23+1,0) -> 31 | W24: 0 | X24: 0 | Y24: 0 | Z24: 0 | AA24: 0 | AB24: 0
P25: =IF(TODAY()=DATE(C15,2,14),"Sinh Nhat Tam","") ->  | Q25: 0 | R25: 0 | S25: 0 | AF25: 2013
C26: THÁNG 4 | L26: THÁNG 5 | U26: THÁNG 6 | AF26: =AF25+1 -> 2014
C27: WK | D27: SUN | E27: MON | F27: TUE | G27: WED | H27: THU | I27: FRI | J27: SAT | L27: WK | M27: SUN | N27: MON | O27: TUE | P27: WED | Q27: THU | R27: FRI | S27: SAT | U27: WK | V27: SUN | W27: MON | X27: TUE | Y27: WED | Z27: THU | AA27: FRI | AB27: SAT | AF27: 2015
C28: =IF(MIN(V22:AB22)=0,U22,IF(MIN(V23:AB23)=0,U23,IF(MIN(V24:AB24)=0,U23+1,0))) -> 14 | D28: =IF($D$4=1,1,0) -> 0 | E28: =IF($E$4=1,1, IF(D28>0,D28+1, 0)) -> 1 | F28: =IF($F$4=1,1, IF(E28>0,E28+1, 0)) -> 2 | G28: =IF($G$4=1,1, IF(F28>0,F28+1, 0)) -> 3 | H28: =IF($H$4=1,1, IF(G28>0,G28+1, 0)) -> 4 | I28: =IF($I$4=1,1, IF(H28>0,H28+1, 0)) -> 5 | J28: =IF($J$4=1,1, IF(I28>0,I28+1, 0)) -> 6 | L28: =IF(MIN(D31:J31)=0,C31,IF(MIN(D32:J32)=0,C32,IF(MIN(D33:J33)=0,C32+1,0))) -> 18 | M28: =IF($M$4=1,1,0) -> 0 | N28: =IF($N$4=1,1, IF(M28>0,M28+1, 0)) -> 0 | O28: =IF($O$4=1,1, IF(N28>0,N28+1, 0)) -> 0 | P28: =IF($P$4=1,1, IF(O28>0,O28+1, 0)) -> 1 | Q28: =IF($Q$4=1,1, IF(P28>0,P28+1, 0)) -> 2 | R28: =IF($R$4=1,1, IF(Q28>0,Q28+1, 0)) -> 3 | S28: =IF($S$4=1,1, IF(R28>0,R28+1, 0)) -> 4 | U28: =IF(MIN(M31:S31)=0,L31,IF(MIN(M32:S32)=0,L32,IF(MIN(M33:S33)=0,L32+1,0))) -> 22 | V28: =IF($V$4=1,1,0) -> 0 | W28: =IF($W$4=1,1, IF(V28>0,V28+1, 0)) -> 0 | X28: =IF($X$4=1,1, IF(W28>0,W28+1, 0)) -> 0 | Y28: =IF($Y$4=1,1, IF(X28>0,X28+1, 0)) -> 0 | Z28: =IF($Z$4=1,1, IF(Y28>0,Y28+1, 0)) -> 0 | AA28: =IF($AA$4=1,1, IF(Z28>0,Z28+1, 0)) -> 0 | AB28: =IF($AB$4=1,1, IF(AA28>0,AA28+1, 0)) -> 1 | AF28: 2016
C29: =C28+1 -> 15 | D29: =IF(AND(J28>0,J28<30),J28+1,0) -> 7 | E29: =IF(AND(D29>0,D29<30),D29+1,0) -> 8 | F29: 9 | G29: 10 | H29: 11 | I29: 12 | J29: 13 | L29: =L28+1 -> 19 | M29: =IF(AND(S28>0,S28<31),S28+1,0) -> 5 | N29: =IF(AND(M29>0,M29<31),M29+1,0) -> 6 | O29: 7 | P29: 8 | Q29: 9 | R29: 10 | S29: 11 | U29: =U28+1 -> 23 | V29: =IF(AND(AB28>0,AB28<30),AB28+1,0) -> 2 | W29: =IF(AND(V29>0,V29<30),V29+1,0) -> 3 | X29: 4 | Y29: 5 | Z29: 6 | AA29: 7 | AB29: 8 | AF29: 2017
C30: =C29+1 -> 16 | D30: =IF(AND(J29>0,J29<30),J29+1,0) -> 14 | E30: 15 | F30: 16 | G30: 17 | H30: 18 | I30: 19 | J30: 20 | L30: =L29+1 -> 20 | M30: =IF(AND(S29>0,S29<31),S29+1,0) -> 12 | N30: 13 | O30: 14 | P30: 15 | Q30: 16 | R30: 17 | S30: 18 | U30: =U29+1 -> 24 | V30: =IF(AND(AB29>0,AB29<30),AB29+1,0) -> 9 | W30: 10 | X30: 11 | Y30: 12 | Z30: 13 | AA30: 14 | AB30: 15 | AF30: 2018
C31: =C30+1 -> 17 | D31: =IF(AND(J30>0,J30<30),J30+1,0) -> 21 | E31: 22 | F31: 23 | G31: 24 | H31: 25 | I31: 26 | J31: 27 | L31: =L30+1 -> 21 | M31: =IF(AND(S30>0,S30<31),S30+1,0) -> 19 | N31: 20 | O31: 21 | P31: 22 | Q31: 23 | R31: 24 | S31: 25 | U31: =U30+1 -> 25 | V31: =IF(AND(AB30>0,AB30<30),AB30+1,0) -> 16 | W31: 17 | X31: 18 | Y31: 19 | Z31: 20 | AA31: 21 | AB31: 22 | AF31: 2019
C32: =C31+1 -> 18 | D32: =IF(AND(J31>0,J31<30),J31+1,0) -> 28 | E32: 29 | F32: 30 | G32: 0 | H32: 0 | I32: 0 | J32: 0 | L32: =L31+1 -> 22 | M32: =IF(AND(S31>0,S31<31),S31+1,0) -> 26 | N32: 27 | O32: 28 | P32: 29 | Q32: 30 | R32: 31 | S32: 0 | U32: =U31+1 -> 26 | V32: =IF(AND(AB31>0,AB31<30),AB31+1,0) -> 23 | W32: 24 | X32: 25 | Y32: 26 | Z32: 27 | AA32: 28 | AB32: 29 | AF32: 2020
C33: =IF(D33=0,0,C32+1) -> 0 | D33: =IF(AND(J32>0,J32<30),J32+1,0) -> 0 | E33: 0 | F33: 0 | G33: 0 | H33: 0 | I33: 0 | J33: 0 | L33: =IF(M33=0,0,L32+1) -> 0 | M33: =IF(AND(S32>0,S32<31),S32+1,0) -> 0 | N33: 0 | O33: 0 | P33: 0 | Q33: 0 | R33: 0 | S33: 0 | U33: =IF(V33=0,0,U32+1) -> 27 | V33: =IF(AND(AB32>0,AB32<30),AB32+1,0) -> 30 | W33: 0 | X33: 0 | Y33: 0 | Z33: 0 | AA33: 0 | AB33: 0 | AF33: 2021
AF34: 2022
C35: THÁNG 7 | L35: THÁNG 8 | U35: THÁNG 9 | AF35: 2023
C36: WK | D36: SUN | E36: MON | F36: TUE | G36: WED | H36: THU | I36: FRI | J36: SAT | L36: WK | M36: SUN | N36: MON | O36: TUE | P36: WED | Q36: THU | R36: FRI | S36: SAT | U36: WK | V36: SUN | W36: MON | X36: TUE | Y36: WED | Z36: THU | AA36: FRI | AB36: SAT | AF36: 2024
C37: =IF(MIN(V31:AB31)=0,U31,IF(MIN(V32:AB32)=0,U32,IF(MIN(V33:AB33)=0,U32+1,0))) -> 27 | D37: =IF($D$5=1,1,0) -> 0 | E37: =IF($E$5=1,1, IF(D37>0,D37+1, 0)) -> 1 | F37: =IF($F$5=1,1, IF(E37>0,E37+1, 0)) -> 2 | G37: =IF($G$5=1,1, IF(F37>0,F37+1, 0)) -> 3 | H37: =IF($H$5=1,1, IF(G37>0,G37+1, 0)) -> 4 | I37: =IF($I$5=1,1, IF(H37>0,H37+1, 0)) -> 5 | J37: =IF($J$5=1,1, IF(I37>0,I37+1, 0)) -> 6 | L37: =IF(MIN(D40:J40)=0,C40,IF(MIN(D41:J41)=0,C41,IF(MIN(D42:J42)=0,C41+1,0))) -> 31 | M37: =IF($M$5=1,1,0) -> 0 | N37: =IF($N$5=1,1, IF(M37>0,M37+1, 0)) -> 0 | O37: =IF($O$5=1,1, IF(N37>0,N37+1, 0)) -> 0 | P37: =IF($P$5=1,1, IF(O37>0,O37+1, 0)) -> 0 | Q37: =IF($Q$5=1,1, IF(P37>0,P37+1, 0)) -> 1 | R37: =IF($R$5=1,1, IF(Q37>0,Q37+1, 0)) -> 2 | S37: =IF($S$5=1,1, IF(R37>0,R37+1, 0)) -> 3 | U37: =IF(MIN(M40:S40)=0,L40,IF(MIN(M41:S41)=0,L41,IF(MIN(M42:S42)=0,L41+1,0))) -> 36 | V37: =IF($V$5=1,1,0) -> 1 | W37: =IF($W$5=1,1, IF(V37>0,V37+1, 0)) -> 2 | X37: =IF($X$5=1,1, IF(W37>0,W37+1, 0)) -> 3 | Y37: =IF($Y$5=1,1, IF(X37>0,X37+1, 0)) -> 4 | Z37: =IF($Z$5=1,1, IF(Y37>0,Y37+1, 0)) -> 5 | AA37: =IF($AA$5=1,1, IF(Z37>0,Z37+1, 0)) -> 6 | AB37: =IF($AB$5=1,1, IF(AA37>0,AA37+1, 0)) -> 7 | AF37: 2025
C38: =C37+1 -> 28 | D38: =IF(AND(J37>0,J37<31),J37+1,0) -> 7 | E38: =IF(AND(D38>0,D38<31),D38+1,0) -> 8 | F38: 9 | G38: 10 | H38: 11 | I38: 12 | J38: 13 | L38: =L37+1 -> 32 | M38: =IF(AND(S37>0,S37<31),S37+1,0) -> 4 | N38: =IF(AND(M38>0,M38<31),M38+1,0) -> 5 | O38: 6 | P38: 7 | Q38: 8 | R38: 9 | S38: 10 | U38: =U37+1 -> 37 | V38: =IF(AND(AB37>0,AB37<30),AB37+1,0) -> 8 | W38: =IF(AND(V38>0,V38<30),V38+1,0) -> 9 | X38: 10 | Y38: 11 | Z38: 12 | AA38: 13 | AB38: 14 | AF38: 2026
C39: =C38+1 -> 29 | D39: =IF(AND(J38>0,J38<31),J38+1,0) -> 14 | E39: 15 | F39: 16 | G39: 17 | H39: 18 | I39: 19 | J39: 20 | L39: =L38+1 -> 33 | M39: =IF(AND(S38>0,S38<31),S38+1,0) -> 11 | N39: 12 | O39: 13 | P39: 14 | Q39: 15 | R39: 16 | S39: 17 | U39: =U38+1 -> 38 | V39: =IF(AND(AB38>0,AB38<30),AB38+1,0) -> 15 | W39: 16 | X39: 17 | Y39: 18 | Z39: 19 | AA39: 20 | AB39: 21 | AF39: 2027
C40: =C39+1 -> 30 | D40: =IF(AND(J39>0,J39<31),J39+1,0) -> 21 | E40: 22 | F40: 23 | G40: 24 | H40: 25 | I40: 26 | J40: 27 | L40: =L39+1 -> 34 | M40: =IF(AND(S39>0,S39<31),S39+1,0) -> 18 | N40: 19 | O40: 20 | P40: 21 | Q40: 22 | R40: 23 | S40: 24 | U40: =U39+1 -> 39 | V40: =IF(AND(AB39>0,AB39<30),AB39+1,0) -> 22 | W40: 23 | X40: 24 | Y40: 25 | Z40: 26 | AA40: 27 | AB40: 28 | AF40: 2028
C41: =C40+1 -> 31 | D41: =IF(AND(J40>0,J40<31),J40+1,0) -> 28 | E41: 29 | F41: 30 | G41: 31 | H41: 0 | I41: 0 | J41: 0 | L41: =L40+1 -> 35 | M41: =IF(AND(S40>0,S40<31),S40+1,0) -> 25 | N41: 26 | O41: 27 | P41: 28 | Q41: 29 | R41: 30 | S41: 31 | U41: =U40+1 -> 40 | V41: =IF(AND(AB40>0,AB40<30),AB40+1,0) -> 29 | W41: 30 | X41: 0 | Y41: 0 | Z41: 0 | AA41: 0 | AB41: 0 | AF41: 2029
C42: =IF(D42=0,0,C41+1) -> 0 | D42: =IF(AND(J41>0,J41<31),J41+1,0) -> 0 | E42: 0 | F42: 0 | G42: 0 | H42: 0 | I42: 0 | J42: 0 | L42: =IF(M42=0,0,L41+1) -> 0 | M42: =IF(AND(S41>0,S41<31),S41+1,0) -> 0 | N42: 0 | O42: 0 | P42: 0 | Q42: 0 | R42: 0 | S42: 0 | U42: =IF(V42=0,0,U41+1) -> 0 | V42: =IF(AND(AB41>0,AB41<30),AB41+1,0) -> 0 | W42: 0 | X42: 0 | Y42: 0 | Z42: 0 | AA42: 0 | AB42: 0 | AF42: 2030
AF43: 2031
C44: THÁNG 10 | L44: THÁNG 11 | U44: THÁNG 12 | AF44: 2032
C45: WK | D45: SUN | E45: MON | F45: TUE | G45: WED | H45: THU | I45: FRI | J45: SAT | L45: WK | M45: SUN | N45: MON | O45: TUE | P45: WED | Q45: THU | R45: FRI | S45: SAT | U45: WK | V45: SUN | W45: MON | X45: TUE | Y45: WED | Z45: THU | AA45: FRI | AB45: SAT | AF45: 2033
C46: =IF(MIN(V40:AB40)=0,U40,IF(MIN(V41:AB41)=0,U41,IF(MIN(V42:AB42)=0,U41+1,0))) -> 40 | D46: =IF($D$6=1,1,0) -> 0 | E46: =IF($E$6=1,1, IF(D46>0,D46+1, 0)) -> 0 | F46: =IF($F$6=1,1, IF(E46>0,E46+1, 0)) -> 1 | G46: =IF($G$6=1,1, IF(F46>0,F46+1, 0)) -> 2 | H46: =IF($H$6=1,1, IF(G46>0,G46+1, 0)) -> 3 | I46: =IF($I$6=1,1, IF(H46>0,H46+1, 0)) -> 4 | J46: =IF($J$6=1,1, IF(I46>0,I46+1, 0)) -> 5 | L46: =IF(MIN(D49:J49)=0,C49,IF(MIN(D50:J50)=0,C50,IF(MIN(D51:J51)=0,C50+1,0))) -> 44 | M46: =IF($M$6=1,1,0) -> 0 | N46: =IF($N$6=1,1, IF(M46>0,M46+1, 0)) -> 0 | O46: =IF($O$6=1,1, IF(N46>0,N46+1, 0)) -> 0 | P46: =IF($P$6=1,1, IF(O46>0,O46+1, 0)) -> 0 | Q46: =IF($Q$6=1,1, IF(P46>0,P46+1, 0)) -> 0 | R46: =IF($R$6=1,1, IF(Q46>0,Q46+1, 0)) -> 1 | S46: =IF($S$6=1,1, IF(R46>0,R46+1, 0)) -> 2 | U46: =IF(MIN(M49:S49)=0,L49,IF(MIN(M50:S50)=0,L50,IF(MIN(M51:S51)=0,L50+1,0))) -> 49 | V46: =IF($V$6=1,1,0) -> 1 | W46: =IF($W$6=1,1, IF(V46>0,V46+1, 0)) -> 2 | X46: =IF($X$6=1,1, IF(W46>0,W46+1, 0)) -> 3 | Y46: =IF($Y$6=1,1, IF(X46>0,X46+1, 0)) -> 4 | Z46: =IF($Z$6=1,1, IF(Y46>0,Y46+1, 0)) -> 5 | AA46: =IF($AA$6=1,1, IF(Z46>0,Z46+1, 0)) -> 6 | AB46: =IF($AB$6=1,1, IF(AA46>0,AA46+1, 0)) -> 7 | AF46: 2034
C47: =C46+1 -> 41 | D47: =IF(AND(J46>0,J46<31),J46+1,0) -> 6 | E47: =IF(AND(D47>0,D47<31),D47+1,0) -> 7 | F47: 8 | G47: 9 | H47: 10 | I47: 11 | J47: 12 | L47: =L46+1 -> 45 | M47: =IF(AND(S46>0,S46<30),S46+1,0) -> 3 | N47: =IF(AND(M47>0,M47<30),M47+1,0) -> 4 | O47: 5 | P47: 6 | Q47: 7 | R47: 8 | S47: 9 | U47: =U46+1 -> 50 | V47: =IF(AND(AB46>0,AB46<31),AB46+1,0) -> 8 | W47: =IF(AND(V47>0,V47<31),V47+1,0) -> 9 | X47: 10 | Y47: 11 | Z47: 12 | AA47: 13 | AB47: 14 | AF47: 2035
C48: =C47+1 -> 42 | D48: =IF(AND(J47>0,J47<31),J47+1,0) -> 13 | E48: 14 | F48: 15 | G48: 16 | H48: 17 | I48: 18 | J48: 19 | L48: =L47+1 -> 46 | M48: =IF(AND(S47>0,S47<30),S47+1,0) -> 10 | N48: 11 | O48: 12 | P48: 13 | Q48: 14 | R48: 15 | S48: 16 | U48: =U47+1 -> 51 | V48: =IF(AND(AB47>0,AB47<31),AB47+1,0) -> 15 | W48: 16 | X48: 17 | Y48: 18 | Z48: 19 | AA48: 20 | AB48: 21 | AF48: 2036
C49: =C48+1 -> 43 | D49: =IF(AND(J48>0,J48<31),J48+1,0) -> 20 | E49: 21 | F49: 22 | G49: 23 | H49: 24 | I49: 25 | J49: 26 | L49: =L48+1 -> 47 | M49: =IF(AND(S48>0,S48<30),S48+1,0) -> 17 | N49: 18 | O49: 19 | P49: 20 | Q49: 21 | R49: 22 | S49: 23 | U49: =U48+1 -> 52 | V49: =IF(AND(AB48>0,AB48<31),AB48+1,0) -> 22 | W49: 23 | X49: 24 | Y49: 25 | Z49: 26 | AA49: 27 | AB49: 28 | AF49: 2037
C50: =C49+1 -> 44 | D50: =IF(AND(J49>0,J49<31),J49+1,0) -> 27 | E50: 28 | F50: 29 | G50: 30 | H50: 31 | I50: 0 | J50: 0 | L50: =L49+1 -> 48 | M50: =IF(AND(S49>0,S49<30),S49+1,0) -> 24 | N50: 25 | O50: 26 | P50: 27 | Q50: 28 | R50: 29 | S50: 30 | U50: =U49+1 -> 53 | V50: =IF(AND(AB49>0,AB49<31),AB49+1,0) -> 29 | W50: 30 | X50: 31 | Y50: 0 | Z50: 0 | AA50: 0 | AB50: 0 | AF50: 2038
C51: =IF(D51=0,0,C50+1) -> 0 | D51: =IF(AND(J50>0,J50<31),J50+1,0) -> 0 | E51: 0 | F51: 0 | G51: 0 | H51: 0 | I51: 0 | J51: 0 | L51: =IF(M51=0,0,L50+1) -> 0 | M51: =IF(AND(S50>0,S50<30),S50+1,0) -> 0 | N51: 0 | O51: 0 | P51: 0 | Q51: 0 | R51: 0 | S51: 0 | U51: =IF(V51=0,0,U50+1) -> 0 | V51: =IF(AND(AB50>0,AB50<31),AB50+1,0) -> 0 | W51: 0 | X51: 0 | Y51: 0 | Z51: 0 | AA51: 0 | AB51: 0 | AF51: 2039
AF52: 2040
AF53: 2041
AF54: 2042
AF55: 2043
AF56: 2044
AF57: 2045
AF58: 2046
AF59: 2047
AF60: 2048
AF61: 2049
AF62: 2050
AF63: 2051
AF64: 2052
AF65: 2053
AF66: 2054
AF67: 2055
AF68: 2056
AF69: 2057
AF70: 2058
AF71: 2059
AF72: 2060
AF73: 2061
AF74: 2062
AF75: 2063
AF76: 2064
AF77: 2065
AF78: 2066
AF79: 2067

Sheet Bang luong
C5: =Setup!F10 -> Công ty TNHH Webkynang Việt Nam | X5: =COLUMNS(D:V) -> 19
C6: =Setup!F11 -> Tầng 6, Tòa nhà Sannam, Duy Tân, Cầu Giấy, Hà Nội
C8: BẢNG THANH TOÁN TIỀN LƯƠNG | CC8: 1
C9: =VLOOKUP(code_thang2,code_thang1,2,0) -> Tháng 01 | X9: ĐVT: VNĐ | CC9: ="T"&CC8 -> T1
C10: Số TT | D10: Họ và Tên | E10: Chức vụ | F10: Lương CB | G10: Lương căn cứ Tham Gia BHXH, BHYT,BHTN | H10: Ngày công | I10: Lương tháng | J10: Phụ cấp | M10: Tổng thu nhập tháng | N10: Các Khoản Khấu Trừ Vào Lương | R10: THUẾ THU NHẬP CÁ NHÂN | V10: Tạm ứng | W10: THỰC LĨNH
J11: Trách nhiệm | K11: Tiền cơm | L11: Tổng | N11: BHXH | O11: BHYT | P11: BHTN | Q11: Tổng | R11: Giảm trừ phụ thuộc | T11: Thuế TNCN | W11: Số tiền | X11: Ký nhận
N12: =BHXH -> 0.08 | O12: =BHYT -> 0.015 | P12: =BHTN -> 0.01 | Q12: =SUM(N12:P12) -> 0.105 | R12: Số người | S12: Số tiền | T12: TN chịu thuế | U12: Tiền thuế TNCN
C14: 1 | D14: ='Danh muc nhan vien'!E12 -> Trần Văn Tám | E14: =IF(ISNA(VLOOKUP($D14,DSNV,2,0)),"",VLOOKUP($D14,DSNV,2,0)) -> Giám Đốc | F14: =IF(ISNA(VLOOKUP($D14,DSNV,8+RIGHT(code_thang2,LEN(code_thang2)-1),0)),0,VLOOKUP($D14,DSNV,8+RIGHT(code_thang2,LEN(code_thang2)-1),0)) -> 100000000 | G14: =IF(ISNA(VLOOKUP($D14,DSNV,21+RIGHT(code_thang2,LEN(code_thang2)-1),0)),0,VLOOKUP($D14,DSNV,21+RIGHT(code_thang2,LEN(code_thang2)-1),0)) -> 23000000 | H14: =VLOOKUP($D14,BCC,39,0) -> 2 | I14: =ROUND(F14/NTL*H14,0) -> 7407407 | J14: =IF(ISNA(VLOOKUP($D14,DSNV,34+RIGHT(code_thang2,LEN(code_thang2)-1),0)),0,VLOOKUP($D14,DSNV,34+RIGHT(code_thang2,LEN(code_thang2)-1),0)) -> 1000000 | K14: =IF(ISNA(VLOOKUP($D14,DSNV,47+RIGHT(code_thang2,LEN(code_thang2)-1),0)),0,VLOOKUP($D14,DSNV,47+RIGHT(code_thang2,LEN(code_thang2)-1),0)) -> 500000 | L14: =ROUND(SUM(J14:K14),0) -> 1500000 | M14: =ROUND(I14+L14,0) -> 8907407 | N14: =ROUND($G14*$N$12,0) -> 1840000 | O14: =ROUND($G14*$O$12,0) -> 345000 | P14: =ROUND($G14*$P$12,0) -> 230000 | Q14: =SUM(N14:P14) -> 2415000 | R14: =IF(ISNA(VLOOKUP($D14,DSNV,7,0)),0,VLOOKUP($D14,DSNV,7,0)) -> 2 | S14: =R14*Giamtru_NT -> 7200000 | T14: =IF(M14-Q14-S14-K14>Giamtru_BT,M14-Q14-Giamtru_NT-S14-K14+IF(K14>680000,(K14-680000),0),0) -> 0 | U14: =IF(T14<=Bac_1,T14*thueBac_1,IF(T14<=Bac_2,(T14-Bac_1)*Thuebac_2+thuebac_21,IF(T14<=Bac_3,(T14-Bac_2)*Thuebac_3+thuebac_31,IF(T14<=Bac_4,(T14-Bac_3)*THuebac_4+thuebac_41,IF(T14<=Bac_5,(T14-Bac_4)*Thuebac_5+thuebac_51,IF(T14<=Bac_6,(T14-Bac_5)*THuebac_6+thuebac_61,(T14-Bac_6)*Thuebac_7+thuebac_71)))))) -> 0 | V14: =IF(ISNA(VLOOKUP($D14,DSNV,60+RIGHT(code_thang2,LEN(code_thang2)-1),0)),0,VLOOKUP($D14,DSNV,60+RIGHT(code_thang2,LEN(code_thang2)-1),0)) -> 1000000 | W14: =ROUND(M14-Q14-U14-V14,0) -> 5492407
C15: =IF(D15="","",C14+1) -> 2 | D15: ='Danh muc nhan vien'!E13 -> Đặng Văn Thành | E15: Phó GĐ | F15: 70000000 | G15: 23000000 | H15: 0 | I15: 0 | J15: 700000 | K15: 500000 | L15: =ROUND(SUM(J15:K15),0) -> 1200000 | M15: =ROUND(I15+L15,0) -> 1200000 | N15: =ROUND($G15*$N$12,0) -> 1840000 | O15: 345000 | P15: 230000 | Q15: =SUM(N15:P15) -> 2415000 | R15: 2 | S15: 7200000 | T15: =IF(M15-Q15-S15-K15>9000000,M15-Q15-9000000-S15-K15+IF(K15>680000,(K15-680000),0),0) -> 0 | U15: 0 | V15: 0 | W15: -1215000
... 3 more rows

Sheet Phieu luong
C7: =Setup!F10 -> Công ty TNHH Webkynang Việt Nam | F7: Liên 1
C8: =Setup!D11&" "&Setup!F11 -> Địa chỉ: Tầng 6, Tòa nhà Sannam, Duy Tân, Cầu Giấy, Hà Nội
C10: ="PHIẾU LƯƠNG - "&VLOOKUP(code_thang2,code_thang1,2,0) -> PHIẾU LƯƠNG - Tháng 01
C12: SỐ TT | D12: CHỈ TIÊU | E12: SỐ LƯỢNG | F12: GHI CHÚ
C14: 1 | D14: Tên Nhân viên | E14: Lê Đức Chinh
C15: 2 | D15: Số Ngày công trong tháng | E15: =IF(ISERROR(VLOOKUP($E$14,bangluong,5,0)),"",VLOOKUP($E$14,bangluong,5,0)) -> 0
C16: 3 | D16: Tổng lương thực lĩnh | E16: =IF(ISERROR(VLOOKUP($E$14,bangluong,20,0)),"",VLOOKUP($E$14,bangluong,20,0)) -> 190250
C17: 4 | D17: Tổng lương ngày công | E17: =IF(ISERROR(VLOOKUP($E$14,bangluong,6,0)),"",VLOOKUP($E$14,bangluong,6,0)) -> 0
C18: 5 | D18: Tổng Phụ cấp | E18: =IF(ISERROR(VLOOKUP($E$14,bangluong,9,0)),"",VLOOKUP($E$14,bangluong,9,0)) -> 500000
C19: 6 | D19: Các koản khấu trừ vào lương | E19: =IF(ISERROR(VLOOKUP($E$14,bangluong,14,0)),"",(-1)*VLOOKUP($E$14,bangluong,14,0)) -> -309750
C20: 7 | D20: Thuế thu nhập cá nhân | E20: =IF(ISERROR(VLOOKUP($E$14,bangluong,18,0)),"",(-1)*VLOOKUP($E$14,bangluong,18,0)) -> 0
C21: 8 | D21: Tạm ứng | E21: =IF(ISERROR(VLOOKUP($E$14,bangluong,19,0)),"",(-1)*VLOOKUP($E$14,bangluong,19,0)) -> 0
D24: NGƯỜI LẬP | E24: NGƯỜI LAO ĐỘNG
D28: =Chamcong -> Vũ Trình B | E28: =E14 -> Lê Đức Chinh
C31: =C7 -> Công ty TNHH Webkynang Việt Nam | F31: Liên 2
C32: =C8 -> Địa chỉ: Tầng 6, Tòa nhà Sannam, Duy Tân, Cầu Giấy, Hà Nội
C34: =C10 -> PHIẾU LƯƠNG - Tháng 01
C36: SỐ TT | D36: CHỈ TIÊU | E36: SỐ LƯỢNG | F36: GHI CHÚ
C38: =C14 -> 1 | D38: =D14 -> Tên Nhân viên | E38: =E14 -> Lê Đức Chinh
C39: =C15 -> 2 | D39: Số Ngày công trong tháng | E39: 0
C40: 3 | D40: Tổng lương thực lĩnh | E40: 190250
C41: 4 | D41: Tổng lương ngày công | E41: 0
C42: 5 | D42: Tổng Phụ cấp | E42: 500000
C43: 6 | D43: Các koản khấu trừ vào lương | E43: -309750
C44: 7 | D44: Thuế thu nhập cá nhân | E44: 0
C45: 8 | D45: Tạm ứng | E45: 0
D48: NGƯỜI LẬP | E48: NGƯỜI LAO ĐỘNG
D52: =D28 -> Vũ Trình B | E52: =E38 -> Lê Đức Chinh

Sheet Setup
D6: CÀI ĐẶT PHẦN MỀM
D8: Thông tin doanh nghiệp
D10: Tên công ty: | F10: Công ty TNHH Webkynang Việt Nam | K10: Giám Đốc : | M10: Mr. Trường
D11: Địa chỉ: | F11: Tầng 6, Tòa nhà Sannam, Duy Tân, Cầu Giấy, Hà Nội | K11: Phụ trách bộ phận: | M11: Nguyễn Linh A
D12: MST: | F12: 038 997 8430/ Webkynang.vn@gmail.com | K12: Chấm công | M12: Vũ Trình B
D14: Thời gian làm việc
D16: Năm báo cáo: | F16: 2021 | H16: Ngày làm việc | K16: Ngày lễ
D18: Tháng | E18: Số ngày công | H18: T.Hai | I18: TRUE | K18: Ngày | L18: Nội dung
D19: 1 | E19: 27 | H19: T.Ba | I19: TRUE | K19: 2019-01-10 | L19: Thành lập Tập Đoàn
D20: 2 | E20: 24 | H20: T.Tư | I20: TRUE | K20: 2019-04-28 | L20: Giỗ tổ Hùng Vương
D21: 3 | E21: 26 | H21: T.Năm | I21: TRUE | K21: 2019-04-30 | L21: Giải phóng
D22: 4 | E22: 26 | H22: T.Sáu | I22: TRUE | K22: 2019-05-01 | L22: Quốc tế lao động
D23: 5 | E23: 26 | H23: T.Bảy | I23: FALSE | K23: 2019-09-02 | L23: Quốc Khánh
D24: 6 | E24: 26 | H24: C.Nhật | I24: FALSE
D25: 7 | E25: 26
D26: 8 | E26: 26
D27: 9 | E27: 26
D28: 10 | E28: 26
D29: 11 | E29: 26
D30: 12 | E30: 26
F31: =VLOOKUP(VALUE(RIGHT(code_thang2,LEN(code_thang2)-1)),D19:F30,2,0) -> 27
D32: Bảng mã chấm công | L32: Bậc thuế thu nhập cá nhân
D34: STT | E34: Mã | F34: Nội dung | J34: Mã màu | L34: Bậc | M34: Mức tính thuế
D35: 1 | E35: x | F35: Làm cả ngày | L35: 1 | M35: 5000000 | N35: 0.05
D36: 2 | E36: x2 | F36: Làm nửa ngày | J36: Ngày lễ | L36: 2 | M36: 10000000 | N36: 0.1 | O36: =M35*N35 -> 250000
D37: 3 | E37: NC | F37: Nghỉ có lương | J37: Ngày nghỉ | L37: 3 | M37: 18000000 | N37: 0.15 | O37: =M35*N35+(M36-M35)*N36 -> 750000
D38: 4 | E38: NO | F38: Nghỉ không lương | L38: 4 | M38: 32000000 | N38: 0.2 | O38: =O37+(M37-M36)*N37 -> 1950000
D39: 5 | L39: 5 | M39: 52000000 | N39: 0.25 | O39: =O38+(M38-M37)*N38 -> 4750000
L40: 6 | M40: 80000000 | N40: 0.3 | O40: =O39+(M39-M38)*N39 -> 9750000
L41: 7 | M41: 80000001 | N41: 0.35 | O41: =O40+(M40-M39)*N40 -> 18150000
D45: Mức giảm trừ gia cảnh
D47: STT | E47: Loại | G47: Số tiền giảm trừ
D48: 1 | E48: Bản thân | G48: 9000000
D49: 2 | E49: Người thân | G49: 3600000
D51: Thuế suất bảo hiểm
D53: STT | E53: Loại | G53: Số tiền giảm trừ
D54: 1 | E54: Bảo hiểm xã hội | G54: 0.08
D55: 2 | E55: Bảo hiểm y tế | G55: 0.015
D56: 3 | E56: Bảo hiểm thất nghiệp | G56: 0.01
